Workbook

Sheet fnd budget
S1: =VLOOKUP(orderCHA,charterinfo_a,4) -> 428
S2: =VLOOKUP(orderCHA,charterinfo_a,5) -> 35
S3: =VLOOKUP(orderCHA,charterinfo_a,6) -> 35
A5: F Y 2 4 F O U N D A T I O N B U D G E T
A6: =VLOOKUP(orderCHA,charterinfo_a,2) -> 428 - BROOKE Charter School - BOSTON pupils
C7: Items | D7: - A L L P U P I L S | L7: - S P E C I A L P O P U L A T I O N I N C R E M E N T S
C8: Adj by
C9: Wage | D9: Pre- | E9: -- Kindergarten -- | G9: Elem- | H9: Jr High/ | I9: High | J9: Voca- | L9: Spec Ed In | M9: Spec Ed | O9: English Learners | Q9: Low
C10: Fctr = w | D10: School | E10: Half | F10: Full | G10: entary | H10: Middle | I10: School | J10: tional | L10: (3.82% of total) | M10: Out | N10: PK-5 | O10: 6-8 | P10: 9-12 | Q10: Income | S10: TOTAL**
A12: F O U N D A T I O N E N R O L L M E N T | D12: =VLOOKUP(VLOOKUP(orderCHA,charterinfo_a,3), rate_chafnd,3) -> 0 | E12: =VLOOKUP(VLOOKUP(orderCHA,charterinfo_a,3),rate_chafnd,4) -> 0 | F12: =VLOOKUP(VLOOKUP(orderCHA,charterinfo_a,3),rate_chafnd,5) -> 161 | G12: =VLOOKUP(VLOOKUP(orderCHA,charterinfo_a,3),rate_chafnd,6) -> 818 | H12: =VLOOKUP(VLOOKUP(orderCHA,charterinfo_a,3),rate_chafnd,7) -> 453 | I12: =VLOOKUP(VLOOKUP(orderCHA,charterinfo_a,3),rate_chafnd,8) -> 429 | J12: =VLOOKUP(VLOOKUP(orderCHA,charterinfo_a,3),rate_chafnd,9) -> 0 | L12: =VLOOKUP(VLOOKUP(orderCHA,charterinfo_a,3),rate_chafnd,10) -> 72.579 | M12: =VLOOKUP(VLOOKUP(orderCHA,charterinfo_a,3),rate_chafnd,11) -> 0 | N12: =VLOOKUP(VLOOKUP(orderCHA,charterinfo_a,3),rate_chafnd,12) -> 95 | O12: =VLOOKUP(VLOOKUP(orderCHA,charterinfo_a,3),rate_chafnd,13) -> 13 | P12: =VLOOKUP(VLOOKUP(orderCHA,charterinfo_a,3),rate_chafnd,14) -> 11 | Q12: =VLOOKUP(VLOOKUP(orderCHA,charterinfo_a,3),rate_chafnd,15) -> 1359 | S12: =VLOOKUP(VLOOKUP(orderCHA,charterinfo_a,3),rate_chafnd,16) -> 1861
A14: 1 | B14: Administration | C14: w | D14: ='fnd base rates'!$C107*$D$28*D$12 -> 0 | E14: ='fnd base rates'!$C108*$D$28*E$12 -> 0 | F14: ='fnd base rates'!$C109*$D$28*F$12 -> 77684.1583 | G14: ='fnd base rates'!$C110*$D$28*G$12 -> 394693.4254 | H14: ='fnd base rates'!$C111*$D$28*H$12 -> 218577.1659 | I14: ='fnd base rates'!$C112*$D$28*I$12 -> 206996.9187 | J14: ='fnd base rates'!$C113*$D$28*J$12 -> 0 | L14: ='fnd base rates'!$C114*$D$28*L$12 -> 241697.8899 | M14: ='fnd base rates'!$C115*$D$28*M$12 -> 0 | N14: ='fnd base rates'!$C116*$D$28*N$12 -> 11148.193 | O14: ='fnd base rates'!$C117*$D$28*O$12 -> 1617.0804 | P14: ='fnd base rates'!$C118*$D$28*P$12 -> 1374.054 | Q14: =VLOOKUP((VLOOKUP(VLOOKUP(orderCHA,charterinfo_a,3),rate_chafnd,18)+12),rate_basefnd,3)*$D$28*Q$12 -> 142042.8159 | S14: =SUM(D14:Q14) -> 1295831.702
A15: 2 | B15: Instructional Leadership | C15: w | D15: ='fnd base rates'!$D107*$D$28*D$12 -> 0 | E15: ='fnd base rates'!$D108*$D$28*E$12 -> 0 | F15: ='fnd base rates'!$D109*$D$28*F$12 -> 140306.0099 | G15: ='fnd base rates'!$D110*$D$28*G$12 -> 712859.1062 | H15: ='fnd base rates'!$D111*$D$28*H$12 -> 394774.0527 | I15: ='fnd base rates'!$D112*$D$28*I$12 -> 373858.8711 | J15: ='fnd base rates'!$D113*$D$28*J$12 -> 0 | L15: ='fnd base rates'!$D114*$D$28*L$12 -> 0 | M15: ='fnd base rates'!$D115*$D$28*M$12 -> 0 | N15: ='fnd base rates'!$D116*$D$28*N$12 -> 19508.82 | O15: ='fnd base rates'!$D117*$D$28*O$12 -> 2829.6073 | P15: ='fnd base rates'!$D118*$D$28*P$12 -> 2404.5945 | Q15: =VLOOKUP((VLOOKUP(VLOOKUP(orderCHA,charterinfo_a,3),rate_chafnd,18)+12),rate_basefnd,4)*$D$28*Q$12 -> 672959.133 | S15: 2319500.195
A16: 3 | B16: Classroom and Specialist Teachers | C16: w | D16: ='fnd base rates'!$E107*$D$28*D$12 -> 0 | E16: ='fnd base rates'!$E108*$D$28*E$12 -> 0 | F16: ='fnd base rates'!$E109*$D$28*F$12 -> 643339.3204 | G16: ='fnd base rates'!$E110*$D$28*G$12 -> 3268598.674 | H16: ='fnd base rates'!$E111*$D$28*H$12 -> 1592911.895 | I16: ='fnd base rates'!$E112*$D$28*I$12 -> 2218393.277 | J16: ='fnd base rates'!$E113*$D$28*J$12 -> 0 | L16: ='fnd base rates'!$E114*$D$28*L$12 -> 797541.251 | M16: ='fnd base rates'!$E115*$D$28*M$12 -> 0 | N16: ='fnd base rates'!$E116*$D$28*N$12 -> 136555.527 | O16: ='fnd base rates'!$E117*$D$28*O$12 -> 19806.9677 | P16: ='fnd base rates'!$E118*$D$28*P$12 -> 16831.8018 | Q16: =VLOOKUP((VLOOKUP(VLOOKUP(orderCHA,charterinfo_a,3),rate_chafnd,18)+12),rate_basefnd,5)*$D$28*Q$12 -> 6569461.719 | S16: 15263440.43
A17: 4 | B17: Other Teaching Services | C17: w | D17: ='fnd base rates'!$F107*$D$28*D$12 -> 0 | E17: ='fnd base rates'!$F108*$D$28*E$12 -> 0 | F17: ='fnd base rates'!$F109*$D$28*F$12 -> 165004.4725 | G17: ='fnd base rates'!$F110*$D$28*G$12 -> 838345.705 | H17: ='fnd base rates'!$F111*$D$28*H$12 -> 334203.2868 | I17: ='fnd base rates'!$F112*$D$28*I$12 -> 263479.5306 | J17: ='fnd base rates'!$F113*$D$28*J$12 -> 0 | L17: ='fnd base rates'!$F114*$D$28*L$12 -> 744653.1007 | M17: ='fnd base rates'!$F115*$D$28*M$12 -> 0 | N17: ='fnd base rates'!$F116*$D$28*N$12 -> 19508.82 | O17: ='fnd base rates'!$F117*$D$28*O$12 -> 2829.6073 | P17: ='fnd base rates'!$F118*$D$28*P$12 -> 2404.5945 | Q17: =VLOOKUP((VLOOKUP(VLOOKUP(orderCHA,charterinfo_a,3),rate_chafnd,18)+12),rate_basefnd,6)*$D$28*Q$12 -> 0 | S17: 2370429.117
A18: 5 | B18: Professional Development | C18: w | D18: ='fnd base rates'!$G107*$D$28*D$12 -> 0 | E18: ='fnd base rates'!$G108*$D$28*E$12 -> 0 | F18: ='fnd base rates'!$G109*$D$28*F$12 -> 25456.5794 | G18: ='fnd base rates'!$G110*$D$28*G$12 -> 129356.2296 | H18: ='fnd base rates'!$G111*$D$28*H$12 -> 77650.2702 | I18: ='fnd base rates'!$G112*$D$28*I$12 -> 71305.8489 | J18: ='fnd base rates'!$G113*$D$28*J$12 -> 0 | L18: ='fnd base rates'!$G114*$D$28*L$12 -> 38472.5239 | M18: ='fnd base rates'!$G115*$D$28*M$12 -> 0 | N18: ='fnd base rates'!$G116*$D$28*N$12 -> 5573.061 | O18: ='fnd base rates'!$G117*$D$28*O$12 -> 808.3985 | P18: ='fnd base rates'!$G118*$D$28*P$12 -> 686.9071 | Q18: =VLOOKUP((VLOOKUP(VLOOKUP(orderCHA,charterinfo_a,3),rate_chafnd,18)+12),rate_basefnd,7)*$D$28*Q$12 -> 318718.6596 | S18: 668028.4782
A19: 6 | B19: Instructional Equipment & Tech | C19: nw | D19: ='fnd base rates'!$H107*D$12 -> 0 | E19: ='fnd base rates'!$H108*E$12 -> 0 | F19: ='fnd base rates'!$H109*F$12 -> 85428.21 | G19: ='fnd base rates'!$H110*G$12 -> 434038.98 | H19: ='fnd base rates'!$H111*H$12 -> 240366.33 | I19: ='fnd base rates'!$H112*I$12 -> 364203.84 | J19: ='fnd base rates'!$H113*J$12 -> 0 | L19: ='fnd base rates'!$H114*L$12 -> 30807.60813 | M19: ='fnd base rates'!$H115*M$12 -> 0 | N19: ='fnd base rates'!$H116*N$12 -> 12783.2 | O19: ='fnd base rates'!$H117*O$12 -> 1854.19 | P19: ='fnd base rates'!$H118*P$12 -> 1575.64 | Q19: =VLOOKUP((VLOOKUP(VLOOKUP(orderCHA,charterinfo_a,3),rate_chafnd,18)+12),rate_basefnd,8)*Q$12 -> 44819.82 | S19: 1215877.818
A20: 7 | B20: Guidance and Pschological | C20: w | D20: ='fnd base rates'!$I107*$D$28*D$12 -> 0 | E20: ='fnd base rates'!$I108*$D$28*E$12 -> 0 | F20: ='fnd base rates'!$I109*$D$28*F$12 -> 60863.4418 | G20: ='fnd base rates'!$I110*$D$28*G$12 -> 309231.6484 | H20: ='fnd base rates'!$I111*$D$28*H$12 -> 193054.1946 | I20: ='fnd base rates'!$I112*$D$28*I$12 -> 208137.8871 | J20: ='fnd base rates'!$I113*$D$28*J$12 -> 0 | L20: ='fnd base rates'!$I114*$D$28*L$12 -> 0 | M20: ='fnd base rates'!$I115*$D$28*M$12 -> 0 | N20: ='fnd base rates'!$I116*$D$28*N$12 -> 8360.627 | O20: ='fnd base rates'!$I117*$D$28*O$12 -> 1212.8103 | P20: ='fnd base rates'!$I118*$D$28*P$12 -> 1030.5405 | Q20: =VLOOKUP((VLOOKUP(VLOOKUP(orderCHA,charterinfo_a,3),rate_chafnd,18)+12),rate_basefnd,9)*$D$28*Q$12 -> 266028.4629 | S20: 1047919.613
A21: 8 | B21: Pupil Services | C21: w | D21: ='fnd base rates'!$J107*$D$28*D$12 -> 0 | E21: ='fnd base rates'!$J108*$D$28*E$12 -> 0 | F21: ='fnd base rates'!$J109*$D$28*F$12 -> 18624.7537 | G21: ='fnd base rates'!$J110*$D$28*G$12 -> 141919.1554 | H21: ='fnd base rates'!$J111*$D$28*H$12 -> 128385.1377 | I21: ='fnd base rates'!$J112*$D$28*I$12 -> 280364.9277 | J21: ='fnd base rates'!$J113*$D$28*J$12 -> 0 | L21: ='fnd base rates'!$J114*$D$28*L$12 -> 0 | M21: ='fnd base rates'!$J115*$D$28*M$12 -> 0 | N21: ='fnd base rates'!$J116*$D$28*N$12 -> 2787.566 | O21: ='fnd base rates'!$J117*$D$28*O$12 -> 404.2701 | P21: ='fnd base rates'!$J118*$D$28*P$12 -> 343.5135 | Q21: =VLOOKUP((VLOOKUP(VLOOKUP(orderCHA,charterinfo_a,3),rate_chafnd,18)+12),rate_basefnd,10)*$D$28*Q$12 -> 1382299.24 | S21: 1955128.564
A22: 9 | B22: Operations and Maintenance | C22: w | D22: ='fnd base rates'!$K107*$D$28*D$12 -> 0 | E22: ='fnd base rates'!$K108*$D$28*E$12 -> 0 | F22: ='fnd base rates'!$K109*$D$28*F$12 -> 178647.0651 | G22: ='fnd base rates'!$K110*$D$28*G$12 -> 907660.2438 | H22: ='fnd base rates'!$K111*$D$28*H$12 -> 544934.4474 | I22: ='fnd base rates'!$K112*$D$28*I$12 -> 500380.1088 | J22: ='fnd base rates'!$K113*$D$28*J$12 -> 0 | L22: ='fnd base rates'!$K114*$D$28*L$12 -> 269987.2318 | M22: ='fnd base rates'!$K115*$D$28*M$12 -> 0 | N22: ='fnd base rates'!$K116*$D$28*N$12 -> 33442.508 | O22: ='fnd base rates'!$K117*$D$28*O$12 -> 4850.6744 | P22: ='fnd base rates'!$K118*$D$28*P$12 -> 4122.0421 | Q22: =VLOOKUP((VLOOKUP(VLOOKUP(orderCHA,charterinfo_a,3),rate_chafnd,18)+12),rate_basefnd,11)*$D$28*Q$12 -> 0 | S22: 2444024.321
A23: 10 | B23: Employee Benefits & Fixed Charges | C23: nw | D23: ='fnd base rates'!$L107*D$12 -> 0 | E23: ='fnd base rates'!$L108*E$12 -> 0 | F23: ='fnd base rates'!$L109*F$12 -> 234618.86 | G23: ='fnd base rates'!$L110*G$12 -> 1192055.04 | H23: ='fnd base rates'!$L111*H$12 -> 699454.65 | I23: ='fnd base rates'!$L112*I$12 -> 590574.27 | J23: ='fnd base rates'!$L113*J$12 -> 0 | L23: ='fnd base rates'!$L114*L$12 -> 282940.522 | M23: ='fnd base rates'!$L115*M$12 -> 0 | N23: ='fnd base rates'!$L116*N$12 -> 28687.15 | O23: ='fnd base rates'!$L117*O$12 -> 4160.91 | P23: ='fnd base rates'!$L118*P$12 -> 3535.95 | Q23: =VLOOKUP((VLOOKUP(VLOOKUP(orderCHA,charterinfo_a,3),rate_chafnd,18)+12),rate_basefnd,12)*Q$12 -> 994421.07 | S23: 4030448.422
A24: 11 | B24: Special Ed Tuition | C24: nw | D24: ='fnd base rates'!$M107*D$12 -> 0 | E24: ='fnd base rates'!$M108*E$12 -> 0 | F24: ='fnd base rates'!$M109*F$12 -> 0 | G24: ='fnd base rates'!$M110*G$12 -> 0 | H24: ='fnd base rates'!$M111*H$12 -> 0 | I24: ='fnd base rates'!$M112*I$12 -> 0 | J24: ='fnd base rates'!$M113*J$12 -> 0 | L24: ='fnd base rates'!$M114*L$12 -> 0 | M24: ='fnd base rates'!$M115*M$12 -> 0 | N24: ='fnd base rates'!$M116*N$12 -> 0 | O24: ='fnd base rates'!$M117*O$12 -> 0 | P24: ='fnd base rates'!$M118*P$12 -> 0 | Q24: =VLOOKUP((VLOOKUP(VLOOKUP(orderCHA,charterinfo_a,3),rate_chafnd,18)+12),rate_basefnd,13)*Q$12 -> 0 | S24: 0
A26: 12 | B26: Total | D26: =SUM(D14:D24) -> 0 | E26: 0 | F26: 1629972.871 | G26: 8328758.208 | H26: =SUM(H14:H24) -> 4424311.431 | I26: 5077695.48 | J26: 0 | K26: 0 | L26: 2406100.127 | M26: 0 | N26: 278355.472 | O26: 40374.516 | P26: 34309.638 | Q26: 10390750.92 | S26: =SUM(S14:S24) -> 32610628.66
A28: 13 | B28: Wage Adjustment Factor | D28: =VLOOKUP(orderCHA,charterinfo_a,8) -> 1.09 | Q28: F O U N D A T I O N T U I T I O N R A T E | S28: =IF(S12=0,0,ROUND(S26/S12,0)) -> 17523
A29: 14 | B29: Low Income Group | D29: =VLOOKUP(orderCHA,charterinfo_a,9) -> 11
A31: C A V E A T S | L31: English Learners as a % of Total Full Rate and Budget | S31: =SUM(N26:P26)/S26 -> 0.01082590678
A32: - Charter schools do not send special education pupils to other districts or private programs. | L32: Economically Disadvantaged Proportion of Full Rate and Budget | S32: =Q26/S26 -> 0.3186308068
A33: - The in-district special education increment uses an "assumed" enrollment percentage of 3.9.
A34: - Total foundation enrollment includes only the All Pupils section. Special Population Increments enrollment has already been counted in All Pupils cohorts.
A35: - Pre-kindergarten and half-time kindergarten pupils count as one-half in totals for ELL, low income, and total foundation enrollment.
A36: - Each component of the foundation budget represents the enrollment on line 1 multiplied by the appropriate state-wide foundation allotment.
A37: - The wage adjustment factor is applied to the underlying base rates in all functions except instructional equipment, benefits, and special education.
A38: - October 2022 enrollment is being used to generate the FY24 rate.

Sheet fnd base rates (hidden)
A4: FY23 Foundation Base Rates
H5: Instruction- | I5: Guid- | K5: Opera- | L5: Employee | N5: Total
E6: Classroom | F6: Other | G6: Profess- | H6: al Materials, | I6: ance & | K6: tions & | L6: Benefits | N6: Opera-
C7: Admini- | D7: Instructional | E7: & Specialist | F7: Teaching | G7: ional Dev- | H7: Equipment & | I7: Psycho- | J7: Pupil | K7: Maint- | L7: & Fixed | M7: Sped | N7: ting Exp-
A8: Foundation Subsets | C8: stration | D8: Leadership | E8: Teachers | F8: Services | G8: elopment | H8: Technology | I8: logical | J8: Services | K8: enance | L8: Charges | M8: Tuition | N8: enditures
A10: 1 | B10: Pre-School | C10: 211.81 | D10: 382.53 | E10: 1754.05 | F10: 449.86 | G10: 69.37 | H10: 253.87 | I10: 153.16 | J10: 50.76 | K10: 487.08 | L10: 651.59 | M10: 0 | N10: 4464.08
A11: 2 | B11: Kindergarten-Half | C11: 211.81 | D11: 382.53 | E11: 1754.05 | F11: 449.86 | G11: 69.37 | H11: 253.87 | I11: 153.16 | J11: 50.76 | K11: 487.08 | L11: 651.59 | M11: 0 | N11: 4464.08
A12: 3 | B12: Kindergarten-Full | C12: 423.61 | D12: 765.08 | E12: 3508.1 | F12: 899.76 | G12: 138.81 | H12: 507.76 | I12: 306.35 | J12: 101.56 | K12: 974.15 | L12: 1303.16 | M12: 0 | N12: 8928.34
A13: 4 | B13: Elementary | C13: 423.61 | D13: 765.08 | E13: 3508.05 | F13: 899.76 | G13: 138.83 | H13: 507.76 | I13: 306.35 | J13: 152.32 | K13: 974.15 | L13: 1303.19 | M13: 0 | N13: 8979.1
A14: 5 | B14: Junior/Middle | C14: 423.61 | D14: 765.08 | E14: 3087.1 | F14: 647.69 | G14: 150.49 | H14: 507.76 | I14: 362.69 | J14: 248.81 | K14: 1056.1 | L14: 1369.51 | M14: 0 | N14: 8618.84
A15: 6 | B15: High School | C15: 423.61 | D15: 765.08 | E15: 4539.82 | F15: 539.2 | G15: 145.92 | H15: 812.4 | I15: 425.94 | J15: 573.75 | K15: 1024 | L15: 1226.16 | M15: 0 | N15: 10475.88
A16: 7 | B16: Vocational | C16: 423.61 | D16: 765.08 | E16: 7717.75 | F16: 539.2 | G16: 241.25 | H16: 1421.69 | I16: 425.94 | J16: 573.75 | K16: 1916.47 | L16: 1672.97 | M16: 0 | N16: 15697.71
A17: 8 | B17: Special Ed-In School | C17: 2923.61 | D17: 0 | E17: 9647.16 | F17: 9007.42 | G17: 465.37 | H17: 406.19 | I17: 0 | J17: 0 | K17: 3265.8 | L17: 3703.8 | M17: 0 | N17: 29419.35
A18: 9 | B18: Special Ed-Tuitioned Out | C18: 3262.78 | D18: 0 | E18: 0 | F18: 49.84 | G18: 0 | H18: 0 | I18: 0 | J18: 0 | K18: 0 | L18: 0 | M18: 30978.37 | N18: 34290.99
A19: 10 | B19: EL PK-5 | C19: 101.16 | D19: 177.02 | E19: 1239.09 | F19: 177.02 | G19: 50.57 | H19: 126.43 | I19: 75.86 | J19: 25.3 | K19: 303.45 | L19: 278.17 | M19: 0 | N19: 2554.07
A20: 11 | B20: EL jr/middle | C20: 106.77 | D20: 186.83 | E20: 1307.82 | F20: 186.83 | G20: 53.38 | H20: 133.45 | I20: 80.08 | J20: 26.69 | K20: 320.28 | L20: 293.59 | M20: 0 | N20: 2695.72
A21: 12 | B21: EL high | C21: 99.63 | D21: 174.34 | E21: 1220.36 | F21: 174.34 | G21: 49.8 | H21: 124.52 | I21: 74.71 | J21: 24.91 | K21: 298.86 | L21: 273.96 | M21: 0 | N21: 2515.43
A22: 13 | B22: Low Income 1 | C22: 53.94 | D22: 255.58 | E22: 2495 | F22: 0 | G22: 121.05 | H22: 18.55 | I22: 101.03 | J22: 524.98 | K22: 0 | L22: 403.58 | M22: 0 | N22: 3973.71
A23: 14 | B23: Low Income 2 | C23: 55.43 | D23: 262.6 | E23: 2563.53 | F23: 0 | G23: 124.37 | H23: 19.06 | I23: 103.8 | J23: 539.4 | K23: 0 | L23: 414.67 | M23: 0 | N23: 4082.86
A24: 15 | B24: Low Income 3 | C24: 56.9 | D24: 269.63 | E24: 2632.05 | F24: 0 | G24: 127.7 | H24: 19.58 | I24: 106.58 | J24: 553.82 | K24: 0 | L24: 425.76 | M24: 0 | N24: 4192.02
A25: 16 | B25: Low Income 4 | C25: 58.39 | D25: 276.64 | E25: 2700.58 | F25: 0 | G25: 131.02 | H25: 20.08 | I25: 109.36 | J25: 568.24 | K25: 0 | L25: 436.84 | M25: 0 | N25: 4301.15
A26: 17 | B26: Low Income 5 | C26: 59.87 | D26: 283.66 | E26: 2769.11 | F26: 0 | G26: 134.35 | H26: 20.59 | I26: 112.13 | J26: 582.66 | K26: 0 | L26: 447.93 | M26: 0 | N26: 4410.3
A27: 18 | B27: Low Income 6 | C27: 65.09 | D27: 308.37 | E27: 3010.3 | F27: 0 | G27: 146.04 | H27: 22.39 | I27: 121.89 | J27: 633.4 | K27: 0 | L27: 486.94 | M27: 0 | N27: 4794.42
A28: 19 | B28: Low Income 7 | C28: 68.64 | D28: 325.22 | E28: 3174.83 | F28: 0 | G28: 154.02 | H28: 23.61 | I28: 128.56 | J28: 668.03 | K28: 0 | L28: 513.55 | M28: 0 | N28: 5056.46
A29: 20 | B29: Low Income 8 | C29: 72.2 | D29: 342.08 | E29: 3339.36 | F29: 0 | G29: 162.01 | H29: 24.84 | I29: 135.22 | J29: 702.64 | K29: 0 | L29: 540.16 | M29: 0 | N29: 5318.51
A30: 21 | B30: Low Income 9 | C30: 75.76 | D30: 358.94 | E30: 3503.91 | F30: 0 | G30: 169.99 | H30: 26.06 | I30: 141.88 | J30: 737.27 | K30: 0 | L30: 566.78 | M30: 0 | N30: 5580.59
A31: 22 | B31: Low Income 10 | C31: 79.31 | D31: 375.8 | E31: 3668.44 | F31: 0 | G31: 177.97 | H31: 27.28 | I31: 148.55 | J31: 771.89 | K31: 0 | L31: 593.4 | M31: 0 | N31: 5842.64
A32: 23 | B32: Low Income 11 | C32: 83.62 | D32: 396.18 | E32: 3867.46 | F32: 0 | G32: 187.63 | H32: 28.76 | I32: 156.61 | J32: 813.77 | K32: 0 | L32: 625.59 | M32: 0 | N32: 6159.62
A33: 24 | B33: Low Income 12 | C33: 87.92 | D33: 416.57 | E33: 4066.47 | F33: 0 | G33: 197.28 | H33: 30.24 | I33: 164.67 | J33: 855.64 | K33: 0 | L33: 657.78 | M33: 0 | N33: 6476.57
B96: Inflation Adjustment
B97: FY23 baseline | C97: 1 | K97: Rates in Orange cells are values. They are increased accord-
B98: FY24 inflation cap'd | C98: 0.045 | K98: ing to SOA parameters.
B99: FY24 adjustment | C99: =C97+C98 -> 1.045
A101: FY24 Foundation Budget Rates
H102: Instruction- | I102: Guid- | K102: Opera- | L102: Employee | N102: Total
E103: Classroom | F103: Other | G103: Profess- | H103: al Materials, | I103: ance & | K103: tions & | L103: Benefits | N103: Opera- | T103: FY24 | V103: FY24
C104: Admini- | D104: Instructional | E104: & Specialist | F104: Teaching | G104: ional Dev- | H104: Equipment & | I104: Psycho- | J104: Pupil | K104: Maint- | L104: & Fixed | M104: Sped | N104: ting Exp- | P104: current | R104: FY23 | T104: GOV | V104: HWM
A105: Adjusted Foundation Budget | C105: stration | D105: Leadership | E105: Teachers | F105: Services | G105: elopment | H105: Technology | I105: logical | J105: Services | K105: enance | L105: Charges | M105: Tuition | N105: enditures | P105: diff
C106: 3 | D106: 4 | E106: 5 | F106: 6 | G106: 7 | H106: 8 | I106: 9 | J106: 10 | K106: 11 | L106: 12 | M106: 13 | N106: 14
A107: 1 | B107: Pre-School | C107: =IF(C10>0,ROUND(C10+(C10*inflat),2),0) -> 221.34 | D107: 399.74 | E107: 1832.98 | F107: 470.1 | G107: 72.49 | H107: 265.29 | I107: 173.4 | J107: 53.04 | K107: 509 | L107: 728.64 | M107: 0 | N107: =SUM(C107:M107) -> 4726.02 | P107: =N107-T107 -> 0 | R107: 4464.08 | T107: 4726.02 | V107: 4726.02
A108: 2 | B108: Kindergarten half-day | C108: =IF(C11>0,ROUND(C11+(C11*inflat),2),0) -> 221.34 | D108: 399.74 | E108: 1832.98 | F108: 470.1 | G108: 72.49 | H108: 265.29 | I108: 173.4 | J108: 53.04 | K108: 509 | L108: 728.64 | M108: 0 | N108: =SUM(C108:M108) -> 4726.02 | P108: =N108-T108 -> 0 | R108: 4464.08 | T108: 4726.02 | V108: 4726.02
A109: 3 | B109: Kindergarten full-day | C109: =IF(C12>0,ROUND(C12+(C12*inflat),2),0) -> 442.67 | D109: 799.51 | E109: 3665.96 | F109: 940.25 | G109: 145.06 | H109: 530.61 | I109: 346.82 | J109: 106.13 | K109: 1017.99 | L109: 1457.26 | M109: 0 | N109: 9452.26 | P109: 0 | R109: 8928.34 | T109: 9452.26 | V109: 9452.26
A110: 4 | B110: Elementary | C110: =IF(C13>0,ROUND(C13+(C13*inflat),2),0) -> 442.67 | D110: 799.51 | E110: 3665.91 | F110: 940.25 | G110: 145.08 | H110: 530.61 | I110: 346.82 | J110: 159.17 | K110: 1017.99 | L110: 1457.28 | M110: 0 | N110: 9505.29 | P110: 0 | R110: 8979.1 | T110: 9505.29 | V110: 9505.29
A111: 5 | B111: Junior/Middle | C111: =IF(C14>0,ROUND(C14+(C14*inflat),2),0) -> 442.67 | D111: 799.51 | E111: 3226.02 | F111: 676.84 | G111: 157.26 | H111: 530.61 | I111: 390.98 | J111: 260.01 | K111: 1103.62 | L111: 1544.05 | M111: 0 | N111: 9131.57 | P111: 0 | R111: 8618.84 | T111: 9131.57 | V111: 9131.57
A112: 6 | B112: High School | C112: =IF(C15>0,ROUND(C15+(C15*inflat),2),0) -> 442.67 | D112: 799.51 | E112: 4744.11 | F112: 563.46 | G112: 152.49 | H112: 848.96 | I112: 445.11 | J112: 599.57 | K112: 1070.08 | L112: 1376.63 | M112: 0 | N112: 11042.59 | P112: 0 | R112: 10475.88 | T112: 11042.59 | V112: 11042.59
A113: 7 | B113: Vocational | C113: =IF(C16>0,ROUND(C16+(C16*inflat),2),0) -> 442.67 | D113: 799.51 | E113: 8065.05 | F113: 563.46 | G113: 252.11 | H113: 1485.67 | I113: 445.11 | J113: 599.57 | K113: 2002.71 | L113: 1834.9 | M113: 0 | N113: 16490.76 | P113: 0 | R113: 15697.71 | T113: 16490.76 | V113: 16490.76
A114: 8 | B114: Special Education in-district | C114: =IF(C17>0,ROUND(C17+(C17*inflat),2),0) -> 3055.17 | D114: 0 | E114: 10081.28 | F114: 9412.75 | G114: 486.31 | H114: 424.47 | I114: 0 | J114: 0 | K114: 3412.76 | L114: 3898.38 | M114: 0 | N114: 30771.12 | P114: 0 | R114: 29419.35 | T114: 30771.12 | V114: 30771.12
A115: 9 | B115: Special Education tuitioned-out | C115: 3531.53 | D115: 0 | E115: 0 | F115: 53.95 | G115: 0 | H115: 0 | I115: 0 | J115: 0 | K115: 0 | L115: 0 | M115: 33529.93 | N115: 37115.41 | P115: 0 | R115: 34290.99 | T115: 37115.41 | V115: 37115.41
A116: 10 | B116: EL PK-5 | C116: 107.66 | D116: 188.4 | E116: 1318.74 | F116: 188.4 | G116: 53.82 | H116: 134.56 | I116: 80.74 | J116: 26.92 | K116: 322.96 | L116: 301.97 | M116: 0 | N116: 2724.17 | P116: 5.92 | R116: 2554.07 | T116: 2718.25 | V116: 2724.17
A117: 11 | B117: EL jr/middle | C117: 114.12 | D117: 199.69 | E117: 1397.81 | F117: 199.69 | G117: 57.05 | H117: 142.63 | I117: 85.59 | J117: 28.53 | K117: 342.32 | L117: 320.07 | M117: 0 | N117: 2887.5 | P117: 6.28 | R117: 2695.72 | T117: 2881.22 | V117: 2887.5
A118: 12 | B118: EL high | C118: 114.6 | D118: 200.55 | E118: 1403.82 | F118: 200.55 | G118: 57.29 | H118: 143.24 | I118: 85.95 | J118: 28.65 | K118: 343.79 | L118: 321.45 | M118: 0 | N118: 2899.89 | P118: 6.31 | R118: 2515.43 | T118: 2893.58 | V118: 2899.89
A119: 13 | B119: Low Income 1 | C119: 55.76 | D119: 264.22 | E119: 2579.36 | F119: 0 | G119: 125.14 | H119: 19.18 | I119: 104.45 | J119: 542.73 | K119: 0 | L119: 425.57 | M119: 0 | N119: 4116.41 | P119: 8.34 | R119: 3973.71 | T119: 4108.07 | V119: 4116.41
A120: 14 | B120: Low Income 2 | C120: 57.77 | D120: 273.72 | E120: 2672.06 | F120: 0 | G120: 129.64 | H120: 19.87 | I120: 108.2 | J120: 562.24 | K120: 0 | L120: 440.88 | M120: 0 | N120: 4264.38 | P120: 8.65 | R120: 4082.86 | T120: 4255.73 | V120: 4264.38
A121: 15 | B121: Low Income 3 | C121: 59.77 | D121: 283.22 | E121: 2764.76 | F121: 0 | G121: 134.14 | H121: 20.56 | I121: 111.95 | J121: 581.75 | K121: 0 | L121: 456.17 | M121: 0 | N121: 4412.32 | P121: 8.95 | R121: 4192.02 | T121: 4403.37 | V121: 4412.32
A122: 16 | B122: Low Income 4 | C122: 61.78 | D122: 292.71 | E122: 2857.46 | F122: 0 | G122: 138.63 | H122: 21.25 | I122: 115.71 | J122: 601.25 | K122: 0 | L122: 471.47 | M122: 0 | N122: 4560.26 | P122: 9.25 | R122: 4301.15 | T122: 4551.01 | V122: 4560.26
A123: 17 | B123: Low Income 5 | C123: 63.78 | D123: 302.21 | E123: 2950.16 | F123: 0 | G123: 143.13 | H123: 21.94 | I123: 119.46 | J123: 620.75 | K123: 0 | L123: 486.76 | M123: 0 | N123: 4708.19 | P123: 9.54 | R123: 4410.3 | T123: 4698.65 | V123: 4708.19
A124: 18 | B124: Low Income 6 | C124: 69.89 | D124: 331.16 | E124: 3232.78 | F124: 0 | G124: 156.83 | H124: 24.05 | I124: 130.9 | J124: 680.22 | K124: 0 | L124: 533.39 | M124: 0 | N124: 5159.22 | P124: 10.46 | R124: 4794.42 | T124: 5148.76 | V124: 5159.22
A125: 19 | B125: Low Income 7 | C125: 74.71 | D125: 353.95 | E125: 3455.32 | F125: 0 | G125: 167.63 | H125: 25.7 | I125: 139.92 | J125: 727.05 | K125: 0 | L125: 570.1 | M125: 0 | N125: 5514.38 | P125: 11.18 | R125: 5056.46 | T125: 5503.2 | V125: 5514.38
A126: 20 | B126: Low Income 8 | C126: 79.52 | D126: 376.75 | E126: 3677.86 | F126: 0 | G126: 178.43 | H126: 27.36 | I126: 148.93 | J126: 773.87 | K126: 0 | L126: 606.82 | M126: 0 | N126: 5869.54 | P126: 11.9 | R126: 5318.51 | T126: 5857.64 | V126: 5869.54
A127: 21 | B127: Low Income 9 | C127: 84.33 | D127: 399.55 | E127: 3900.4 | F127: 0 | G127: 189.23 | H127: 29 | I127: 157.94 | J127: 820.7 | K127: 0 | L127: 643.54 | M127: 0 | N127: 6224.69 | P127: 12.62 | R127: 5580.59 | T127: 6212.07 | V127: 6224.69
A128: 22 | B128: Low Income 10 | C128: 89.14 | D128: 422.35 | E128: 4122.95 | F128: 0 | G128: 200.02 | H128: 30.66 | I128: 166.95 | J128: 867.52 | K128: 0 | L128: 680.27 | M128: 0 | N128: 6579.86 | P128: 13.35 | R128: 5842.64 | T128: 6566.51 | V128: 6579.86
A129: 23 | B129: Low Income 11 | C129: 95.89 | D129: 454.3 | E129: 4434.9 | F129: 0 | G129: 215.16 | H129: 32.98 | I129: 179.59 | J129: 933.16 | K129: 0 | L129: 731.73 | M129: 0 | N129: 7077.71 | P129: 14.35 | R129: 6159.62 | T129: 7063.36 | V129: 7077.71
A130: 24 | B130: Low Income 12 | C130: 102.63 | D130: 486.26 | E130: 4746.85 | F130: 0 | G130: 230.29 | H130: 35.3 | I130: 192.22 | J130: 998.8 | K130: 0 | L130: 783.2 | M130: 0 | N130: 7575.55 | P130: 15.36 | R130: 6476.57 | T130: 7560.19 | V130: 7575.55
H303: Instruction- | I303: Guid- | K303: Opera- | L303: Employee | N303: Total
E304: Classroom | F304: Other | G304: Profess- | H304: al Materials, | I304: ance & | K304: tions & | L304: Benefits | N304: Opera-
C305: Admini- | D305: Instructional | E305: & Specialist | F305: Teaching | G305: ional Dev- | H305: Equipment & | I305: Psycho- | J305: Pupil | K305: Maint- | L305: & Fixed | M305: Sped | N305: ting Exp-
A306: Adjusted Foundation Budget | C306: stration | D306: Leadership | E306: Teachers | F306: Services | G306: elopment | H306: Technology | I306: logical | J306: Services | K306: enance | L306: Charges | M306: Tuition | N306: enditures
A307: =A107=A207 -> FALSE | B307: =B107=B207 -> FALSE | C307: =C107-C207 -> 221.34 | D307: =D107-D207 -> 399.74 | E307: 1832.98 | F307: 470.1 | G307: 72.49 | H307: 265.29 | I307: 173.4 | J307: 53.04 | K307: 509 | L307: 728.64 | M307: 0 | N307: 4726.02
A308: =A108=A208 -> FALSE | B308: FALSE | C308: =C108-C208 -> 221.34 | D308: 399.74 | E308: 1832.98 | F308: 470.1 | G308: 72.49 | H308: 265.29 | I308: 173.4 | J308: 53.04 | K308: 509 | L308: 728.64 | M308: 0 | N308: 4726.02
A309: =A109=A209 -> FALSE | B309: FALSE | C309: =C109-C209 -> 442.67 | D309: 799.51 | E309: 3665.96 | F309: 940.25 | G309: 145.06 | H309: 530.61 | I309: 346.82 | J309: 106.13 | K309: 1017.99 | L309: 1457.26 | M309: 0 | N309: 9452.26
A310: =A110=A210 -> FALSE | B310: FALSE | C310: =C110-C210 -> 442.67 | D310: 799.51 | E310: 3665.91 | F310: 940.25 | G310: 145.08 | H310: 530.61 | I310: 346.82 | J310: 159.17 | K310: 1017.99 | L310: 1457.28 | M310: 0 | N310: 9505.29
A311: =A111=A211 -> FALSE | B311: FALSE | C311: =C111-C211 -> 442.67 | D311: 799.51 | E311: 3226.02 | F311: 676.84 | G311: 157.26 | H311: 530.61 | I311: 390.98 | J311: 260.01 | K311: 1103.62 | L311: =L111-L211 -> 1544.05 | M311: 0 | N311: 9131.57
A312: =A112=A212 -> FALSE | B312: FALSE | C312: =C112-C212 -> 442.67 | D312: 799.51 | E312: 4744.11 | F312: 563.46 | G312: 152.49 | H312: 848.96 | I312: 445.11 | J312: 599.57 | K312: 1070.08 | L312: 1376.63 | M312: 0 | N312: 11042.59
A313: =A113=A213 -> FALSE | B313: FALSE | C313: =C113-C213 -> 442.67 | D313: 799.51 | E313: 8065.05 | F313: 563.46 | G313: 252.11 | H313: 1485.67 | I313: 445.11 | J313: 599.57 | K313: 2002.71 | L313: 1834.9 | M313: 0 | N313: 16490.76
A314: =A114=A214 -> FALSE | B314: FALSE | C314: =C114-C214 -> 3055.17 | D314: 0 | E314: 10081.28 | F314: 9412.75 | G314: 486.31 | H314: 424.47 | I314: 0 | J314: 0 | K314: 3412.76 | L314: 3898.38 | M314: 0 | N314: 30771.12
A315: =A115=A215 -> FALSE | B315: FALSE | C315: =C115-C215 -> 3531.53 | D315: 0 | E315: 0 | F315: 53.95 | G315: 0 | H315: 0 | I315: 0 | J315: 0 | K315: 0 | L315: 0 | M315: 33529.93 | N315: 37115.41
A316: =A116=A216 -> FALSE | B316: FALSE | C316: =C116-C216 -> 107.66 | D316: 188.4 | E316: 1318.74 | F316: 188.4 | G316: 53.82 | H316: 134.56 | I316: 80.74 | J316: 26.92 | K316: 322.96 | L316: 301.97 | M316: 0 | N316: 2724.17
A317: =A117=A217 -> FALSE | B317: FALSE | C317: =C117-C217 -> 114.12 | D317: 199.69 | E317: 1397.81 | F317: 199.69 | G317: 57.05 | H317: 142.63 | I317: 85.59 | J317: 28.53 | K317: 342.32 | L317: 320.07 | M317: 0 | N317: 2887.5
A318: =A118=A218 -> FALSE | B318: FALSE | C318: =C118-C218 -> 114.6 | D318: 200.55 | E318: 1403.82 | F318: 200.55 | G318: 57.29 | H318: 143.24 | I318: 85.95 | J318: 28.65 | K318: 343.79 | L318: 321.45 | M318: 0 | N318: 2899.89
A319: =A119=A219 -> FALSE | B319: FALSE | C319: =C119-C219 -> 55.76 | D319: 264.22 | E319: 2579.36 | F319: 0 | G319: 125.14 | H319: 19.18 | I319: 104.45 | J319: 542.73 | K319: 0 | L319: 425.57 | M319: 0 | N319: 4116.41
A320: =A120=A220 -> FALSE | B320: FALSE | C320: =C120-C220 -> 57.77 | D320: 273.72 | E320: 2672.06 | F320: 0 | G320: 129.64 | H320: 19.87 | I320: 108.2 | J320: 562.24 | K320: 0 | L320: 440.88 | M320: 0 | N320: 4264.38
A321: =A121=A221 -> FALSE | B321: FALSE | C321: =C121-C221 -> 59.77 | D321: 283.22 | E321: 2764.76 | F321: 0 | G321: 134.14 | H321: 20.56 | I321: 111.95 | J321: 581.75 | K321: 0 | L321: 456.17 | M321: 0 | N321: 4412.32
A322: =A122=A222 -> FALSE | B322: FALSE | C322: =C122-C222 -> 61.78 | D322: 292.71 | E322: 2857.46 | F322: 0 | G322: 138.63 | H322: 21.25 | I322: 115.71 | J322: 601.25 | K322: 0 | L322: 471.47 | M322: 0 | N322: 4560.26
A323: =A123=A223 -> FALSE | B323: FALSE | C323: =C123-C223 -> 63.78 | D323: 302.21 | E323: 2950.16 | F323: 0 | G323: 143.13 | H323: 21.94 | I323: 119.46 | J323: 620.75 | K323: 0 | L323: 486.76 | M323: 0 | N323: 4708.19
A324: =A124=A224 -> FALSE | B324: FALSE | C324: =C124-C224 -> 69.89 | D324: 331.16 | E324: 3232.78 | F324: 0 | G324: 156.83 | H324: 24.05 | I324: 130.9 | J324: 680.22 | K324: 0 | L324: 533.39 | M324: 0 | N324: 5159.22
A325: =A125=A225 -> FALSE | B325: FALSE | C325: =C125-C225 -> 74.71 | D325: 353.95 | E325: 3455.32 | F325: 0 | G325: 167.63 | H325: 25.7 | I325: 139.92 | J325: 727.05 | K325: 0 | L325: 570.1 | M325: 0 | N325: 5514.38
A326: =A126=A226 -> FALSE | B326: FALSE | C326: =C126-C226 -> 79.52 | D326: 376.75 | E326: 3677.86 | F326: 0 | G326: 178.43 | H326: 27.36 | I326: 148.93 | J326: 773.87 | K326: 0 | L326: 606.82 | M326: 0 | N326: 5869.54
A327: =A127=A227 -> FALSE | B327: FALSE | C327: =C127-C227 -> 84.33 | D327: 399.55 | E327: 3900.4 | F327: 0 | G327: 189.23 | H327: 29 | I327: 157.94 | J327: 820.7 | K327: 0 | L327: 643.54 | M327: 0 | N327: 6224.69
A328: =A128=A228 -> FALSE | B328: FALSE | C328: =C128-C228 -> 89.14 | D328: 422.35 | E328: 4122.95 | F328: 0 | G328: 200.02 | H328: 30.66 | I328: 166.95 | J328: 867.52 | K328: 0 | L328: 680.27 | M328: 0 | N328: 6579.86
A329: =A129=A229 -> FALSE | B329: FALSE | C329: =C129-C229 -> 95.89 | D329: 454.3 | E329: 4434.9 | F329: 0 | G329: 215.16 | H329: 32.98 | I329: 179.59 | J329: 933.16 | K329: 0 | L329: 731.73 | M329: 0 | N329: 7077.71
A330: =A130=A230 -> FALSE | B330: FALSE | C330: =C130-C230 -> 102.63 | D330: 486.26 | E330: 4746.85 | F330: 0 | G330: 230.29 | H330: 35.3 | I330: 192.22 | J330: 998.8 | K330: 0 | L330: 783.2 | M330: 0 | N330: 7575.55

Sheet fnd enro (hidden)
I1: =SUM(D10:I1068) -> 45627 | N1: =SUM(M10:O1068) -> 5897 | P1: =SUM(P10:P1068) -> 29375 | AA1: Source: 24 - PROJa fnd enro | AI1: =SUM(AD10:AI1068) -> 45630 | AN1: =SUM(AK10:AN1068) -> 5958 | AS1: =SUM(AO10:AS1068) -> 29587
A6: FOUNDATION ENROLLMENT | AA6: SIMS OCTOBER 1 DATA
D7: A l l P u p i l s | J7: Voke | K7: Sped | M7: Eng Lang Learners | P7: EcoDis | Q7: Lowinc | R7: TOTAL | AD7: A l l P u p i l s | AJ7: Voke | AK7: Early ELP | AO7: EcoDis | AU7: Campus | AV7: Sending | AW7: Lowinc
A8: LEA | B8: chalocsend | C8: charter school | D8: PK | E8: K2 | F8: KF | G8: G1-5 | H8: G6-8 | I8: G9-12 | J8: Reg | K8: In | L8: Tuit | M8: PK-5 | N8: G6-8 | O8: G9-12 | P8: All | Q8: Group | R8: Enro | AA8: lea | AB8: chalocsend | AC8: charter school | AD8: PK | AE8: K2 | AF8: K | AG8: G1-5 | AH8: G6-8 | AI8: G9-12 | AJ8: Reg | AK8: PK | AL8: KF-5 | AM8: G6-8 | AN8: G9-12 | AO8: g1-8 | AP8: PK | AQ8: K2 | AR8: KF | AS8: g9-12 | AU8: LEA | AV8: LEA | AW8: Group
Q9: ROUND(ao10*0.5,0)+ROUND(ap10*0.5,0)+ROUND(SUM(an10,aq10:ar10),0)
A10: 409 | B10: 409201003 | C10: ALMA DEL MAR | D10: =ROUND(AD10,0) -> 0 | E10: =ROUND(AE10,0) -> 0 | F10: 0 | G10: 1 | H10: 0 | I10: =ROUND(AI10,0)-J10 -> 0 | J10: 0 | K10: =ROUND(0.039*(SUM(AF10:AI10)+(AE10*0.5))+0.049*AJ10,4) -> 0.039 | M10: =ROUND(AL10+(AK10*0.5),0) -> 0 | N10: =ROUND(AM10,0) -> 0 | O10: =ROUND(AN10,0) -> 0 | P10: =ROUND(((AP10+AQ10)*0.5)+AO10+AR10+AS10,0) -> 0 | Q10: =AW10 -> 7 | R10: =SUM(F10:I10)+ROUND(D10*0.5,0)+ROUND(J10,0) -> 1 | AA10: 409 | AB10: 409201003 | AC10: ALMA DEL MAR | AD10: 0 | AE10: 0 | AF10: 0 | AG10: 1 | AH10: 0 | AI10: 0 | AJ10: 0 | AK10: 0 | AL10: 0 | AM10: 0 | AN10: 0 | AO10: 0 | AP10: 0 | AQ10: 0 | AR10: 0 | AS10: 0 | AU10: 201 | AV10: 3 | AW10: 7
A11: 409 | B11: 409201095 | C11: ALMA DEL MAR | D11: =ROUND(AD11,0) -> 0 | E11: 0 | F11: 0 | G11: 1 | H11: 0 | I11: =ROUND(AI11,0)-J11 -> 0 | J11: 0 | K11: =ROUND(0.039*(SUM(AF11:AI11)+(AE11*0.5))+0.049*AJ11,4) -> 0.039 | M11: =ROUND(AL11+(AK11*0.5),0) -> 0 | N11: =ROUND(AM11,0) -> 0 | O11: 0 | P11: =ROUND(((AP11+AQ11)*0.5)+AO11+AR11+AS11,0) -> 1 | Q11: =AW11 -> 12 | R11: =SUM(F11:I11)+ROUND(D11*0.5,0)+ROUND(J11,0) -> 1 | AA11: 409 | AB11: 409201095 | AC11: ALMA DEL MAR | AD11: 0 | AE11: 0 | AF11: 0 | AG11: 1 | AH11: 0 | AI11: 0 | AJ11: 0 | AK11: 0 | AL11: 0 | AM11: 0 | AN11: 0 | AO11: 1 | AP11: 0 | AQ11: 0 | AR11: 0 | AS11: 0 | AU11: 201 | AV11: 95 | AW11: 12
A12: 409 | B12: 409201201 | C12: ALMA DEL MAR | D12: 0 | E12: 0 | F12: 102 | G12: 513 | H12: 419 | I12: 0 | J12: 0 | K12: 40.326 | M12: 252 | N12: 57 | O12: 0 | P12: 855 | Q12: 12 | R12: 1034 | AA12: 409 | AB12: 409201201 | AC12: ALMA DEL MAR | AD12: 0 | AE12: 0 | AF12: 102 | AG12: 513 | AH12: 419 | AI12: 0 | AJ12: 0 | AK12: 0 | AL12: 252 | AM12: 57 | AN12: 0 | AO12: 763 | AP12: 0 | AQ12: 0 | AR12: 92 | AS12: 0 | AU12: 201 | AV12: 201 | AW12: 12
A13: 409 | B13: 409201331 | C13: ALMA DEL MAR | D13: 0 | E13: 0 | F13: 0 | G13: 0 | H13: 2 | I13: 0 | J13: 0 | K13: 0.078 | M13: 0 | N13: 0 | O13: 0 | P13: 0 | Q13: 7 | R13: 2 | AA13: 409 | AB13: 409201331 | AC13: ALMA DEL MAR | AD13: 0 | AE13: 0 | AF13: 0 | AG13: 0 | AH13: 2 | AI13: 0 | AJ13: 0 | AK13: 0 | AL13: 0 | AM13: 0 | AN13: 0 | AO13: 0 | AP13: 0 | AQ13: 0 | AR13: 0 | AS13: 0 | AU13: 201 | AV13: 331 | AW13: 7
A14: 410 | B14: 410035035 | C14: EXCEL ACADEMY | D14: 0 | E14: 0 | F14: 0 | G14: 93 | H14: 236 | I14: 323 | J14: 0 | K14: 25.428 | M14: 20 | N14: 37 | O14: 36 | P14: 510 | Q14: 11 | R14: 652 | AA14: 410 | AB14: 410035035 | AC14: EXCEL ACADEMY | AD14: 0 | AE14: 0 | AF14: 0 | AG14: 93 | AH14: 236 | AI14: 323 | AJ14: 0 | AK14: 0 | AL14: 20 | AM14: 37 | AN14: 36 | AO14: 264 | AP14: 0 | AQ14: 0 | AR14: 0 | AS14: 246 | AU14: 35 | AV14: 35 | AW14: 11
A15: 410 | B15: 410035044 | C15: EXCEL ACADEMY | D15: 0 | E15: 0 | F15: 0 | G15: 0 | H15: 1 | I15: 1 | J15: 0 | K15: 0.078 | M15: 0 | N15: 0 | O15: 0 | P15: 2 | Q15: 11 | R15: 2 | AA15: 410 | AB15: 410035044 | AC15: EXCEL ACADEMY | AD15: 0 | AE15: 0 | AF15: 0 | AG15: 0 | AH15: 1 | AI15: 1 | AJ15: 0 | AK15: 0 | AL15: 0 | AM15: 0 | AN15: 0 | AO15: 1 | AP15: 0 | AQ15: 0 | AR15: 0 | AS15: 1 | AU15: 35 | AV15: 44 | AW15: 11
A16: 410 | B16: 410035049 | C16: EXCEL ACADEMY | D16: 0 | E16: 0 | F16: 0 | G16: 1 | H16: 0 | I16: 0 | J16: 0 | K16: 0.039 | M16: 0 | N16: 0 | O16: 0 | P16: 1 | Q16: 8 | R16: 1 | AA16: 410 | AB16: 410035049 | AC16: EXCEL ACADEMY | AD16: 0 | AE16: 0 | AF16: 0 | AG16: 1 | AH16: 0 | AI16: 0 | AJ16: 0 | AK16: 0 | AL16: 0 | AM16: 0 | AN16: 0 | AO16: 1 | AP16: 0 | AQ16: 0 | AR16: 0 | AS16: 0 | AU16: 35 | AV16: 49 | AW16: 8
A17: 410 | B17: 410035057 | C17: EXCEL ACADEMY | D17: 0 | E17: 0 | F17: 0 | G17: 11 | H17: 73 | I17: 243 | J17: 0 | K17: 12.753 | M17: 2 | N17: 12 | O17: 19 | P17: 247 | Q17: 12 | R17: 327 | AA17: 410 | AB17: 410035057 | AC17: EXCEL ACADEMY | AD17: 0 | AE17: 0 | AF17: 0 | AG17: 11 | AH17: 73 | AI17: 243 | AJ17: 0 | AK17: 0 | AL17: 2 | AM17: 12 | AN17: 19 | AO17: 66 | AP17: 0 | AQ17: 0 | AR17: 0 | AS17: 181 | AU17: 35 | AV17: 57 | AW17: 12
A18: 410 | B18: 410035093 | C18: EXCEL ACADEMY | D18: 0 | E18: 0 | F18: 0 | G18: 0 | H18: 5 | I18: 13 | J18: 0 | K18: 0.702 | M18: 0 | N18: 1 | O18: 2 | P18: 16 | Q18: 11 | R18: 18 | AA18: 410 | AB18: 410035093 | AC18: EXCEL ACADEMY | AD18: 0 | AE18: 0 | AF18: 0 | AG18: 0 | AH18: 5 | AI18: 13 | AJ18: 0 | AK18: 0 | AL18: 0 | AM18: 1 | AN18: 2 | AO18: 4 | AP18: 0 | AQ18: 0 | AR18: 0 | AS18: 12 | AU18: 35 | AV18: 93 | AW18: 11
A19: 410 | B19: 410035160 | C19: EXCEL ACADEMY | D19: 0 | E19: 0 | F19: 0 | G19: 0 | H19: 0 | I19: 3 | J19: 0 | K19: 0.117 | M19: 0 | N19: 0 | O19: 0 | P19: 2 | Q19: 11 | R19: 3 | AA19: 410 | AB19: 410035160 | AC19: EXCEL ACADEMY | AD19: 0 | AE19: 0 | AF19: 0 | AG19: 0 | AH19: 0 | AI19: 3 | AJ19: 0 | AK19: 0 | AL19: 0 | AM19: 0 | AN19: 0 | AO19: 0 | AP19: 0 | AQ19: 0 | AR19: 0 | AS19: 2 | AU19: 35 | AV19: 160 | AW19: 11
A20: 410 | B20: 410035163 | C20: EXCEL ACADEMY | D20: 0 | E20: 0 | F20: 0 | G20: 0 | H20: 9 | I20: 21 | J20: 0 | K20: 1.17 | M20: 0 | N20: 0 | O20: 1 | P20: 23 | Q20: 11 | R20: 30 | AA20: 410 | AB20: 410035163 | AC20: EXCEL ACADEMY | AD20: 0 | AE20: 0 | AF20: 0 | AG20: 0 | AH20: 9 | AI20: 21 | AJ20: 0 | AK20: 0 | AL20: 0 | AM20: 0 | AN20: 1 | AO20: 7 | AP20: 0 | AQ20: 0 | AR20: 0 | AS20: 16 | AU20: 35 | AV20: 163 | AW20: 11
A21: 410 | B21: 410035165 | C21: EXCEL ACADEMY | D21: 0 | E21: 0 | F21: 0 | G21: 0 | H21: 1 | I21: 5 | J21: 0 | K21: 0.234 | M21: 0 | N21: 0 | O21: 0 | P21: 4 | Q21: 10 | R21: 6 | AA21: 410 | AB21: 410035165 | AC21: EXCEL ACADEMY | AD21: 0 | AE21: 0 | AF21: 0 | AG21: 0 | AH21: 1 | AI21: 5 | AJ21: 0 | AK21: 0 | AL21: 0 | AM21: 0 | AN21: 0 | AO21: 1 | AP21: 0 | AQ21: 0 | AR21: 0 | AS21: 3 | AU21: 35 | AV21: 165 | AW21: 10
A22: 410 | B22: 410035176 | C22: EXCEL ACADEMY | D22: 0 | E22: 0 | F22: 0 | G22: 0 | H22: 0 | I22: 1 | J22: 0 | K22: 0.039 | M22: 0 | N22: 0 | O22: 0 | P22: 1 | Q22: 8 | R22: 1 | AA22: 410 | AB22: 410035176 | AC22: EXCEL ACADEMY | AD22: 0 | AE22: 0 | AF22: 0 | AG22: 0 | AH22: 0 | AI22: 1 | AJ22: 0 | AK22: 0 | AL22: 0 | AM22: 0 | AN22: 0 | AO22: 0 | AP22: 0 | AQ22: 0 | AR22: 0 | AS22: 1 | AU22: 35 | AV22: 176 | AW22: 8
A23: 410 | B23: 410035229 | C23: EXCEL ACADEMY | D23: 0 | E23: 0 | F23: 0 | G23: 0 | H23: 0 | I23: 2 | J23: 0 | K23: 0.078 | M23: 0 | N23: 0 | O23: 0 | P23: 2 | Q23: 9 | R23: 2 | AA23: 410 | AB23: 410035229 | AC23: EXCEL ACADEMY | AD23: 0 | AE23: 0 | AF23: 0 | AG23: 0 | AH23: 0 | AI23: 2 | AJ23: 0 | AK23: 0 | AL23: 0 | AM23: 0 | AN23: 0 | AO23: 0 | AP23: 0 | AQ23: 0 | AR23: 0 | AS23: 2 | AU23: 35 | AV23: 229 | AW23: 9
A24: 410 | B24: 410035244 | C24: EXCEL ACADEMY | D24: 0 | E24: 0 | F24: 0 | G24: 0 | H24: 0 | I24: 1 | J24: 0 | K24: 0.039 | M24: 0 | N24: 0 | O24: 0 | P24: 1 | Q24: 10 | R24: 1 | AA24: 410 | AB24: 410035244 | AC24: EXCEL ACADEMY | AD24: 0 | AE24: 0 | AF24: 0 | AG24: 0 | AH24: 0 | AI24: 1 | AJ24: 0 | AK24: 0 | AL24: 0 | AM24: 0 | AN24: 0 | AO24: 0 | AP24: 0 | AQ24: 0 | AR24: 0 | AS24: 1 | AU24: 35 | AV24: 244 | AW24: 10
A25: 410 | B25: 410035248 | C25: EXCEL ACADEMY | D25: 0 | E25: 0 | F25: 0 | G25: 7 | H25: 17 | I25: 50 | J25: 0 | K25: 2.886 | M25: 0 | N25: 4 | O25: 3 | P25: 50 | Q25: 11 | R25: 74 | AA25: 410 | AB25: 410035248 | AC25: EXCEL ACADEMY | AD25: 0 | AE25: 0 | AF25: 0 | AG25: 7 | AH25: 17 | AI25: 50 | AJ25: 0 | AK25: 0 | AL25: 0 | AM25: 4 | AN25: 3 | AO25: 18 | AP25: 0 | AQ25: 0 | AR25: 0 | AS25: 32 | AU25: 35 | AV25: 248 | AW25: 11
A26: 410 | B26: 410035262 | C26: EXCEL ACADEMY | D26: 0 | E26: 0 | F26: 0 | G26: 0 | H26: 0 | I26: 4 | J26: 0 | K26: 0.156 | M26: 0 | N26: 0 | O26: 0 | P26: 2 | Q26: 9 | R26: 4 | AA26: 410 | AB26: 410035262 | AC26: EXCEL ACADEMY | AD26: 0 | AE26: 0 | AF26: 0 | AG26: 0 | AH26: 0 | AI26: 4 | AJ26: 0 | AK26: 0 | AL26: 0 | AM26: 0 | AN26: 0 | AO26: 0 | AP26: 0 | AQ26: 0 | AR26: 0 | AS26: 2 | AU26: 35 | AV26: 262 | AW26: 9
A27: 410 | B27: 410035346 | C27: EXCEL ACADEMY | D27: 0 | E27: 0 | F27: 0 | G27: 1 | H27: 3 | I27: 8 | J27: 0 | K27: 0.468 | M27: 1 | N27: 0 | O27: 0 | P27: 6 | Q27: 8 | R27: 12 | AA27: 410 | AB27: 410035346 | AC27: EXCEL ACADEMY | AD27: 0 | AE27: 0 | AF27: 0 | AG27: 1 | AH27: 3 | AI27: 8 | AJ27: 0 | AK27: 0 | AL27: 1 | AM27: 0 | AN27: 0 | AO27: 2 | AP27: 0 | AQ27: 0 | AR27: 0 | AS27: 4 | AU27: 35 | AV27: 346 | AW27: 8
A28: 410 | B28: 410057035 | C28: EXCEL ACADEMY | D28: 0 | E28: 0 | F28: 0 | G28: 0 | H28: 8 | I28: 0 | J28: 0 | K28: 0.312 | M28: 0 | N28: 1 | O28: 0 | P28: 7 | Q28: 11 | R28: 8 | AA28: 410 | AB28: 410057035 | AC28: EXCEL ACADEMY | AD28: 0 | AE28: 0 | AF28: 0 | AG28: 0 | AH28: 8 | AI28: 0 | AJ28: 0 | AK28: 0 | AL28: 0 | AM28: 1 | AN28: 0 | AO28: 7 | AP28: 0 | AQ28: 0 | AR28: 0 | AS28: 0 | AU28: 57 | AV28: 35 | AW28: 11
A29: 410 | B29: 410057057 | C29: EXCEL ACADEMY | D29: 0 | E29: 0 | F29: 0 | G29: 46 | H29: 148 | I29: 0 | J29: 0 | K29: 7.566 | M29: 10 | N29: 12 | O29: 0 | P29: 156 | Q29: 12 | R29: 194 | AA29: 410 | AB29: 410057057 | AC29: EXCEL ACADEMY | AD29: 0 | AE29: 0 | AF29: 0 | AG29: 46 | AH29: 148 | AI29: 0 | AJ29: 0 | AK29: 0 | AL29: 10 | AM29: 12 | AN29: 0 | AO29: 156 | AP29: 0 | AQ29: 0 | AR29: 0 | AS29: 0 | AU29: 57 | AV29: 57 | AW29: 12
A30: 410 | B30: 410057093 | C30: EXCEL ACADEMY | D30: 0 | E30: 0 | F30: 0 | G30: 5 | H30: 3 | I30: 0 | J30: 0 | K30: 0.312 | M30: 0 | N30: 1 | O30: 0 | P30: 5 | Q30: 11 | R30: 8 | AA30: 410 | AB30: 410057093 | AC30: EXCEL ACADEMY | AD30: 0 | AE30: 0 | AF30: 0 | AG30: 5 | AH30: 3 | AI30: 0 | AJ30: 0 | AK30: 0 | AL30: 0 | AM30: 1 | AN30: 0 | AO30: 5 | AP30: 0 | AQ30: 0 | AR30: 0 | AS30: 0 | AU30: 57 | AV30: 93 | AW30: 11
A31: 410 | B31: 410057163 | C31: EXCEL ACADEMY | D31: 0 | E31: 0 | F31: 0 | G31: 0 | H31: 2 | I31: 0 | J31: 0 | K31: 0.078 | M31: 0 | N31: 0 | O31: 0 | P31: 2 | Q31: 11 | R31: 2 | AA31: 410 | AB31: 410057163 | AC31: EXCEL ACADEMY | AD31: 0 | AE31: 0 | AF31: 0 | AG31: 0 | AH31: 2 | AI31: 0 | AJ31: 0 | AK31: 0 | AL31: 0 | AM31: 0 | AN31: 0 | AO31: 2 | AP31: 0 | AQ31: 0 | AR31: 0 | AS31: 0 | AU31: 57 | AV31: 163 | AW31: 11
A32: 410 | B32: 410057248 | C32: EXCEL ACADEMY | D32: 0 | E32: 0 | F32: 0 | G32: 7 | H32: 10 | I32: 0 | J32: 0 | K32: 0.663 | M32: 0 | N32: 0 | O32: 0 | P32: 14 | Q32: 11 | R32: 17 | AA32: 410 | AB32: 410057248 | AC32: EXCEL ACADEMY | AD32: 0 | AE32: 0 | AF32: 0 | AG32: 7 | AH32: 10 | AI32: 0 | AJ32: 0 | AK32: 0 | AL32: 0 | AM32: 0 | AN32: 0 | AO32: 14 | AP32: 0 | AQ32: 0 | AR32: 0 | AS32: 0 | AU32: 57 | AV32: 248 | AW32: 11
A33: 410 | B33: 410057262 | C33: EXCEL ACADEMY | D33: 0 | E33: 0 | F33: 0 | G33: 0 | H33: 1 | I33: 0 | J33: 0 | K33: 0.039 | M33: 0 | N33: 0 | O33: 0 | P33: 1 | Q33: 9 | R33: 1 | AA33: 410 | AB33: 410057262 | AC33: EXCEL ACADEMY | AD33: 0 | AE33: 0 | AF33: 0 | AG33: 0 | AH33: 1 | AI33: 0 | AJ33: 0 | AK33: 0 | AL33: 0 | AM33: 0 | AN33: 0 | AO33: 1 | AP33: 0 | AQ33: 0 | AR33: 0 | AS33: 0 | AU33: 57 | AV33: 262 | AW33: 9
A34: 412 | B34: 412035035 | C34: ACADEMY OF THE PACIFIC RIM | D34: 0 | E34: 0 | F34: 0 | G34: 31 | H34: 175 | I34: 229 | J34: 0 | K34: 16.965 | M34: 6 | N34: 18 | O34: 17 | P34: 317 | Q34: 11 | R34: 435 | AA34: 412 | AB34: 412035035 | AC34: ACADEMY OF THE PACIFIC RIM | AD34: 0 | AE34: 0 | AF34: 0 | AG34: 31 | AH34: 175 | AI34: 229 | AJ34: 0 | AK34: 0 | AL34: 6 | AM34: 18 | AN34: 17 | AO34: 145 | AP34: 0 | AQ34: 0 | AR34: 0 | AS34: 172 | AU34: 35 | AV34: 35 | AW34: 11
A35: 412 | B35: 412035044 | C35: ACADEMY OF THE PACIFIC RIM | D35: 0 | E35: 0 | F35: 0 | G35: 0 | H35: 5 | I35: 8 | J35: 0 | K35: 0.507 | M35: 0 | N35: 0 | O35: 0 | P35: 3 | Q35: 11 | R35: 13 | AA35: 412 | AB35: 412035044 | AC35: ACADEMY OF THE PACIFIC RIM | AD35: 0 | AE35: 0 | AF35: 0 | AG35: 0 | AH35: 5 | AI35: 8 | AJ35: 0 | AK35: 0 | AL35: 0 | AM35: 0 | AN35: 0 | AO35: 2 | AP35: 0 | AQ35: 0 | AR35: 0 | AS35: 1 | AU35: 35 | AV35: 44 | AW35: 11
A36: 412 | B36: 412035189 | C36: ACADEMY OF THE PACIFIC RIM | D36: 0 | E36: 0 | F36: 0 | G36: 1 | H36: 1 | I36: 0 | J36: 0 | K36: 0.078 | M36: 0 | N36: 1 | O36: 0 | P36: 2 | Q36: 3 | R36: 2 | AA36: 412 | AB36: 412035189 | AC36: ACADEMY OF THE PACIFIC RIM | AD36: 0 | AE36: 0 | AF36: 0 | AG36: 1 | AH36: 1 | AI36: 0 | AJ36: 0 | AK36: 0 | AL36: 0 | AM36: 1 | AN36: 0 | AO36: 2 | AP36: 0 | AQ36: 0 | AR36: 0 | AS36: 0 | AU36: 35 | AV36: 189 | AW36: 3
A37: 412 | B37: 412035218 | C37: ACADEMY OF THE PACIFIC RIM | D37: 0 | E37: 0 | F37: 0 | G37: 1 | H37: 0 | I37: 0 | J37: 0 | K37: 0.039 | M37: 0 | N37: 0 | O37: 0 | P37: 0 | Q37: 6 | R37: 1 | AA37: 412 | AB37: 412035218 | AC37: ACADEMY OF THE PACIFIC RIM | AD37: 0 | AE37: 0 | AF37: 0 | AG37: 1 | AH37: 0 | AI37: 0 | AJ37: 0 | AK37: 0 | AL37: 0 | AM37: 0 | AN37: 0 | AO37: 0 | AP37: 0 | AQ37: 0 | AR37: 0 | AS37: 0 | AU37: 35 | AV37: 218 | AW37: 6
A38: 412 | B38: 412035220 | C38: ACADEMY OF THE PACIFIC RIM | D38: 0 | E38: 0 | F38: 0 | G38: 0 | H38: 1 | I38: 2 | J38: 0 | K38: 0.117 | M38: 0 | N38: 0 | O38: 0 | P38: 2 | Q38: 8 | R38: 3 | AA38: 412 | AB38: 412035220 | AC38: ACADEMY OF THE PACIFIC RIM | AD38: 0 | AE38: 0 | AF38: 0 | AG38: 0 | AH38: 1 | AI38: 2 | AJ38: 0 | AK38: 0 | AL38: 0 | AM38: 0 | AN38: 0 | AO38: 1 | AP38: 0 | AQ38: 0 | AR38: 0 | AS38: 1 | AU38: 35 | AV38: 220 | AW38: 8
A39: 412 | B39: 412035243 | C39: ACADEMY OF THE PACIFIC RIM | D39: 0 | E39: 0 | F39: 0 | G39: 1 | H39: 1 | I39: 0 | J39: 0 | K39: 0.078 | M39: 0 | N39: 0 | O39: 0 | P39: 0 | Q39: 10 | R39: 2 | AA39: 412 | AB39: 412035243 | AC39: ACADEMY OF THE PACIFIC RIM | AD39: 0 | AE39: 0 | AF39: 0 | AG39: 1 | AH39: 1 | AI39: 0 | AJ39: 0 | AK39: 0 | AL39: 0 | AM39: 0 | AN39: 0 | AO39: 0 | AP39: 0 | AQ39: 0 | AR39: 0 | AS39: 0 | AU39: 35 | AV39: 243 | AW39: 10
A40: 412 | B40: 412035244 | C40: ACADEMY OF THE PACIFIC RIM | D40: 0 | E40: 0 | F40: 0 | G40: 1 | H40: 3 | I40: 1 | J40: 0 | K40: 0.195 | M40: 0 | N40: 0 | O40: 0 | P40: 3 | Q40: 10 | R40: 5 | AA40: 412 | AB40: 412035244 | AC40: ACADEMY OF THE PACIFIC RIM | AD40: 0 | AE40: 0 | AF40: 0 | AG40: 1 | AH40: 3 | AI40: 1 | AJ40: 0 | AK40: 0 | AL40: 0 | AM40: 0 | AN40: 0 | AO40: 2 | AP40: 0 | AQ40: 0 | AR40: 0 | AS40: 1 | AU40: 35 | AV40: 244 | AW40: 10
A41: 412 | B41: 412035285 | C41: ACADEMY OF THE PACIFIC RIM | D41: 0 | E41: 0 | F41: 0 | G41: 0 | H41: 1 | I41: 2 | J41: 0 | K41: 0.117 | M41: 0 | N41: 0 | O41: 0 | P41: 1 | Q41: 9 | R41: 3 | AA41: 412 | AB41: 412035285 | AC41: ACADEMY OF THE PACIFIC RIM | AD41: 0 | AE41: 0 | AF41: 0 | AG41: 0 | AH41: 1 | AI41: 2 | AJ41: 0 | AK41: 0 | AL41: 0 | AM41: 0 | AN41: 0 | AO41: 1 | AP41: 0 | AQ41: 0 | AR41: 0 | AS41: 0 | AU41: 35 | AV41: 285 | AW41: 9
A42: 412 | B42: 412035293 | C42: ACADEMY OF THE PACIFIC RIM | D42: 0 | E42: 0 | F42: 0 | G42: 0 | H42: 0 | I42: 1 | J42: 0 | K42: 0.039 | M42: 0 | N42: 0 | O42: 0 | P42: 0 | Q42: 10 | R42: 1 | AA42: 412 | AB42: 412035293 | AC42: ACADEMY OF THE PACIFIC RIM | AD42: 0 | AE42: 0 | AF42: 0 | AG42: 0 | AH42: 0 | AI42: 1 | AJ42: 0 | AK42: 0 | AL42: 0 | AM42: 0 | AN42: 0 | AO42: 0 | AP42: 0 | AQ42: 0 | AR42: 0 | AS42: 0 | AU42: 35 | AV42: 293 | AW42: 10
A43: 412 | B43: 412035307 | C43: ACADEMY OF THE PACIFIC RIM | D43: 0 | E43: 0 | F43: 0 | G43: 1 | H43: 1 | I43: 0 | J43: 0 | K43: 0.078 | M43: 1 | N43: 1 | O43: 0 | P43: 1 | Q43: 4 | R43: 2 | AA43: 412 | AB43: 412035307 | AC43: ACADEMY OF THE PACIFIC RIM | AD43: 0 | AE43: 0 | AF43: 0 | AG43: 1 | AH43: 1 | AI43: 0 | AJ43: 0 | AK43: 0 | AL43: 1 | AM43: 1 | AN43: 0 | AO43: 1 | AP43: 0 | AQ43: 0 | AR43: 0 | AS43: 0 | AU43: 35 | AV43: 307 | AW43: 4
A44: 413 | B44: 413114091 | C44: FOUR RIVERS | D44: 0 | E44: 0 | F44: 0 | G44: 0 | H44: 0 | I44: 1 | J44: 0 | K44: 0.039 | M44: 0 | N44: 0 | O44: 0 | P44: 0 | Q44: 9 | R44: 1 | AA44: 413 | AB44: 413114091 | AC44: FOUR RIVERS | AD44: 0 | AE44: 0 | AF44: 0 | AG44: 0 | AH44: 0 | AI44: 1 | AJ44: 0 | AK44: 0 | AL44: 0 | AM44: 0 | AN44: 0 | AO44: 0 | AP44: 0 | AQ44: 0 | AR44: 0 | AS44: 0 | AU44: 114 | AV44: 91 | AW44: 9
A45: 413 | B45: 413114114 | C45: FOUR RIVERS | D45: 0 | E45: 0 | F45: 0 | G45: 0 | H45: 33 | I45: 51 | J45: 0 | K45: 3.276 | M45: 0 | N45: 0 | O45: 0 | P45: 33 | Q45: 10 | R45: 84 | AA45: 413 | AB45: 413114114 | AC45: FOUR RIVERS | AD45: 0 | AE45: 0 | AF45: 0 | AG45: 0 | AH45: 33 | AI45: 51 | AJ45: 0 | AK45: 0 | AL45: 0 | AM45: 0 | AN45: 0 | AO45: 14 | AP45: 0 | AQ45: 0 | AR45: 0 | AS45: 19 | AU45: 114 | AV45: 114 | AW45: 10
A46: 413 | B46: 413114127 | C46: FOUR RIVERS | D46: 0 | E46: 0 | F46: 0 | G46: 0 | H46: 0 | I46: 2 | J46: 0 | K46: 0.078 | M46: 0 | N46: 0 | O46: 0 | P46: 0 | Q46: 5 | R46: 2 | AA46: 413 | AB46: 413114127 | AC46: FOUR RIVERS | AD46: 0 | AE46: 0 | AF46: 0 | AG46: 0 | AH46: 0 | AI46: 2 | AJ46: 0 | AK46: 0 | AL46: 0 | AM46: 0 | AN46: 0 | AO46: 0 | AP46: 0 | AQ46: 0 | AR46: 0 | AS46: 0 | AU46: 114 | AV46: 127 | AW46: 5
A47: 413 | B47: 413114210 | C47: FOUR RIVERS | D47: 0 | E47: 0 | F47: 0 | G47: 0 | H47: 1 | I47: 0 | J47: 0 | K47: 0.039 | M47: 0 | N47: 0 | O47: 0 | P47: 0 | Q47: 6 | R47: 1 | AA47: 413 | AB47: 413114210 | AC47: FOUR RIVERS | AD47: 0 | AE47: 0 | AF47: 0 | AG47: 0 | AH47: 1 | AI47: 0 | AJ47: 0 | AK47: 0 | AL47: 0 | AM47: 0 | AN47: 0 | AO47: 0 | AP47: 0 | AQ47: 0 | AR47: 0 | AS47: 0 | AU47: 114 | AV47: 210 | AW47: 6
A48: 413 | B48: 413114253 | C48: FOUR RIVERS | D48: 0 | E48: 0 | F48: 0 | G48: 0 | H48: 0 | I48: 1 | J48: 0 | K48: 0.039 | M48: 0 | N48: 0 | O48: 0 | P48: 0 | Q48: 10 | R48: 1 | AA48: 413 | AB48: 413114253 | AC48: FOUR RIVERS | AD48: 0 | AE48: 0 | AF48: 0 | AG48: 0 | AH48: 0 | AI48: 1 | AJ48: 0 | AK48: 0 | AL48: 0 | AM48: 0 | AN48: 0 | AO48: 0 | AP48: 0 | AQ48: 0 | AR48: 0 | AS48: 0 | AU48: 114 | AV48: 253 | AW48: 10
A49: 413 | B49: 413114312 | C49: FOUR RIVERS | D49: 0 | E49: 0 | F49: 0 | G49: 0 | H49: 0 | I49: 2 | J49: 0 | K49: 0.078 | M49: 0 | N49: 0 | O49: 0 | P49: 1 | Q49: 10 | R49: 2 | AA49: 413 | AB49: 413114312 | AC49: FOUR RIVERS | AD49: 0 | AE49: 0 | AF49: 0 | AG49: 0 | AH49: 0 | AI49: 2 | AJ49: 0 | AK49: 0 | AL49: 0 | AM49: 0 | AN49: 0 | AO49: 0 | AP49: 0 | AQ49: 0 | AR49: 0 | AS49: 1 | AU49: 114 | AV49: 312 | AW49: 10
A50: 413 | B50: 413114605 | C50: FOUR RIVERS | D50: 0 | E50: 0 | F50: 0 | G50: 0 | H50: 1 | I50: 0 | J50: 0 | K50: 0.039 | M50: 0 | N50: 0 | O50: 0 | P50: 1 | Q50: 6 | R50: 1 | AA50: 413 | AB50: 413114605 | AC50: FOUR RIVERS | AD50: 0 | AE50: 0 | AF50: 0 | AG50: 0 | AH50: 1 | AI50: 0 | AJ50: 0 | AK50: 0 | AL50: 0 | AM50: 0 | AN50: 0 | AO50: 1 | AP50: 0 | AQ50: 0 | AR50: 0 | AS50: 0 | AU50: 114 | AV50: 605 | AW50: 6
A51: 413 | B51: 413114615 | C51: FOUR RIVERS | D51: 0 | E51: 0 | F51: 0 | G51: 0 | H51: 0 | I51: 1 | J51: 0 | K51: 0.039 | M51: 0 | N51: 0 | O51: 0 | P51: 0 | Q51: 11 | R51: 1 | AA51: 413 | AB51: 413114615 | AC51: FOUR RIVERS | AD51: 0 | AE51: 0 | AF51: 0 | AG51: 0 | AH51: 0 | AI51: 1 | AJ51: 0 | AK51: 0 | AL51: 0 | AM51: 0 | AN51: 0 | AO51: 0 | AP51: 0 | AQ51: 0 | AR51: 0 | AS51: 0 | AU51: 114 | AV51: 615 | AW51: 11
A52: 413 | B52: 413114670 | C52: FOUR RIVERS | D52: 0 | E52: 0 | F52: 0 | G52: 0 | H52: 3 | I52: 12 | J52: 0 | K52: 0.585 | M52: 0 | N52: 0 | O52: 0 | P52: 4 | Q52: 6 | R52: 15 | AA52: 413 | AB52: 413114670 | AC52: FOUR RIVERS | AD52: 0 | AE52: 0 | AF52: 0 | AG52: 0 | AH52: 3 | AI52: 12 | AJ52: 0 | AK52: 0 | AL52: 0 | AM52: 0 | AN52: 0 | AO52: 1 | AP52: 0 | AQ52: 0 | AR52: 0 | AS52: 3 | AU52: 114 | AV52: 670 | AW52: 6
A53: 413 | B53: 413114674 | C53: FOUR RIVERS | D53: 0 | E53: 0 | F53: 0 | G53: 0 | H53: 18 | I53: 30 | J53: 0 | K53: 1.872 | M53: 0 | N53: 0 | O53: 0 | P53: 19 | Q53: 10 | R53: 48 | AA53: 413 | AB53: 413114674 | AC53: FOUR RIVERS | AD53: 0 | AE53: 0 | AF53: 0 | AG53: 0 | AH53: 18 | AI53: 30 | AJ53: 0 | AK53: 0 | AL53: 0 | AM53: 0 | AN53: 0 | AO53: 8 | AP53: 0 | AQ53: 0 | AR53: 0 | AS53: 11 | AU53: 114 | AV53: 674 | AW53: 10
A54: 413 | B54: 413114717 | C54: FOUR RIVERS | D54: 0 | E54: 0 | F54: 0 | G54: 0 | H54: 7 | I54: 21 | J54: 0 | K54: 1.092 | M54: 0 | N54: 0 | O54: 0 | P54: 13 | Q54: 9 | R54: 28 | AA54: 413 | AB54: 413114717 | AC54: FOUR RIVERS | AD54: 0 | AE54: 0 | AF54: 0 | AG54: 0 | AH54: 7 | AI54: 21 | AJ54: 0 | AK54: 0 | AL54: 0 | AM54: 0 | AN54: 0 | AO54: 4 | AP54: 0 | AQ54: 0 | AR54: 0 | AS54: 9 | AU54: 114 | AV54: 717 | AW54: 9
A55: 413 | B55: 413114750 | C55: FOUR RIVERS | D55: 0 | E55: 0 | F55: 0 | G55: 0 | H55: 7 | I55: 17 | J55: 0 | K55: 0.936 | M55: 0 | N55: 0 | O55: 0 | P55: 9 | Q55: 7 | R55: 24 | AA55: 413 | AB55: 413114750 | AC55: FOUR RIVERS | AD55: 0 | AE55: 0 | AF55: 0 | AG55: 0 | AH55: 7 | AI55: 17 | AJ55: 0 | AK55: 0 | AL55: 0 | AM55: 0 | AN55: 0 | AO55: 4 | AP55: 0 | AQ55: 0 | AR55: 0 | AS55: 5 | AU55: 114 | AV55: 750 | AW55: 7
A56: 413 | B56: 413114755 | C56: FOUR RIVERS | D56: 0 | E56: 0 | F56: 0 | G56: 0 | H56: 6 | I56: 5 | J56: 0 | K56: 0.429 | M56: 0 | N56: 0 | O56: 0 | P56: 2 | Q56: 10 | R56: 11 | AA56: 413 | AB56: 413114755 | AC56: FOUR RIVERS | AD56: 0 | AE56: 0 | AF56: 0 | AG56: 0 | AH56: 6 | AI56: 5 | AJ56: 0 | AK56: 0 | AL56: 0 | AM56: 0 | AN56: 0 | AO56: 1 | AP56: 0 | AQ56: 0 | AR56: 0 | AS56: 1 | AU56: 114 | AV56: 755 | AW56: 10
A57: 414 | B57: 414603063 | C57: BERKSHIRE ARTS AND TECHNOLOGY | D57: 0 | E57: 0 | F57: 0 | G57: 0 | H57: 1 | I57: 1 | J57: 0 | K57: 0.078 | M57: 0 | N57: 0 | O57: 0 | P57: 0 | Q57: 8 | R57: 2 | AA57: 414 | AB57: 414603063 | AC57: BERKSHIRE ARTS AND TECHNOLOGY | AD57: 0 | AE57: 0 | AF57: 0 | AG57: 0 | AH57: 1 | AI57: 1 | AJ57: 0 | AK57: 0 | AL57: 0 | AM57: 0 | AN57: 0 | AO57: 0 | AP57: 0 | AQ57: 0 | AR57: 0 | AS57: 0 | AU57: 603 | AV57: 63 | AW57: 8
A58: 414 | B58: 414603098 | C58: BERKSHIRE ARTS AND TECHNOLOGY | D58: 0 | E58: 0 | F58: 0 | G58: 0 | H58: 1 | I58: 0 | J58: 0 | K58: 0.039 | M58: 0 | N58: 0 | O58: 0 | P58: 1 | Q58: 9 | R58: 1 | AA58: 414 | AB58: 414603098 | AC58: BERKSHIRE ARTS AND TECHNOLOGY | AD58: 0 | AE58: 0 | AF58: 0 | AG58: 0 | AH58: 1 | AI58: 0 | AJ58: 0 | AK58: 0 | AL58: 0 | AM58: 0 | AN58: 0 | AO58: 1 | AP58: 0 | AQ58: 0 | AR58: 0 | AS58: 0 | AU58: 603 | AV58: 98 | AW58: 9
A59: 414 | B59: 414603209 | C59: BERKSHIRE ARTS AND TECHNOLOGY | D59: 0 | E59: 0 | F59: 0 | G59: 0 | H59: 49 | I59: 36 | J59: 0 | K59: 3.315 | M59: 0 | N59: 0 | O59: 0 | P59: 63 | Q59: 11 | R59: 85 | AA59: 414 | AB59: 414603209 | AC59: BERKSHIRE ARTS AND TECHNOLOGY | AD59: 0 | AE59: 0 | AF59: 0 | AG59: 0 | AH59: 49 | AI59: 36 | AJ59: 0 | AK59: 0 | AL59: 0 | AM59: 0 | AN59: 0 | AO59: 40 | AP59: 0 | AQ59: 0 | AR59: 0 | AS59: 23 | AU59: 603 | AV59: 209 | AW59: 11
A60: 414 | B60: 414603236 | C60: BERKSHIRE ARTS AND TECHNOLOGY | D60: 0 | E60: 0 | F60: =ROUND(AF60,0) -> 0 | G60: 0 | H60: 103 | I60: 72 | J60: 0 | K60: 6.825 | M60: 0 | N60: 4 | O60: 0 | P60: 122 | Q60: 11 | R60: 175 | AA60: 414 | AB60: 414603236 | AC60: BERKSHIRE ARTS AND TECHNOLOGY | AD60: 0 | AE60: 0 | AF60: 0 | AG60: 0 | AH60: 103 | AI60: 72 | AJ60: 0 | AK60: 0 | AL60: 0 | AM60: 4 | AN60: 0 | AO60: 73 | AP60: 0 | AQ60: 0 | AR60: 0 | AS60: 49 | AU60: 603 | AV60: 236 | AW60: 11
A61: 414 | B61: 414603249 | C61: BERKSHIRE ARTS AND TECHNOLOGY | D61: =ROUND(AD61,0) -> 0 | E61: 0 | F61: 0 | G61: 0 | H61: 1 | I61: 0 | J61: 0 | K61: 0.039 | M61: 0 | N61: 0 | O61: 0 | P61: 0 | Q61: 6 | R61: 1 | AA61: 414 | AB61: 414603249 | AC61: BERKSHIRE ARTS AND TECHNOLOGY | AD61: 0 | AE61: 0 | AF61: 0 | AG61: 0 | AH61: 1 | AI61: 0 | AJ61: 0 | AK61: 0 | AL61: 0 | AM61: 0 | AN61: 0 | AO61: 0 | AP61: 0 | AQ61: 0 | AR61: 0 | AS61: 0 | AU61: 603 | AV61: 249 | AW61: 6
A62: 414 | B62: 414603263 | C62: BERKSHIRE ARTS AND TECHNOLOGY | D62: 0 | E62: 0 | F62: 0 | G62: 0 | H62: 0 | I62: 1 | J62: 0 | K62: 0.039 | M62: 0 | N62: 0 | O62: 0 | P62: 0 | Q62: 10 | R62: 1 | AA62: 414 | AB62: 414603263 | AC62: BERKSHIRE ARTS AND TECHNOLOGY | AD62: 0 | AE62: 0 | AF62: 0 | AG62: 0 | AH62: 0 | AI62: 1 | AJ62: 0 | AK62: 0 | AL62: 0 | AM62: 0 | AN62: 0 | AO62: 0 | AP62: 0 | AQ62: 0 | AR62: 0 | AS62: 0 | AU62: 603 | AV62: 263 | AW62: 10
A63: 414 | B63: 414603603 | C63: BERKSHIRE ARTS AND TECHNOLOGY | D63: 0 | E63: 0 | F63: 0 | G63: 0 | H63: 33 | I63: 34 | J63: 0 | K63: 2.613 | M63: 0 | N63: 0 | O63: 0 | P63: 34 | Q63: 10 | R63: 67 | AA63: 414 | AB63: 414603603 | AC63: BERKSHIRE ARTS AND TECHNOLOGY | AD63: 0 | AE63: 0 | AF63: 0 | AG63: 0 | AH63: 33 | AI63: 34 | AJ63: 0 | AK63: 0 | AL63: 0 | AM63: 0 | AN63: 0 | AO63: 18 | AP63: 0 | AQ63: 0 | AR63: 0 | AS63: 16 | AU63: 603 | AV63: 603 | AW63: 10
A64: 414 | B64: 414603635 | C64: BERKSHIRE ARTS AND TECHNOLOGY | D64: 0 | E64: 0 | F64: 0 | G64: 0 | H64: 10 | I64: 15 | J64: 0 | K64: 0.975 | M64: 0 | N64: 0 | O64: 0 | P64: 9 | Q64: 8 | R64: 25 | AA64: 414 | AB64: 414603635 | AC64: BERKSHIRE ARTS AND TECHNOLOGY | AD64: 0 | AE64: 0 | AF64: 0 | AG64: 0 | AH64: 10 | AI64: 15 | AJ64: 0 | AK64: 0 | AL64: 0 | AM64: 0 | AN64: 0 | AO64: 2 | AP64: 0 | AQ64: 0 | AR64: 0 | AS64: 7 | AU64: 603 | AV64: 635 | AW64: 8
A65: 414 | B65: 414603715 | C65: BERKSHIRE ARTS AND TECHNOLOGY | D65: 0 | E65: 0 | F65: 0 | G65: 0 | H65: 8 | I65: 2 | J65: 0 | K65: 0.39 | M65: 0 | N65: 1 | O65: 0 | P65: 2 | Q65: 6 | R65: 10 | AA65: 414 | AB65: 414603715 | AC65: BERKSHIRE ARTS AND TECHNOLOGY | AD65: 0 | AE65: 0 | AF65: 0 | AG65: 0 | AH65: 8 | AI65: 2 | AJ65: 0 | AK65: 0 | AL65: 0 | AM65: 1 | AN65: 0 | AO65: 1 | AP65: 0 | AQ65: 0 | AR65: 0 | AS65: 1 | AU65: 603 | AV65: 715 | AW65: 6
A66: 416 | B66: 416035018 | C66: BOSTON PREPARATORY | D66: 0 | E66: 0 | F66: 0 | G66: 0 | H66: 0 | I66: 1 | J66: 0 | K66: 0.039 | M66: 0 | N66: 0 | O66: 0 | P66: 1 | Q66: 10 | R66: 1 | AA66: 416 | AB66: 416035018 | AC66: BOSTON PREPARATORY | AD66: 0 | AE66: 0 | AF66: 0 | AG66: 0 | AH66: 0 | AI66: 1 | AJ66: 0 | AK66: 0 | AL66: 0 | AM66: 0 | AN66: 0 | AO66: 0 | AP66: 0 | AQ66: 0 | AR66: 0 | AS66: 1 | AU66: 35 | AV66: 18 | AW66: 10
A67: 416 | B67: 416035030 | C67: BOSTON PREPARATORY | D67: 0 | E67: 0 | F67: 0 | G67: 0 | H67: 1 | I67: 0 | J67: 0 | K67: 0.039 | M67: 0 | N67: 0 | O67: 0 | P67: 1 | Q67: 7 | R67: 1 | AA67: 416 | AB67: 416035030 | AC67: BOSTON PREPARATORY | AD67: 0 | AE67: 0 | AF67: 0 | AG67: 0 | AH67: 1 | AI67: 0 | AJ67: 0 | AK67: 0 | AL67: 0 | AM67: 0 | AN67: 0 | AO67: 1 | AP67: 0 | AQ67: 0 | AR67: 0 | AS67: 0 | AU67: 35 | AV67: 30 | AW67: 7
A68: 416 | B68: 416035035 | C68: BOSTON PREPARATORY | D68: 0 | E68: 0 | F68: 0 | G68: 0 | H68: 280 | I68: 394 | J68: 0 | K68: 26.286 | M68: 0 | N68: 69 | O68: 57 | P68: 524 | Q68: 11 | R68: 674 | AA68: 416 | AB68: 416035035 | AC68: BOSTON PREPARATORY | AD68: 0 | AE68: 0 | AF68: 0 | AG68: 0 | AH68: 280 | AI68: 394 | AJ68: 0 | AK68: 0 | AL68: 0 | AM68: 69 | AN68: 57 | AO68: 222 | AP68: 0 | AQ68: 0 | AR68: 0 | AS68: 302 | AU68: 35 | AV68: 35 | AW68: 11
A69: 416 | B69: 416035044 | C69: BOSTON PREPARATORY | D69: 0 | E69: 0 | F69: 0 | G69: 0 | H69: 0 | I69: 2 | J69: 0 | K69: 0.078 | M69: 0 | N69: 0 | O69: 0 | P69: 0 | Q69: 11 | R69: 2 | AA69: 416 | AB69: 416035044 | AC69: BOSTON PREPARATORY | AD69: 0 | AE69: 0 | AF69: 0 | AG69: 0 | AH69: 0 | AI69: 2 | AJ69: 0 | AK69: 0 | AL69: 0 | AM69: 0 | AN69: 0 | AO69: 0 | AP69: 0 | AQ69: 0 | AR69: 0 | AS69: 0 | AU69: 35 | AV69: 44 | AW69: 11
A70: 416 | B70: 416035073 | C70: BOSTON PREPARATORY | D70: 0 | E70: 0 | F70: 0 | G70: 0 | H70: 0 | I70: 2 | J70: 0 | K70: 0.078 | M70: 0 | N70: 0 | O70: 0 | P70: 0 | Q70: 6 | R70: 2 | AA70: 416 | AB70: 416035073 | AC70: BOSTON PREPARATORY | AD70: 0 | AE70: 0 | AF70: 0 | AG70: 0 | AH70: 0 | AI70: 2 | AJ70: 0 | AK70: 0 | AL70: 0 | AM70: 0 | AN70: 0 | AO70: 0 | AP70: 0 | AQ70: 0 | AR70: 0 | AS70: 0 | AU70: 35 | AV70: 73 | AW70: 6
A71: 416 | B71: 416035170 | C71: BOSTON PREPARATORY | D71: 0 | E71: 0 | F71: 0 | G71: 0 | H71: 0 | I71: 1 | J71: 0 | K71: 0.039 | M71: 0 | N71: 0 | O71: 0 | P71: 0 | Q71: 10 | R71: 1 | AA71: 416 | AB71: 416035170 | AC71: BOSTON PREPARATORY | AD71: 0 | AE71: 0 | AF71: 0 | AG71: 0 | AH71: 0 | AI71: 1 | AJ71: 0 | AK71: 0 | AL71: 0 | AM71: 0 | AN71: 0 | AO71: 0 | AP71: 0 | AQ71: 0 | AR71: 0 | AS71: 0 | AU71: 35 | AV71: 170 | AW71: 10
A72: 416 | B72: 416035189 | C72: BOSTON PREPARATORY | D72: 0 | E72: 0 | F72: 0 | G72: 0 | H72: 0 | I72: 1 | J72: 0 | K72: 0.039 | M72: 0 | N72: 0 | O72: 0 | P72: 1 | Q72: 3 | R72: 1 | AA72: 416 | AB72: 416035189 | AC72: BOSTON PREPARATORY | AD72: 0 | AE72: 0 | AF72: 0 | AG72: 0 | AH72: 0 | AI72: 1 | AJ72: 0 | AK72: 0 | AL72: 0 | AM72: 0 | AN72: 0 | AO72: 0 | AP72: 0 | AQ72: 0 | AR72: 0 | AS72: 1 | AU72: 35 | AV72: 189 | AW72: 3
A73: 416 | B73: 416035244 | C73: BOSTON PREPARATORY | D73: 0 | E73: 0 | F73: 0 | G73: 0 | H73: 2 | I73: 7 | J73: 0 | K73: 0.351 | M73: 0 | N73: 0 | O73: 0 | P73: 5 | Q73: 10 | R73: 9 | AA73: 416 | AB73: 416035244 | AC73: BOSTON PREPARATORY | AD73: 0 | AE73: 0 | AF73: 0 | AG73: 0 | AH73: 2 | AI73: 7 | AJ73: 0 | AK73: 0 | AL73: 0 | AM73: 0 | AN73: 0 | AO73: 1 | AP73: 0 | AQ73: 0 | AR73: 0 | AS73: 4 | AU73: 35 | AV73: 244 | AW73: 10
A74: 416 | B74: 416035274 | C74: BOSTON PREPARATORY | D74: 0 | E74: 0 | F74: 0 | G74: 0 | H74: 1 | I74: 1 | J74: 0 | K74: 0.078 | M74: 0 | N74: 1 | O74: 0 | P74: 2 | Q74: 10 | R74: 2 | AA74: 416 | AB74: 416035274 | AC74: BOSTON PREPARATORY | AD74: 0 | AE74: 0 | AF74: 0 | AG74: 0 | AH74: 1 | AI74: 1 | AJ74: 0 | AK74: 0 | AL74: 0 | AM74: 1 | AN74: 0 | AO74: 1 | AP74: 0 | AQ74: 0 | AR74: 0 | AS74: 1 | AU74: 35 | AV74: 274 | AW74: 10
A75: 416 | B75: 416035285 | C75: BOSTON PREPARATORY | D75: 0 | E75: 0 | F75: 0 | G75: 0 | H75: 1 | I75: =ROUND(AI75,0)-J75 -> 1 | J75: 0 | K75: =ROUND(0.039*(SUM(AF75:AI75)+(AE75*0.5))+0.049*AJ75,4) -> 0.078 | M75: =ROUND(AL75+(AK75*0.5),0) -> 0 | N75: =ROUND(AM75,0) -> 0 | O75: 0 | P75: =ROUND(((AP75+AQ75)*0.5)+AO75+AR75+AS75,0) -> 1 | Q75: =AW75 -> 9 | R75: =SUM(F75:I75)+ROUND(D75*0.5,0)+ROUND(J75,0) -> 2 | AA75: 416 | AB75: 416035285 | AC75: BOSTON PREPARATORY | AD75: 0 | AE75: 0 | AF75: 0 | AG75: 0 | AH75: 1 | AI75: 1 | AJ75: 0 | AK75: 0 | AL75: 0 | AM75: 0 | AN75: 0 | AO75: 1 | AP75: 0 | AQ75: 0 | AR75: 0 | AS75: 0 | AU75: 35 | AV75: 285 | AW75: 9
A76: 417 | B76: 417035035 | C76: BRIDGE BOSTON | D76: 31 | E76: 0 | F76: 36 | G76: 173 | H76: 75 | I76: 0 | J76: 0 | K76: 11.076 | M76: 68 | N76: 8 | O76: 0 | P76: 248 | Q76: 11 | R76: 300 | AA76: 417 | AB76: 417035035 | AC76: BRIDGE BOSTON | AD76: 31 | AE76: 0 | AF76: 36 | AG76: 173 | AH76: 75 | AI76: 0 | AJ76: 0 | AK76: 11 | AL76: 62 | AM76: 8 | AN76: 0 | AO76: 203 | AP76: 30 | AQ76: 0 | AR76: 30 | AS76: 0 | AU76: 35 | AV76: 35 | AW76: 11
A77: 417 | B77: 417035040 | C77: BRIDGE BOSTON | D77: 0 | E77: 0 | F77: 0 | G77: 1 | H77: 0 | I77: 0 | J77: 0 | K77: 0.039 | M77: 0 | N77: 0 | O77: 0 | P77: 1 | Q77: 6 | R77: 1 | AA77: 417 | AB77: 417035040 | AC77: BRIDGE BOSTON | AD77: 0 | AE77: 0 | AF77: 0 | AG77: 1 | AH77: 0 | AI77: 0 | AJ77: 0 | AK77: 0 | AL77: 0 | AM77: 0 | AN77: 0 | AO77: 1 | AP77: 0 | AQ77: 0 | AR77: 0 | AS77: 0 | AU77: 35 | AV77: 40 | AW77: 6
A78: 417 | B78: 417035044 | C78: BRIDGE BOSTON | D78: 0 | E78: 0 | F78: 0 | G78: 1 | H78: 0 | I78: 0 | J78: 0 | K78: 0.039 | M78: 0 | N78: 0 | O78: 0 | P78: 1 | Q78: 11 | R78: 1 | AA78: 417 | AB78: 417035044 | AC78: BRIDGE BOSTON | AD78: 0 | AE78: 0 | AF78: 0 | AG78: 1 | AH78: 0 | AI78: 0 | AJ78: 0 | AK78: 0 | AL78: 0 | AM78: 0 | AN78: 0 | AO78: 1 | AP78: 0 | AQ78: 0 | AR78: 0 | AS78: 0 | AU78: 35 | AV78: 44 | AW78: 11
A79: 417 | B79: 417035100 | C79: BRIDGE BOSTON | D79: 0 | E79: 0 | F79: 0 | G79: 2 | H79: 2 | I79: 0 | J79: 0 | K79: 0.156 | M79: 0 | N79: 0 | O79: 0 | P79: 4 | Q79: 10 | R79: 4 | AA79: 417 | AB79: 417035100 | AC79: BRIDGE BOSTON | AD79: 0 | AE79: 0 | AF79: 0 | AG79: 2 | AH79: 2 | AI79: 0 | AJ79: 0 | AK79: 0 | AL79: 0 | AM79: 0 | AN79: 0 | AO79: 4 | AP79: 0 | AQ79: 0 | AR79: 0 | AS79: 0 | AU79: 35 | AV79: 100 | AW79: 10
A80: 417 | B80: 417035133 | C80: BRIDGE BOSTON | D80: 0 | E80: 0 | F80: 1 | G80: 1 | H80: 1 | I80: 0 | J80: 0 | K80: 0.117 | M80: 0 | N80: 0 | O80: 0 | P80: 1 | Q80: 9 | R80: 3 | AA80: 417 | AB80: 417035133 | AC80: BRIDGE BOSTON | AD80: 0 | AE80: 0 | AF80: 1 | AG80: 1 | AH80: 1 | AI80: 0 | AJ80: 0 | AK80: 0 | AL80: 0 | AM80: 0 | AN80: 0 | AO80: 0 | AP80: 0 | AQ80: 0 | AR80: 1 | AS80: 0 | AU80: 35 | AV80: 133 | AW80: 9
A81: 417 | B81: 417035244 | C81: BRIDGE BOSTON | D81: 0 | E81: 0 | F81: 0 | G81: 4 | H81: 1 | I81: 0 | J81: 0 | K81: 0.195 | M81: 3 | N81: 0 | O81: 0 | P81: 4 | Q81: 10 | R81: 5 | AA81: 417 | AB81: 417035244 | AC81: BRIDGE BOSTON | AD81: 0 | AE81: 0 | AF81: 0 | AG81: 4 | AH81: 1 | AI81: 0 | AJ81: 0 | AK81: 0 | AL81: 3 | AM81: 0 | AN81: 0 | AO81: 4 | AP81: 0 | AQ81: 0 | AR81: 0 | AS81: 0 | AU81: 35 | AV81: 244 | AW81: 10
A82: 417 | B82: 417035285 | C82: BRIDGE BOSTON | D82: 0 | E82: 0 | F82: 0 | G82: 4 | H82: 1 | I82: 0 | J82: 0 | K82: 0.195 | M82: 1 | N82: 0 | O82: 0 | P82: 3 | Q82: 9 | R82: 5 | AA82: 417 | AB82: 417035285 | AC82: BRIDGE BOSTON | AD82: 0 | AE82: 0 | AF82: 0 | AG82: 4 | AH82: 1 | AI82: 0 | AJ82: 0 | AK82: 0 | AL82: 1 | AM82: 0 | AN82: 0 | AO82: 3 | AP82: 0 | AQ82: 0 | AR82: 0 | AS82: 0 | AU82: 35 | AV82: 285 | AW82: 9
A83: 418 | B83: 418100014 | C83: CHRISTA MCAULIFFE | D83: 0 | E83: 0 | F83: 0 | G83: 0 | H83: 2 | I83: 0 | J83: 0 | K83: 0.078 | M83: 0 | N83: 0 | O83: 0 | P83: 1 | Q83: 5 | R83: 2 | AA83: 418 | AB83: 418100014 | AC83: CHRISTA MCAULIFFE | AD83: 0 | AE83: 0 | AF83: 0 | AG83: 0 | AH83: 2 | AI83: 0 | AJ83: 0 | AK83: 0 | AL83: 0 | AM83: 0 | AN83: 0 | AO83: 1 | AP83: 0 | AQ83: 0 | AR83: 0 | AS83: 0 | AU83: 100 | AV83: 14 | AW83: 5
A84: 418 | B84: 418100100 | C84: CHRISTA MCAULIFFE | D84: 0 | E84: 0 | F84: 0 | G84: 0 | H84: 300 | I84: 0 | J84: 0 | K84: 11.7 | M84: 0 | N84: 23 | O84: 0 | P84: 180 | Q84: 10 | R84: 300 | AA84: 418 | AB84: 418100100 | AC84: CHRISTA MCAULIFFE | AD84: 0 | AE84: 0 | AF84: 0 | AG84: 0 | AH84: 300 | AI84: 0 | AJ84: 0 | AK84: 0 | AL84: 0 | AM84: 23 | AN84: 0 | AO84: 180 | AP84: 0 | AQ84: 0 | AR84: 0 | AS84: 0 | AU84: 100 | AV84: 100 | AW84: 10
A85: 418 | B85: 418100136 | C85: CHRISTA MCAULIFFE | D85: 0 | E85: 0 | F85: 0 | G85: 0 | H85: 7 | I85: 0 | J85: 0 | K85: 0.273 | M85: 0 | N85: 0 | O85: 0 | P85: 2 | Q85: 3 | R85: 7 | AA85: 418 | AB85: 418100136 | AC85: CHRISTA MCAULIFFE | AD85: 0 | AE85: 0 | AF85: 0 | AG85: 0 | AH85: 7 | AI85: 0 | AJ85: 0 | AK85: 0 | AL85: 0 | AM85: 0 | AN85: 0 | AO85: 2 | AP85: 0 | AQ85: 0 | AR85: 0 | AS85: 0 | AU85: 100 | AV85: 136 | AW85: 3
A86: 418 | B86: 418100170 | C86: CHRISTA MCAULIFFE | D86: 0 | E86: 0 | F86: 0 | G86: 0 | H86: 3 | I86: 0 | J86: 0 | K86: 0.117 | M86: 0 | N86: 0 | O86: 0 | P86: 1 | Q86: 10 | R86: 3 | AA86: 418 | AB86: 418100170 | AC86: CHRISTA MCAULIFFE | AD86: 0 | AE86: 0 | AF86: 0 | AG86: 0 | AH86: 3 | AI86: 0 | AJ86: 0 | AK86: 0 | AL86: 0 | AM86: 0 | AN86: 0 | AO86: 1 | AP86: 0 | AQ86: 0 | AR86: 0 | AS86: 0 | AU86: 100 | AV86: 170 | AW86: 10
A87: 418 | B87: 418100198 | C87: CHRISTA MCAULIFFE | D87: 0 | E87: 0 | F87: 0 | G87: 0 | H87: 7 | I87: 0 | J87: 0 | K87: 0.273 | M87: 0 | N87: 0 | O87: 0 | P87: 0 | Q87: 3 | R87: 7 | AA87: 418 | AB87: 418100198 | AC87: CHRISTA MCAULIFFE | AD87: 0 | AE87: 0 | AF87: 0 | AG87: 0 | AH87: 7 | AI87: 0 | AJ87: 0 | AK87: 0 | AL87: 0 | AM87: 0 | AN87: 0 | AO87: 0 | AP87: 0 | AQ87: 0 | AR87: 0 | AS87: 0 | AU87: 100 | AV87: 198 | AW87: 3
A88: 418 | B88: 418100208 | C88: CHRISTA MCAULIFFE | D88: 0 | E88: 0 | F88: 0 | G88: 0 | H88: 2 | I88: 0 | J88: 0 | K88: 0.078 | M88: 0 | N88: 0 | O88: 0 | P88: 0 | Q88: 2 | R88: 2 | AA88: 418 | AB88: 418100208 | AC88: CHRISTA MCAULIFFE | AD88: 0 | AE88: 0 | AF88: 0 | AG88: 0 | AH88: 2 | AI88: 0 | AJ88: 0 | AK88: 0 | AL88: 0 | AM88: 0 | AN88: 0 | AO88: 0 | AP88: 0 | AQ88: 0 | AR88: 0 | AS88: 0 | AU88: 100 | AV88: 208 | AW88: 2
A89: 418 | B89: 418100276 | C89: CHRISTA MCAULIFFE | D89: 0 | E89: 0 | F89: 0 | G89: 0 | H89: 3 | I89: 0 | J89: 0 | K89: 0.117 | M89: 0 | N89: 0 | O89: 0 | P89: 0 | Q89: 2 | R89: 3 | AA89: 418 | AB89: 418100276 | AC89: CHRISTA MCAULIFFE | AD89: 0 | AE89: 0 | AF89: 0 | AG89: 0 | AH89: 3 | AI89: 0 | AJ89: 0 | AK89: 0 | AL89: 0 | AM89: 0 | AN89: 0 | AO89: 0 | AP89: 0 | AQ89: 0 | AR89: 0 | AS89: 0 | AU89: 100 | AV89: 276 | AW89: 2
A90: 418 | B90: 418100288 | C90: CHRISTA MCAULIFFE | D90: 0 | E90: 0 | F90: 0 | G90: 0 | H90: 1 | I90: 0 | J90: 0 | K90: 0.039 | M90: 0 | N90: 0 | O90: 0 | P90: 1 | Q90: 2 | R90: 1 | AA90: 418 | AB90: 418100288 | AC90: CHRISTA MCAULIFFE | AD90: 0 | AE90: 0 | AF90: 0 | AG90: 0 | AH90: 1 | AI90: 0 | AJ90: 0 | AK90: 0 | AL90: 0 | AM90: 0 | AN90: 0 | AO90: 1 | AP90: 0 | AQ90: 0 | AR90: 0 | AS90: 0 | AU90: 100 | AV90: 288 | AW90: 2
A91: 418 | B91: 418100308 | C91: CHRISTA MCAULIFFE | D91: 0 | E91: 0 | F91: 0 | G91: 0 | H91: 1 | I91: 0 | J91: 0 | K91: 0.039 | M91: 0 | N91: 0 | O91: 0 | P91: 0 | Q91: 10 | R91: 1 | AA91: 418 | AB91: 418100308 | AC91: CHRISTA MCAULIFFE | AD91: 0 | AE91: 0 | AF91: 0 | AG91: 0 | AH91: 1 | AI91: 0 | AJ91: 0 | AK91: 0 | AL91: 0 | AM91: 0 | AN91: 0 | AO91: 0 | AP91: 0 | AQ91: 0 | AR91: 0 | AS91: 0 | AU91: 100 | AV91: 308 | AW91: 10
A92: 418 | B92: 418100315 | C92: CHRISTA MCAULIFFE | D92: 0 | E92: 0 | F92: 0 | G92: 0 | H92: 1 | I92: 0 | J92: 0 | K92: 0.039 | M92: 0 | N92: 0 | O92: 0 | P92: 0 | Q92: 2 | R92: 1 | AA92: 418 | AB92: 418100315 | AC92: CHRISTA MCAULIFFE | AD92: 0 | AE92: 0 | AF92: 0 | AG92: 0 | AH92: 1 | AI92: 0 | AJ92: 0 | AK92: 0 | AL92: 0 | AM92: 0 | AN92: 0 | AO92: 0 | AP92: 0 | AQ92: 0 | AR92: 0 | AS92: 0 | AU92: 100 | AV92: 315 | AW92: 2
A93: 418 | B93: 418100321 | C93: CHRISTA MCAULIFFE | D93: 0 | E93: 0 | F93: 0 | G93: 0 | H93: 1 | I93: 0 | J93: 0 | K93: 0.039 | M93: 0 | N93: 0 | O93: 0 | P93: 0 | Q93: 4 | R93: 1 | AA93: 418 | AB93: 418100321 | AC93: CHRISTA MCAULIFFE | AD93: 0 | AE93: 0 | AF93: 0 | AG93: 0 | AH93: 1 | AI93: 0 | AJ93: 0 | AK93: 0 | AL93: 0 | AM93: 0 | AN93: 0 | AO93: 0 | AP93: 0 | AQ93: 0 | AR93: 0 | AS93: 0 | AU93: 100 | AV93: 321 | AW93: 4
A94: 418 | B94: 418100348 | C94: CHRISTA MCAULIFFE | D94: 0 | E94: 0 | F94: 0 | G94: 0 | H94: 1 | I94: 0 | J94: 0 | K94: 0.039 | M94: 0 | N94: 0 | O94: 0 | P94: 0 | Q94: 11 | R94: 1 | AA94: 418 | AB94: 418100348 | AC94: CHRISTA MCAULIFFE | AD94: 0 | AE94: 0 | AF94: 0 | AG94: 0 | AH94: 1 | AI94: 0 | AJ94: 0 | AK94: 0 | AL94: 0 | AM94: 0 | AN94: 0 | AO94: 0 | AP94: 0 | AQ94: 0 | AR94: 0 | AS94: 0 | AU94: 100 | AV94: 348 | AW94: 11
A95: 419 | B95: 419035035 | C95: HELEN Y. DAVIS LEADERSHIP ACADEMY | D95: 0 | E95: 0 | F95: 0 | G95: 0 | H95: 108 | I95: 0 | J95: 0 | K95: 4.212 | M95: 0 | N95: 8 | O95: 0 | P95: 93 | Q95: 11 | R95: 108 | AA95: 419 | AB95: 419035035 | AC95: HELEN Y. DAVIS LEADERSHIP ACADEMY | AD95: 0 | AE95: 0 | AF95: 0 | AG95: 0 | AH95: 108 | AI95: 0 | AJ95: 0 | AK95: 0 | AL95: 0 | AM95: 8 | AN95: 0 | AO95: 93 | AP95: 0 | AQ95: 0 | AR95: 0 | AS95: 0 | AU95: 35 | AV95: 35 | AW95: 11
A96: 419 | B96: 419035044 | C96: HELEN Y. DAVIS LEADERSHIP ACADEMY | D96: 0 | E96: 0 | F96: 0 | G96: 0 | H96: 2 | I96: 0 | J96: 0 | K96: 0.078 | M96: 0 | N96: 0 | O96: 0 | P96: 1 | Q96: 11 | R96: 2 | AA96: 419 | AB96: 419035044 | AC96: HELEN Y. DAVIS LEADERSHIP ACADEMY | AD96: 0 | AE96: 0 | AF96: 0 | AG96: 0 | AH96: 2 | AI96: 0 | AJ96: 0 | AK96: 0 | AL96: 0 | AM96: 0 | AN96: 0 | AO96: 1 | AP96: 0 | AQ96: 0 | AR96: 0 | AS96: 0 | AU96: 35 | AV96: 44 | AW96: 11
A97: 419 | B97: 419035176 | C97: HELEN Y. DAVIS LEADERSHIP ACADEMY | D97: 0 | E97: 0 | F97: 0 | G97: 0 | H97: 1 | I97: 0 | J97: 0 | K97: 0.039 | M97: 0 | N97: 0 | O97: 0 | P97: 1 | Q97: 8 | R97: 1 | AA97: 419 | AB97: 419035176 | AC97: HELEN Y. DAVIS LEADERSHIP ACADEMY | AD97: 0 | AE97: 0 | AF97: 0 | AG97: 0 | AH97: 1 | AI97: 0 | AJ97: 0 | AK97: 0 | AL97: 0 | AM97: 0 | AN97: 0 | AO97: 1 | AP97: 0 | AQ97: 0 | AR97: 0 | AS97: 0 | AU97: 35 | AV97: 176 | AW97: 8
A98: 419 | B98: 419035189 | C98: HELEN Y. DAVIS LEADERSHIP ACADEMY | D98: 0 | E98: 0 | F98: 0 | G98: 0 | H98: 1 | I98: 0 | J98: 0 | K98: 0.039 | M98: 0 | N98: 0 | O98: 0 | P98: 1 | Q98: 3 | R98: 1 | AA98: 419 | AB98: 419035189 | AC98: HELEN Y. DAVIS LEADERSHIP ACADEMY | AD98: 0 | AE98: 0 | AF98: 0 | AG98: 0 | AH98: 1 | AI98: 0 | AJ98: 0 | AK98: 0 | AL98: 0 | AM98: 0 | AN98: 0 | AO98: 1 | AP98: 0 | AQ98: 0 | AR98: 0 | AS98: 0 | AU98: 35 | AV98: 189 | AW98: 3
A99: 419 | B99: 419035244 | C99: HELEN Y. DAVIS LEADERSHIP ACADEMY | D99: 0 | E99: 0 | F99: 0 | G99: 0 | H99: 2 | I99: 0 | J99: 0 | K99: 0.078 | M99: 0 | N99: 0 | O99: 0 | P99: 1 | Q99: 10 | R99: 2 | AA99: 419 | AB99: 419035244 | AC99: HELEN Y. DAVIS LEADERSHIP ACADEMY | AD99: 0 | AE99: 0 | AF99: 0 | AG99: 0 | AH99: 2 | AI99: 0 | AJ99: 0 | AK99: 0 | AL99: 0 | AM99: 0 | AN99: 0 | AO99: 1 | AP99: 0 | AQ99: 0 | AR99: 0 | AS99: 0 | AU99: 35 | AV99: 244 | AW99: 10
A100: 420 | B100: 420049010 | C100: BENJAMIN BANNEKER | D100: 1 | E100: 0 | F100: 0 | G100: 3 | H100: 1 | I100: 0 | J100: 0 | K100: 0.156 | M100: 1 | N100: 0 | O100: 0 | P100: 4 | Q100: 3 | R100: 5 | AA100: 420 | AB100: 420049010 | AC100: BENJAMIN BANNEKER | AD100: 1 | AE100: 0 | AF100: 0 | AG100: 3 | AH100: 1 | AI100: 0 | AJ100: 0 | AK100: 0 | AL100: 1 | AM100: 0 | AN100: 0 | AO100: 3 | AP100: 1 | AQ100: 0 | AR100: 0 | AS100: 0 | AU100: 49 | AV100: 10 | AW100: 3
A101: 420 | B101: 420049026 | C101: BENJAMIN BANNEKER | D101: 0 | E101: 0 | F101: 2 | G101: 2 | H101: 1 | I101: 0 | J101: 0 | K101: 0.195 | M101: 0 | N101: 0 | O101: 0 | P101: 2 | Q101: 3 | R101: 5 | AA101: 420 | AB101: 420049026 | AC101: BENJAMIN BANNEKER | AD101: 0 | AE101: 0 | AF101: 2 | AG101: 2 | AH101: 1 | AI101: 0 | AJ101: 0 | AK101: 0 | AL101: 0 | AM101: 0 | AN101: 0 | AO101: 1 | AP101: 0 | AQ101: 0 | AR101: 1 | AS101: 0 | AU101: 49 | AV101: 26 | AW101: 3
A102: 420 | B102: 420049031 | C102: BENJAMIN BANNEKER | D102: 0 | E102: 0 | F102: 0 | G102: 1 | H102: 0 | I102: 0 | J102: 0 | K102: 0.039 | M102: 0 | N102: 0 | O102: 0 | P102: 0 | Q102: 6 | R102: 1 | AA102: 420 | AB102: 420049031 | AC102: BENJAMIN BANNEKER | AD102: 0 | AE102: 0 | AF102: 0 | AG102: 1 | AH102: 0 | AI102: 0 | AJ102: 0 | AK102: 0 | AL102: 0 | AM102: 0 | AN102: 0 | AO102: 0 | AP102: 0 | AQ102: 0 | AR102: 0 | AS102: 0 | AU102: 49 | AV102: 31 | AW102: 6
A103: 420 | B103: 420049035 | C103: BENJAMIN BANNEKER | D103: 1 | E103: 0 | F103: 5 | G103: 17 | H103: 4 | I103: 0 | J103: 0 | K103: 1.014 | M103: 1 | N103: 0 | O103: 0 | P103: 16 | Q103: 11 | R103: 27 | AA103: 420 | AB103: 420049035 | AC103: BENJAMIN BANNEKER | AD103: 1 | AE103: 0 | AF103: 5 | AG103: 17 | AH103: 4 | AI103: 0 | AJ103: 0 | AK103: 0 | AL103: 1 | AM103: 0 | AN103: 0 | AO103: 12 | AP103: 0 | AQ103: 0 | AR103: 4 | AS103: 0 | AU103: 49 | AV103: 35 | AW103: 11
A104: 420 | B104: 420049044 | C104: BENJAMIN BANNEKER | D104: 0 | E104: 0 | F104: 1 | G104: 4 | H104: 1 | I104: 0 | J104: 0 | K104: 0.234 | M104: 0 | N104: 0 | O104: 0 | P104: 4 | Q104: 11 | R104: 6 | AA104: 420 | AB104: 420049044 | AC104: BENJAMIN BANNEKER | AD104: 0 | AE104: 0 | AF104: 1 | AG104: 4 | AH104: 1 | AI104: 0 | AJ104: 0 | AK104: 0 | AL104: 0 | AM104: 0 | AN104: 0 | AO104: 4 | AP104: 0 | AQ104: 0 | AR104: 0 | AS104: 0 | AU104: 49 | AV104: 44 | AW104: 11
A105: 420 | B105: 420049049 | C105: BENJAMIN BANNEKER | D105: 13 | E105: 0 | F105: 25 | G105: 156 | H105: 18 | I105: 0 | J105: 0 | K105: 7.761 | M105: 13 | N105: 3 | O105: 0 | P105: 172 | Q105: 8 | R105: 206 | AA105: 420 | AB105: 420049049 | AC105: BENJAMIN BANNEKER | AD105: 13 | AE105: 0 | AF105: 25 | AG105: 156 | AH105: 18 | AI105: 0 | AJ105: 0 | AK105: 0 | AL105: 13 | AM105: 3 | AN105: 0 | AO105: 147 | AP105: 7 | AQ105: 0 | AR105: 21 | AS105: 0 | AU105: 49 | AV105: 49 | AW105: 8
A106: 420 | B106: 420049057 | C106: BENJAMIN BANNEKER | D106: 0 | E106: 0 | F106: 0 | G106: 3 | H106: 0 | I106: 0 | J106: 0 | K106: 0.117 | M106: 0 | N106: 0 | O106: 0 | P106: 0 | Q106: 12 | R106: 3 | AA106: 420 | AB106: 420049057 | AC106: BENJAMIN BANNEKER | AD106: 0 | AE106: 0 | AF106: 0 | AG106: 3 | AH106: 0 | AI106: 0 | AJ106: 0 | AK106: 0 | AL106: 0 | AM106: 0 | AN106: 0 | AO106: 0 | AP106: 0 | AQ106: 0 | AR106: 0 | AS106: 0 | AU106: 49 | AV106: 57 | AW106: 12
A107: 420 | B107: 420049067 | C107: BENJAMIN BANNEKER | D107: 0 | E107: 0 | F107: 0 | G107: 1 | H107: 0 | I107: 0 | J107: 0 | K107: 0.039 | M107: 0 | N107: 0 | O107: 0 | P107: 1 | Q107: 2 | R107: 1 | AA107: 420 | AB107: 420049067 | AC107: BENJAMIN BANNEKER | AD107: 0 | AE107: 0 | AF107: 0 | AG107: 1 | AH107: 0 | AI107: 0 | AJ107: 0 | AK107: 0 | AL107: 0 | AM107: 0 | AN107: 0 | AO107: 1 | AP107: 0 | AQ107: 0 | AR107: 0 | AS107: 0 | AU107: 49 | AV107: 67 | AW107: 2
A108: 420 | B108: 420049093 | C108: BENJAMIN BANNEKER | D108: 1 | E108: 0 | F108: 1 | G108: 8 | H108: 4 | I108: 0 | J108: 0 | K108: 0.507 | M108: 1 | N108: 0 | O108: 0 | P108: 9 | Q108: 11 | R108: 14 | AA108: 420 | AB108: 420049093 | AC108: BENJAMIN BANNEKER | AD108: 1 | AE108: 0 | AF108: 1 | AG108: 8 | AH108: 4 | AI108: 0 | AJ108: 0 | AK108: 1 | AL108: 0 | AM108: 0 | AN108: 0 | AO108: 8 | AP108: 1 | AQ108: 0 | AR108: 0 | AS108: 0 | AU108: 49 | AV108: 93 | AW108: 11
A109: 420 | B109: 420049097 | C109: BENJAMIN BANNEKER | D109: 1 | E109: 0 | F109: 0 | G109: 1 | H109: 0 | I109: 0 | J109: 0 | K109: 0.039 | M109: 0 | N109: 0 | O109: 0 | P109: 2 | Q109: 11 | R109: 2 | AA109: 420 | AB109: 420049097 | AC109: BENJAMIN BANNEKER | AD109: 1 | AE109: 0 | AF109: 0 | AG109: 1 | AH109: 0 | AI109: 0 | AJ109: 0 | AK109: 0 | AL109: 0 | AM109: 0 | AN109: 0 | AO109: 1 | AP109: 1 | AQ109: 0 | AR109: 0 | AS109: 0 | AU109: 49 | AV109: 97 | AW109: 11
A110: 420 | B110: 420049128 | C110: BENJAMIN BANNEKER | D110: 0 | E110: 0 | F110: 0 | G110: 1 | H110: 0 | I110: 0 | J110: 0 | K110: 0.039 | M110: 0 | N110: 0 | O110: 0 | P110: 1 | Q110: 10 | R110: 1 | AA110: 420 | AB110: 420049128 | AC110: BENJAMIN BANNEKER | AD110: 0 | AE110: 0 | AF110: 0 | AG110: 1 | AH110: 0 | AI110: 0 | AJ110: 0 | AK110: 0 | AL110: 0 | AM110: 0 | AN110: 0 | AO110: 1 | AP110: 0 | AQ110: 0 | AR110: 0 | AS110: 0 | AU110: 49 | AV110: 128 | AW110: 10
A111: 420 | B111: 420049163 | C111: BENJAMIN BANNEKER | D111: 0 | E111: 0 | F111: 0 | G111: 0 | H111: 1 | I111: 0 | J111: 0 | K111: 0.039 | M111: 0 | N111: 0 | O111: 0 | P111: 1 | Q111: 11 | R111: 1 | AA111: 420 | AB111: 420049163 | AC111: BENJAMIN BANNEKER | AD111: 0 | AE111: 0 | AF111: 0 | AG111: 0 | AH111: 1 | AI111: 0 | AJ111: 0 | AK111: 0 | AL111: 0 | AM111: 0 | AN111: 0 | AO111: 1 | AP111: 0 | AQ111: 0 | AR111: 0 | AS111: 0 | AU111: 49 | AV111: 163 | AW111: 11
A112: 420 | B112: 420049165 | C112: BENJAMIN BANNEKER | D112: 0 | E112: 0 | F112: 2 | G112: 6 | H112: 2 | I112: 0 | J112: 0 | K112: 0.39 | M112: 0 | N112: 0 | O112: 0 | P112: 8 | Q112: 10 | R112: 10 | AA112: 420 | AB112: 420049165 | AC112: BENJAMIN BANNEKER | AD112: 0 | AE112: 0 | AF112: 2 | AG112: 6 | AH112: 2 | AI112: 0 | AJ112: 0 | AK112: 0 | AL112: 0 | AM112: 0 | AN112: 0 | AO112: 6 | AP112: 0 | AQ112: 0 | AR112: 2 | AS112: 0 | AU112: 49 | AV112: 165 | AW112: 10
A113: 420 | B113: 420049174 | C113: BENJAMIN BANNEKER | D113: 0 | E113: 0 | F113: 0 | G113: 2 | H113: 0 | I113: 0 | J113: 0 | K113: 0.078 | M113: 0 | N113: 0 | O113: 0 | P113: 0 | Q113: 6 | R113: 2 | AA113: 420 | AB113: 420049174 | AC113: BENJAMIN BANNEKER | AD113: 0 | AE113: 0 | AF113: 0 | AG113: 2 | AH113: 0 | AI113: 0 | AJ113: 0 | AK113: 0 | AL113: 0 | AM113: 0 | AN113: 0 | AO113: 0 | AP113: 0 | AQ113: 0 | AR113: 0 | AS113: 0 | AU113: 49 | AV113: 174 | AW113: 6
A114: 420 | B114: 420049176 | C114: BENJAMIN BANNEKER | D114: 0 | E114: 0 | F114: 3 | G114: 10 | H114: 4 | I114: 0 | J114: 0 | K114: 0.663 | M114: 0 | N114: 0 | O114: 0 | P114: 6 | Q114: 8 | R114: 17 | AA114: 420 | AB114: 420049176 | AC114: BENJAMIN BANNEKER | AD114: 0 | AE114: 0 | AF114: 3 | AG114: 10 | AH114: 4 | AI114: 0 | AJ114: 0 | AK114: 0 | AL114: 0 | AM114: 0 | AN114: 0 | AO114: 5 | AP114: 0 | AQ114: 0 | AR114: 1 | AS114: 0 | AU114: 49 | AV114: 176 | AW114: 8
A115: 420 | B115: 420049199 | C115: BENJAMIN BANNEKER | D115: 0 | E115: 0 | F115: 1 | G115: 0 | H115: 1 | I115: 0 | J115: 0 | K115: 0.078 | M115: 0 | N115: 1 | O115: 0 | P115: 2 | Q115: 2 | R115: 2 | AA115: 420 | AB115: 420049199 | AC115: BENJAMIN BANNEKER | AD115: 0 | AE115: 0 | AF115: 1 | AG115: 0 | AH115: 1 | AI115: 0 | AJ115: 0 | AK115: 0 | AL115: 0 | AM115: 1 | AN115: 0 | AO115: 1 | AP115: 0 | AQ115: 0 | AR115: 1 | AS115: 0 | AU115: 49 | AV115: 199 | AW115: 2
A116: 420 | B116: 420049238 | C116: BENJAMIN BANNEKER | D116: 0 | E116: 0 | F116: 0 | G116: 0 | H116: 1 | I116: 0 | J116: 0 | K116: 0.039 | M116: 0 | N116: 0 | O116: 0 | P116: 0 | Q116: 6 | R116: 1 | AA116: 420 | AB116: 420049238 | AC116: BENJAMIN BANNEKER | AD116: 0 | AE116: 0 | AF116: 0 | AG116: 0 | AH116: 1 | AI116: 0 | AJ116: 0 | AK116: 0 | AL116: 0 | AM116: 0 | AN116: 0 | AO116: 0 | AP116: 0 | AQ116: 0 | AR116: 0 | AS116: 0 | AU116: 49 | AV116: 238 | AW116: 6
A117: 420 | B117: 420049243 | C117: BENJAMIN BANNEKER | D117: 1 | E117: 0 | F117: 0 | G117: 0 | H117: 0 | I117: 0 | J117: 0 | K117: 0 | M117: 0 | N117: 0 | O117: 0 | P117: 0 | Q117: 10 | R117: 1 | AA117: 420 | AB117: 420049243 | AC117: BENJAMIN BANNEKER | AD117: 1 | AE117: 0 | AF117: 0 | AG117: 0 | AH117: 0 | AI117: 0 | AJ117: 0 | AK117: 0 | AL117: 0 | AM117: 0 | AN117: 0 | AO117: 0 | AP117: 0 | AQ117: 0 | AR117: 0 | AS117: 0 | AU117: 49 | AV117: 243 | AW117: 10
A118: 420 | B118: 420049248 | C118: BENJAMIN BANNEKER | D118: 1 | E118: 0 | F118: 1 | G118: 5 | H118: 0 | I118: 0 | J118: 0 | K118: 0.234 | M118: 0 | N118: 0 | O118: 0 | P118: 3 | Q118: 11 | R118: 7 | AA118: 420 | AB118: 420049248 | AC118: BENJAMIN BANNEKER | AD118: 1 | AE118: 0 | AF118: 1 | AG118: 5 | AH118: 0 | AI118: 0 | AJ118: 0 | AK118: 0 | AL118: 0 | AM118: 0 | AN118: 0 | AO118: 1 | AP118: 1 | AQ118: 0 | AR118: 1 | AS118: 0 | AU118: 49 | AV118: 248 | AW118: 11
A119: 420 | B119: 420049262 | C119: BENJAMIN BANNEKER | D119: 0 | E119: 0 | F119: 1 | G119: 1 | H119: 0 | I119: 0 | J119: 0 | K119: 0.078 | M119: 0 | N119: 0 | O119: 0 | P119: 1 | Q119: 9 | R119: 2 | AA119: 420 | AB119: 420049262 | AC119: BENJAMIN BANNEKER | AD119: 0 | AE119: 0 | AF119: 1 | AG119: 1 | AH119: 0 | AI119: 0 | AJ119: 0 | AK119: 0 | AL119: 0 | AM119: 0 | AN119: 0 | AO119: 1 | AP119: 0 | AQ119: 0 | AR119: 0 | AS119: 0 | AU119: 49 | AV119: 262 | AW119: 9
A120: 420 | B120: 420049284 | C120: BENJAMIN BANNEKER | D120: 0 | E120: 0 | F120: 1 | G120: 1 | H120: 0 | I120: 0 | J120: 0 | K120: 0.078 | M120: 0 | N120: 0 | O120: 0 | P120: 0 | Q120: 5 | R120: 2 | AA120: 420 | AB120: 420049284 | AC120: BENJAMIN BANNEKER | AD120: 0 | AE120: 0 | AF120: 1 | AG120: 1 | AH120: 0 | AI120: 0 | AJ120: 0 | AK120: 0 | AL120: 0 | AM120: 0 | AN120: 0 | AO120: 0 | AP120: 0 | AQ120: 0 | AR120: 0 | AS120: 0 | AU120: 49 | AV120: 284 | AW120: 5
A121: 420 | B121: 420049295 | C121: BENJAMIN BANNEKER | D121: 0 | E121: 0 | F121: 0 | G121: 1 | H121: 0 | I121: 0 | J121: 0 | K121: 0.039 | M121: 0 | N121: 0 | O121: 0 | P121: 1 | Q121: 5 | R121: 1 | AA121: 420 | AB121: 420049295 | AC121: BENJAMIN BANNEKER | AD121: 0 | AE121: 0 | AF121: 0 | AG121: 1 | AH121: 0 | AI121: 0 | AJ121: 0 | AK121: 0 | AL121: 0 | AM121: 0 | AN121: 0 | AO121: 1 | AP121: 0 | AQ121: 0 | AR121: 0 | AS121: 0 | AU121: 49 | AV121: 295 | AW121: 5
A122: 420 | B122: 420049305 | C122: BENJAMIN BANNEKER | D122: 0 | E122: 0 | F122: 1 | G122: 0 | H122: 0 | I122: 0 | J122: 0 | K122: 0.039 | M122: 0 | N122: 0 | O122: 0 | P122: 0 | Q122: 4 | R122: 1 | AA122: 420 | AB122: 420049305 | AC122: BENJAMIN BANNEKER | AD122: 0 | AE122: 0 | AF122: 1 | AG122: 0 | AH122: 0 | AI122: 0 | AJ122: 0 | AK122: 0 | AL122: 0 | AM122: 0 | AN122: 0 | AO122: 0 | AP122: 0 | AQ122: 0 | AR122: 0 | AS122: 0 | AU122: 49 | AV122: 305 | AW122: 4
A123: 420 | B123: 420049314 | C123: BENJAMIN BANNEKER | D123: 0 | E123: 0 | F123: 0 | G123: 3 | H123: 0 | I123: 0 | J123: 0 | K123: 0.117 | M123: 0 | N123: 0 | O123: 0 | P123: 3 | Q123: 7 | R123: 3 | AA123: 420 | AB123: 420049314 | AC123: BENJAMIN BANNEKER | AD123: 0 | AE123: 0 | AF123: 0 | AG123: 3 | AH123: 0 | AI123: 0 | AJ123: 0 | AK123: 0 | AL123: 0 | AM123: 0 | AN123: 0 | AO123: 3 | AP123: 0 | AQ123: 0 | AR123: 0 | AS123: 0 | AU123: 49 | AV123: 314 | AW123: 7
A124: 420 | B124: 420049344 | C124: BENJAMIN BANNEKER | D124: 0 | E124: 0 | F124: 0 | G124: 1 | H124: 0 | I124: 0 | J124: 0 | K124: 0.039 | M124: 0 | N124: 0 | O124: 0 | P124: 1 | Q124: 2 | R124: 1 | AA124: 420 | AB124: 420049344 | AC124: BENJAMIN BANNEKER | AD124: 0 | AE124: 0 | AF124: 0 | AG124: 1 | AH124: 0 | AI124: 0 | AJ124: 0 | AK124: 0 | AL124: 0 | AM124: 0 | AN124: 0 | AO124: 1 | AP124: 0 | AQ124: 0 | AR124: 0 | AS124: 0 | AU124: 49 | AV124: 344 | AW124: 2
A125: 420 | B125: 420049616 | C125: BENJAMIN BANNEKER | D125: =ROUND(AD125,0) -> 1 | E125: 0 | F125: 0 | G125: 2 | H125: 1 | I125: 0 | J125: 0 | K125: 0.117 | M125: 0 | N125: 0 | O125: 0 | P125: 4 | Q125: 7 | R125: 4 | AA125: 420 | AB125: 420049616 | AC125: BENJAMIN BANNEKER | AD125: 1 | AE125: 0 | AF125: 0 | AG125: 2 | AH125: 1 | AI125: 0 | AJ125: 0 | AK125: 0 | AL125: 0 | AM125: 0 | AN125: 0 | AO125: 3 | AP125: 1 | AQ125: 0 | AR125: 0 | AS125: 0 | AU125: 49 | AV125: 616 | AW125: 7
A126: 428 | B126: 428035016 | C126: BROOKE | D126: 0 | E126: 0 | F126: 0 | G126: 1 | H126: 1 | I126: 3 | J126: 0 | K126: 0.195 | M126: 0 | N126: 0 | O126: 0 | P126: 1 | Q126: 8 | R126: 5 | AA126: 428 | AB126: 428035016 | AC126: BROOKE | AD126: 0 | AE126: 0 | AF126: 0 | AG126: 1 | AH126: 1 | AI126: 3 | AJ126: 0 | AK126: 0 | AL126: 0 | AM126: 0 | AN126: 0 | AO126: 0 | AP126: 0 | AQ126: 0 | AR126: 0 | AS126: 1 | AU126: 35 | AV126: 16 | AW126: 8
A127: 428 | B127: 428035018 | C127: BROOKE | D127: 0 | E127: 0 | F127: 1 | G127: 0 | H127: 0 | I127: 0 | J127: 0 | K127: 0.039 | M127: 0 | N127: 0 | O127: 0 | P127: 1 | Q127: 10 | R127: 1 | AA127: 428 | AB127: 428035018 | AC127: BROOKE | AD127: 0 | AE127: 0 | AF127: 1 | AG127: 0 | AH127: 0 | AI127: 0 | AJ127: 0 | AK127: 0 | AL127: 0 | AM127: 0 | AN127: 0 | AO127: 0 | AP127: 0 | AQ127: 0 | AR127: 1 | AS127: 0 | AU127: 35 | AV127: 18 | AW127: 10
A128: 428 | B128: 428035035 | C128: BROOKE | D128: 0 | E128: 0 | F128: 161 | G128: 818 | H128: 453 | I128: 429 | J128: 0 | K128: 72.579 | M128: 95 | N128: 13 | O128: 11 | P128: 1359 | Q128: 11 | R128: 1861 | AA128: 428 | AB128: 428035035 | AC128: BROOKE | AD128: 0 | AE128: 0 | AF128: 161 | AG128: 818 | AH128: 453 | AI128: 429 | AJ128: 0 | AK128: 0 | AL128: 95 | AM128: 13 | AN128: 11 | AO128: 937 | AP128: 0 | AQ128: 0 | AR128: 125 | AS128: 297 | AU128: 35 | AV128: 35 | AW128: 11
A129: 428 | B129: 428035044 | C129: BROOKE | D129: 0 | E129: 0 | F129: 1 | G129: 10 | H129: 4 | I129: 17 | J129: 0 | K129: 1.248 | M129: 2 | N129: 1 | O129: 0 | P129: 18 | Q129: 11 | R129: 32 | AA129: 428 | AB129: 428035044 | AC129: BROOKE | AD129: 0 | AE129: 0 | AF129: 1 | AG129: 10 | AH129: 4 | AI129: 17 | AJ129: 0 | AK129: 0 | AL129: 2 | AM129: 1 | AN129: 0 | AO129: 6 | AP129: 0 | AQ129: 0 | AR129: 1 | AS129: 11 | AU129: 35 | AV129: 44 | AW129: 11
A130: 428 | B130: 428035050 | C130: BROOKE | D130: 0 | E130: 0 | F130: 0 | G130: 0 | H130: 1 | I130: 0 | J130: 0 | K130: 0.039 | M130: 0 | N130: 0 | O130: 0 | P130: 1 | Q130: 5 | R130: 1 | AA130: 428 | AB130: 428035050 | AC130: BROOKE | AD130: 0 | AE130: 0 | AF130: 0 | AG130: 0 | AH130: 1 | AI130: 0 | AJ130: 0 | AK130: 0 | AL130: 0 | AM130: 0 | AN130: 0 | AO130: 1 | AP130: 0 | AQ130: 0 | AR130: 0 | AS130: 0 | AU130: 35 | AV130: 50 | AW130: 5
A131: 428 | B131: 428035057 | C131: BROOKE | D131: 0 | E131: 0 | F131: 21 | G131: 79 | H131: 44 | I131: 28 | J131: 0 | K131: 6.708 | M131: 29 | N131: 0 | O131: 0 | P131: 132 | Q131: 12 | R131: 172 | AA131: 428 | AB131: 428035057 | AC131: BROOKE | AD131: 0 | AE131: 0 | AF131: 21 | AG131: 79 | AH131: 44 | AI131: 28 | AJ131: 0 | AK131: 0 | AL131: 29 | AM131: 0 | AN131: 0 | AO131: 98 | AP131: 0 | AQ131: 0 | AR131: 12 | AS131: 22 | AU131: 35 | AV131: 57 | AW131: 12
A132: 428 | B132: 428035073 | C132: BROOKE | D132: 0 | E132: 0 | F132: 1 | G132: 5 | H132: 7 | I132: 3 | J132: 0 | K132: 0.624 | M132: 0 | N132: 0 | O132: 0 | P132: 7 | Q132: 6 | R132: 16 | AA132: 428 | AB132: 428035073 | AC132: BROOKE | AD132: 0 | AE132: 0 | AF132: 1 | AG132: 5 | AH132: 7 | AI132: 3 | AJ132: 0 | AK132: 0 | AL132: 0 | AM132: 0 | AN132: 0 | AO132: 6 | AP132: 0 | AQ132: 0 | AR132: 0 | AS132: 1 | AU132: 35 | AV132: 73 | AW132: 6
A133: 428 | B133: 428035093 | C133: BROOKE | D133: 0 | E133: 0 | F133: 0 | G133: 4 | H133: 1 | I133: 2 | J133: 0 | K133: 0.273 | M133: 1 | N133: 0 | O133: 0 | P133: 6 | Q133: 11 | R133: 7 | AA133: 428 | AB133: 428035093 | AC133: BROOKE | AD133: 0 | AE133: 0 | AF133: 0 | AG133: 4 | AH133: 1 | AI133: 2 | AJ133: 0 | AK133: 0 | AL133: 1 | AM133: 0 | AN133: 0 | AO133: 5 | AP133: 0 | AQ133: 0 | AR133: 0 | AS133: 1 | AU133: 35 | AV133: 93 | AW133: 11
A134: 428 | B134: 428035095 | C134: BROOKE | D134: 0 | E134: 0 | F134: 0 | G134: 1 | H134: 0 | I134: 0 | J134: 0 | K134: 0.039 | M134: 0 | N134: 0 | O134: 0 | P134: 1 | Q134: 12 | R134: 1 | AA134: 428 | AB134: 428035095 | AC134: BROOKE | AD134: 0 | AE134: 0 | AF134: 0 | AG134: 1 | AH134: 0 | AI134: 0 | AJ134: 0 | AK134: 0 | AL134: 0 | AM134: 0 | AN134: 0 | AO134: 1 | AP134: 0 | AQ134: 0 | AR134: 0 | AS134: 0 | AU134: 35 | AV134: 95 | AW134: 12
A135: 428 | B135: 428035128 | C135: BROOKE | D135: 0 | E135: 0 | F135: 0 | G135: 1 | H135: 0 | I135: 0 | J135: 0 | K135: 0.039 | M135: 0 | N135: 0 | O135: 0 | P135: 1 | Q135: 10 | R135: 1 | AA135: 428 | AB135: 428035128 | AC135: BROOKE | AD135: 0 | AE135: 0 | AF135: 0 | AG135: 1 | AH135: 0 | AI135: 0 | AJ135: 0 | AK135: 0 | AL135: 0 | AM135: 0 | AN135: 0 | AO135: 1 | AP135: 0 | AQ135: 0 | AR135: 0 | AS135: 0 | AU135: 35 | AV135: 128 | AW135: 10
A136: 428 | B136: 428035133 | C136: BROOKE | D136: 0 | E136: 0 | F136: 0 | G136: 0 | H136: 2 | I136: 2 | J136: 0 | K136: 0.156 | M136: 0 | N136: 0 | O136: 0 | P136: 2 | Q136: 9 | R136: 4 | AA136: 428 | AB136: 428035133 | AC136: BROOKE | AD136: 0 | AE136: 0 | AF136: 0 | AG136: 0 | AH136: 2 | AI136: 2 | AJ136: 0 | AK136: 0 | AL136: 0 | AM136: 0 | AN136: 0 | AO136: 1 | AP136: 0 | AQ136: 0 | AR136: 0 | AS136: 1 | AU136: 35 | AV136: 133 | AW136: 9
A137: 428 | B137: 428035163 | C137: BROOKE | D137: 0 | E137: 0 | F137: 0 | G137: 9 | H137: 4 | I137: 3 | J137: 0 | K137: 0.624 | M137: 0 | N137: 0 | O137: 0 | P137: 10 | Q137: 11 | R137: 16 | AA137: 428 | AB137: 428035163 | AC137: BROOKE | AD137: 0 | AE137: 0 | AF137: 0 | AG137: 9 | AH137: 4 | AI137: 3 | AJ137: 0 | AK137: 0 | AL137: 0 | AM137: 0 | AN137: 0 | AO137: 8 | AP137: 0 | AQ137: 0 | AR137: 0 | AS137: 2 | AU137: 35 | AV137: 163 | AW137: 11
A138: 428 | B138: 428035165 | C138: BROOKE | D138: 0 | E138: 0 | F138: 1 | G138: 4 | H138: 3 | I138: 0 | J138: 0 | K138: 0.312 | M138: 0 | N138: 0 | O138: 0 | P138: 7 | Q138: 10 | R138: 8 | AA138: 428 | AB138: 428035165 | AC138: BROOKE | AD138: 0 | AE138: 0 | AF138: 1 | AG138: 4 | AH138: 3 | AI138: 0 | AJ138: 0 | AK138: 0 | AL138: 0 | AM138: 0 | AN138: 0 | AO138: 7 | AP138: 0 | AQ138: 0 | AR138: 0 | AS138: 0 | AU138: 35 | AV138: 165 | AW138: 10
A139: 428 | B139: 428035189 | C139: BROOKE | D139: 0 | E139: 0 | F139: 0 | G139: 0 | H139: 0 | I139: =ROUND(AI139,0)-J139 -> 1 | J139: 0 | K139: =ROUND(0.039*(SUM(AF139:AI139)+(AE139*0.5))+0.049*AJ139,4) -> 0.039 | M139: =ROUND(AL139+(AK139*0.5),0) -> 0 | N139: =ROUND(AM139,0) -> 0 | O139: 0 | P139: =ROUND(((AP139+AQ139)*0.5)+AO139+AR139+AS139,0) -> 0 | Q139: =AW139 -> 3 | R139: =SUM(F139:I139)+ROUND(D139*0.5,0)+ROUND(J139,0) -> 1 | AA139: 428 | AB139: 428035189 | AC139: BROOKE | AD139: 0 | AE139: 0 | AF139: 0 | AG139: 0 | AH139: 0 | AI139: 1 | AJ139: 0 | AK139: 0 | AL139: 0 | AM139: 0 | AN139: 0 | AO139: 0 | AP139: 0 | AQ139: 0 | AR139: 0 | AS139: 0 | AU139: 35 | AV139: 189 | AW139: 3
A140: 428 | B140: 428035220 | C140: BROOKE | D140: 0 | E140: 0 | F140: 0 | G140: 1 | H140: 2 | I140: 4 | J140: 0 | K140: 0.273 | M140: 0 | N140: 0 | O140: 0 | P140: 4 | Q140: 8 | R140: 7 | AA140: 428 | AB140: 428035220 | AC140: BROOKE | AD140: 0 | AE140: 0 | AF140: 0 | AG140: 1 | AH140: 2 | AI140: 4 | AJ140: 0 | AK140: 0 | AL140: 0 | AM140: 0 | AN140: 0 | AO140: 2 | AP140: 0 | AQ140: 0 | AR140: 0 | AS140: 2 | AU140: 35 | AV140: 220 | AW140: 8
A141: 428 | B141: 428035243 | C141: BROOKE | D141: 0 | E141: 0 | F141: 0 | G141: 2 | H141: 1 | I141: 1 | J141: 0 | K141: 0.156 | M141: 0 | N141: 0 | O141: 0 | P141: 4 | Q141: 10 | R141: 4 | AA141: 428 | AB141: 428035243 | AC141: BROOKE | AD141: 0 | AE141: 0 | AF141: 0 | AG141: 2 | AH141: 1 | AI141: 1 | AJ141: 0 | AK141: 0 | AL141: 0 | AM141: 0 | AN141: 0 | AO141: 3 | AP141: 0 | AQ141: 0 | AR141: 0 | AS141: 1 | AU141: 35 | AV141: 243 | AW141: 10
A142: 428 | B142: 428035244 | C142: BROOKE | D142: 0 | E142: 0 | F142: 1 | G142: 7 | H142: 8 | I142: 14 | J142: 0 | K142: 1.17 | M142: 1 | N142: 0 | O142: 0 | P142: 10 | Q142: 10 | R142: 30 | AA142: 428 | AB142: 428035244 | AC142: BROOKE | AD142: 0 | AE142: 0 | AF142: 1 | AG142: 7 | AH142: 8 | AI142: 14 | AJ142: 0 | AK142: 0 | AL142: 1 | AM142: 0 | AN142: 0 | AO142: 5 | AP142: 0 | AQ142: 0 | AR142: 0 | AS142: 5 | AU142: 35 | AV142: 244 | AW142: 10
A143: 428 | B143: 428035248 | C143: BROOKE | D143: 0 | E143: 0 | F143: 1 | G143: 11 | H143: 6 | I143: 7 | J143: 0 | K143: 0.975 | M143: 3 | N143: 0 | O143: 0 | P143: 14 | Q143: 11 | R143: 25 | AA143: 428 | AB143: 428035248 | AC143: BROOKE | AD143: 0 | AE143: 0 | AF143: 1 | AG143: 11 | AH143: 6 | AI143: 7 | AJ143: 0 | AK143: 0 | AL143: 3 | AM143: 0 | AN143: 0 | AO143: 8 | AP143: 0 | AQ143: 0 | AR143: 1 | AS143: 5 | AU143: 35 | AV143: 248 | AW143: 11
A144: 428 | B144: 428035258 | C144: BROOKE | D144: 0 | E144: 0 | F144: 0 | G144: 1 | H144: 1 | I144: 0 | J144: 0 | K144: 0.078 | M144: 0 | N144: 0 | O144: 0 | P144: 2 | Q144: 10 | R144: 2 | AA144: 428 | AB144: 428035258 | AC144: BROOKE | AD144: 0 | AE144: 0 | AF144: 0 | AG144: 1 | AH144: 1 | AI144: 0 | AJ144: 0 | AK144: 0 | AL144: 0 | AM144: 0 | AN144: 0 | AO144: 2 | AP144: 0 | AQ144: 0 | AR144: 0 | AS144: 0 | AU144: 35 | AV144: 258 | AW144: 10
A145: 428 | B145: 428035262 | C145: BROOKE | D145: 0 | E145: 0 | F145: 0 | G145: 1 | H145: 1 | I145: 1 | J145: 0 | K145: 0.117 | M145: 0 | N145: 0 | O145: 0 | P145: 3 | Q145: 9 | R145: 3 | AA145: 428 | AB145: 428035262 | AC145: BROOKE | AD145: 0 | AE145: 0 | AF145: 0 | AG145: 1 | AH145: 1 | AI145: 1 | AJ145: 0 | AK145: 0 | AL145: 0 | AM145: 0 | AN145: 0 | AO145: 2 | AP145: 0 | AQ145: 0 | AR145: 0 | AS145: 1 | AU145: 35 | AV145: 262 | AW145: 9
A146: 428 | B146: 428035285 | C146: BROOKE | D146: 0 | E146: 0 | F146: 0 | G146: 0 | H146: 1 | I146: 2 | J146: 0 | K146: 0.117 | M146: 0 | N146: 0 | O146: 0 | P146: 2 | Q146: 9 | R146: 3 | AA146: 428 | AB146: 428035285 | AC146: BROOKE | AD146: 0 | AE146: 0 | AF146: 0 | AG146: 0 | AH146: 1 | AI146: 2 | AJ146: 0 | AK146: 0 | AL146: 0 | AM146: 0 | AN146: 0 | AO146: 1 | AP146: 0 | AQ146: 0 | AR146: 0 | AS146: 1 | AU146: 35 | AV146: 285 | AW146: 9
A147: 428 | B147: 428035291 | C147: BROOKE | D147: 0 | E147: 0 | F147: 0 | G147: 0 | H147: 0 | I147: 1 | J147: 0 | K147: 0.039 | M147: 0 | N147: 0 | O147: 0 | P147: 1 | Q147: 5 | R147: 1 | AA147: 428 | AB147: 428035291 | AC147: BROOKE | AD147: 0 | AE147: 0 | AF147: 0 | AG147: 0 | AH147: 0 | AI147: 1 | AJ147: 0 | AK147: 0 | AL147: 0 | AM147: 0 | AN147: 0 | AO147: 0 | AP147: 0 | AQ147: 0 | AR147: 0 | AS147: 1 | AU147: 35 | AV147: 291 | AW147: 5
A148: 428 | B148: 428035293 | C148: BROOKE | D148: 0 | E148: 0 | F148: 0 | G148: 2 | H148: 1 | I148: 2 | J148: 0 | K148: 0.195 | M148: 0 | N148: 0 | O148: 0 | P148: 5 | Q148: 10 | R148: 5 | AA148: 428 | AB148: 428035293 | AC148: BROOKE | AD148: 0 | AE148: 0 | AF148: 0 | AG148: 2 | AH148: 1 | AI148: 2 | AJ148: 0 | AK148: 0 | AL148: 0 | AM148: 0 | AN148: 0 | AO148: 3 | AP148: 0 | AQ148: 0 | AR148: 0 | AS148: 2 | AU148: 35 | AV148: 293 | AW148: 10
A149: 428 | B149: 428035307 | C149: BROOKE | D149: 0 | E149: 0 | F149: 0 | G149: 1 | H149: 2 | I149: 0 | J149: 0 | K149: 0.117 | M149: 0 | N149: 0 | O149: 0 | P149: 3 | Q149: 4 | R149: 3 | AA149: 428 | AB149: 428035307 | AC149: BROOKE | AD149: 0 | AE149: 0 | AF149: 0 | AG149: 1 | AH149: 2 | AI149: 0 | AJ149: 0 | AK149: 0 | AL149: 0 | AM149: 0 | AN149: 0 | AO149: 3 | AP149: 0 | AQ149: 0 | AR149: 0 | AS149: 0 | AU149: 35 | AV149: 307 | AW149: 4
A150: 428 | B150: 428035314 | C150: BROOKE | D150: 0 | E150: 0 | F150: 0 | G150: 2 | H150: 0 | I150: 0 | J150: 0 | K150: 0.078 | M150: 0 | N150: 0 | O150: 0 | P150: 0 | Q150: 7 | R150: 2 | AA150: 428 | AB150: 428035314 | AC150: BROOKE | AD150: 0 | AE150: 0 | AF150: 0 | AG150: 2 | AH150: 0 | AI150: 0 | AJ150: 0 | AK150: 0 | AL150: 0 | AM150: 0 | AN150: 0 | AO150: 0 | AP150: 0 | AQ150: 0 | AR150: 0 | AS150: 0 | AU150: 35 | AV150: 314 | AW150: 7
A151: 428 | B151: 428035336 | C151: BROOKE | D151: 0 | E151: 0 | F151: 0 | G151: 2 | H151: 1 | I151: 0 | J151: 0 | K151: 0.117 | M151: 0 | N151: 0 | O151: 0 | P151: 0 | Q151: 8 | R151: 3 | AA151: 428 | AB151: 428035336 | AC151: BROOKE | AD151: 0 | AE151: 0 | AF151: 0 | AG151: 2 | AH151: 1 | AI151: 0 | AJ151: 0 | AK151: 0 | AL151: 0 | AM151: 0 | AN151: 0 | AO151: 0 | AP151: 0 | AQ151: 0 | AR151: 0 | AS151: 0 | AU151: 35 | AV151: 336 | AW151: 8
A152: 428 | B152: 428035346 | C152: BROOKE | D152: 0 | E152: 0 | F152: 0 | G152: 5 | H152: 1 | I152: 2 | J152: 0 | K152: 0.312 | M152: 2 | N152: 0 | O152: 0 | P152: 4 | Q152: 8 | R152: 8 | AA152: 428 | AB152: 428035346 | AC152: BROOKE | AD152: 0 | AE152: 0 | AF152: 0 | AG152: 5 | AH152: 1 | AI152: 2 | AJ152: 0 | AK152: 0 | AL152: 2 | AM152: 0 | AN152: 0 | AO152: 3 | AP152: 0 | AQ152: 0 | AR152: 0 | AS152: 1 | AU152: 35 | AV152: 346 | AW152: 8
A153: 428 | B153: 428035350 | C153: BROOKE | D153: 0 | E153: 0 | F153: 0 | G153: 1 | H153: 0 | I153: 0 | J153: 0 | K153: 0.039 | M153: 0 | N153: 0 | O153: 0 | P153: 1 | Q153: 3 | R153: 1 | AA153: 428 | AB153: 428035350 | AC153: BROOKE | AD153: 0 | AE153: 0 | AF153: 0 | AG153: 1 | AH153: 0 | AI153: 0 | AJ153: 0 | AK153: 0 | AL153: 0 | AM153: 0 | AN153: 0 | AO153: 1 | AP153: 0 | AQ153: 0 | AR153: 0 | AS153: 0 | AU153: 35 | AV153: 350 | AW153: 3
A154: 429 | B154: 429163030 | C154: KIPP ACADEMY LYNN | D154: 0 | E154: 0 | F154: 0 | G154: 0 | H154: 0 | I154: 4 | J154: 0 | K154: 0.156 | M154: 0 | N154: 0 | O154: 0 | P154: 4 | Q154: 7 | R154: 4 | AA154: 429 | AB154: 429163030 | AC154: KIPP ACADEMY LYNN | AD154: 0 | AE154: 0 | AF154: 0 | AG154: 0 | AH154: 0 | AI154: 4 | AJ154: 0 | AK154: 0 | AL154: 0 | AM154: 0 | AN154: 0 | AO154: 0 | AP154: 0 | AQ154: 0 | AR154: 0 | AS154: 4 | AU154: 163 | AV154: 30 | AW154: 7
A155: 429 | B155: 429163035 | C155: KIPP ACADEMY LYNN | D155: 0 | E155: 0 | F155: 0 | G155: 0 | H155: 1 | I155: 1 | J155: 0 | K155: 0.078 | M155: 0 | N155: 0 | O155: 0 | P155: 0 | Q155: 11 | R155: 2 | AA155: 429 | AB155: 429163035 | AC155: KIPP ACADEMY LYNN | AD155: 0 | AE155: 0 | AF155: 0 | AG155: 0 | AH155: 1 | AI155: 1 | AJ155: 0 | AK155: 0 | AL155: 0 | AM155: 0 | AN155: 0 | AO155: 0 | AP155: 0 | AQ155: 0 | AR155: 0 | AS155: 0 | AU155: 163 | AV155: 35 | AW155: 11
A156: 429 | B156: 429163049 | C156: KIPP ACADEMY LYNN | D156: 0 | E156: 0 | F156: 0 | G156: 0 | H156: 0 | I156: 1 | J156: 0 | K156: 0.039 | M156: 0 | N156: 0 | O156: 0 | P156: 1 | Q156: 8 | R156: 1 | AA156: 429 | AB156: 429163049 | AC156: KIPP ACADEMY LYNN | AD156: 0 | AE156: 0 | AF156: 0 | AG156: 0 | AH156: 0 | AI156: 1 | AJ156: 0 | AK156: 0 | AL156: 0 | AM156: 0 | AN156: 0 | AO156: 0 | AP156: 0 | AQ156: 0 | AR156: 0 | AS156: 1 | AU156: 163 | AV156: 49 | AW156: 8
A157: 429 | B157: 429163057 | C157: KIPP ACADEMY LYNN | D157: 0 | E157: 0 | F157: 0 | G157: 0 | H157: 0 | I157: 2 | J157: 0 | K157: 0.078 | M157: 0 | N157: 0 | O157: 1 | P157: 2 | Q157: 12 | R157: 2 | AA157: 429 | AB157: 429163057 | AC157: KIPP ACADEMY LYNN | AD157: 0 | AE157: 0 | AF157: 0 | AG157: 0 | AH157: 0 | AI157: 2 | AJ157: 0 | AK157: 0 | AL157: 0 | AM157: 0 | AN157: 1 | AO157: 0 | AP157: 0 | AQ157: 0 | AR157: 0 | AS157: 2 | AU157: 163 | AV157: 57 | AW157: 12
A158: 429 | B158: 429163071 | C158: KIPP ACADEMY LYNN | D158: 0 | E158: 0 | F158: 0 | G158: 1 | H158: 0 | I158: 4 | J158: 0 | K158: 0.195 | M158: 0 | N158: 0 | O158: 0 | P158: 3 | Q158: 5 | R158: 5 | AA158: 429 | AB158: 429163071 | AC158: KIPP ACADEMY LYNN | AD158: 0 | AE158: 0 | AF158: 0 | AG158: 1 | AH158: 0 | AI158: 4 | AJ158: 0 | AK158: 0 | AL158: 0 | AM158: 0 | AN158: 0 | AO158: 1 | AP158: 0 | AQ158: 0 | AR158: 0 | AS158: 2 | AU158: 163 | AV158: 71 | AW158: 5
A159: 429 | B159: 429163079 | C159: KIPP ACADEMY LYNN | D159: 0 | E159: 0 | F159: 0 | G159: 0 | H159: 0 | I159: 2 | J159: 0 | K159: 0.078 | M159: 0 | N159: 0 | O159: 0 | P159: 0 | Q159: 8 | R159: 2 | AA159: 429 | AB159: 429163079 | AC159: KIPP ACADEMY LYNN | AD159: 0 | AE159: 0 | AF159: 0 | AG159: 0 | AH159: 0 | AI159: 2 | AJ159: 0 | AK159: 0 | AL159: 0 | AM159: 0 | AN159: 0 | AO159: 0 | AP159: 0 | AQ159: 0 | AR159: 0 | AS159: 0 | AU159: 163 | AV159: 79 | AW159: 8
A160: 429 | B160: 429163160 | C160: KIPP ACADEMY LYNN | D160: 0 | E160: 0 | F160: 0 | G160: 0 | H160: 0 | I160: 1 | J160: 0 | K160: 0.039 | M160: 0 | N160: 0 | O160: 0 | P160: 0 | Q160: 11 | R160: 1 | AA160: 429 | AB160: 429163160 | AC160: KIPP ACADEMY LYNN | AD160: 0 | AE160: 0 | AF160: 0 | AG160: 0 | AH160: 0 | AI160: 1 | AJ160: 0 | AK160: 0 | AL160: 0 | AM160: 0 | AN160: 0 | AO160: 0 | AP160: 0 | AQ160: 0 | AR160: 0 | AS160: 0 | AU160: 163 | AV160: 160 | AW160: 11
A161: 429 | B161: 429163163 | C161: KIPP ACADEMY LYNN | D161: 0 | E161: 0 | F161: 121 | G161: =ROUND(AG161,0) -> 599 | H161: 357 | I161: 461 | J161: 0 | K161: 59.982 | M161: 166 | N161: 31 | O161: 25 | P161: 1182 | Q161: 11 | R161: 1538 | AA161: 429 | AB161: 429163163 | AC161: KIPP ACADEMY LYNN | AD161: 0 | AE161: 0 | AF161: 121 | AG161: 599 | AH161: 357 | AI161: 461 | AJ161: 0 | AK161: 0 | AL161: 166 | AM161: 31 | AN161: 25 | AO161: 735 | AP161: 0 | AQ161: 0 | AR161: 98 | AS161: 349 | AU161: 163 | AV161: 163 | AW161: 11
A162: 429 | B162: 429163165 | C162: KIPP ACADEMY LYNN | D162: =ROUND(AD162,0) -> 0 | E162: 0 | F162: 0 | G162: 0 | H162: 1 | I162: 0 | J162: 0 | K162: 0.039 | M162: 0 | N162: 0 | O162: 0 | P162: 1 | Q162: 10 | R162: 1 | AA162: 429 | AB162: 429163165 | AC162: KIPP ACADEMY LYNN | AD162: 0 | AE162: 0 | AF162: 0 | AG162: 0 | AH162: 1 | AI162: 0 | AJ162: 0 | AK162: 0 | AL162: 0 | AM162: 0 | AN162: 0 | AO162: 1 | AP162: 0 | AQ162: 0 | AR162: 0 | AS162: 0 | AU162: 163 | AV162: 165 | AW162: 10
A163: 429 | B163: 429163168 | C163: KIPP ACADEMY LYNN | D163: 0 | E163: 0 | F163: 1 | G163: 1 | H163: 1 | I163: 0 | J163: 0 | K163: 0.117 | M163: 1 | N163: 0 | O163: 0 | P163: 3 | Q163: 3 | R163: 3 | AA163: 429 | AB163: 429163168 | AC163: KIPP ACADEMY LYNN | AD163: 0 | AE163: 0 | AF163: 1 | AG163: 1 | AH163: 1 | AI163: 0 | AJ163: 0 | AK163: 0 | AL163: 1 | AM163: 0 | AN163: 0 | AO163: 2 | AP163: 0 | AQ163: 0 | AR163: 1 | AS163: 0 | AU163: 163 | AV163: 168 | AW163: 3
A164: 429 | B164: 429163229 | C164: KIPP ACADEMY LYNN | D164: 0 | E164: 0 | F164: 0 | G164: 2 | H164: 3 | I164: 3 | J164: 0 | K164: 0.312 | M164: 0 | N164: 0 | O164: 0 | P164: 7 | Q164: 9 | R164: 8 | AA164: 429 | AB164: 429163229 | AC164: KIPP ACADEMY LYNN | AD164: 0 | AE164: 0 | AF164: 0 | AG164: 2 | AH164: 3 | AI164: 3 | AJ164: 0 | AK164: 0 | AL164: 0 | AM164: 0 | AN164: 0 | AO164: 5 | AP164: 0 | AQ164: 0 | AR164: 0 | AS164: 2 | AU164: 163 | AV164: 229 | AW164: 9
A165: 429 | B165: 429163246 | C165: KIPP ACADEMY LYNN | D165: 0 | E165: 0 | F165: 0 | G165: 0 | H165: 0 | I165: 1 | J165: 0 | K165: 0.039 | M165: 0 | N165: 0 | O165: 0 | P165: 0 | Q165: 3 | R165: 1 | AA165: 429 | AB165: 429163246 | AC165: KIPP ACADEMY LYNN | AD165: 0 | AE165: 0 | AF165: 0 | AG165: 0 | AH165: 0 | AI165: 1 | AJ165: 0 | AK165: 0 | AL165: 0 | AM165: 0 | AN165: 0 | AO165: 0 | AP165: 0 | AQ165: 0 | AR165: 0 | AS165: 0 | AU165: 163 | AV165: 246 | AW165: 3
A166: 429 | B166: 429163248 | C166: KIPP ACADEMY LYNN | D166: 0 | E166: 0 | F166: 0 | G166: 1 | H166: 1 | I166: 0 | J166: 0 | K166: 0.078 | M166: 0 | N166: 0 | O166: 0 | P166: 2 | Q166: 11 | R166: 2 | AA166: 429 | AB166: 429163248 | AC166: KIPP ACADEMY LYNN | AD166: 0 | AE166: 0 | AF166: 0 | AG166: 1 | AH166: 1 | AI166: 0 | AJ166: 0 | AK166: 0 | AL166: 0 | AM166: 0 | AN166: 0 | AO166: 2 | AP166: 0 | AQ166: 0 | AR166: 0 | AS166: 0 | AU166: 163 | AV166: 248 | AW166: 11
A167: 429 | B167: 429163258 | C167: KIPP ACADEMY LYNN | D167: 0 | E167: 0 | F167: 1 | G167: 16 | H167: 4 | I167: 5 | J167: 0 | K167: 1.014 | M167: 2 | N167: 0 | O167: 0 | P167: 21 | Q167: 10 | R167: 26 | AA167: 429 | AB167: 429163258 | AC167: KIPP ACADEMY LYNN | AD167: 0 | AE167: 0 | AF167: 1 | AG167: 16 | AH167: 4 | AI167: 5 | AJ167: 0 | AK167: 0 | AL167: 2 | AM167: 0 | AN167: 0 | AO167: 17 | AP167: 0 | AQ167: 0 | AR167: 1 | AS167: 3 | AU167: 163 | AV167: 258 | AW167: 10
A168: 429 | B168: 429163262 | C168: KIPP ACADEMY LYNN | D168: 0 | E168: 0 | F168: 2 | G168: 2 | H168: 1 | I168: 4 | J168: 0 | K168: 0.351 | M168: 1 | N168: 0 | O168: 0 | P168: 9 | Q168: 9 | R168: 9 | AA168: 429 | AB168: 429163262 | AC168: KIPP ACADEMY LYNN | AD168: 0 | AE168: 0 | AF168: 2 | AG168: 2 | AH168: 1 | AI168: 4 | AJ168: 0 | AK168: 0 | AL168: 1 | AM168: 0 | AN168: 0 | AO168: 3 | AP168: 0 | AQ168: 0 | AR168: 2 | AS168: 4 | AU168: 163 | AV168: 262 | AW168: 9
A169: 429 | B169: 429163291 | C169: KIPP ACADEMY LYNN | D169: 0 | E169: 0 | F169: 0 | G169: 2 | H169: 3 | I169: 2 | J169: 0 | K169: 0.273 | M169: 1 | N169: 0 | O169: 0 | P169: 7 | Q169: 5 | R169: 7 | AA169: 429 | AB169: 429163291 | AC169: KIPP ACADEMY LYNN | AD169: 0 | AE169: 0 | AF169: 0 | AG169: 2 | AH169: 3 | AI169: 2 | AJ169: 0 | AK169: 0 | AL169: 1 | AM169: 0 | AN169: 0 | AO169: 5 | AP169: 0 | AQ169: 0 | AR169: 0 | AS169: 2 | AU169: 163 | AV169: 291 | AW169: 5
A170: 430 | B170: 430170025 | C170: ADVANCED MATH AND SCIENCE ACADEMY | D170: 0 | E170: 0 | F170: 0 | G170: 0 | H170: 1 | I170: 1 | J170: 0 | K170: 0.078 | M170: 0 | N170: 0 | O170: 0 | P170: 0 | Q170: 7 | R170: 2 | AA170: 430 | AB170: 430170025 | AC170: ADVANCED MATH AND SCIENCE ACADEMY | AD170: 0 | AE170: 0 | AF170: 0 | AG170: 0 | AH170: 1 | AI170: 1 | AJ170: 0 | AK170: 0 | AL170: 0 | AM170: 0 | AN170: 0 | AO170: 0 | AP170: 0 | AQ170: 0 | AR170: 0 | AS170: 0 | AU170: 170 | AV170: 25 | AW170: 7
A171: 430 | B171: 430170064 | C171: ADVANCED MATH AND SCIENCE ACADEMY | D171: 0 | E171: 0 | F171: 0 | G171: 0 | H171: 35 | I171: 43 | J171: 0 | K171: 3.042 | M171: 0 | N171: 0 | O171: 0 | P171: 20 | Q171: 10 | R171: 78 | AA171: 430 | AB171: 430170064 | AC171: ADVANCED MATH AND SCIENCE ACADEMY | AD171: 0 | AE171: 0 | AF171: 0 | AG171: 0 | AH171: 35 | AI171: 43 | AJ171: 0 | AK171: 0 | AL171: 0 | AM171: 0 | AN171: 0 | AO171: 8 | AP171: 0 | AQ171: 0 | AR171: 0 | AS171: 12 | AU171: 170 | AV171: 64 | AW171: 10
A172: 430 | B172: 430170097 | C172: ADVANCED MATH AND SCIENCE ACADEMY | D172: 0 | E172: 0 | F172: 0 | G172: 0 | H172: 0 | I172: 1 | J172: 0 | K172: 0.039 | M172: 0 | N172: 0 | O172: 0 | P172: 1 | Q172: 11 | R172: 1 | AA172: 430 | AB172: 430170097 | AC172: ADVANCED MATH AND SCIENCE ACADEMY | AD172: 0 | AE172: 0 | AF172: 0 | AG172: 0 | AH172: 0 | AI172: 1 | AJ172: 0 | AK172: 0 | AL172: 0 | AM172: 0 | AN172: 0 | AO172: 0 | AP172: 0 | AQ172: 0 | AR172: 0 | AS172: 1 | AU172: 170 | AV172: 97 | AW172: 11
A173: 430 | B173: 430170100 | C173: ADVANCED MATH AND SCIENCE ACADEMY | D173: 0 | E173: 0 | F173: 0 | G173: 0 | H173: 2 | I173: 8 | J173: 0 | K173: 0.39 | M173: 0 | N173: 0 | O173: 0 | P173: 0 | Q173: 10 | R173: 10 | AA173: 430 | AB173: 430170100 | AC173: ADVANCED MATH AND SCIENCE ACADEMY | AD173: 0 | AE173: 0 | AF173: 0 | AG173: 0 | AH173: 2 | AI173: 8 | AJ173: 0 | AK173: 0 | AL173: 0 | AM173: 0 | AN173: 0 | AO173: 0 | AP173: 0 | AQ173: 0 | AR173: 0 | AS173: 0 | AU173: 170 | AV173: 100 | AW173: 10
A174: 430 | B174: 430170101 | C174: ADVANCED MATH AND SCIENCE ACADEMY | D174: 0 | E174: 0 | F174: 0 | G174: 0 | H174: 2 | I174: 1 | J174: 0 | K174: 0.117 | M174: 0 | N174: 0 | O174: 0 | P174: 0 | Q174: 3 | R174: 3 | AA174: 430 | AB174: 430170101 | AC174: ADVANCED MATH AND SCIENCE ACADEMY | AD174: 0 | AE174: 0 | AF174: 0 | AG174: 0 | AH174: 2 | AI174: 1 | AJ174: 0 | AK174: 0 | AL174: 0 | AM174: 0 | AN174: 0 | AO174: 0 | AP174: 0 | AQ174: 0 | AR174: 0 | AS174: 0 | AU174: 170 | AV174: 101 | AW174: 3
A175: 430 | B175: 430170110 | C175: ADVANCED MATH AND SCIENCE ACADEMY | D175: 0 | E175: 0 | F175: 0 | G175: 0 | H175: 2 | I175: 7 | J175: 0 | K175: 0.351 | M175: 0 | N175: 0 | O175: 0 | P175: 1 | Q175: 4 | R175: 9 | AA175: 430 | AB175: 430170110 | AC175: ADVANCED MATH AND SCIENCE ACADEMY | AD175: 0 | AE175: 0 | AF175: 0 | AG175: 0 | AH175: 2 | AI175: 7 | AJ175: 0 | AK175: 0 | AL175: 0 | AM175: 0 | AN175: 0 | AO175: 0 | AP175: 0 | AQ175: 0 | AR175: 0 | AS175: 1 | AU175: 170 | AV175: 110 | AW175: 4
A176: 430 | B176: 430170136 | C176: ADVANCED MATH AND SCIENCE ACADEMY | D176: 0 | E176: 0 | F176: 0 | G176: 0 | H176: 1 | I176: 1 | J176: 0 | K176: 0.078 | M176: 0 | N176: 0 | O176: 0 | P176: 0 | Q176: 3 | R176: 2 | AA176: 430 | AB176: 430170136 | AC176: ADVANCED MATH AND SCIENCE ACADEMY | AD176: 0 | AE176: 0 | AF176: 0 | AG176: 0 | AH176: 1 | AI176: 1 | AJ176: 0 | AK176: 0 | AL176: 0 | AM176: 0 | AN176: 0 | AO176: 0 | AP176: 0 | AQ176: 0 | AR176: 0 | AS176: 0 | AU176: 170 | AV176: 136 | AW176: 3
A177: 430 | B177: 430170139 | C177: ADVANCED MATH AND SCIENCE ACADEMY | D177: 0 | E177: 0 | F177: 0 | G177: 0 | H177: 0 | I177: 3 | J177: 0 | K177: 0.117 | M177: 0 | N177: 0 | O177: 0 | P177: 0 | Q177: 2 | R177: 3 | AA177: 430 | AB177: 430170139 | AC177: ADVANCED MATH AND SCIENCE ACADEMY | AD177: 0 | AE177: 0 | AF177: 0 | AG177: 0 | AH177: 0 | AI177: 3 | AJ177: 0 | AK177: 0 | AL177: 0 | AM177: 0 | AN177: 0 | AO177: 0 | AP177: 0 | AQ177: 0 | AR177: 0 | AS177: 0 | AU177: 170 | AV177: 139 | AW177: 2
A178: 430 | B178: 430170141 | C178: ADVANCED MATH AND SCIENCE ACADEMY | D178: 0 | E178: 0 | F178: 0 | G178: 0 | H178: 99 | I178: 97 | J178: 0 | K178: 7.644 | M178: 0 | N178: 2 | O178: 0 | P178: 29 | Q178: 7 | R178: 196 | AA178: 430 | AB178: 430170141 | AC178: ADVANCED MATH AND SCIENCE ACADEMY | AD178: 0 | AE178: 0 | AF178: 0 | AG178: 0 | AH178: 99 | AI178: 97 | AJ178: 0 | AK178: 0 | AL178: 0 | AM178: 2 | AN178: 0 | AO178: 10 | AP178: 0 | AQ178: 0 | AR178: 0 | AS178: 19 | AU178: 170 | AV178: 141 | AW178: 7
A179: 430 | B179: 430170153 | C179: ADVANCED MATH AND SCIENCE ACADEMY | D179: 0 | E179: 0 | F179: 0 | G179: 0 | H179: 2 | I179: 1 | J179: 0 | K179: 0.117 | M179: 0 | N179: 0 | O179: 0 | P179: 2 | Q179: 10 | R179: 3 | AA179: 430 | AB179: 430170153 | AC179: ADVANCED MATH AND SCIENCE ACADEMY | AD179: 0 | AE179: 0 | AF179: 0 | AG179: 0 | AH179: 2 | AI179: 1 | AJ179: 0 | AK179: 0 | AL179: 0 | AM179: 0 | AN179: 0 | AO179: 1 | AP179: 0 | AQ179: 0 | AR179: 0 | AS179: 1 | AU179: 170 | AV179: 153 | AW179: 10
A180: 430 | B180: 430170158 | C180: ADVANCED MATH AND SCIENCE ACADEMY | D180: 0 | E180: 0 | F180: 0 | G180: 0 | H180: 0 | I180: 1 | J180: 0 | K180: 0.039 | M180: 0 | N180: 0 | O180: 0 | P180: 0 | Q180: 3 | R180: 1 | AA180: 430 | AB180: 430170158 | AC180: ADVANCED MATH AND SCIENCE ACADEMY | AD180: 0 | AE180: 0 | AF180: 0 | AG180: 0 | AH180: 0 | AI180: 1 | AJ180: 0 | AK180: 0 | AL180: 0 | AM180: 0 | AN180: 0 | AO180: 0 | AP180: 0 | AQ180: 0 | AR180: 0 | AS180: 0 | AU180: 170 | AV180: 158 | AW180: 3
A181: 430 | B181: 430170162 | C181: ADVANCED MATH AND SCIENCE ACADEMY | D181: 0 | E181: 0 | F181: 0 | G181: 0 | H181: 0 | I181: 1 | J181: 0 | K181: 0.039 | M181: 0 | N181: 0 | O181: 0 | P181: 0 | Q181: 5 | R181: 1 | AA181: 430 | AB181: 430170162 | AC181: ADVANCED MATH AND SCIENCE ACADEMY | AD181: 0 | AE181: 0 | AF181: 0 | AG181: 0 | AH181: 0 | AI181: 1 | AJ181: 0 | AK181: 0 | AL181: 0 | AM181: 0 | AN181: 0 | AO181: 0 | AP181: 0 | AQ181: 0 | AR181: 0 | AS181: 0 | AU181: 170 | AV181: 162 | AW181: 5
A182: 430 | B182: 430170170 | C182: ADVANCED MATH AND SCIENCE ACADEMY | D182: 0 | E182: 0 | F182: 0 | G182: 0 | H182: 218 | I182: 299 | J182: 0 | K182: 20.163 | M182: 0 | N182: 8 | O182: 4 | P182: 126 | Q182: 10 | R182: 517 | AA182: 430 | AB182: 430170170 | AC182: ADVANCED MATH AND SCIENCE ACADEMY | AD182: 0 | AE182: 0 | AF182: 0 | AG182: 0 | AH182: 218 | AI182: 299 | AJ182: 0 | AK182: 0 | AL182: 0 | AM182: 8 | AN182: 4 | AO182: 68 | AP182: 0 | AQ182: 0 | AR182: 0 | AS182: 58 | AU182: 170 | AV182: 170 | AW182: 10
A183: 430 | B183: 430170174 | C183: ADVANCED MATH AND SCIENCE ACADEMY | D183: 0 | E183: 0 | F183: 0 | G183: 0 | H183: 32 | I183: 27 | J183: 0 | K183: 2.301 | M183: 0 | N183: 0 | O183: 0 | P183: 2 | Q183: 6 | R183: 59 | AA183: 430 | AB183: 430170174 | AC183: ADVANCED MATH AND SCIENCE ACADEMY | AD183: 0 | AE183: 0 | AF183: 0 | AG183: 0 | AH183: 32 | AI183: 27 | AJ183: 0 | AK183: 0 | AL183: 0 | AM183: 0 | AN183: 0 | AO183: 1 | AP183: 0 | AQ183: 0 | AR183: 0 | AS183: 1 | AU183: 170 | AV183: 174 | AW183: 6
A184: 430 | B184: 430170198 | C184: ADVANCED MATH AND SCIENCE ACADEMY | D184: 0 | E184: 0 | F184: 0 | G184: 0 | H184: 2 | I184: 1 | J184: 0 | K184: 0.117 | M184: 0 | N184: 0 | O184: 0 | P184: 0 | Q184: 3 | R184: 3 | AA184: 430 | AB184: 430170198 | AC184: ADVANCED MATH AND SCIENCE ACADEMY | AD184: 0 | AE184: 0 | AF184: 0 | AG184: 0 | AH184: 2 | AI184: 1 | AJ184: 0 | AK184: 0 | AL184: 0 | AM184: 0 | AN184: 0 | AO184: 0 | AP184: 0 | AQ184: 0 | AR184: 0 | AS184: 0 | AU184: 170 | AV184: 198 | AW184: 3
A185: 430 | B185: 430170213 | C185: ADVANCED MATH AND SCIENCE ACADEMY | D185: 0 | E185: 0 | F185: 0 | G185: 0 | H185: 3 | I185: 0 | J185: 0 | K185: 0.117 | M185: 0 | N185: 0 | O185: 0 | P185: 0 | Q185: 4 | R185: 3 | AA185: 430 | AB185: 430170213 | AC185: ADVANCED MATH AND SCIENCE ACADEMY | AD185: 0 | AE185: 0 | AF185: 0 | AG185: 0 | AH185: 3 | AI185: 0 | AJ185: 0 | AK185: 0 | AL185: 0 | AM185: 0 | AN185: 0 | AO185: 0 | AP185: 0 | AQ185: 0 | AR185: 0 | AS185: 0 | AU185: 170 | AV185: 213 | AW185: 4
A186: 430 | B186: 430170271 | C186: ADVANCED MATH AND SCIENCE ACADEMY | D186: 0 | E186: 0 | F186: 0 | G186: 0 | H186: 9 | I186: 7 | J186: 0 | K186: 0.624 | M186: 0 | N186: 0 | O186: 0 | P186: 0 | Q186: 4 | R186: 16 | AA186: 430 | AB186: 430170271 | AC186: ADVANCED MATH AND SCIENCE ACADEMY | AD186: 0 | AE186: 0 | AF186: 0 | AG186: 0 | AH186: 9 | AI186: 7 | AJ186: 0 | AK186: 0 | AL186: 0 | AM186: 0 | AN186: 0 | AO186: 0 | AP186: 0 | AQ186: 0 | AR186: 0 | AS186: 0 | AU186: 170 | AV186: 271 | AW186: 4
A187: 430 | B187: 430170314 | C187: ADVANCED MATH AND SCIENCE ACADEMY | D187: 0 | E187: 0 | F187: 0 | G187: 0 | H187: 2 | I187: 0 | J187: 0 | K187: 0.078 | M187: 0 | N187: 0 | O187: 0 | P187: 0 | Q187: 7 | R187: 2 | AA187: 430 | AB187: 430170314 | AC187: ADVANCED MATH AND SCIENCE ACADEMY | AD187: 0 | AE187: 0 | AF187: 0 | AG187: 0 | AH187: 2 | AI187: 0 | AJ187: 0 | AK187: 0 | AL187: 0 | AM187: 0 | AN187: 0 | AO187: 0 | AP187: 0 | AQ187: 0 | AR187: 0 | AS187: 0 | AU187: 170 | AV187: 314 | AW187: 7
A188: 430 | B188: 430170321 | C188: ADVANCED MATH AND SCIENCE ACADEMY | D188: 0 | E188: 0 | F188: 0 | G188: 0 | H188: 1 | I188: 4 | J188: 0 | K188: 0.195 | M188: 0 | N188: 0 | O188: 0 | P188: 3 | Q188: 4 | R188: 5 | AA188: 430 | AB188: 430170321 | AC188: ADVANCED MATH AND SCIENCE ACADEMY | AD188: 0 | AE188: 0 | AF188: 0 | AG188: 0 | AH188: 1 | AI188: 4 | AJ188: 0 | AK188: 0 | AL188: 0 | AM188: 0 | AN188: 0 | AO188: 0 | AP188: 0 | AQ188: 0 | AR188: 0 | AS188: 3 | AU188: 170 | AV188: 321 | AW188: 4
A189: 430 | B189: 430170348 | C189: ADVANCED MATH AND SCIENCE ACADEMY | D189: 0 | E189: 0 | F189: 0 | G189: 0 | H189: 0 | I189: 6 | J189: 0 | K189: 0.234 | M189: 0 | N189: 0 | O189: 0 | P189: 2 | Q189: 11 | R189: 6 | AA189: 430 | AB189: 430170348 | AC189: ADVANCED MATH AND SCIENCE ACADEMY | AD189: 0 | AE189: 0 | AF189: 0 | AG189: 0 | AH189: 0 | AI189: 6 | AJ189: 0 | AK189: 0 | AL189: 0 | AM189: 0 | AN189: 0 | AO189: 0 | AP189: 0 | AQ189: 0 | AR189: 0 | AS189: 2 | AU189: 170 | AV189: 348 | AW189: 11
A190: 430 | B190: 430170600 | C190: ADVANCED MATH AND SCIENCE ACADEMY | D190: 0 | E190: 0 | F190: 0 | G190: 0 | H190: 1 | I190: 0 | J190: 0 | K190: 0.039 | M190: 0 | N190: 0 | O190: 0 | P190: 1 | Q190: 3 | R190: 1 | AA190: 430 | AB190: 430170600 | AC190: ADVANCED MATH AND SCIENCE ACADEMY | AD190: 0 | AE190: 0 | AF190: 0 | AG190: 0 | AH190: 1 | AI190: 0 | AJ190: 0 | AK190: 0 | AL190: 0 | AM190: 0 | AN190: 0 | AO190: 1 | AP190: 0 | AQ190: 0 | AR190: 0 | AS190: 0 | AU190: 170 | AV190: 600 | AW190: 3
A191: 430 | B191: 430170616 | C191: ADVANCED MATH AND SCIENCE ACADEMY | D191: 0 | E191: 0 | F191: 0 | G191: 0 | H191: 0 | I191: 1 | J191: 0 | K191: 0.039 | M191: 0 | N191: 0 | O191: 0 | P191: 0 | Q191: 7 | R191: 1 | AA191: 430 | AB191: 430170616 | AC191: ADVANCED MATH AND SCIENCE ACADEMY | AD191: 0 | AE191: 0 | AF191: 0 | AG191: 0 | AH191: 0 | AI191: 1 | AJ191: 0 | AK191: 0 | AL191: 0 | AM191: 0 | AN191: 0 | AO191: 0 | AP191: 0 | AQ191: 0 | AR191: 0 | AS191: 0 | AU191: 170 | AV191: 616 | AW191: 7
A192: 430 | B192: 430170620 | C192: ADVANCED MATH AND SCIENCE ACADEMY | D192: 0 | E192: 0 | F192: 0 | G192: 0 | H192: 1 | I192: 8 | J192: 0 | K192: 0.351 | M192: 0 | N192: 0 | O192: 0 | P192: 3 | Q192: 4 | R192: 9 | AA192: 430 | AB192: 430170620 | AC192: ADVANCED MATH AND SCIENCE ACADEMY | AD192: 0 | AE192: 0 | AF192: 0 | AG192: 0 | AH192: 1 | AI192: 8 | AJ192: 0 | AK192: 0 | AL192: 0 | AM192: 0 | AN192: 0 | AO192: 0 | AP192: 0 | AQ192: 0 | AR192: 0 | AS192: 3 | AU192: 170 | AV192: 620 | AW192: 4
A193: 430 | B193: 430170673 | C193: ADVANCED MATH AND SCIENCE ACADEMY | D193: 0 | E193: 0 | F193: 0 | G193: 0 | H193: 0 | I193: 1 | J193: 0 | K193: 0.039 | M193: 0 | N193: 0 | O193: 0 | P193: 0 | Q193: 2 | R193: 1 | AA193: 430 | AB193: 430170673 | AC193: ADVANCED MATH AND SCIENCE ACADEMY | AD193: 0 | AE193: 0 | AF193: 0 | AG193: 0 | AH193: 0 | AI193: 1 | AJ193: 0 | AK193: 0 | AL193: 0 | AM193: 0 | AN193: 0 | AO193: 0 | AP193: 0 | AQ193: 0 | AR193: 0 | AS193: 0 | AU193: 170 | AV193: 673 | AW193: 2
A194: 430 | B194: 430170690 | C194: ADVANCED MATH AND SCIENCE ACADEMY | D194: 0 | E194: 0 | F194: 0 | G194: 0 | H194: 1 | I194: 1 | J194: 0 | K194: 0.078 | M194: 0 | N194: 0 | O194: 0 | P194: 0 | Q194: 4 | R194: 2 | AA194: 430 | AB194: 430170690 | AC194: ADVANCED MATH AND SCIENCE ACADEMY | AD194: 0 | AE194: 0 | AF194: 0 | AG194: 0 | AH194: 1 | AI194: 1 | AJ194: 0 | AK194: 0 | AL194: 0 | AM194: 0 | AN194: 0 | AO194: 0 | AP194: 0 | AQ194: 0 | AR194: 0 | AS194: 0 | AU194: 170 | AV194: 690 | AW194: 4
A195: 430 | B195: 430170695 | C195: ADVANCED MATH AND SCIENCE ACADEMY | D195: 0 | E195: 0 | F195: 0 | G195: 0 | H195: 0 | I195: 1 | J195: 0 | K195: 0.039 | M195: 0 | N195: 0 | O195: 0 | P195: 0 | Q195: 2 | R195: 1 | AA195: 430 | AB195: 430170695 | AC195: ADVANCED MATH AND SCIENCE ACADEMY | AD195: 0 | AE195: 0 | AF195: 0 | AG195: 0 | AH195: 0 | AI195: 1 | AJ195: 0 | AK195: 0 | AL195: 0 | AM195: 0 | AN195: 0 | AO195: 0 | AP195: 0 | AQ195: 0 | AR195: 0 | AS195: 0 | AU195: 170 | AV195: 695 | AW195: 2
A196: 430 | B196: 430170710 | C196: ADVANCED MATH AND SCIENCE ACADEMY | D196: 0 | E196: 0 | F196: 0 | G196: 0 | H196: 1 | I196: 3 | J196: 0 | K196: 0.156 | M196: 0 | N196: 0 | O196: 0 | P196: 0 | Q196: 3 | R196: 4 | AA196: 430 | AB196: 430170710 | AC196: ADVANCED MATH AND SCIENCE ACADEMY | AD196: 0 | AE196: 0 | AF196: 0 | AG196: 0 | AH196: 1 | AI196: 3 | AJ196: 0 | AK196: 0 | AL196: 0 | AM196: 0 | AN196: 0 | AO196: 0 | AP196: 0 | AQ196: 0 | AR196: 0 | AS196: 0 | AU196: 170 | AV196: 710 | AW196: 3
A197: 430 | B197: 430170725 | C197: ADVANCED MATH AND SCIENCE ACADEMY | D197: 0 | E197: 0 | F197: 0 | G197: 0 | H197: 6 | I197: 9 | J197: 0 | K197: 0.585 | M197: 0 | N197: 0 | O197: 0 | P197: 1 | Q197: 3 | R197: 15 | AA197: 430 | AB197: 430170725 | AC197: ADVANCED MATH AND SCIENCE ACADEMY | AD197: 0 | AE197: 0 | AF197: 0 | AG197: 0 | AH197: 6 | AI197: 9 | AJ197: 0 | AK197: 0 | AL197: 0 | AM197: 0 | AN197: 0 | AO197: 0 | AP197: 0 | AQ197: 0 | AR197: 0 | AS197: 1 | AU197: 170 | AV197: 725 | AW197: 3
A198: 430 | B198: 430170730 | C198: ADVANCED MATH AND SCIENCE ACADEMY | D198: 0 | E198: 0 | F198: 0 | G198: 0 | H198: 0 | I198: 7 | J198: 0 | K198: 0.273 | M198: 0 | N198: 0 | O198: 0 | P198: 0 | Q198: 3 | R198: 7 | AA198: 430 | AB198: 430170730 | AC198: ADVANCED MATH AND SCIENCE ACADEMY | AD198: 0 | AE198: 0 | AF198: 0 | AG198: 0 | AH198: 0 | AI198: 7 | AJ198: 0 | AK198: 0 | AL198: 0 | AM198: 0 | AN198: 0 | AO198: 0 | AP198: 0 | AQ198: 0 | AR198: 0 | AS198: 0 | AU198: 170 | AV198: 730 | AW198: 3
A199: 430 | B199: 430170735 | C199: ADVANCED MATH AND SCIENCE ACADEMY | D199: 0 | E199: 0 | F199: 0 | G199: 0 | H199: 1 | I199: 1 | J199: 0 | K199: 0.078 | M199: 0 | N199: 0 | O199: 0 | P199: 0 | Q199: 6 | R199: 2 | AA199: 430 | AB199: 430170735 | AC199: ADVANCED MATH AND SCIENCE ACADEMY | AD199: 0 | AE199: 0 | AF199: 0 | AG199: 0 | AH199: 1 | AI199: 1 | AJ199: 0 | AK199: 0 | AL199: 0 | AM199: 0 | AN199: 0 | AO199: 0 | AP199: 0 | AQ199: 0 | AR199: 0 | AS199: 0 | AU199: 170 | AV199: 735 | AW199: 6
A200: 430 | B200: 430170775 | C200: ADVANCED MATH AND SCIENCE ACADEMY | D200: 0 | E200: 0 | F200: 0 | G200: 0 | H200: 2 | I200: 1 | J200: 0 | K200: 0.117 | M200: 0 | N200: 0 | O200: 0 | P200: 1 | Q200: 4 | R200: 3 | AA200: 430 | AB200: 430170775 | AC200: ADVANCED MATH AND SCIENCE ACADEMY | AD200: 0 | AE200: 0 | AF200: 0 | AG200: 0 | AH200: 2 | AI200: 1 | AJ200: 0 | AK200: 0 | AL200: 0 | AM200: 0 | AN200: 0 | AO200: 0 | AP200: 0 | AQ200: 0 | AR200: 0 | AS200: 1 | AU200: 170 | AV200: 775 | AW200: 4
A201: 432 | B201: 432712020 | C201: CAPE COD LIGHTHOUSE | D201: 0 | E201: 0 | F201: 0 | G201: 0 | H201: 86 | I201: 0 | J201: 0 | K201: 3.354 | M201: 0 | N201: 0 | O201: 0 | P201: 16 | Q201: 10 | R201: 86 | AA201: 432 | AB201: 432712020 | AC201: CAPE COD LIGHTHOUSE | AD201: 0 | AE201: 0 | AF201: 0 | AG201: 0 | AH201: 86 | AI201: 0 | AJ201: 0 | AK201: 0 | AL201: 0 | AM201: 0 | AN201: 0 | AO201: 16 | AP201: 0 | AQ201: 0 | AR201: 0 | AS201: 0 | AU201: 712 | AV201: 20 | AW201: 10
A202: 432 | B202: 432712172 | C202: CAPE COD LIGHTHOUSE | D202: 0 | E202: 0 | F202: 0 | G202: 0 | H202: 2 | I202: 0 | J202: 0 | K202: 0.078 | M202: 0 | N202: 0 | O202: 0 | P202: 0 | Q202: 8 | R202: 2 | AA202: 432 | AB202: 432712172 | AC202: CAPE COD LIGHTHOUSE | AD202: 0 | AE202: 0 | AF202: 0 | AG202: 0 | AH202: 2 | AI202: 0 | AJ202: 0 | AK202: 0 | AL202: 0 | AM202: 0 | AN202: 0 | AO202: 0 | AP202: 0 | AQ202: 0 | AR202: 0 | AS202: 0 | AU202: 712 | AV202: 172 | AW202: 8
A203: 432 | B203: 432712261 | C203: CAPE COD LIGHTHOUSE | D203: 0 | E203: 0 | F203: 0 | G203: 0 | H203: 19 | I203: =ROUND(AI203,0)-J203 -> 0 | J203: 0 | K203: =ROUND(0.039*(SUM(AF203:AI203)+(AE203*0.5))+0.049*AJ203,4) -> 0.741 | M203: =ROUND(AL203+(AK203*0.5),0) -> 0 | N203: =ROUND(AM203,0) -> 0 | O203: 0 | P203: =ROUND(((AP203+AQ203)*0.5)+AO203+AR203+AS203,0) -> 3 | Q203: =AW203 -> 5 | R203: =SUM(F203:I203)+ROUND(D203*0.5,0)+ROUND(J203,0) -> 19 | AA203: 432 | AB203: 432712261 | AC203: CAPE COD LIGHTHOUSE | AD203: 0 | AE203: 0 | AF203: 0 | AG203: 0 | AH203: 19 | AI203: 0 | AJ203: 0 | AK203: 0 | AL203: 0 | AM203: 0 | AN203: 0 | AO203: 3 | AP203: 0 | AQ203: 0 | AR203: 0 | AS203: 0 | AU203: 712 | AV203: 261 | AW203: 5
A204: 432 | B204: 432712300 | C204: CAPE COD LIGHTHOUSE | D204: 0 | E204: 0 | F204: 0 | G204: 0 | H204: 1 | I204: 0 | J204: 0 | K204: 0.039 | M204: 0 | N204: 0 | O204: 0 | P204: 1 | Q204: 10 | R204: 1 | AA204: 432 | AB204: 432712300 | AC204: CAPE COD LIGHTHOUSE | AD204: 0 | AE204: 0 | AF204: 0 | AG204: 0 | AH204: 1 | AI204: 0 | AJ204: 0 | AK204: 0 | AL204: 0 | AM204: 0 | AN204: 0 | AO204: 1 | AP204: 0 | AQ204: 0 | AR204: 0 | AS204: 0 | AU204: 712 | AV204: 300 | AW204: 10
... 867 more rows

Sheet fnd enro explain (hidden)
A1: Massachusetts Department of Elementary and Secondary Education
A2: Office of District and School Finance
A3: FY24 FOUNDATION ENROLLMENT | M3: 2023-03-28
A5: Foundation enrollment is the total headcount of pupils in grades PK - 12. Pupils are further divided into program
A6: groups: pre-kindergarten; half-time kindergarten; full-time kindergarten; elementary, grades 1 to 5; middle school, grades 6
A7: through 8; or high school, grades 9 through 12 under the Regular Education section, but reported in bulk for
A8: Vocational programs. Voke enrollment was first incorporated in FY23.
A10: Foundation enrollment considers PK and K2 to be half day programs. The PK and K2 rates are essentially half the cost
A11: of KF. The headcount is divided by two, rounded to the nearest whole number, then folded into the total enrollment.
A12: PK enrollment is not included in the special education FTE increment.
A14: The halftime PK also effects Ecodis and ELL. Where full enrollment is shown under the regular ed PK column, the
A15: same enrollment is presented as halved. So, total enrollment, ELL, and Ecodis all show PK/K2 enrollment as
A16: halved.
A18: Foundation enrollment does not use actual special education enrollment. The spec ed increment is
A19: determined by formula. Special education is added at 3.9% of each foundation enrollment, up from 3.83% in
A20: FY23. PK enrollmentis excluded. District foundation budgets round the increment's FTE to a whole number.
A21: Charter foundation budets round to the 4th decimal point, in order to capture special education tuition in rates
A22: with only one (1) pupil.
A24: Traditionally, Commonwealth charter schools have not reported vocational enrollment. This column was always left
A25: blank, set to 0. Effective with the signed budget FY23 projections, voke enrollment is included.
A28: Historic Transitions
A29: In FY23 the first vocational pupils, reported at a Commonwealth charter school, were included in the
A30: foundation base rates for Methuen and Lawrence at 3518 Phoenix Academy.
A32: FY20 projections incorporate a revision to the recent English Language Learner remodel. The seven (7) categories used
A33: in FY19 have been pared down to three, with vocational ELL funding removed altogether.
A35: FY19 marks the first year ELL is transitioned from being based on standalone rates, to the increment side of the formula.
A36: A different rate is presented for each regular ed & chapter 74 voke cohort.
A38: FY17 marks the first transition year for using EcoDis in place of SIMS low income reporting. In FY16 six (6) charter schools
A39: did not use SIMS to report their their low income enrollment. For these districts, prior year low income
A40: percentages were used to project their low income foundation enrollment. The October SIMS was used for the remaining
A41: schools. In FY18 to the present all rates are set using EcoDis. ECODIS low income is sourced from the
A42: Department of Health and Human Services. Low income status is given to pupils enrolled in one or more
A43: public assistence program, specifically SNAP, TANF, Medicaid, and DCF foster care. DESE matches those
A44: direct certified with each SIMS collection, October, March, and June. Foundation Enrollment low income status is
A45: given to a pupil if they counted as low income in as little as one of the last four collections, current October,
A46: June, March, and prior year October.
A48: FY15 marks the first year all PK enrollment was included. In prior years PK enrollment included only SPED and
A49: role model enrollment, which was set at 2 times the PK headcount.

Sheet pre fnd budg (hidden)
A1: a | B1: 1 | C1: 2 | D1: 3 | E1: 4 | F1: 5 | G1: 6 | H1: 7 | I1: 8 | J1: 9 | K1: 10 | L1: 11 | M1: 12 | N1: 13 | O1: 14 | P1: 15 | Q1: 16 | R1: 17 | S1: 18 | T1: 19 | U1: 20 | V1: 21 | W1: 22 | X1: 23 | Y1: 24 | Z1: 25 | AA1: 26 | AB1: 27 | AC1: 28 | AD1: 29 | AE1: 30 | AF1: 31 | AG1: 32 | AH1: 33 | AI1: 34 | AJ1: 35 | AK1: 36 | AL1: 37 | AM1: 38 | AN1: 39 | AO1: 40 | AP1: 41 | AQ1: 42 | AR1: 43
B3: Insert chalocsend & school name from the FND ENRO sheet | U3: w | V3: w | W3: w | X3: w | Y3: w | Z3: nw | AA3: w | AB3: w | AC3: w | AD3: nw | AE3: nw
K4: =SUM(K10:K1091) -> 1756.317 | O4: =SUM(M10:O1091) -> 5897 | P4: =SUM(P10:P1091) -> 29375
Z5: Instruction- | AA5: Guid- | AC5: Opera- | AD5: Employee
K6: Assumed | L6: Assumed | Q6: Total | S6: Low | W6: Classroom | X6: Other | Y6: Profess- | Z6: al Materials, | AA6: ance & | AC6: tions & | AD6: Benefits | AF6: Found- | AL6: wage | AM6: =SUM(AM10:AM1000885) -> 45344
H7: Junior | I7: High | K7: Special Ed | L7: Special Ed | M7: EL | N7: EL | O7: EL | P7: Ecodis | Q7: Found | R7: WAF | S7: Inc | U7: Admini- | V7: Instructional | W7: & Specialist | X7: Teaching | Y7: s | Z7: Equipment & | AA7: Psycho- | AB7: Pupil | AC7: Maint- | AD7: & Fixed | AE7: Sped | AF7: ation | AI7: Cha | AJ7: Loc | AK7: Sending | AL7: fct check
A8: chalea | B8: chalocsend | C8: Charter | D8: PK | E8: KP | F8: KF | G8: Elem | H8: Middle | I8: School | J8: voke | K8: In School | L8: Tuitioned | M8: PK-5 | N8: 6-8 | O8: 9-12 | P8: Low Inc | Q8: Enro | R8: Adjusted | S8: Group | U8: stration | V8: Leadership | W8: Teachers | X8: Services | Y8: elopment | Z8: Technology | AA8: logical | AB8: Services | AC8: enance | AD8: Charges | AE8: Tuition | AF8: Budget | AH8: chalocsend | AI8: LEA | AJ8: LEA | AK8: LEA | AL8: 1=good | AM8: enro | AN8: fnd budget | AO8: rate | AP8: diff | AQ8: rate check | AW8: TM | AX8: diff | AY8: PROJa | AZ8: diff | BA8: PROJb | BB8: diff
AP9: x | AR9: x | AW9: 2022-12-22 | AX9: x | AY9: 2023-02-03 | AZ9: x | BA9: 2023-04-15 | BB9: x
A10: 409 | B10: 409201003 | C10: ALMA DEL MAR | D10: ='fnd enro'!D10 -> 0 | E10: ='fnd enro'!E10 -> 0 | F10: ='fnd enro'!F10 -> 0 | G10: ='fnd enro'!G10 -> 1 | H10: ='fnd enro'!H10 -> 0 | I10: ='fnd enro'!I10 -> 0 | J10: ='fnd enro'!J10 -> 0 | K10: ='fnd enro'!K10 -> 0.039 | L10: ='fnd enro'!L10 -> 0 | M10: ='fnd enro'!M10 -> 0 | N10: ='fnd enro'!N10 -> 0 | O10: ='fnd enro'!O10 -> 0 | P10: ='fnd enro'!P10 -> 0 | Q10: ='fnd enro'!R10 -> 1 | R10: =VLOOKUP(B10,charterinfo_b,6) -> 1 | S10: =VALUE('fnd enro'!Q10) -> 7 | U10: =(($D10*'fnd base rates'!C$107) +($E10*'fnd base rates'!C$108) +($F10*'fnd base rates'!C$109) +($G10*'fnd base rates'!C$110) +($H10*'fnd base rates'!C$111) +($I10*'fnd base rates'!C$112) +($J10*'fnd base rates'!C$113) +($K10*'fnd base rates'!C$114) +($M10*'fnd base rates'!C$116) +($N10*'fnd base rates'!C$117) +($O10*'fnd base rates'!C$118) +($P10*VLOOKUP($S10+12,rate_basefnd,3))) *$R10 -> 561.82163 | V10: =(($D10*'fnd base rates'!D$107) +($E10*'fnd base rates'!D$108) +($F10*'fnd base rates'!D$109) +($G10*'fnd base rates'!D$110) +($H10*'fnd base rates'!D$111) +($I10*'fnd base rates'!D$112) +($J10*'fnd base rates'!D$113) +($K10*'fnd base rates'!D$114) +($M10*'fnd base rates'!D$116) +($N10*'fnd base rates'!D$117) +($O10*'fnd base rates'!D$118) +($P10*VLOOKUP($S10+12,rate_basefnd,4))) *$R10 -> 799.51 | W10: =(($D10*'fnd base rates'!E$107) +($E10*'fnd base rates'!E$108) +($F10*'fnd base rates'!E$109) +($G10*'fnd base rates'!E$110) +($H10*'fnd base rates'!E$111) +($I10*'fnd base rates'!E$112) +($J10*'fnd base rates'!E$113) +($K10*'fnd base rates'!E$114) +($M10*'fnd base rates'!E$116) +($N10*'fnd base rates'!E$117) +($O10*'fnd base rates'!E$118) +($P10*VLOOKUP($S10+12,rate_basefnd,5))) *$R10 -> 4059.07992 | X10: =(($D10*'fnd base rates'!F$107) +($E10*'fnd base rates'!F$108) +($F10*'fnd base rates'!F$109) +($G10*'fnd base rates'!F$110) +($H10*'fnd base rates'!F$111) +($I10*'fnd base rates'!F$112) +($J10*'fnd base rates'!F$113) +($K10*'fnd base rates'!F$114) +($M10*'fnd base rates'!F$116) +($N10*'fnd base rates'!F$117) +($O10*'fnd base rates'!F$118) +($P10*VLOOKUP($S10+12,rate_basefnd,6))) *$R10 -> 1307.34725 | Y10: =(($D10*'fnd base rates'!G$107) +($E10*'fnd base rates'!G$108) +($F10*'fnd base rates'!G$109) +($G10*'fnd base rates'!G$110) +($H10*'fnd base rates'!G$111) +($I10*'fnd base rates'!G$112) +($J10*'fnd base rates'!G$113) +($K10*'fnd base rates'!G$114) +($M10*'fnd base rates'!G$116) +($N10*'fnd base rates'!G$117) +($O10*'fnd base rates'!G$118) +($P10*VLOOKUP($S10+12,rate_basefnd,7))) *$R10 -> 164.04609 | Z10: =(($D10*'fnd base rates'!H$107) +($E10*'fnd base rates'!H$108) +($F10*'fnd base rates'!H$109) +($G10*'fnd base rates'!H$110) +($H10*'fnd base rates'!H$111) +($I10*'fnd base rates'!H$112) +($J10*'fnd base rates'!H$113) +($K10*'fnd base rates'!H$114) +($M10*'fnd base rates'!H$116) +($N10*'fnd base rates'!H$117) +($O10*'fnd base rates'!H$118) +($P10*VLOOKUP($S10+12,rate_basefnd,8))) -> 547.16433 | AA10: =(($D10*'fnd base rates'!I$107) +($E10*'fnd base rates'!I$108) +($F10*'fnd base rates'!I$109) +($G10*'fnd base rates'!I$110) +($H10*'fnd base rates'!I$111) +($I10*'fnd base rates'!I$112) +($J10*'fnd base rates'!I$113) +($K10*'fnd base rates'!I$114) +($M10*'fnd base rates'!I$116) +($N10*'fnd base rates'!I$117) +($O10*'fnd base rates'!I$118) +($P10*VLOOKUP($S10+12,rate_basefnd,9))) *$R10 -> 346.82 | AB10: =(($D10*'fnd base rates'!J$107) +($E10*'fnd base rates'!J$108) +($F10*'fnd base rates'!J$109) +($G10*'fnd base rates'!J$110) +($H10*'fnd base rates'!J$111) +($I10*'fnd base rates'!J$112) +($J10*'fnd base rates'!J$113) +($K10*'fnd base rates'!J$114) +($M10*'fnd base rates'!J$116) +($N10*'fnd base rates'!J$117) +($O10*'fnd base rates'!J$118) +($P10*VLOOKUP($S10+12,rate_basefnd,10))) *$R10 -> 159.17 | AC10: =(($D10*'fnd base rates'!K$107) +($E10*'fnd base rates'!K$108) +($F10*'fnd base rates'!K$109) +($G10*'fnd base rates'!K$110) +($H10*'fnd base rates'!K$111) +($I10*'fnd base rates'!K$112) +($J10*'fnd base rates'!K$113) +($K10*'fnd base rates'!K$114) +($M10*'fnd base rates'!K$116) +($N10*'fnd base rates'!K$117) +($O10*'fnd base rates'!K$118) +($P10*VLOOKUP($S10+12,rate_basefnd,11))) *$R10 -> 1151.08764 | AD10: =(($D10*'fnd base rates'!L$107) +($E10*'fnd base rates'!L$108) +($F10*'fnd base rates'!L$109) +($G10*'fnd base rates'!L$110) +($H10*'fnd base rates'!L$111) +($I10*'fnd base rates'!L$112) +($J10*'fnd base rates'!L$113) +($K10*'fnd base rates'!L$114) +($M10*'fnd base rates'!L$116) +($N10*'fnd base rates'!L$117) +($O10*'fnd base rates'!L$118) +($P10*VLOOKUP($S10+12,rate_basefnd,12))) -> 1609.31682 | AE10: =(($D10*'fnd base rates'!M$107) +($E10*'fnd base rates'!M$108) +($F10*'fnd base rates'!M$109) +($G10*'fnd base rates'!M$110) +($H10*'fnd base rates'!M$111) +($I10*'fnd base rates'!M$112) +($J10*'fnd base rates'!M$113) +($K10*'fnd base rates'!M$114) +($M10*'fnd base rates'!M$116) +($N10*'fnd base rates'!M$117) +($O10*'fnd base rates'!M$118) +($P10*VLOOKUP($S10+12,rate_basefnd,13))) -> 0 | AF10: =SUM(U10:AE10) -> 10705.36368 | AH10: =B10 -> 409201003 | AI10: =IF($B10<499999999,MID($B10,1,3),MID($B10,1,4)) -> 409 | AJ10: =IF($B10<499999999,MID($B10,4,3),MID($B10,5,3)) -> 201 | AK10: =IF($B10<499999999,MID($B10,7,3),MID($B10,8,3)) -> 003 | AL10: =IF(VLOOKUP(VALUE(IF(AH10<499999999,MID(AH10,4,3),MID(AH10,5,3))),distinfo,4)=R10,1,0) -> 1 | AM10: =enro -> 1 | AN10: =AF10 -> 10705.36368 | AO10: =IF(OR(AF10=0,AM10=0),0,ROUND(AN10/AM10,0)) -> 10705 | AP10: =AO10-AQ10 -> 0 | AQ10: 10705 | AW10: 10705 | AX10: =AY10-AW10 -> 0 | AY10: 10705 | AZ10: =BA10-AY10 -> 0 | BA10: 10705
A11: 409 | B11: 409201095 | C11: ALMA DEL MAR | D11: ='fnd enro'!D11 -> 0 | E11: ='fnd enro'!E11 -> 0 | F11: ='fnd enro'!F11 -> 0 | G11: ='fnd enro'!G11 -> 1 | H11: ='fnd enro'!H11 -> 0 | I11: ='fnd enro'!I11 -> 0 | J11: ='fnd enro'!J11 -> 0 | K11: ='fnd enro'!K11 -> 0.039 | L11: ='fnd enro'!L11 -> 0 | M11: ='fnd enro'!M11 -> 0 | N11: ='fnd enro'!N11 -> 0 | O11: ='fnd enro'!O11 -> 0 | P11: ='fnd enro'!P11 -> 1 | Q11: ='fnd enro'!R11 -> 1 | R11: =VLOOKUP(B11,charterinfo_b,6) -> 1 | S11: =VALUE('fnd enro'!Q11) -> 12 | U11: =(($D11*'fnd base rates'!C$107) +($E11*'fnd base rates'!C$108) +($F11*'fnd base rates'!C$109) +($G11*'fnd base rates'!C$110) +($H11*'fnd base rates'!C$111) +($I11*'fnd base rates'!C$112) +($J11*'fnd base rates'!C$113) +($K11*'fnd base rates'!C$114) +($M11*'fnd base rates'!C$116) +($N11*'fnd base rates'!C$117) +($O11*'fnd base rates'!C$118) +($P11*VLOOKUP($S11+12,rate_basefnd,3))) *$R11 -> 664.45163 | V11: =(($D11*'fnd base rates'!D$107) +($E11*'fnd base rates'!D$108) +($F11*'fnd base rates'!D$109) +($G11*'fnd base rates'!D$110) +($H11*'fnd base rates'!D$111) +($I11*'fnd base rates'!D$112) +($J11*'fnd base rates'!D$113) +($K11*'fnd base rates'!D$114) +($M11*'fnd base rates'!D$116) +($N11*'fnd base rates'!D$117) +($O11*'fnd base rates'!D$118) +($P11*VLOOKUP($S11+12,rate_basefnd,4))) *$R11 -> 1285.77 | W11: =(($D11*'fnd base rates'!E$107) +($E11*'fnd base rates'!E$108) +($F11*'fnd base rates'!E$109) +($G11*'fnd base rates'!E$110) +($H11*'fnd base rates'!E$111) +($I11*'fnd base rates'!E$112) +($J11*'fnd base rates'!E$113) +($K11*'fnd base rates'!E$114) +($M11*'fnd base rates'!E$116) +($N11*'fnd base rates'!E$117) +($O11*'fnd base rates'!E$118) +($P11*VLOOKUP($S11+12,rate_basefnd,5))) *$R11 -> 8805.92992 | X11: =(($D11*'fnd base rates'!F$107) +($E11*'fnd base rates'!F$108) +($F11*'fnd base rates'!F$109) +($G11*'fnd base rates'!F$110) +($H11*'fnd base rates'!F$111) +($I11*'fnd base rates'!F$112) +($J11*'fnd base rates'!F$113) +($K11*'fnd base rates'!F$114) +($M11*'fnd base rates'!F$116) +($N11*'fnd base rates'!F$117) +($O11*'fnd base rates'!F$118) +($P11*VLOOKUP($S11+12,rate_basefnd,6))) *$R11 -> 1307.34725 | Y11: =(($D11*'fnd base rates'!G$107) +($E11*'fnd base rates'!G$108) +($F11*'fnd base rates'!G$109) +($G11*'fnd base rates'!G$110) +($H11*'fnd base rates'!G$111) +($I11*'fnd base rates'!G$112) +($J11*'fnd base rates'!G$113) +($K11*'fnd base rates'!G$114) +($M11*'fnd base rates'!G$116) +($N11*'fnd base rates'!G$117) +($O11*'fnd base rates'!G$118) +($P11*VLOOKUP($S11+12,rate_basefnd,7))) *$R11 -> 394.33609 | Z11: =(($D11*'fnd base rates'!H$107) +($E11*'fnd base rates'!H$108) +($F11*'fnd base rates'!H$109) +($G11*'fnd base rates'!H$110) +($H11*'fnd base rates'!H$111) +($I11*'fnd base rates'!H$112) +($J11*'fnd base rates'!H$113) +($K11*'fnd base rates'!H$114) +($M11*'fnd base rates'!H$116) +($N11*'fnd base rates'!H$117) +($O11*'fnd base rates'!H$118) +($P11*VLOOKUP($S11+12,rate_basefnd,8))) -> 582.46433 | AA11: =(($D11*'fnd base rates'!I$107) +($E11*'fnd base rates'!I$108) +($F11*'fnd base rates'!I$109) +($G11*'fnd base rates'!I$110) +($H11*'fnd base rates'!I$111) +($I11*'fnd base rates'!I$112) +($J11*'fnd base rates'!I$113) +($K11*'fnd base rates'!I$114) +($M11*'fnd base rates'!I$116) +($N11*'fnd base rates'!I$117) +($O11*'fnd base rates'!I$118) +($P11*VLOOKUP($S11+12,rate_basefnd,9))) *$R11 -> 539.04 | AB11: =(($D11*'fnd base rates'!J$107) +($E11*'fnd base rates'!J$108) +($F11*'fnd base rates'!J$109) +($G11*'fnd base rates'!J$110) +($H11*'fnd base rates'!J$111) +($I11*'fnd base rates'!J$112) +($J11*'fnd base rates'!J$113) +($K11*'fnd base rates'!J$114) +($M11*'fnd base rates'!J$116) +($N11*'fnd base rates'!J$117) +($O11*'fnd base rates'!J$118) +($P11*VLOOKUP($S11+12,rate_basefnd,10))) *$R11 -> 1157.97 | AC11: =(($D11*'fnd base rates'!K$107) +($E11*'fnd base rates'!K$108) +($F11*'fnd base rates'!K$109) +($G11*'fnd base rates'!K$110) +($H11*'fnd base rates'!K$111) +($I11*'fnd base rates'!K$112) +($J11*'fnd base rates'!K$113) +($K11*'fnd base rates'!K$114) +($M11*'fnd base rates'!K$116) +($N11*'fnd base rates'!K$117) +($O11*'fnd base rates'!K$118) +($P11*VLOOKUP($S11+12,rate_basefnd,11))) *$R11 -> 1151.08764 | AD11: =(($D11*'fnd base rates'!L$107) +($E11*'fnd base rates'!L$108) +($F11*'fnd base rates'!L$109) +($G11*'fnd base rates'!L$110) +($H11*'fnd base rates'!L$111) +($I11*'fnd base rates'!L$112) +($J11*'fnd base rates'!L$113) +($K11*'fnd base rates'!L$114) +($M11*'fnd base rates'!L$116) +($N11*'fnd base rates'!L$117) +($O11*'fnd base rates'!L$118) +($P11*VLOOKUP($S11+12,rate_basefnd,12))) -> 2392.51682 | AE11: =(($D11*'fnd base rates'!M$107) +($E11*'fnd base rates'!M$108) +($F11*'fnd base rates'!M$109) +($G11*'fnd base rates'!M$110) +($H11*'fnd base rates'!M$111) +($I11*'fnd base rates'!M$112) +($J11*'fnd base rates'!M$113) +($K11*'fnd base rates'!M$114) +($M11*'fnd base rates'!M$116) +($N11*'fnd base rates'!M$117) +($O11*'fnd base rates'!M$118) +($P11*VLOOKUP($S11+12,rate_basefnd,13))) -> 0 | AF11: =SUM(U11:AE11) -> 18280.91368 | AH11: =B11 -> 409201095 | AI11: =IF($B11<499999999,MID($B11,1,3),MID($B11,1,4)) -> 409 | AJ11: =IF($B11<499999999,MID($B11,4,3),MID($B11,5,3)) -> 201 | AK11: =IF($B11<499999999,MID($B11,7,3),MID($B11,8,3)) -> 095 | AL11: =IF(VLOOKUP(VALUE(IF(AH11<499999999,MID(AH11,4,3),MID(AH11,5,3))),distinfo,4)=R11,1,0) -> 1 | AM11: 1 | AN11: =AF11 -> 18280.91368 | AO11: =IF(OR(AF11=0,AM11=0),0,ROUND(AN11/AM11,0)) -> 18281 | AP11: 0 | AQ11: 18281 | AW11: 18266 | AX11: =AY11-AW11 -> 0 | AY11: 18266 | AZ11: =BA11-AY11 -> 15 | BA11: 18281
A12: 409 | B12: 409201201 | C12: ALMA DEL MAR | D12: ='fnd enro'!D12 -> 0 | E12: ='fnd enro'!E12 -> 0 | F12: ='fnd enro'!F12 -> 102 | G12: ='fnd enro'!G12 -> 513 | H12: ='fnd enro'!H12 -> 419 | I12: ='fnd enro'!I12 -> 0 | J12: ='fnd enro'!J12 -> 0 | K12: ='fnd enro'!K12 -> 40.326 | L12: ='fnd enro'!L12 -> 0 | M12: ='fnd enro'!M12 -> 252 | N12: ='fnd enro'!N12 -> 57 | O12: ='fnd enro'!O12 -> 0 | P12: ='fnd enro'!P12 -> 855 | Q12: ='fnd enro'!R12 -> 1034 | R12: 1 | S12: =VALUE('fnd enro'!Q12) -> 12 | U12: =(($D12*'fnd base rates'!C$107) +($E12*'fnd base rates'!C$108) +($F12*'fnd base rates'!C$109) +($G12*'fnd base rates'!C$110) +($H12*'fnd base rates'!C$111) +($I12*'fnd base rates'!C$112) +($J12*'fnd base rates'!C$113) +($K12*'fnd base rates'!C$114) +($M12*'fnd base rates'!C$116) +($N12*'fnd base rates'!C$117) +($O12*'fnd base rates'!C$118) +($P12*VLOOKUP($S12+12,rate_basefnd,3))) *$R12 -> 702307.3754 | V12: =(($D12*'fnd base rates'!D$107) +($E12*'fnd base rates'!D$108) +($F12*'fnd base rates'!D$109) +($G12*'fnd base rates'!D$110) +($H12*'fnd base rates'!D$111) +($I12*'fnd base rates'!D$112) +($J12*'fnd base rates'!D$113) +($K12*'fnd base rates'!D$114) +($M12*'fnd base rates'!D$116) +($N12*'fnd base rates'!D$117) +($O12*'fnd base rates'!D$118) +($P12*VLOOKUP($S12+12,rate_basefnd,4))) *$R12 -> 1301304.77 | W12: =(($D12*'fnd base rates'!E$107) +($E12*'fnd base rates'!E$108) +($F12*'fnd base rates'!E$109) +($G12*'fnd base rates'!E$110) +($H12*'fnd base rates'!E$111) +($I12*'fnd base rates'!E$112) +($J12*'fnd base rates'!E$113) +($K12*'fnd base rates'!E$114) +($M12*'fnd base rates'!E$116) +($N12*'fnd base rates'!E$117) +($O12*'fnd base rates'!E$118) +($P12*VLOOKUP($S12+12,rate_basefnd,5))) *$R12 -> 8483334.227 | X12: =(($D12*'fnd base rates'!F$107) +($E12*'fnd base rates'!F$108) +($F12*'fnd base rates'!F$109) +($G12*'fnd base rates'!F$110) +($H12*'fnd base rates'!F$111) +($I12*'fnd base rates'!F$112) +($J12*'fnd base rates'!F$113) +($K12*'fnd base rates'!F$114) +($M12*'fnd base rates'!F$116) +($N12*'fnd base rates'!F$117) +($O12*'fnd base rates'!F$118) +($P12*VLOOKUP($S12+12,rate_basefnd,6))) *$R12 -> 1300287.397 | Y12: =(($D12*'fnd base rates'!G$107) +($E12*'fnd base rates'!G$108) +($F12*'fnd base rates'!G$109) +($G12*'fnd base rates'!G$110) +($H12*'fnd base rates'!G$111) +($I12*'fnd base rates'!G$112) +($J12*'fnd base rates'!G$113) +($K12*'fnd base rates'!G$114) +($M12*'fnd base rates'!G$116) +($N12*'fnd base rates'!G$117) +($O12*'fnd base rates'!G$118) +($P12*VLOOKUP($S12+12,rate_basefnd,7))) *$R12 -> 388437.4771 | Z12: =(($D12*'fnd base rates'!H$107) +($E12*'fnd base rates'!H$108) +($F12*'fnd base rates'!H$109) +($G12*'fnd base rates'!H$110) +($H12*'fnd base rates'!H$111) +($I12*'fnd base rates'!H$112) +($J12*'fnd base rates'!H$113) +($K12*'fnd base rates'!H$114) +($M12*'fnd base rates'!H$116) +($N12*'fnd base rates'!H$117) +($O12*'fnd base rates'!H$118) +($P12*VLOOKUP($S12+12,rate_basefnd,8))) -> 637988.4472 | AA12: =(($D12*'fnd base rates'!I$107) +($E12*'fnd base rates'!I$108) +($F12*'fnd base rates'!I$109) +($G12*'fnd base rates'!I$110) +($H12*'fnd base rates'!I$111) +($I12*'fnd base rates'!I$112) +($J12*'fnd base rates'!I$113) +($K12*'fnd base rates'!I$114) +($M12*'fnd base rates'!I$116) +($N12*'fnd base rates'!I$117) +($O12*'fnd base rates'!I$118) +($P12*VLOOKUP($S12+12,rate_basefnd,9))) *$R12 -> 566688.13 | AB12: =(($D12*'fnd base rates'!J$107) +($E12*'fnd base rates'!J$108) +($F12*'fnd base rates'!J$109) +($G12*'fnd base rates'!J$110) +($H12*'fnd base rates'!J$111) +($I12*'fnd base rates'!J$112) +($J12*'fnd base rates'!J$113) +($K12*'fnd base rates'!J$114) +($M12*'fnd base rates'!J$116) +($N12*'fnd base rates'!J$117) +($O12*'fnd base rates'!J$118) +($P12*VLOOKUP($S12+12,rate_basefnd,10))) *$R12 -> 1063807.71 | AC12: =(($D12*'fnd base rates'!K$107) +($E12*'fnd base rates'!K$108) +($F12*'fnd base rates'!K$109) +($G12*'fnd base rates'!K$110) +($H12*'fnd base rates'!K$111) +($I12*'fnd base rates'!K$112) +($J12*'fnd base rates'!K$113) +($K12*'fnd base rates'!K$114) +($M12*'fnd base rates'!K$116) +($N12*'fnd base rates'!K$117) +($O12*'fnd base rates'!K$118) +($P12*VLOOKUP($S12+12,rate_basefnd,11))) *$R12 -> 1327001.75 | AD12: =(($D12*'fnd base rates'!L$107) +($E12*'fnd base rates'!L$108) +($F12*'fnd base rates'!L$109) +($G12*'fnd base rates'!L$110) +($H12*'fnd base rates'!L$111) +($I12*'fnd base rates'!L$112) +($J12*'fnd base rates'!L$113) +($K12*'fnd base rates'!L$114) +($M12*'fnd base rates'!L$116) +($N12*'fnd base rates'!L$117) +($O12*'fnd base rates'!L$118) +($P12*VLOOKUP($S12+12,rate_basefnd,12))) -> 2464364.612 | AE12: =(($D12*'fnd base rates'!M$107) +($E12*'fnd base rates'!M$108) +($F12*'fnd base rates'!M$109) +($G12*'fnd base rates'!M$110) +($H12*'fnd base rates'!M$111) +($I12*'fnd base rates'!M$112) +($J12*'fnd base rates'!M$113) +($K12*'fnd base rates'!M$114) +($M12*'fnd base rates'!M$116) +($N12*'fnd base rates'!M$117) +($O12*'fnd base rates'!M$118) +($P12*VLOOKUP($S12+12,rate_basefnd,13))) -> 0 | AF12: 18235521.9 | AH12: 409201201 | AI12: 409 | AJ12: 201 | AK12: 201 | AL12: 1 | AM12: 1034 | AN12: 18235521.9 | AO12: 17636 | AP12: 0 | AQ12: 17636 | AW12: 17621 | AX12: 0 | AY12: 17621 | AZ12: 15 | BA12: 17636
A13: 409 | B13: 409201331 | C13: ALMA DEL MAR | D13: ='fnd enro'!D13 -> 0 | E13: ='fnd enro'!E13 -> 0 | F13: ='fnd enro'!F13 -> 0 | G13: ='fnd enro'!G13 -> 0 | H13: ='fnd enro'!H13 -> 2 | I13: ='fnd enro'!I13 -> 0 | J13: ='fnd enro'!J13 -> 0 | K13: ='fnd enro'!K13 -> 0.078 | L13: ='fnd enro'!L13 -> 0 | M13: ='fnd enro'!M13 -> 0 | N13: ='fnd enro'!N13 -> 0 | O13: ='fnd enro'!O13 -> 0 | P13: ='fnd enro'!P13 -> 0 | Q13: ='fnd enro'!R13 -> 2 | R13: 1 | S13: =VALUE('fnd enro'!Q13) -> 7 | U13: =(($D13*'fnd base rates'!C$107) +($E13*'fnd base rates'!C$108) +($F13*'fnd base rates'!C$109) +($G13*'fnd base rates'!C$110) +($H13*'fnd base rates'!C$111) +($I13*'fnd base rates'!C$112) +($J13*'fnd base rates'!C$113) +($K13*'fnd base rates'!C$114) +($M13*'fnd base rates'!C$116) +($N13*'fnd base rates'!C$117) +($O13*'fnd base rates'!C$118) +($P13*VLOOKUP($S13+12,rate_basefnd,3))) *$R13 -> 1123.64326 | V13: =(($D13*'fnd base rates'!D$107) +($E13*'fnd base rates'!D$108) +($F13*'fnd base rates'!D$109) +($G13*'fnd base rates'!D$110) +($H13*'fnd base rates'!D$111) +($I13*'fnd base rates'!D$112) +($J13*'fnd base rates'!D$113) +($K13*'fnd base rates'!D$114) +($M13*'fnd base rates'!D$116) +($N13*'fnd base rates'!D$117) +($O13*'fnd base rates'!D$118) +($P13*VLOOKUP($S13+12,rate_basefnd,4))) *$R13 -> 1599.02 | W13: =(($D13*'fnd base rates'!E$107) +($E13*'fnd base rates'!E$108) +($F13*'fnd base rates'!E$109) +($G13*'fnd base rates'!E$110) +($H13*'fnd base rates'!E$111) +($I13*'fnd base rates'!E$112) +($J13*'fnd base rates'!E$113) +($K13*'fnd base rates'!E$114) +($M13*'fnd base rates'!E$116) +($N13*'fnd base rates'!E$117) +($O13*'fnd base rates'!E$118) +($P13*VLOOKUP($S13+12,rate_basefnd,5))) *$R13 -> 7238.37984 | X13: =(($D13*'fnd base rates'!F$107) +($E13*'fnd base rates'!F$108) +($F13*'fnd base rates'!F$109) +($G13*'fnd base rates'!F$110) +($H13*'fnd base rates'!F$111) +($I13*'fnd base rates'!F$112) +($J13*'fnd base rates'!F$113) +($K13*'fnd base rates'!F$114) +($M13*'fnd base rates'!F$116) +($N13*'fnd base rates'!F$117) +($O13*'fnd base rates'!F$118) +($P13*VLOOKUP($S13+12,rate_basefnd,6))) *$R13 -> 2087.8745 | Y13: =(($D13*'fnd base rates'!G$107) +($E13*'fnd base rates'!G$108) +($F13*'fnd base rates'!G$109) +($G13*'fnd base rates'!G$110) +($H13*'fnd base rates'!G$111) +($I13*'fnd base rates'!G$112) +($J13*'fnd base rates'!G$113) +($K13*'fnd base rates'!G$114) +($M13*'fnd base rates'!G$116) +($N13*'fnd base rates'!G$117) +($O13*'fnd base rates'!G$118) +($P13*VLOOKUP($S13+12,rate_basefnd,7))) *$R13 -> 352.45218 | Z13: =(($D13*'fnd base rates'!H$107) +($E13*'fnd base rates'!H$108) +($F13*'fnd base rates'!H$109) +($G13*'fnd base rates'!H$110) +($H13*'fnd base rates'!H$111) +($I13*'fnd base rates'!H$112) +($J13*'fnd base rates'!H$113) +($K13*'fnd base rates'!H$114) +($M13*'fnd base rates'!H$116) +($N13*'fnd base rates'!H$117) +($O13*'fnd base rates'!H$118) +($P13*VLOOKUP($S13+12,rate_basefnd,8))) -> 1094.32866 | AA13: =(($D13*'fnd base rates'!I$107) +($E13*'fnd base rates'!I$108) +($F13*'fnd base rates'!I$109) +($G13*'fnd base rates'!I$110) +($H13*'fnd base rates'!I$111) +($I13*'fnd base rates'!I$112) +($J13*'fnd base rates'!I$113) +($K13*'fnd base rates'!I$114) +($M13*'fnd base rates'!I$116) +($N13*'fnd base rates'!I$117) +($O13*'fnd base rates'!I$118) +($P13*VLOOKUP($S13+12,rate_basefnd,9))) *$R13 -> 781.96 | AB13: =(($D13*'fnd base rates'!J$107) +($E13*'fnd base rates'!J$108) +($F13*'fnd base rates'!J$109) +($G13*'fnd base rates'!J$110) +($H13*'fnd base rates'!J$111) +($I13*'fnd base rates'!J$112) +($J13*'fnd base rates'!J$113) +($K13*'fnd base rates'!J$114) +($M13*'fnd base rates'!J$116) +($N13*'fnd base rates'!J$117) +($O13*'fnd base rates'!J$118) +($P13*VLOOKUP($S13+12,rate_basefnd,10))) *$R13 -> 520.02 | AC13: =(($D13*'fnd base rates'!K$107) +($E13*'fnd base rates'!K$108) +($F13*'fnd base rates'!K$109) +($G13*'fnd base rates'!K$110) +($H13*'fnd base rates'!K$111) +($I13*'fnd base rates'!K$112) +($J13*'fnd base rates'!K$113) +($K13*'fnd base rates'!K$114) +($M13*'fnd base rates'!K$116) +($N13*'fnd base rates'!K$117) +($O13*'fnd base rates'!K$118) +($P13*VLOOKUP($S13+12,rate_basefnd,11))) *$R13 -> 2473.43528 | AD13: =(($D13*'fnd base rates'!L$107) +($E13*'fnd base rates'!L$108) +($F13*'fnd base rates'!L$109) +($G13*'fnd base rates'!L$110) +($H13*'fnd base rates'!L$111) +($I13*'fnd base rates'!L$112) +($J13*'fnd base rates'!L$113) +($K13*'fnd base rates'!L$114) +($M13*'fnd base rates'!L$116) +($N13*'fnd base rates'!L$117) +($O13*'fnd base rates'!L$118) +($P13*VLOOKUP($S13+12,rate_basefnd,12))) -> 3392.17364 | AE13: =(($D13*'fnd base rates'!M$107) +($E13*'fnd base rates'!M$108) +($F13*'fnd base rates'!M$109) +($G13*'fnd base rates'!M$110) +($H13*'fnd base rates'!M$111) +($I13*'fnd base rates'!M$112) +($J13*'fnd base rates'!M$113) +($K13*'fnd base rates'!M$114) +($M13*'fnd base rates'!M$116) +($N13*'fnd base rates'!M$117) +($O13*'fnd base rates'!M$118) +($P13*VLOOKUP($S13+12,rate_basefnd,13))) -> 0 | AF13: 20663.28736 | AH13: 409201331 | AI13: 409 | AJ13: 201 | AK13: 331 | AL13: 1 | AM13: 2 | AN13: 20663.28736 | AO13: 10332 | AP13: 0 | AQ13: 10332 | AW13: 10332 | AX13: 0 | AY13: 10332 | AZ13: 0 | BA13: 10332
A14: 410 | B14: 410035035 | C14: EXCEL ACADEMY | D14: ='fnd enro'!D14 -> 0 | E14: ='fnd enro'!E14 -> 0 | F14: ='fnd enro'!F14 -> 0 | G14: ='fnd enro'!G14 -> 93 | H14: ='fnd enro'!H14 -> 236 | I14: ='fnd enro'!I14 -> 323 | J14: ='fnd enro'!J14 -> 0 | K14: ='fnd enro'!K14 -> 25.428 | L14: ='fnd enro'!L14 -> 0 | M14: ='fnd enro'!M14 -> 20 | N14: ='fnd enro'!N14 -> 37 | O14: ='fnd enro'!O14 -> 36 | P14: ='fnd enro'!P14 -> 510 | Q14: ='fnd enro'!R14 -> 652 | R14: 1.09 | S14: =VALUE('fnd enro'!Q14) -> 11 | U14: =(($D14*'fnd base rates'!C$107) +($E14*'fnd base rates'!C$108) +($F14*'fnd base rates'!C$109) +($G14*'fnd base rates'!C$110) +($H14*'fnd base rates'!C$111) +($I14*'fnd base rates'!C$112) +($J14*'fnd base rates'!C$113) +($K14*'fnd base rates'!C$114) +($M14*'fnd base rates'!C$116) +($N14*'fnd base rates'!C$117) +($O14*'fnd base rates'!C$118) +($P14*VLOOKUP($S14+12,rate_basefnd,3))) *$R14 -> 464026.9986 | V14: =(($D14*'fnd base rates'!D$107) +($E14*'fnd base rates'!D$108) +($F14*'fnd base rates'!D$109) +($G14*'fnd base rates'!D$110) +($H14*'fnd base rates'!D$111) +($I14*'fnd base rates'!D$112) +($J14*'fnd base rates'!D$113) +($K14*'fnd base rates'!D$114) +($M14*'fnd base rates'!D$116) +($N14*'fnd base rates'!D$117) +($O14*'fnd base rates'!D$118) +($P14*VLOOKUP($S14+12,rate_basefnd,4))) *$R14 -> 840771.3365 | W14: =(($D14*'fnd base rates'!E$107) +($E14*'fnd base rates'!E$108) +($F14*'fnd base rates'!E$109) +($G14*'fnd base rates'!E$110) +($H14*'fnd base rates'!E$111) +($I14*'fnd base rates'!E$112) +($J14*'fnd base rates'!E$113) +($K14*'fnd base rates'!E$114) +($M14*'fnd base rates'!E$116) +($N14*'fnd base rates'!E$117) +($O14*'fnd base rates'!E$118) +($P14*VLOOKUP($S14+12,rate_basefnd,5))) *$R14 -> 5756720.504 | X14: =(($D14*'fnd base rates'!F$107) +($E14*'fnd base rates'!F$108) +($F14*'fnd base rates'!F$109) +($G14*'fnd base rates'!F$110) +($H14*'fnd base rates'!F$111) +($I14*'fnd base rates'!F$112) +($J14*'fnd base rates'!F$113) +($K14*'fnd base rates'!F$114) +($M14*'fnd base rates'!F$116) +($N14*'fnd base rates'!F$117) +($O14*'fnd base rates'!F$118) +($P14*VLOOKUP($S14+12,rate_basefnd,6))) *$R14 -> 748719.6996 | Y14: =(($D14*'fnd base rates'!G$107) +($E14*'fnd base rates'!G$108) +($F14*'fnd base rates'!G$109) +($G14*'fnd base rates'!G$110) +($H14*'fnd base rates'!G$111) +($I14*'fnd base rates'!G$112) +($J14*'fnd base rates'!G$113) +($K14*'fnd base rates'!G$114) +($M14*'fnd base rates'!G$116) +($N14*'fnd base rates'!G$117) +($O14*'fnd base rates'!G$118) +($P14*VLOOKUP($S14+12,rate_basefnd,7))) *$R14 -> 247655.9032 | Z14: =(($D14*'fnd base rates'!H$107) +($E14*'fnd base rates'!H$108) +($F14*'fnd base rates'!H$109) +($G14*'fnd base rates'!H$110) +($H14*'fnd base rates'!H$111) +($I14*'fnd base rates'!H$112) +($J14*'fnd base rates'!H$113) +($K14*'fnd base rates'!H$114) +($M14*'fnd base rates'!H$116) +($N14*'fnd base rates'!H$117) +($O14*'fnd base rates'!H$118) +($P14*VLOOKUP($S14+12,rate_basefnd,8))) -> 489523.1432 | AA14: =(($D14*'fnd base rates'!I$107) +($E14*'fnd base rates'!I$108) +($F14*'fnd base rates'!I$109) +($G14*'fnd base rates'!I$110) +($H14*'fnd base rates'!I$111) +($I14*'fnd base rates'!I$112) +($J14*'fnd base rates'!I$113) +($K14*'fnd base rates'!I$114) +($M14*'fnd base rates'!I$116) +($N14*'fnd base rates'!I$117) +($O14*'fnd base rates'!I$118) +($P14*VLOOKUP($S14+12,rate_basefnd,9))) *$R14 -> 400861.452 | AB14: =(($D14*'fnd base rates'!J$107) +($E14*'fnd base rates'!J$108) +($F14*'fnd base rates'!J$109) +($G14*'fnd base rates'!J$110) +($H14*'fnd base rates'!J$111) +($I14*'fnd base rates'!J$112) +($J14*'fnd base rates'!J$113) +($K14*'fnd base rates'!J$114) +($M14*'fnd base rates'!J$116) +($N14*'fnd base rates'!J$117) +($O14*'fnd base rates'!J$118) +($P14*VLOOKUP($S14+12,rate_basefnd,10))) *$R14 -> 815715.9861 | AC14: =(($D14*'fnd base rates'!K$107) +($E14*'fnd base rates'!K$108) +($F14*'fnd base rates'!K$109) +($G14*'fnd base rates'!K$110) +($H14*'fnd base rates'!K$111) +($I14*'fnd base rates'!K$112) +($J14*'fnd base rates'!K$113) +($K14*'fnd base rates'!K$114) +($M14*'fnd base rates'!K$116) +($N14*'fnd base rates'!K$117) +($O14*'fnd base rates'!K$118) +($P14*VLOOKUP($S14+12,rate_basefnd,11))) *$R14 -> 892758.3647 | AD14: =(($D14*'fnd base rates'!L$107) +($E14*'fnd base rates'!L$108) +($F14*'fnd base rates'!L$109) +($G14*'fnd base rates'!L$110) +($H14*'fnd base rates'!L$111) +($I14*'fnd base rates'!L$112) +($J14*'fnd base rates'!L$113) +($K14*'fnd base rates'!L$114) +($M14*'fnd base rates'!L$116) +($N14*'fnd base rates'!L$117) +($O14*'fnd base rates'!L$118) +($P14*VLOOKUP($S14+12,rate_basefnd,12))) -> 1446338.827 | AE14: =(($D14*'fnd base rates'!M$107) +($E14*'fnd base rates'!M$108) +($F14*'fnd base rates'!M$109) +($G14*'fnd base rates'!M$110) +($H14*'fnd base rates'!M$111) +($I14*'fnd base rates'!M$112) +($J14*'fnd base rates'!M$113) +($K14*'fnd base rates'!M$114) +($M14*'fnd base rates'!M$116) +($N14*'fnd base rates'!M$117) +($O14*'fnd base rates'!M$118) +($P14*VLOOKUP($S14+12,rate_basefnd,13))) -> 0 | AF14: 12103092.21 | AH14: 410035035 | AI14: 410 | AJ14: 035 | AK14: 035 | AL14: 1 | AM14: 652 | AN14: 12103092.21 | AO14: 18563 | AP14: 0 | AQ14: 18563 | AW14: 18551 | AX14: 0 | AY14: 18551 | AZ14: 12 | BA14: 18563
A15: 410 | B15: 410035044 | C15: EXCEL ACADEMY | D15: ='fnd enro'!D15 -> 0 | E15: ='fnd enro'!E15 -> 0 | F15: ='fnd enro'!F15 -> 0 | G15: ='fnd enro'!G15 -> 0 | H15: ='fnd enro'!H15 -> 1 | I15: ='fnd enro'!I15 -> 1 | J15: ='fnd enro'!J15 -> 0 | K15: ='fnd enro'!K15 -> 0.078 | L15: ='fnd enro'!L15 -> 0 | M15: ='fnd enro'!M15 -> 0 | N15: ='fnd enro'!N15 -> 0 | O15: ='fnd enro'!O15 -> 0 | P15: ='fnd enro'!P15 -> 2 | Q15: ='fnd enro'!R15 -> 2 | R15: 1.09 | S15: =VALUE('fnd enro'!Q15) -> 11 | U15: =(($D15*'fnd base rates'!C$107) +($E15*'fnd base rates'!C$108) +($F15*'fnd base rates'!C$109) +($G15*'fnd base rates'!C$110) +($H15*'fnd base rates'!C$111) +($I15*'fnd base rates'!C$112) +($J15*'fnd base rates'!C$113) +($K15*'fnd base rates'!C$114) +($M15*'fnd base rates'!C$116) +($N15*'fnd base rates'!C$117) +($O15*'fnd base rates'!C$118) +($P15*VLOOKUP($S15+12,rate_basefnd,3))) *$R15 -> 1433.811353 | V15: =(($D15*'fnd base rates'!D$107) +($E15*'fnd base rates'!D$108) +($F15*'fnd base rates'!D$109) +($G15*'fnd base rates'!D$110) +($H15*'fnd base rates'!D$111) +($I15*'fnd base rates'!D$112) +($J15*'fnd base rates'!D$113) +($K15*'fnd base rates'!D$114) +($M15*'fnd base rates'!D$116) +($N15*'fnd base rates'!D$117) +($O15*'fnd base rates'!D$118) +($P15*VLOOKUP($S15+12,rate_basefnd,4))) *$R15 -> 2733.3058 | W15: =(($D15*'fnd base rates'!E$107) +($E15*'fnd base rates'!E$108) +($F15*'fnd base rates'!E$109) +($G15*'fnd base rates'!E$110) +($H15*'fnd base rates'!E$111) +($I15*'fnd base rates'!E$112) +($J15*'fnd base rates'!E$113) +($K15*'fnd base rates'!E$114) +($M15*'fnd base rates'!E$116) +($N15*'fnd base rates'!E$117) +($O15*'fnd base rates'!E$118) +($P15*VLOOKUP($S15+12,rate_basefnd,5))) *$R15 -> 19212.63413 | X15: =(($D15*'fnd base rates'!F$107) +($E15*'fnd base rates'!F$108) +($F15*'fnd base rates'!F$109) +($G15*'fnd base rates'!F$110) +($H15*'fnd base rates'!F$111) +($I15*'fnd base rates'!F$112) +($J15*'fnd base rates'!F$113) +($K15*'fnd base rates'!F$114) +($M15*'fnd base rates'!F$116) +($N15*'fnd base rates'!F$117) +($O15*'fnd base rates'!F$118) +($P15*VLOOKUP($S15+12,rate_basefnd,6))) *$R15 -> 2152.199005 | Y15: =(($D15*'fnd base rates'!G$107) +($E15*'fnd base rates'!G$108) +($F15*'fnd base rates'!G$109) +($G15*'fnd base rates'!G$110) +($H15*'fnd base rates'!G$111) +($I15*'fnd base rates'!G$112) +($J15*'fnd base rates'!G$113) +($K15*'fnd base rates'!G$114) +($M15*'fnd base rates'!G$116) +($N15*'fnd base rates'!G$117) +($O15*'fnd base rates'!G$118) +($P15*VLOOKUP($S15+12,rate_basefnd,7))) *$R15 -> 848.0223762 | Z15: =(($D15*'fnd base rates'!H$107) +($E15*'fnd base rates'!H$108) +($F15*'fnd base rates'!H$109) +($G15*'fnd base rates'!H$110) +($H15*'fnd base rates'!H$111) +($I15*'fnd base rates'!H$112) +($J15*'fnd base rates'!H$113) +($K15*'fnd base rates'!H$114) +($M15*'fnd base rates'!H$116) +($N15*'fnd base rates'!H$117) +($O15*'fnd base rates'!H$118) +($P15*VLOOKUP($S15+12,rate_basefnd,8))) -> 1478.63866 | AA15: =(($D15*'fnd base rates'!I$107) +($E15*'fnd base rates'!I$108) +($F15*'fnd base rates'!I$109) +($G15*'fnd base rates'!I$110) +($H15*'fnd base rates'!I$111) +($I15*'fnd base rates'!I$112) +($J15*'fnd base rates'!I$113) +($K15*'fnd base rates'!I$114) +($M15*'fnd base rates'!I$116) +($N15*'fnd base rates'!I$117) +($O15*'fnd base rates'!I$118) +($P15*VLOOKUP($S15+12,rate_basefnd,9))) *$R15 -> 1302.8443 | AB15: =(($D15*'fnd base rates'!J$107) +($E15*'fnd base rates'!J$108) +($F15*'fnd base rates'!J$109) +($G15*'fnd base rates'!J$110) +($H15*'fnd base rates'!J$111) +($I15*'fnd base rates'!J$112) +($J15*'fnd base rates'!J$113) +($K15*'fnd base rates'!J$114) +($M15*'fnd base rates'!J$116) +($N15*'fnd base rates'!J$117) +($O15*'fnd base rates'!J$118) +($P15*VLOOKUP($S15+12,rate_basefnd,10))) *$R15 -> 2971.231 | AC15: =(($D15*'fnd base rates'!K$107) +($E15*'fnd base rates'!K$108) +($F15*'fnd base rates'!K$109) +($G15*'fnd base rates'!K$110) +($H15*'fnd base rates'!K$111) +($I15*'fnd base rates'!K$112) +($J15*'fnd base rates'!K$113) +($K15*'fnd base rates'!K$114) +($M15*'fnd base rates'!K$116) +($N15*'fnd base rates'!K$117) +($O15*'fnd base rates'!K$118) +($P15*VLOOKUP($S15+12,rate_basefnd,11))) *$R15 -> 2659.485855 | AD15: =(($D15*'fnd base rates'!L$107) +($E15*'fnd base rates'!L$108) +($F15*'fnd base rates'!L$109) +($G15*'fnd base rates'!L$110) +($H15*'fnd base rates'!L$111) +($I15*'fnd base rates'!L$112) +($J15*'fnd base rates'!L$113) +($K15*'fnd base rates'!L$114) +($M15*'fnd base rates'!L$116) +($N15*'fnd base rates'!L$117) +($O15*'fnd base rates'!L$118) +($P15*VLOOKUP($S15+12,rate_basefnd,12))) -> 4688.21364 | AE15: =(($D15*'fnd base rates'!M$107) +($E15*'fnd base rates'!M$108) +($F15*'fnd base rates'!M$109) +($G15*'fnd base rates'!M$110) +($H15*'fnd base rates'!M$111) +($I15*'fnd base rates'!M$112) +($J15*'fnd base rates'!M$113) +($K15*'fnd base rates'!M$114) +($M15*'fnd base rates'!M$116) +($N15*'fnd base rates'!M$117) +($O15*'fnd base rates'!M$118) +($P15*VLOOKUP($S15+12,rate_basefnd,13))) -> 0 | AF15: 39480.38612 | AH15: 410035044 | AI15: 410 | AJ15: 035 | AK15: 044 | AL15: 1 | AM15: 2 | AN15: 39480.38612 | AO15: 19740 | AP15: 0 | AQ15: 19740 | AW15: 19726 | AX15: 0 | AY15: 19726 | AZ15: 14 | BA15: 19740
A16: 410 | B16: 410035049 | C16: EXCEL ACADEMY | D16: ='fnd enro'!D16 -> 0 | E16: ='fnd enro'!E16 -> 0 | F16: ='fnd enro'!F16 -> 0 | G16: ='fnd enro'!G16 -> 1 | H16: ='fnd enro'!H16 -> 0 | I16: ='fnd enro'!I16 -> 0 | J16: ='fnd enro'!J16 -> 0 | K16: ='fnd enro'!K16 -> 0.039 | L16: ='fnd enro'!L16 -> 0 | M16: ='fnd enro'!M16 -> 0 | N16: ='fnd enro'!N16 -> 0 | O16: ='fnd enro'!O16 -> 0 | P16: ='fnd enro'!P16 -> 1 | Q16: ='fnd enro'!R16 -> 1 | R16: 1.09 | S16: =VALUE('fnd enro'!Q16) -> 8 | U16: =(($D16*'fnd base rates'!C$107) +($E16*'fnd base rates'!C$108) +($F16*'fnd base rates'!C$109) +($G16*'fnd base rates'!C$110) +($H16*'fnd base rates'!C$111) +($I16*'fnd base rates'!C$112) +($J16*'fnd base rates'!C$113) +($K16*'fnd base rates'!C$114) +($M16*'fnd base rates'!C$116) +($N16*'fnd base rates'!C$117) +($O16*'fnd base rates'!C$118) +($P16*VLOOKUP($S16+12,rate_basefnd,3))) *$R16 -> 699.0623767 | V16: =(($D16*'fnd base rates'!D$107) +($E16*'fnd base rates'!D$108) +($F16*'fnd base rates'!D$109) +($G16*'fnd base rates'!D$110) +($H16*'fnd base rates'!D$111) +($I16*'fnd base rates'!D$112) +($J16*'fnd base rates'!D$113) +($K16*'fnd base rates'!D$114) +($M16*'fnd base rates'!D$116) +($N16*'fnd base rates'!D$117) +($O16*'fnd base rates'!D$118) +($P16*VLOOKUP($S16+12,rate_basefnd,4))) *$R16 -> 1282.1234 | W16: =(($D16*'fnd base rates'!E$107) +($E16*'fnd base rates'!E$108) +($F16*'fnd base rates'!E$109) +($G16*'fnd base rates'!E$110) +($H16*'fnd base rates'!E$111) +($I16*'fnd base rates'!E$112) +($J16*'fnd base rates'!E$113) +($K16*'fnd base rates'!E$114) +($M16*'fnd base rates'!E$116) +($N16*'fnd base rates'!E$117) +($O16*'fnd base rates'!E$118) +($P16*VLOOKUP($S16+12,rate_basefnd,5))) *$R16 -> 8433.264513 | X16: =(($D16*'fnd base rates'!F$107) +($E16*'fnd base rates'!F$108) +($F16*'fnd base rates'!F$109) +($G16*'fnd base rates'!F$110) +($H16*'fnd base rates'!F$111) +($I16*'fnd base rates'!F$112) +($J16*'fnd base rates'!F$113) +($K16*'fnd base rates'!F$114) +($M16*'fnd base rates'!F$116) +($N16*'fnd base rates'!F$117) +($O16*'fnd base rates'!F$118) +($P16*VLOOKUP($S16+12,rate_basefnd,6))) *$R16 -> 1425.008503 | Y16: =(($D16*'fnd base rates'!G$107) +($E16*'fnd base rates'!G$108) +($F16*'fnd base rates'!G$109) +($G16*'fnd base rates'!G$110) +($H16*'fnd base rates'!G$111) +($I16*'fnd base rates'!G$112) +($J16*'fnd base rates'!G$113) +($K16*'fnd base rates'!G$114) +($M16*'fnd base rates'!G$116) +($N16*'fnd base rates'!G$117) +($O16*'fnd base rates'!G$118) +($P16*VLOOKUP($S16+12,rate_basefnd,7))) *$R16 -> 373.2989381 | Z16: =(($D16*'fnd base rates'!H$107) +($E16*'fnd base rates'!H$108) +($F16*'fnd base rates'!H$109) +($G16*'fnd base rates'!H$110) +($H16*'fnd base rates'!H$111) +($I16*'fnd base rates'!H$112) +($J16*'fnd base rates'!H$113) +($K16*'fnd base rates'!H$114) +($M16*'fnd base rates'!H$116) +($N16*'fnd base rates'!H$117) +($O16*'fnd base rates'!H$118) +($P16*VLOOKUP($S16+12,rate_basefnd,8))) -> 574.52433 | AA16: =(($D16*'fnd base rates'!I$107) +($E16*'fnd base rates'!I$108) +($F16*'fnd base rates'!I$109) +($G16*'fnd base rates'!I$110) +($H16*'fnd base rates'!I$111) +($I16*'fnd base rates'!I$112) +($J16*'fnd base rates'!I$113) +($K16*'fnd base rates'!I$114) +($M16*'fnd base rates'!I$116) +($N16*'fnd base rates'!I$117) +($O16*'fnd base rates'!I$118) +($P16*VLOOKUP($S16+12,rate_basefnd,9))) *$R16 -> 540.3675 | AB16: =(($D16*'fnd base rates'!J$107) +($E16*'fnd base rates'!J$108) +($F16*'fnd base rates'!J$109) +($G16*'fnd base rates'!J$110) +($H16*'fnd base rates'!J$111) +($I16*'fnd base rates'!J$112) +($J16*'fnd base rates'!J$113) +($K16*'fnd base rates'!J$114) +($M16*'fnd base rates'!J$116) +($N16*'fnd base rates'!J$117) +($O16*'fnd base rates'!J$118) +($P16*VLOOKUP($S16+12,rate_basefnd,10))) *$R16 -> 1017.0136 | AC16: =(($D16*'fnd base rates'!K$107) +($E16*'fnd base rates'!K$108) +($F16*'fnd base rates'!K$109) +($G16*'fnd base rates'!K$110) +($H16*'fnd base rates'!K$111) +($I16*'fnd base rates'!K$112) +($J16*'fnd base rates'!K$113) +($K16*'fnd base rates'!K$114) +($M16*'fnd base rates'!K$116) +($N16*'fnd base rates'!K$117) +($O16*'fnd base rates'!K$118) +($P16*VLOOKUP($S16+12,rate_basefnd,11))) *$R16 -> 1254.685528 | AD16: =(($D16*'fnd base rates'!L$107) +($E16*'fnd base rates'!L$108) +($F16*'fnd base rates'!L$109) +($G16*'fnd base rates'!L$110) +($H16*'fnd base rates'!L$111) +($I16*'fnd base rates'!L$112) +($J16*'fnd base rates'!L$113) +($K16*'fnd base rates'!L$114) +($M16*'fnd base rates'!L$116) +($N16*'fnd base rates'!L$117) +($O16*'fnd base rates'!L$118) +($P16*VLOOKUP($S16+12,rate_basefnd,12))) -> 2216.13682 | AE16: =(($D16*'fnd base rates'!M$107) +($E16*'fnd base rates'!M$108) +($F16*'fnd base rates'!M$109) +($G16*'fnd base rates'!M$110) +($H16*'fnd base rates'!M$111) +($I16*'fnd base rates'!M$112) +($J16*'fnd base rates'!M$113) +($K16*'fnd base rates'!M$114) +($M16*'fnd base rates'!M$116) +($N16*'fnd base rates'!M$117) +($O16*'fnd base rates'!M$118) +($P16*VLOOKUP($S16+12,rate_basefnd,13))) -> 0 | AF16: 17815.48551 | AH16: 410035049 | AI16: 410 | AJ16: 035 | AK16: 049 | AL16: 1 | AM16: 1 | AN16: 17815.48551 | AO16: 17815 | AP16: 0 | AQ16: 17815 | AW16: 17804 | AX16: 0 | AY16: 17804 | AZ16: 11 | BA16: 17815
A17: 410 | B17: 410035057 | C17: EXCEL ACADEMY | D17: ='fnd enro'!D17 -> 0 | E17: ='fnd enro'!E17 -> 0 | F17: ='fnd enro'!F17 -> 0 | G17: ='fnd enro'!G17 -> 11 | H17: ='fnd enro'!H17 -> 73 | I17: ='fnd enro'!I17 -> 243 | J17: ='fnd enro'!J17 -> 0 | K17: ='fnd enro'!K17 -> 12.753 | L17: ='fnd enro'!L17 -> 0 | M17: ='fnd enro'!M17 -> 2 | N17: ='fnd enro'!N17 -> 12 | O17: ='fnd enro'!O17 -> 19 | P17: ='fnd enro'!P17 -> 247 | Q17: ='fnd enro'!R17 -> 327 | R17: 1.09 | S17: =VALUE('fnd enro'!Q17) -> 12 | U17: =(($D17*'fnd base rates'!C$107) +($E17*'fnd base rates'!C$108) +($F17*'fnd base rates'!C$109) +($G17*'fnd base rates'!C$110) +($H17*'fnd base rates'!C$111) +($I17*'fnd base rates'!C$112) +($J17*'fnd base rates'!C$113) +($K17*'fnd base rates'!C$114) +($M17*'fnd base rates'!C$116) +($N17*'fnd base rates'!C$117) +($O17*'fnd base rates'!C$118) +($P17*VLOOKUP($S17+12,rate_basefnd,3))) *$R17 -> 231981.9129 | V17: =(($D17*'fnd base rates'!D$107) +($E17*'fnd base rates'!D$108) +($F17*'fnd base rates'!D$109) +($G17*'fnd base rates'!D$110) +($H17*'fnd base rates'!D$111) +($I17*'fnd base rates'!D$112) +($J17*'fnd base rates'!D$113) +($K17*'fnd base rates'!D$114) +($M17*'fnd base rates'!D$116) +($N17*'fnd base rates'!D$117) +($O17*'fnd base rates'!D$118) +($P17*VLOOKUP($S17+12,rate_basefnd,4))) *$R17 -> 423061.1768 | W17: =(($D17*'fnd base rates'!E$107) +($E17*'fnd base rates'!E$108) +($F17*'fnd base rates'!E$109) +($G17*'fnd base rates'!E$110) +($H17*'fnd base rates'!E$111) +($I17*'fnd base rates'!E$112) +($J17*'fnd base rates'!E$113) +($K17*'fnd base rates'!E$114) +($M17*'fnd base rates'!E$116) +($N17*'fnd base rates'!E$117) +($O17*'fnd base rates'!E$118) +($P17*VLOOKUP($S17+12,rate_basefnd,5))) *$R17 -> 3025584.388 | X17: =(($D17*'fnd base rates'!F$107) +($E17*'fnd base rates'!F$108) +($F17*'fnd base rates'!F$109) +($G17*'fnd base rates'!F$110) +($H17*'fnd base rates'!F$111) +($I17*'fnd base rates'!F$112) +($J17*'fnd base rates'!F$113) +($K17*'fnd base rates'!F$114) +($M17*'fnd base rates'!F$116) +($N17*'fnd base rates'!F$117) +($O17*'fnd base rates'!F$118) +($P17*VLOOKUP($S17+12,rate_basefnd,6))) *$R17 -> 352393.927 | Y17: =(($D17*'fnd base rates'!G$107) +($E17*'fnd base rates'!G$108) +($F17*'fnd base rates'!G$109) +($G17*'fnd base rates'!G$110) +($H17*'fnd base rates'!G$111) +($I17*'fnd base rates'!G$112) +($J17*'fnd base rates'!G$113) +($K17*'fnd base rates'!G$114) +($M17*'fnd base rates'!G$116) +($N17*'fnd base rates'!G$117) +($O17*'fnd base rates'!G$118) +($P17*VLOOKUP($S17+12,rate_basefnd,7))) *$R17 -> 125453.7914 | Z17: =(($D17*'fnd base rates'!H$107) +($E17*'fnd base rates'!H$108) +($F17*'fnd base rates'!H$109) +($G17*'fnd base rates'!H$110) +($H17*'fnd base rates'!H$111) +($I17*'fnd base rates'!H$112) +($J17*'fnd base rates'!H$113) +($K17*'fnd base rates'!H$114) +($M17*'fnd base rates'!H$116) +($N17*'fnd base rates'!H$117) +($O17*'fnd base rates'!H$118) +($P17*VLOOKUP($S17+12,rate_basefnd,8))) -> 269703.1259 | AA17: =(($D17*'fnd base rates'!I$107) +($E17*'fnd base rates'!I$108) +($F17*'fnd base rates'!I$109) +($G17*'fnd base rates'!I$110) +($H17*'fnd base rates'!I$111) +($I17*'fnd base rates'!I$112) +($J17*'fnd base rates'!I$113) +($K17*'fnd base rates'!I$114) +($M17*'fnd base rates'!I$116) +($N17*'fnd base rates'!I$117) +($O17*'fnd base rates'!I$118) +($P17*VLOOKUP($S17+12,rate_basefnd,9))) *$R17 -> 207991.8816 | AB17: =(($D17*'fnd base rates'!J$107) +($E17*'fnd base rates'!J$108) +($F17*'fnd base rates'!J$109) +($G17*'fnd base rates'!J$110) +($H17*'fnd base rates'!J$111) +($I17*'fnd base rates'!J$112) +($J17*'fnd base rates'!J$113) +($K17*'fnd base rates'!J$114) +($M17*'fnd base rates'!J$116) +($N17*'fnd base rates'!J$117) +($O17*'fnd base rates'!J$118) +($P17*VLOOKUP($S17+12,rate_basefnd,10))) *$R17 -> 451337.6734 | AC17: =(($D17*'fnd base rates'!K$107) +($E17*'fnd base rates'!K$108) +($F17*'fnd base rates'!K$109) +($G17*'fnd base rates'!K$110) +($H17*'fnd base rates'!K$111) +($I17*'fnd base rates'!K$112) +($J17*'fnd base rates'!K$113) +($K17*'fnd base rates'!K$114) +($M17*'fnd base rates'!K$116) +($N17*'fnd base rates'!K$117) +($O17*'fnd base rates'!K$118) +($P17*VLOOKUP($S17+12,rate_basefnd,11))) *$R17 -> 443194.3142 | AD17: =(($D17*'fnd base rates'!L$107) +($E17*'fnd base rates'!L$108) +($F17*'fnd base rates'!L$109) +($G17*'fnd base rates'!L$110) +($H17*'fnd base rates'!L$111) +($I17*'fnd base rates'!L$112) +($J17*'fnd base rates'!L$113) +($K17*'fnd base rates'!L$114) +($M17*'fnd base rates'!L$116) +($N17*'fnd base rates'!L$117) +($O17*'fnd base rates'!L$118) +($P17*VLOOKUP($S17+12,rate_basefnd,12))) -> 716985.5901 | AE17: =(($D17*'fnd base rates'!M$107) +($E17*'fnd base rates'!M$108) +($F17*'fnd base rates'!M$109) +($G17*'fnd base rates'!M$110) +($H17*'fnd base rates'!M$111) +($I17*'fnd base rates'!M$112) +($J17*'fnd base rates'!M$113) +($K17*'fnd base rates'!M$114) +($M17*'fnd base rates'!M$116) +($N17*'fnd base rates'!M$117) +($O17*'fnd base rates'!M$118) +($P17*VLOOKUP($S17+12,rate_basefnd,13))) -> 0 | AF17: 6247687.782 | AH17: 410035057 | AI17: 410 | AJ17: 035 | AK17: 057 | AL17: 1 | AM17: 327 | AN17: 6247687.782 | AO17: 19106 | AP17: 0 | AQ17: 19106 | AW17: 19069 | AX17: 25 | AY17: 19094 | AZ17: 12 | BA17: 19106
A18: 410 | B18: 410035093 | C18: EXCEL ACADEMY | D18: ='fnd enro'!D18 -> 0 | E18: ='fnd enro'!E18 -> 0 | F18: ='fnd enro'!F18 -> 0 | G18: ='fnd enro'!G18 -> 0 | H18: ='fnd enro'!H18 -> 5 | I18: ='fnd enro'!I18 -> 13 | J18: ='fnd enro'!J18 -> 0 | K18: ='fnd enro'!K18 -> 0.702 | L18: ='fnd enro'!L18 -> 0 | M18: ='fnd enro'!M18 -> 0 | N18: ='fnd enro'!N18 -> 1 | O18: ='fnd enro'!O18 -> 2 | P18: ='fnd enro'!P18 -> 16 | Q18: ='fnd enro'!R18 -> 18 | R18: 1.09 | S18: =VALUE('fnd enro'!Q18) -> 11 | U18: =(($D18*'fnd base rates'!C$107) +($E18*'fnd base rates'!C$108) +($F18*'fnd base rates'!C$109) +($G18*'fnd base rates'!C$110) +($H18*'fnd base rates'!C$111) +($I18*'fnd base rates'!C$112) +($J18*'fnd base rates'!C$113) +($K18*'fnd base rates'!C$114) +($M18*'fnd base rates'!C$116) +($N18*'fnd base rates'!C$117) +($O18*'fnd base rates'!C$118) +($P18*VLOOKUP($S18+12,rate_basefnd,3))) *$R18 -> 13069.48078 | V18: =(($D18*'fnd base rates'!D$107) +($E18*'fnd base rates'!D$108) +($F18*'fnd base rates'!D$109) +($G18*'fnd base rates'!D$110) +($H18*'fnd base rates'!D$111) +($I18*'fnd base rates'!D$112) +($J18*'fnd base rates'!D$113) +($K18*'fnd base rates'!D$114) +($M18*'fnd base rates'!D$116) +($N18*'fnd base rates'!D$117) +($O18*'fnd base rates'!D$118) +($P18*VLOOKUP($S18+12,rate_basefnd,4))) *$R18 -> 24264.2393 | W18: =(($D18*'fnd base rates'!E$107) +($E18*'fnd base rates'!E$108) +($F18*'fnd base rates'!E$109) +($G18*'fnd base rates'!E$110) +($H18*'fnd base rates'!E$111) +($I18*'fnd base rates'!E$112) +($J18*'fnd base rates'!E$113) +($K18*'fnd base rates'!E$114) +($M18*'fnd base rates'!E$116) +($N18*'fnd base rates'!E$117) +($O18*'fnd base rates'!E$118) +($P18*VLOOKUP($S18+12,rate_basefnd,5))) *$R18 -> 174448.438 | X18: =(($D18*'fnd base rates'!F$107) +($E18*'fnd base rates'!F$108) +($F18*'fnd base rates'!F$109) +($G18*'fnd base rates'!F$110) +($H18*'fnd base rates'!F$111) +($I18*'fnd base rates'!F$112) +($J18*'fnd base rates'!F$113) +($K18*'fnd base rates'!F$114) +($M18*'fnd base rates'!F$116) +($N18*'fnd base rates'!F$117) +($O18*'fnd base rates'!F$118) +($P18*VLOOKUP($S18+12,rate_basefnd,6))) *$R18 -> 19530.31534 | Y18: =(($D18*'fnd base rates'!G$107) +($E18*'fnd base rates'!G$108) +($F18*'fnd base rates'!G$109) +($G18*'fnd base rates'!G$110) +($H18*'fnd base rates'!G$111) +($I18*'fnd base rates'!G$112) +($J18*'fnd base rates'!G$113) +($K18*'fnd base rates'!G$114) +($M18*'fnd base rates'!G$116) +($N18*'fnd base rates'!G$117) +($O18*'fnd base rates'!G$118) +($P18*VLOOKUP($S18+12,rate_basefnd,7))) *$R18 -> 7329.432086 | Z18: =(($D18*'fnd base rates'!H$107) +($E18*'fnd base rates'!H$108) +($F18*'fnd base rates'!H$109) +($G18*'fnd base rates'!H$110) +($H18*'fnd base rates'!H$111) +($I18*'fnd base rates'!H$112) +($J18*'fnd base rates'!H$113) +($K18*'fnd base rates'!H$114) +($M18*'fnd base rates'!H$116) +($N18*'fnd base rates'!H$117) +($O18*'fnd base rates'!H$118) +($P18*VLOOKUP($S18+12,rate_basefnd,8))) -> 14944.29794 | AA18: =(($D18*'fnd base rates'!I$107) +($E18*'fnd base rates'!I$108) +($F18*'fnd base rates'!I$109) +($G18*'fnd base rates'!I$110) +($H18*'fnd base rates'!I$111) +($I18*'fnd base rates'!I$112) +($J18*'fnd base rates'!I$113) +($K18*'fnd base rates'!I$114) +($M18*'fnd base rates'!I$116) +($N18*'fnd base rates'!I$117) +($O18*'fnd base rates'!I$118) +($P18*VLOOKUP($S18+12,rate_basefnd,9))) *$R18 -> 11850.7634 | AB18: =(($D18*'fnd base rates'!J$107) +($E18*'fnd base rates'!J$108) +($F18*'fnd base rates'!J$109) +($G18*'fnd base rates'!J$110) +($H18*'fnd base rates'!J$111) +($I18*'fnd base rates'!J$112) +($J18*'fnd base rates'!J$113) +($K18*'fnd base rates'!J$114) +($M18*'fnd base rates'!J$116) +($N18*'fnd base rates'!J$117) +($O18*'fnd base rates'!J$118) +($P18*VLOOKUP($S18+12,rate_basefnd,10))) *$R18 -> 26280.8265 | AC18: =(($D18*'fnd base rates'!K$107) +($E18*'fnd base rates'!K$108) +($F18*'fnd base rates'!K$109) +($G18*'fnd base rates'!K$110) +($H18*'fnd base rates'!K$111) +($I18*'fnd base rates'!K$112) +($J18*'fnd base rates'!K$113) +($K18*'fnd base rates'!K$114) +($M18*'fnd base rates'!K$116) +($N18*'fnd base rates'!K$117) +($O18*'fnd base rates'!K$118) +($P18*VLOOKUP($S18+12,rate_basefnd,11))) *$R18 -> 24911.7293 | AD18: =(($D18*'fnd base rates'!L$107) +($E18*'fnd base rates'!L$108) +($F18*'fnd base rates'!L$109) +($G18*'fnd base rates'!L$110) +($H18*'fnd base rates'!L$111) +($I18*'fnd base rates'!L$112) +($J18*'fnd base rates'!L$113) +($K18*'fnd base rates'!L$114) +($M18*'fnd base rates'!L$116) +($N18*'fnd base rates'!L$117) +($O18*'fnd base rates'!L$118) +($P18*VLOOKUP($S18+12,rate_basefnd,12))) -> 41023.75276 | AE18: =(($D18*'fnd base rates'!M$107) +($E18*'fnd base rates'!M$108) +($F18*'fnd base rates'!M$109) +($G18*'fnd base rates'!M$110) +($H18*'fnd base rates'!M$111) +($I18*'fnd base rates'!M$112) +($J18*'fnd base rates'!M$113) +($K18*'fnd base rates'!M$114) +($M18*'fnd base rates'!M$116) +($N18*'fnd base rates'!M$117) +($O18*'fnd base rates'!M$118) +($P18*VLOOKUP($S18+12,rate_basefnd,13))) -> 0 | AF18: 357653.2754 | AH18: 410035093 | AI18: 410 | AJ18: 035 | AK18: 093 | AL18: 1 | AM18: 18 | AN18: 357653.2754 | AO18: 19870 | AP18: 0 | AQ18: 19870 | AW18: 19856 | AX18: 0 | AY18: 19856 | AZ18: 14 | BA18: 19870
A19: 410 | B19: 410035160 | C19: EXCEL ACADEMY | D19: ='fnd enro'!D19 -> 0 | E19: ='fnd enro'!E19 -> 0 | F19: ='fnd enro'!F19 -> 0 | G19: ='fnd enro'!G19 -> 0 | H19: ='fnd enro'!H19 -> 0 | I19: ='fnd enro'!I19 -> 3 | J19: ='fnd enro'!J19 -> 0 | K19: ='fnd enro'!K19 -> 0.117 | L19: ='fnd enro'!L19 -> 0 | M19: ='fnd enro'!M19 -> 0 | N19: ='fnd enro'!N19 -> 0 | O19: ='fnd enro'!O19 -> 0 | P19: ='fnd enro'!P19 -> 2 | Q19: ='fnd enro'!R19 -> 3 | R19: 1.09 | S19: =VALUE('fnd enro'!Q19) -> 11 | U19: =(($D19*'fnd base rates'!C$107) +($E19*'fnd base rates'!C$108) +($F19*'fnd base rates'!C$109) +($G19*'fnd base rates'!C$110) +($H19*'fnd base rates'!C$111) +($I19*'fnd base rates'!C$112) +($J19*'fnd base rates'!C$113) +($K19*'fnd base rates'!C$114) +($M19*'fnd base rates'!C$116) +($N19*'fnd base rates'!C$117) +($O19*'fnd base rates'!C$118) +($P19*VLOOKUP($S19+12,rate_basefnd,3))) *$R19 -> 2046.19693 | V19: =(($D19*'fnd base rates'!D$107) +($E19*'fnd base rates'!D$108) +($F19*'fnd base rates'!D$109) +($G19*'fnd base rates'!D$110) +($H19*'fnd base rates'!D$111) +($I19*'fnd base rates'!D$112) +($J19*'fnd base rates'!D$113) +($K19*'fnd base rates'!D$114) +($M19*'fnd base rates'!D$116) +($N19*'fnd base rates'!D$117) +($O19*'fnd base rates'!D$118) +($P19*VLOOKUP($S19+12,rate_basefnd,4))) *$R19 -> 3604.7717 | W19: =(($D19*'fnd base rates'!E$107) +($E19*'fnd base rates'!E$108) +($F19*'fnd base rates'!E$109) +($G19*'fnd base rates'!E$110) +($H19*'fnd base rates'!E$111) +($I19*'fnd base rates'!E$112) +($J19*'fnd base rates'!E$113) +($K19*'fnd base rates'!E$114) +($M19*'fnd base rates'!E$116) +($N19*'fnd base rates'!E$117) +($O19*'fnd base rates'!E$118) +($P19*VLOOKUP($S19+12,rate_basefnd,5))) *$R19 -> 26466.98734 | X19: =(($D19*'fnd base rates'!F$107) +($E19*'fnd base rates'!F$108) +($F19*'fnd base rates'!F$109) +($G19*'fnd base rates'!F$110) +($H19*'fnd base rates'!F$111) +($I19*'fnd base rates'!F$112) +($J19*'fnd base rates'!F$113) +($K19*'fnd base rates'!F$114) +($M19*'fnd base rates'!F$116) +($N19*'fnd base rates'!F$117) +($O19*'fnd base rates'!F$118) +($P19*VLOOKUP($S19+12,rate_basefnd,6))) *$R19 -> 3042.922208 | Y19: =(($D19*'fnd base rates'!G$107) +($E19*'fnd base rates'!G$108) +($F19*'fnd base rates'!G$109) +($G19*'fnd base rates'!G$110) +($H19*'fnd base rates'!G$111) +($I19*'fnd base rates'!G$112) +($J19*'fnd base rates'!G$113) +($K19*'fnd base rates'!G$114) +($M19*'fnd base rates'!G$116) +($N19*'fnd base rates'!G$117) +($O19*'fnd base rates'!G$118) +($P19*VLOOKUP($S19+12,rate_basefnd,7))) *$R19 -> 1029.710214 | Z19: =(($D19*'fnd base rates'!H$107) +($E19*'fnd base rates'!H$108) +($F19*'fnd base rates'!H$109) +($G19*'fnd base rates'!H$110) +($H19*'fnd base rates'!H$111) +($I19*'fnd base rates'!H$112) +($J19*'fnd base rates'!H$113) +($K19*'fnd base rates'!H$114) +($M19*'fnd base rates'!H$116) +($N19*'fnd base rates'!H$117) +($O19*'fnd base rates'!H$118) +($P19*VLOOKUP($S19+12,rate_basefnd,8))) -> 2662.50299 | AA19: =(($D19*'fnd base rates'!I$107) +($E19*'fnd base rates'!I$108) +($F19*'fnd base rates'!I$109) +($G19*'fnd base rates'!I$110) +($H19*'fnd base rates'!I$111) +($I19*'fnd base rates'!I$112) +($J19*'fnd base rates'!I$113) +($K19*'fnd base rates'!I$114) +($M19*'fnd base rates'!I$116) +($N19*'fnd base rates'!I$117) +($O19*'fnd base rates'!I$118) +($P19*VLOOKUP($S19+12,rate_basefnd,9))) *$R19 -> 1847.0159 | AB19: =(($D19*'fnd base rates'!J$107) +($E19*'fnd base rates'!J$108) +($F19*'fnd base rates'!J$109) +($G19*'fnd base rates'!J$110) +($H19*'fnd base rates'!J$111) +($I19*'fnd base rates'!J$112) +($J19*'fnd base rates'!J$113) +($K19*'fnd base rates'!J$114) +($M19*'fnd base rates'!J$116) +($N19*'fnd base rates'!J$117) +($O19*'fnd base rates'!J$118) +($P19*VLOOKUP($S19+12,rate_basefnd,10))) *$R19 -> 3994.8827 | AC19: =(($D19*'fnd base rates'!K$107) +($E19*'fnd base rates'!K$108) +($F19*'fnd base rates'!K$109) +($G19*'fnd base rates'!K$110) +($H19*'fnd base rates'!K$111) +($I19*'fnd base rates'!K$112) +($J19*'fnd base rates'!K$113) +($K19*'fnd base rates'!K$114) +($M19*'fnd base rates'!K$116) +($N19*'fnd base rates'!K$117) +($O19*'fnd base rates'!K$118) +($P19*VLOOKUP($S19+12,rate_basefnd,11))) *$R19 -> 3934.390883 | AD19: =(($D19*'fnd base rates'!L$107) +($E19*'fnd base rates'!L$108) +($F19*'fnd base rates'!L$109) +($G19*'fnd base rates'!L$110) +($H19*'fnd base rates'!L$111) +($I19*'fnd base rates'!L$112) +($J19*'fnd base rates'!L$113) +($K19*'fnd base rates'!L$114) +($M19*'fnd base rates'!L$116) +($N19*'fnd base rates'!L$117) +($O19*'fnd base rates'!L$118) +($P19*VLOOKUP($S19+12,rate_basefnd,12))) -> 6049.46046 | AE19: =(($D19*'fnd base rates'!M$107) +($E19*'fnd base rates'!M$108) +($F19*'fnd base rates'!M$109) +($G19*'fnd base rates'!M$110) +($H19*'fnd base rates'!M$111) +($I19*'fnd base rates'!M$112) +($J19*'fnd base rates'!M$113) +($K19*'fnd base rates'!M$114) +($M19*'fnd base rates'!M$116) +($N19*'fnd base rates'!M$117) +($O19*'fnd base rates'!M$118) +($P19*VLOOKUP($S19+12,rate_basefnd,13))) -> 0 | AF19: 54678.84132 | AH19: 410035160 | AI19: 410 | AJ19: 035 | AK19: 160 | AL19: 1 | AM19: 3 | AN19: 54678.84132 | AO19: 18226 | AP19: 0 | AQ19: 18226 | AW19: 18217 | AX19: 0 | AY19: 18217 | AZ19: 9 | BA19: 18226
A20: 410 | B20: 410035163 | C20: EXCEL ACADEMY | D20: ='fnd enro'!D20 -> 0 | E20: ='fnd enro'!E20 -> 0 | F20: ='fnd enro'!F20 -> 0 | G20: ='fnd enro'!G20 -> 0 | H20: ='fnd enro'!H20 -> 9 | I20: ='fnd enro'!I20 -> 21 | J20: ='fnd enro'!J20 -> 0 | K20: ='fnd enro'!K20 -> 1.17 | L20: ='fnd enro'!L20 -> 0 | M20: ='fnd enro'!M20 -> 0 | N20: ='fnd enro'!N20 -> 0 | O20: ='fnd enro'!O20 -> 1 | P20: ='fnd enro'!P20 -> 23 | Q20: ='fnd enro'!R20 -> 30 | R20: 1.09 | S20: =VALUE('fnd enro'!Q20) -> 11 | U20: =(($D20*'fnd base rates'!C$107) +($E20*'fnd base rates'!C$108) +($F20*'fnd base rates'!C$109) +($G20*'fnd base rates'!C$110) +($H20*'fnd base rates'!C$111) +($I20*'fnd base rates'!C$112) +($J20*'fnd base rates'!C$113) +($K20*'fnd base rates'!C$114) +($M20*'fnd base rates'!C$116) +($N20*'fnd base rates'!C$117) +($O20*'fnd base rates'!C$118) +($P20*VLOOKUP($S20+12,rate_basefnd,3))) *$R20 -> 20900.4436 | V20: =(($D20*'fnd base rates'!D$107) +($E20*'fnd base rates'!D$108) +($F20*'fnd base rates'!D$109) +($G20*'fnd base rates'!D$110) +($H20*'fnd base rates'!D$111) +($I20*'fnd base rates'!D$112) +($J20*'fnd base rates'!D$113) +($K20*'fnd base rates'!D$114) +($M20*'fnd base rates'!D$116) +($N20*'fnd base rates'!D$117) +($O20*'fnd base rates'!D$118) +($P20*VLOOKUP($S20+12,rate_basefnd,4))) *$R20 -> 37751.8775 | W20: =(($D20*'fnd base rates'!E$107) +($E20*'fnd base rates'!E$108) +($F20*'fnd base rates'!E$109) +($G20*'fnd base rates'!E$110) +($H20*'fnd base rates'!E$111) +($I20*'fnd base rates'!E$112) +($J20*'fnd base rates'!E$113) +($K20*'fnd base rates'!E$114) +($M20*'fnd base rates'!E$116) +($N20*'fnd base rates'!E$117) +($O20*'fnd base rates'!E$118) +($P20*VLOOKUP($S20+12,rate_basefnd,5))) *$R20 -> 265809.6973 | X20: =(($D20*'fnd base rates'!F$107) +($E20*'fnd base rates'!F$108) +($F20*'fnd base rates'!F$109) +($G20*'fnd base rates'!F$110) +($H20*'fnd base rates'!F$111) +($I20*'fnd base rates'!F$112) +($J20*'fnd base rates'!F$113) +($K20*'fnd base rates'!F$114) +($M20*'fnd base rates'!F$116) +($N20*'fnd base rates'!F$117) +($O20*'fnd base rates'!F$118) +($P20*VLOOKUP($S20+12,rate_basefnd,6))) *$R20 -> 31760.07938 | Y20: =(($D20*'fnd base rates'!G$107) +($E20*'fnd base rates'!G$108) +($F20*'fnd base rates'!G$109) +($G20*'fnd base rates'!G$110) +($H20*'fnd base rates'!G$111) +($I20*'fnd base rates'!G$112) +($J20*'fnd base rates'!G$113) +($K20*'fnd base rates'!G$114) +($M20*'fnd base rates'!G$116) +($N20*'fnd base rates'!G$117) +($O20*'fnd base rates'!G$118) +($P20*VLOOKUP($S20+12,rate_basefnd,7))) *$R20 -> 11109.91514 | Z20: =(($D20*'fnd base rates'!H$107) +($E20*'fnd base rates'!H$108) +($F20*'fnd base rates'!H$109) +($G20*'fnd base rates'!H$110) +($H20*'fnd base rates'!H$111) +($I20*'fnd base rates'!H$112) +($J20*'fnd base rates'!H$113) +($K20*'fnd base rates'!H$114) +($M20*'fnd base rates'!H$116) +($N20*'fnd base rates'!H$117) +($O20*'fnd base rates'!H$118) +($P20*VLOOKUP($S20+12,rate_basefnd,8))) -> 24002.0599 | AA20: =(($D20*'fnd base rates'!I$107) +($E20*'fnd base rates'!I$108) +($F20*'fnd base rates'!I$109) +($G20*'fnd base rates'!I$110) +($H20*'fnd base rates'!I$111) +($I20*'fnd base rates'!I$112) +($J20*'fnd base rates'!I$113) +($K20*'fnd base rates'!I$114) +($M20*'fnd base rates'!I$116) +($N20*'fnd base rates'!I$117) +($O20*'fnd base rates'!I$118) +($P20*VLOOKUP($S20+12,rate_basefnd,9))) *$R20 -> 18620.0885 | AB20: =(($D20*'fnd base rates'!J$107) +($E20*'fnd base rates'!J$108) +($F20*'fnd base rates'!J$109) +($G20*'fnd base rates'!J$110) +($H20*'fnd base rates'!J$111) +($I20*'fnd base rates'!J$112) +($J20*'fnd base rates'!J$113) +($K20*'fnd base rates'!J$114) +($M20*'fnd base rates'!J$116) +($N20*'fnd base rates'!J$117) +($O20*'fnd base rates'!J$118) +($P20*VLOOKUP($S20+12,rate_basefnd,10))) *$R20 -> 39700.4051 | AC20: =(($D20*'fnd base rates'!K$107) +($E20*'fnd base rates'!K$108) +($F20*'fnd base rates'!K$109) +($G20*'fnd base rates'!K$110) +($H20*'fnd base rates'!K$111) +($I20*'fnd base rates'!K$112) +($J20*'fnd base rates'!K$113) +($K20*'fnd base rates'!K$114) +($M20*'fnd base rates'!K$116) +($N20*'fnd base rates'!K$117) +($O20*'fnd base rates'!K$118) +($P20*VLOOKUP($S20+12,rate_basefnd,11))) *$R20 -> 40047.66733 | AD20: =(($D20*'fnd base rates'!L$107) +($E20*'fnd base rates'!L$108) +($F20*'fnd base rates'!L$109) +($G20*'fnd base rates'!L$110) +($H20*'fnd base rates'!L$111) +($I20*'fnd base rates'!L$112) +($J20*'fnd base rates'!L$113) +($K20*'fnd base rates'!L$114) +($M20*'fnd base rates'!L$116) +($N20*'fnd base rates'!L$117) +($O20*'fnd base rates'!L$118) +($P20*VLOOKUP($S20+12,rate_basefnd,12))) -> 64518.0246 | AE20: =(($D20*'fnd base rates'!M$107) +($E20*'fnd base rates'!M$108) +($F20*'fnd base rates'!M$109) +($G20*'fnd base rates'!M$110) +($H20*'fnd base rates'!M$111) +($I20*'fnd base rates'!M$112) +($J20*'fnd base rates'!M$113) +($K20*'fnd base rates'!M$114) +($M20*'fnd base rates'!M$116) +($N20*'fnd base rates'!M$117) +($O20*'fnd base rates'!M$118) +($P20*VLOOKUP($S20+12,rate_basefnd,13))) -> 0 | AF20: 554220.2583 | AH20: 410035163 | AI20: 410 | AJ20: 035 | AK20: 163 | AL20: 1 | AM20: 30 | AN20: 554220.2583 | AO20: 18474 | AP20: 0 | AQ20: 18474 | AW20: 18874 | AX20: -411 | AY20: 18463 | AZ20: 11 | BA20: 18474
A21: 410 | B21: 410035165 | C21: EXCEL ACADEMY | D21: ='fnd enro'!D21 -> 0 | E21: ='fnd enro'!E21 -> 0 | F21: ='fnd enro'!F21 -> 0 | G21: ='fnd enro'!G21 -> 0 | H21: ='fnd enro'!H21 -> 1 | I21: ='fnd enro'!I21 -> 5 | J21: ='fnd enro'!J21 -> 0 | K21: ='fnd enro'!K21 -> 0.234 | L21: ='fnd enro'!L21 -> 0 | M21: ='fnd enro'!M21 -> 0 | N21: ='fnd enro'!N21 -> 0 | O21: ='fnd enro'!O21 -> 0 | P21: ='fnd enro'!P21 -> 4 | Q21: ='fnd enro'!R21 -> 6 | R21: 1.09 | S21: =VALUE('fnd enro'!Q21) -> 10 | U21: =(($D21*'fnd base rates'!C$107) +($E21*'fnd base rates'!C$108) +($F21*'fnd base rates'!C$109) +($G21*'fnd base rates'!C$110) +($H21*'fnd base rates'!C$111) +($I21*'fnd base rates'!C$112) +($J21*'fnd base rates'!C$113) +($K21*'fnd base rates'!C$114) +($M21*'fnd base rates'!C$116) +($N21*'fnd base rates'!C$117) +($O21*'fnd base rates'!C$118) +($P21*VLOOKUP($S21+12,rate_basefnd,3))) *$R21 -> 4062.96386 | V21: =(($D21*'fnd base rates'!D$107) +($E21*'fnd base rates'!D$108) +($F21*'fnd base rates'!D$109) +($G21*'fnd base rates'!D$110) +($H21*'fnd base rates'!D$111) +($I21*'fnd base rates'!D$112) +($J21*'fnd base rates'!D$113) +($K21*'fnd base rates'!D$114) +($M21*'fnd base rates'!D$116) +($N21*'fnd base rates'!D$117) +($O21*'fnd base rates'!D$118) +($P21*VLOOKUP($S21+12,rate_basefnd,4))) *$R21 -> 7070.2414 | W21: =(($D21*'fnd base rates'!E$107) +($E21*'fnd base rates'!E$108) +($F21*'fnd base rates'!E$109) +($G21*'fnd base rates'!E$110) +($H21*'fnd base rates'!E$111) +($I21*'fnd base rates'!E$112) +($J21*'fnd base rates'!E$113) +($K21*'fnd base rates'!E$114) +($M21*'fnd base rates'!E$116) +($N21*'fnd base rates'!E$117) +($O21*'fnd base rates'!E$118) +($P21*VLOOKUP($S21+12,rate_basefnd,5))) *$R21 -> 49919.15458 | X21: =(($D21*'fnd base rates'!F$107) +($E21*'fnd base rates'!F$108) +($F21*'fnd base rates'!F$109) +($G21*'fnd base rates'!F$110) +($H21*'fnd base rates'!F$111) +($I21*'fnd base rates'!F$112) +($J21*'fnd base rates'!F$113) +($K21*'fnd base rates'!F$114) +($M21*'fnd base rates'!F$116) +($N21*'fnd base rates'!F$117) +($O21*'fnd base rates'!F$118) +($P21*VLOOKUP($S21+12,rate_basefnd,6))) *$R21 -> 6209.428615 | Y21: =(($D21*'fnd base rates'!G$107) +($E21*'fnd base rates'!G$108) +($F21*'fnd base rates'!G$109) +($G21*'fnd base rates'!G$110) +($H21*'fnd base rates'!G$111) +($I21*'fnd base rates'!G$112) +($J21*'fnd base rates'!G$113) +($K21*'fnd base rates'!G$114) +($M21*'fnd base rates'!G$116) +($N21*'fnd base rates'!G$117) +($O21*'fnd base rates'!G$118) +($P21*VLOOKUP($S21+12,rate_basefnd,7))) *$R21 -> 1998.609329 | Z21: =(($D21*'fnd base rates'!H$107) +($E21*'fnd base rates'!H$108) +($F21*'fnd base rates'!H$109) +($G21*'fnd base rates'!H$110) +($H21*'fnd base rates'!H$111) +($I21*'fnd base rates'!H$112) +($J21*'fnd base rates'!H$113) +($K21*'fnd base rates'!H$114) +($M21*'fnd base rates'!H$116) +($N21*'fnd base rates'!H$117) +($O21*'fnd base rates'!H$118) +($P21*VLOOKUP($S21+12,rate_basefnd,8))) -> 4997.37598 | AA21: =(($D21*'fnd base rates'!I$107) +($E21*'fnd base rates'!I$108) +($F21*'fnd base rates'!I$109) +($G21*'fnd base rates'!I$110) +($H21*'fnd base rates'!I$111) +($I21*'fnd base rates'!I$112) +($J21*'fnd base rates'!I$113) +($K21*'fnd base rates'!I$114) +($M21*'fnd base rates'!I$116) +($N21*'fnd base rates'!I$117) +($O21*'fnd base rates'!I$118) +($P21*VLOOKUP($S21+12,rate_basefnd,9))) *$R21 -> 3579.9197 | AB21: =(($D21*'fnd base rates'!J$107) +($E21*'fnd base rates'!J$108) +($F21*'fnd base rates'!J$109) +($G21*'fnd base rates'!J$110) +($H21*'fnd base rates'!J$111) +($I21*'fnd base rates'!J$112) +($J21*'fnd base rates'!J$113) +($K21*'fnd base rates'!J$114) +($M21*'fnd base rates'!J$116) +($N21*'fnd base rates'!J$117) +($O21*'fnd base rates'!J$118) +($P21*VLOOKUP($S21+12,rate_basefnd,10))) *$R21 -> 7333.4546 | AC21: =(($D21*'fnd base rates'!K$107) +($E21*'fnd base rates'!K$108) +($F21*'fnd base rates'!K$109) +($G21*'fnd base rates'!K$110) +($H21*'fnd base rates'!K$111) +($I21*'fnd base rates'!K$112) +($J21*'fnd base rates'!K$113) +($K21*'fnd base rates'!K$114) +($M21*'fnd base rates'!K$116) +($N21*'fnd base rates'!K$117) +($O21*'fnd base rates'!K$118) +($P21*VLOOKUP($S21+12,rate_basefnd,11))) *$R21 -> 7905.340366 | AD21: =(($D21*'fnd base rates'!L$107) +($E21*'fnd base rates'!L$108) +($F21*'fnd base rates'!L$109) +($G21*'fnd base rates'!L$110) +($H21*'fnd base rates'!L$111) +($I21*'fnd base rates'!L$112) +($J21*'fnd base rates'!L$113) +($K21*'fnd base rates'!L$114) +($M21*'fnd base rates'!L$116) +($N21*'fnd base rates'!L$117) +($O21*'fnd base rates'!L$118) +($P21*VLOOKUP($S21+12,rate_basefnd,12))) -> 12060.50092 | AE21: =(($D21*'fnd base rates'!M$107) +($E21*'fnd base rates'!M$108) +($F21*'fnd base rates'!M$109) +($G21*'fnd base rates'!M$110) +($H21*'fnd base rates'!M$111) +($I21*'fnd base rates'!M$112) +($J21*'fnd base rates'!M$113) +($K21*'fnd base rates'!M$114) +($M21*'fnd base rates'!M$116) +($N21*'fnd base rates'!M$117) +($O21*'fnd base rates'!M$118) +($P21*VLOOKUP($S21+12,rate_basefnd,13))) -> 0 | AF21: 105136.9893 | AH21: 410035165 | AI21: 410 | AJ21: 035 | AK21: 165 | AL21: 1 | AM21: 6 | AN21: 105136.9893 | AO21: 17523 | AP21: 0 | AQ21: 17523 | AW21: 17514 | AX21: 0 | AY21: 17514 | AZ21: 9 | BA21: 17523
A22: 410 | B22: 410035176 | C22: EXCEL ACADEMY | D22: ='fnd enro'!D22 -> 0 | E22: ='fnd enro'!E22 -> 0 | F22: ='fnd enro'!F22 -> 0 | G22: ='fnd enro'!G22 -> 0 | H22: ='fnd enro'!H22 -> 0 | I22: ='fnd enro'!I22 -> 1 | J22: ='fnd enro'!J22 -> 0 | K22: ='fnd enro'!K22 -> 0.039 | L22: ='fnd enro'!L22 -> 0 | M22: ='fnd enro'!M22 -> 0 | N22: ='fnd enro'!N22 -> 0 | O22: ='fnd enro'!O22 -> 0 | P22: ='fnd enro'!P22 -> 1 | Q22: ='fnd enro'!R22 -> 1 | R22: 1.09 | S22: =VALUE('fnd enro'!Q22) -> 8 | U22: =(($D22*'fnd base rates'!C$107) +($E22*'fnd base rates'!C$108) +($F22*'fnd base rates'!C$109) +($G22*'fnd base rates'!C$110) +($H22*'fnd base rates'!C$111) +($I22*'fnd base rates'!C$112) +($J22*'fnd base rates'!C$113) +($K22*'fnd base rates'!C$114) +($M22*'fnd base rates'!C$116) +($N22*'fnd base rates'!C$117) +($O22*'fnd base rates'!C$118) +($P22*VLOOKUP($S22+12,rate_basefnd,3))) *$R22 -> 699.0623767 | V22: =(($D22*'fnd base rates'!D$107) +($E22*'fnd base rates'!D$108) +($F22*'fnd base rates'!D$109) +($G22*'fnd base rates'!D$110) +($H22*'fnd base rates'!D$111) +($I22*'fnd base rates'!D$112) +($J22*'fnd base rates'!D$113) +($K22*'fnd base rates'!D$114) +($M22*'fnd base rates'!D$116) +($N22*'fnd base rates'!D$117) +($O22*'fnd base rates'!D$118) +($P22*VLOOKUP($S22+12,rate_basefnd,4))) *$R22 -> 1282.1234 | W22: =(($D22*'fnd base rates'!E$107) +($E22*'fnd base rates'!E$108) +($F22*'fnd base rates'!E$109) +($G22*'fnd base rates'!E$110) +($H22*'fnd base rates'!E$111) +($I22*'fnd base rates'!E$112) +($J22*'fnd base rates'!E$113) +($K22*'fnd base rates'!E$114) +($M22*'fnd base rates'!E$116) +($N22*'fnd base rates'!E$117) +($O22*'fnd base rates'!E$118) +($P22*VLOOKUP($S22+12,rate_basefnd,5))) *$R22 -> 9608.502513 | X22: =(($D22*'fnd base rates'!F$107) +($E22*'fnd base rates'!F$108) +($F22*'fnd base rates'!F$109) +($G22*'fnd base rates'!F$110) +($H22*'fnd base rates'!F$111) +($I22*'fnd base rates'!F$112) +($J22*'fnd base rates'!F$113) +($K22*'fnd base rates'!F$114) +($M22*'fnd base rates'!F$116) +($N22*'fnd base rates'!F$117) +($O22*'fnd base rates'!F$118) +($P22*VLOOKUP($S22+12,rate_basefnd,6))) *$R22 -> 1014.307403 | Y22: =(($D22*'fnd base rates'!G$107) +($E22*'fnd base rates'!G$108) +($F22*'fnd base rates'!G$109) +($G22*'fnd base rates'!G$110) +($H22*'fnd base rates'!G$111) +($I22*'fnd base rates'!G$112) +($J22*'fnd base rates'!G$113) +($K22*'fnd base rates'!G$114) +($M22*'fnd base rates'!G$116) +($N22*'fnd base rates'!G$117) +($O22*'fnd base rates'!G$118) +($P22*VLOOKUP($S22+12,rate_basefnd,7))) *$R22 -> 381.3758381 | Z22: =(($D22*'fnd base rates'!H$107) +($E22*'fnd base rates'!H$108) +($F22*'fnd base rates'!H$109) +($G22*'fnd base rates'!H$110) +($H22*'fnd base rates'!H$111) +($I22*'fnd base rates'!H$112) +($J22*'fnd base rates'!H$113) +($K22*'fnd base rates'!H$114) +($M22*'fnd base rates'!H$116) +($N22*'fnd base rates'!H$117) +($O22*'fnd base rates'!H$118) +($P22*VLOOKUP($S22+12,rate_basefnd,8))) -> 892.87433 | AA22: =(($D22*'fnd base rates'!I$107) +($E22*'fnd base rates'!I$108) +($F22*'fnd base rates'!I$109) +($G22*'fnd base rates'!I$110) +($H22*'fnd base rates'!I$111) +($I22*'fnd base rates'!I$112) +($J22*'fnd base rates'!I$113) +($K22*'fnd base rates'!I$114) +($M22*'fnd base rates'!I$116) +($N22*'fnd base rates'!I$117) +($O22*'fnd base rates'!I$118) +($P22*VLOOKUP($S22+12,rate_basefnd,9))) *$R22 -> 647.5036 | AB22: =(($D22*'fnd base rates'!J$107) +($E22*'fnd base rates'!J$108) +($F22*'fnd base rates'!J$109) +($G22*'fnd base rates'!J$110) +($H22*'fnd base rates'!J$111) +($I22*'fnd base rates'!J$112) +($J22*'fnd base rates'!J$113) +($K22*'fnd base rates'!J$114) +($M22*'fnd base rates'!J$116) +($N22*'fnd base rates'!J$117) +($O22*'fnd base rates'!J$118) +($P22*VLOOKUP($S22+12,rate_basefnd,10))) *$R22 -> 1497.0496 | AC22: =(($D22*'fnd base rates'!K$107) +($E22*'fnd base rates'!K$108) +($F22*'fnd base rates'!K$109) +($G22*'fnd base rates'!K$110) +($H22*'fnd base rates'!K$111) +($I22*'fnd base rates'!K$112) +($J22*'fnd base rates'!K$113) +($K22*'fnd base rates'!K$114) +($M22*'fnd base rates'!K$116) +($N22*'fnd base rates'!K$117) +($O22*'fnd base rates'!K$118) +($P22*VLOOKUP($S22+12,rate_basefnd,11))) *$R22 -> 1311.463628 | AD22: =(($D22*'fnd base rates'!L$107) +($E22*'fnd base rates'!L$108) +($F22*'fnd base rates'!L$109) +($G22*'fnd base rates'!L$110) +($H22*'fnd base rates'!L$111) +($I22*'fnd base rates'!L$112) +($J22*'fnd base rates'!L$113) +($K22*'fnd base rates'!L$114) +($M22*'fnd base rates'!L$116) +($N22*'fnd base rates'!L$117) +($O22*'fnd base rates'!L$118) +($P22*VLOOKUP($S22+12,rate_basefnd,12))) -> 2135.48682 | AE22: =(($D22*'fnd base rates'!M$107) +($E22*'fnd base rates'!M$108) +($F22*'fnd base rates'!M$109) +($G22*'fnd base rates'!M$110) +($H22*'fnd base rates'!M$111) +($I22*'fnd base rates'!M$112) +($J22*'fnd base rates'!M$113) +($K22*'fnd base rates'!M$114) +($M22*'fnd base rates'!M$116) +($N22*'fnd base rates'!M$117) +($O22*'fnd base rates'!M$118) +($P22*VLOOKUP($S22+12,rate_basefnd,13))) -> 0 | AF22: 19469.74951 | AH22: 410035176 | AI22: 410 | AJ22: 035 | AK22: 176 | AL22: 1 | AM22: 1 | AN22: 19469.74951 | AO22: 19470 | AP22: 0 | AQ22: 19470 | AW22: 19458 | AX22: 0 | AY22: 19458 | AZ22: 12 | BA22: 19470
A23: 410 | B23: 410035229 | C23: EXCEL ACADEMY | D23: ='fnd enro'!D23 -> 0 | E23: ='fnd enro'!E23 -> 0 | F23: ='fnd enro'!F23 -> 0 | G23: ='fnd enro'!G23 -> 0 | H23: ='fnd enro'!H23 -> 0 | I23: ='fnd enro'!I23 -> 2 | J23: ='fnd enro'!J23 -> 0 | K23: ='fnd enro'!K23 -> 0.078 | L23: ='fnd enro'!L23 -> 0 | M23: ='fnd enro'!M23 -> 0 | N23: ='fnd enro'!N23 -> 0 | O23: ='fnd enro'!O23 -> 0 | P23: ='fnd enro'!P23 -> 2 | Q23: ='fnd enro'!R23 -> 2 | R23: 1.09 | S23: =VALUE('fnd enro'!Q23) -> 9 | U23: =(($D23*'fnd base rates'!C$107) +($E23*'fnd base rates'!C$108) +($F23*'fnd base rates'!C$109) +($G23*'fnd base rates'!C$110) +($H23*'fnd base rates'!C$111) +($I23*'fnd base rates'!C$112) +($J23*'fnd base rates'!C$113) +($K23*'fnd base rates'!C$114) +($M23*'fnd base rates'!C$116) +($N23*'fnd base rates'!C$117) +($O23*'fnd base rates'!C$118) +($P23*VLOOKUP($S23+12,rate_basefnd,3))) *$R23 -> 1408.610553 | V23: =(($D23*'fnd base rates'!D$107) +($E23*'fnd base rates'!D$108) +($F23*'fnd base rates'!D$109) +($G23*'fnd base rates'!D$110) +($H23*'fnd base rates'!D$111) +($I23*'fnd base rates'!D$112) +($J23*'fnd base rates'!D$113) +($K23*'fnd base rates'!D$114) +($M23*'fnd base rates'!D$116) +($N23*'fnd base rates'!D$117) +($O23*'fnd base rates'!D$118) +($P23*VLOOKUP($S23+12,rate_basefnd,4))) *$R23 -> 2613.9508 | W23: =(($D23*'fnd base rates'!E$107) +($E23*'fnd base rates'!E$108) +($F23*'fnd base rates'!E$109) +($G23*'fnd base rates'!E$110) +($H23*'fnd base rates'!E$111) +($I23*'fnd base rates'!E$112) +($J23*'fnd base rates'!E$113) +($K23*'fnd base rates'!E$114) +($M23*'fnd base rates'!E$116) +($N23*'fnd base rates'!E$117) +($O23*'fnd base rates'!E$118) +($P23*VLOOKUP($S23+12,rate_basefnd,5))) *$R23 -> 19702.14223 | X23: =(($D23*'fnd base rates'!F$107) +($E23*'fnd base rates'!F$108) +($F23*'fnd base rates'!F$109) +($G23*'fnd base rates'!F$110) +($H23*'fnd base rates'!F$111) +($I23*'fnd base rates'!F$112) +($J23*'fnd base rates'!F$113) +($K23*'fnd base rates'!F$114) +($M23*'fnd base rates'!F$116) +($N23*'fnd base rates'!F$117) +($O23*'fnd base rates'!F$118) +($P23*VLOOKUP($S23+12,rate_basefnd,6))) *$R23 -> 2028.614805 | Y23: =(($D23*'fnd base rates'!G$107) +($E23*'fnd base rates'!G$108) +($F23*'fnd base rates'!G$109) +($G23*'fnd base rates'!G$110) +($H23*'fnd base rates'!G$111) +($I23*'fnd base rates'!G$112) +($J23*'fnd base rates'!G$113) +($K23*'fnd base rates'!G$114) +($M23*'fnd base rates'!G$116) +($N23*'fnd base rates'!G$117) +($O23*'fnd base rates'!G$118) +($P23*VLOOKUP($S23+12,rate_basefnd,7))) *$R23 -> 786.2956762 | Z23: =(($D23*'fnd base rates'!H$107) +($E23*'fnd base rates'!H$108) +($F23*'fnd base rates'!H$109) +($G23*'fnd base rates'!H$110) +($H23*'fnd base rates'!H$111) +($I23*'fnd base rates'!H$112) +($J23*'fnd base rates'!H$113) +($K23*'fnd base rates'!H$114) +($M23*'fnd base rates'!H$116) +($N23*'fnd base rates'!H$117) +($O23*'fnd base rates'!H$118) +($P23*VLOOKUP($S23+12,rate_basefnd,8))) -> 1789.02866 | AA23: =(($D23*'fnd base rates'!I$107) +($E23*'fnd base rates'!I$108) +($F23*'fnd base rates'!I$109) +($G23*'fnd base rates'!I$110) +($H23*'fnd base rates'!I$111) +($I23*'fnd base rates'!I$112) +($J23*'fnd base rates'!I$113) +($K23*'fnd base rates'!I$114) +($M23*'fnd base rates'!I$116) +($N23*'fnd base rates'!I$117) +($O23*'fnd base rates'!I$118) +($P23*VLOOKUP($S23+12,rate_basefnd,9))) *$R23 -> 1314.649 | AB23: =(($D23*'fnd base rates'!J$107) +($E23*'fnd base rates'!J$108) +($F23*'fnd base rates'!J$109) +($G23*'fnd base rates'!J$110) +($H23*'fnd base rates'!J$111) +($I23*'fnd base rates'!J$112) +($J23*'fnd base rates'!J$113) +($K23*'fnd base rates'!J$114) +($M23*'fnd base rates'!J$116) +($N23*'fnd base rates'!J$117) +($O23*'fnd base rates'!J$118) +($P23*VLOOKUP($S23+12,rate_basefnd,10))) *$R23 -> 3096.1886 | AC23: =(($D23*'fnd base rates'!K$107) +($E23*'fnd base rates'!K$108) +($F23*'fnd base rates'!K$109) +($G23*'fnd base rates'!K$110) +($H23*'fnd base rates'!K$111) +($I23*'fnd base rates'!K$112) +($J23*'fnd base rates'!K$113) +($K23*'fnd base rates'!K$114) +($M23*'fnd base rates'!K$116) +($N23*'fnd base rates'!K$117) +($O23*'fnd base rates'!K$118) +($P23*VLOOKUP($S23+12,rate_basefnd,11))) *$R23 -> 2622.927255 | AD23: =(($D23*'fnd base rates'!L$107) +($E23*'fnd base rates'!L$108) +($F23*'fnd base rates'!L$109) +($G23*'fnd base rates'!L$110) +($H23*'fnd base rates'!L$111) +($I23*'fnd base rates'!L$112) +($J23*'fnd base rates'!L$113) +($K23*'fnd base rates'!L$114) +($M23*'fnd base rates'!L$116) +($N23*'fnd base rates'!L$117) +($O23*'fnd base rates'!L$118) +($P23*VLOOKUP($S23+12,rate_basefnd,12))) -> 4344.41364 | AE23: =(($D23*'fnd base rates'!M$107) +($E23*'fnd base rates'!M$108) +($F23*'fnd base rates'!M$109) +($G23*'fnd base rates'!M$110) +($H23*'fnd base rates'!M$111) +($I23*'fnd base rates'!M$112) +($J23*'fnd base rates'!M$113) +($K23*'fnd base rates'!M$114) +($M23*'fnd base rates'!M$116) +($N23*'fnd base rates'!M$117) +($O23*'fnd base rates'!M$118) +($P23*VLOOKUP($S23+12,rate_basefnd,13))) -> 0 | AF23: 39706.82122 | AH23: 410035229 | AI23: 410 | AJ23: 035 | AK23: 229 | AL23: 1 | AM23: 2 | AN23: 39706.82122 | AO23: 19853 | AP23: 0 | AQ23: 19853 | AW23: 19841 | AX23: 0 | AY23: 19841 | AZ23: 12 | BA23: 19853
A24: 410 | B24: 410035244 | C24: EXCEL ACADEMY | D24: ='fnd enro'!D24 -> 0 | E24: ='fnd enro'!E24 -> 0 | F24: ='fnd enro'!F24 -> 0 | G24: ='fnd enro'!G24 -> 0 | H24: ='fnd enro'!H24 -> 0 | I24: ='fnd enro'!I24 -> 1 | J24: ='fnd enro'!J24 -> 0 | K24: ='fnd enro'!K24 -> 0.039 | L24: ='fnd enro'!L24 -> 0 | M24: ='fnd enro'!M24 -> 0 | N24: ='fnd enro'!N24 -> 0 | O24: ='fnd enro'!O24 -> 0 | P24: ='fnd enro'!P24 -> 1 | Q24: ='fnd enro'!R24 -> 1 | R24: 1.09 | S24: =VALUE('fnd enro'!Q24) -> 10 | U24: =(($D24*'fnd base rates'!C$107) +($E24*'fnd base rates'!C$108) +($F24*'fnd base rates'!C$109) +($G24*'fnd base rates'!C$110) +($H24*'fnd base rates'!C$111) +($I24*'fnd base rates'!C$112) +($J24*'fnd base rates'!C$113) +($K24*'fnd base rates'!C$114) +($M24*'fnd base rates'!C$116) +($N24*'fnd base rates'!C$117) +($O24*'fnd base rates'!C$118) +($P24*VLOOKUP($S24+12,rate_basefnd,3))) *$R24 -> 709.5481767 | V24: =(($D24*'fnd base rates'!D$107) +($E24*'fnd base rates'!D$108) +($F24*'fnd base rates'!D$109) +($G24*'fnd base rates'!D$110) +($H24*'fnd base rates'!D$111) +($I24*'fnd base rates'!D$112) +($J24*'fnd base rates'!D$113) +($K24*'fnd base rates'!D$114) +($M24*'fnd base rates'!D$116) +($N24*'fnd base rates'!D$117) +($O24*'fnd base rates'!D$118) +($P24*VLOOKUP($S24+12,rate_basefnd,4))) *$R24 -> 1331.8274 | W24: =(($D24*'fnd base rates'!E$107) +($E24*'fnd base rates'!E$108) +($F24*'fnd base rates'!E$109) +($G24*'fnd base rates'!E$110) +($H24*'fnd base rates'!E$111) +($I24*'fnd base rates'!E$112) +($J24*'fnd base rates'!E$113) +($K24*'fnd base rates'!E$114) +($M24*'fnd base rates'!E$116) +($N24*'fnd base rates'!E$117) +($O24*'fnd base rates'!E$118) +($P24*VLOOKUP($S24+12,rate_basefnd,5))) *$R24 -> 10093.65061 | X24: =(($D24*'fnd base rates'!F$107) +($E24*'fnd base rates'!F$108) +($F24*'fnd base rates'!F$109) +($G24*'fnd base rates'!F$110) +($H24*'fnd base rates'!F$111) +($I24*'fnd base rates'!F$112) +($J24*'fnd base rates'!F$113) +($K24*'fnd base rates'!F$114) +($M24*'fnd base rates'!F$116) +($N24*'fnd base rates'!F$117) +($O24*'fnd base rates'!F$118) +($P24*VLOOKUP($S24+12,rate_basefnd,6))) *$R24 -> 1014.307403 | Y24: =(($D24*'fnd base rates'!G$107) +($E24*'fnd base rates'!G$108) +($F24*'fnd base rates'!G$109) +($G24*'fnd base rates'!G$110) +($H24*'fnd base rates'!G$111) +($I24*'fnd base rates'!G$112) +($J24*'fnd base rates'!G$113) +($K24*'fnd base rates'!G$114) +($M24*'fnd base rates'!G$116) +($N24*'fnd base rates'!G$117) +($O24*'fnd base rates'!G$118) +($P24*VLOOKUP($S24+12,rate_basefnd,7))) *$R24 -> 404.9089381 | Z24: =(($D24*'fnd base rates'!H$107) +($E24*'fnd base rates'!H$108) +($F24*'fnd base rates'!H$109) +($G24*'fnd base rates'!H$110) +($H24*'fnd base rates'!H$111) +($I24*'fnd base rates'!H$112) +($J24*'fnd base rates'!H$113) +($K24*'fnd base rates'!H$114) +($M24*'fnd base rates'!H$116) +($N24*'fnd base rates'!H$117) +($O24*'fnd base rates'!H$118) +($P24*VLOOKUP($S24+12,rate_basefnd,8))) -> 896.17433 | AA24: =(($D24*'fnd base rates'!I$107) +($E24*'fnd base rates'!I$108) +($F24*'fnd base rates'!I$109) +($G24*'fnd base rates'!I$110) +($H24*'fnd base rates'!I$111) +($I24*'fnd base rates'!I$112) +($J24*'fnd base rates'!I$113) +($K24*'fnd base rates'!I$114) +($M24*'fnd base rates'!I$116) +($N24*'fnd base rates'!I$117) +($O24*'fnd base rates'!I$118) +($P24*VLOOKUP($S24+12,rate_basefnd,9))) *$R24 -> 667.1454 | AB24: =(($D24*'fnd base rates'!J$107) +($E24*'fnd base rates'!J$108) +($F24*'fnd base rates'!J$109) +($G24*'fnd base rates'!J$110) +($H24*'fnd base rates'!J$111) +($I24*'fnd base rates'!J$112) +($J24*'fnd base rates'!J$113) +($K24*'fnd base rates'!J$114) +($M24*'fnd base rates'!J$116) +($N24*'fnd base rates'!J$117) +($O24*'fnd base rates'!J$118) +($P24*VLOOKUP($S24+12,rate_basefnd,10))) *$R24 -> 1599.1281 | AC24: =(($D24*'fnd base rates'!K$107) +($E24*'fnd base rates'!K$108) +($F24*'fnd base rates'!K$109) +($G24*'fnd base rates'!K$110) +($H24*'fnd base rates'!K$111) +($I24*'fnd base rates'!K$112) +($J24*'fnd base rates'!K$113) +($K24*'fnd base rates'!K$114) +($M24*'fnd base rates'!K$116) +($N24*'fnd base rates'!K$117) +($O24*'fnd base rates'!K$118) +($P24*VLOOKUP($S24+12,rate_basefnd,11))) *$R24 -> 1311.463628 | AD24: =(($D24*'fnd base rates'!L$107) +($E24*'fnd base rates'!L$108) +($F24*'fnd base rates'!L$109) +($G24*'fnd base rates'!L$110) +($H24*'fnd base rates'!L$111) +($I24*'fnd base rates'!L$112) +($J24*'fnd base rates'!L$113) +($K24*'fnd base rates'!L$114) +($M24*'fnd base rates'!L$116) +($N24*'fnd base rates'!L$117) +($O24*'fnd base rates'!L$118) +($P24*VLOOKUP($S24+12,rate_basefnd,12))) -> 2208.93682 | AE24: =(($D24*'fnd base rates'!M$107) +($E24*'fnd base rates'!M$108) +($F24*'fnd base rates'!M$109) +($G24*'fnd base rates'!M$110) +($H24*'fnd base rates'!M$111) +($I24*'fnd base rates'!M$112) +($J24*'fnd base rates'!M$113) +($K24*'fnd base rates'!M$114) +($M24*'fnd base rates'!M$116) +($N24*'fnd base rates'!M$117) +($O24*'fnd base rates'!M$118) +($P24*VLOOKUP($S24+12,rate_basefnd,13))) -> 0 | AF24: 20237.09081 | AH24: 410035244 | AI24: 410 | AJ24: 035 | AK24: 244 | AL24: 1 | AM24: 1 | AN24: 20237.09081 | AO24: 20237 | AP24: 0 | AQ24: 20237 | AW24: 20224 | AX24: 0 | AY24: 20224 | AZ24: 13 | BA24: 20237
A25: 410 | B25: 410035248 | C25: EXCEL ACADEMY | D25: ='fnd enro'!D25 -> 0 | E25: ='fnd enro'!E25 -> 0 | F25: ='fnd enro'!F25 -> 0 | G25: ='fnd enro'!G25 -> 7 | H25: ='fnd enro'!H25 -> 17 | I25: ='fnd enro'!I25 -> 50 | J25: ='fnd enro'!J25 -> 0 | K25: ='fnd enro'!K25 -> 2.886 | L25: ='fnd enro'!L25 -> 0 | M25: ='fnd enro'!M25 -> 0 | N25: ='fnd enro'!N25 -> 4 | O25: ='fnd enro'!O25 -> 3 | P25: ='fnd enro'!P25 -> 50 | Q25: ='fnd enro'!R25 -> 74 | R25: 1.09 | S25: =VALUE('fnd enro'!Q25) -> 11 | U25: =(($D25*'fnd base rates'!C$107) +($E25*'fnd base rates'!C$108) +($F25*'fnd base rates'!C$109) +($G25*'fnd base rates'!C$110) +($H25*'fnd base rates'!C$111) +($I25*'fnd base rates'!C$112) +($J25*'fnd base rates'!C$113) +($K25*'fnd base rates'!C$114) +($M25*'fnd base rates'!C$116) +($N25*'fnd base rates'!C$117) +($O25*'fnd base rates'!C$118) +($P25*VLOOKUP($S25+12,rate_basefnd,3))) *$R25 -> 51414.84288 | V25: =(($D25*'fnd base rates'!D$107) +($E25*'fnd base rates'!D$108) +($F25*'fnd base rates'!D$109) +($G25*'fnd base rates'!D$110) +($H25*'fnd base rates'!D$111) +($I25*'fnd base rates'!D$112) +($J25*'fnd base rates'!D$113) +($K25*'fnd base rates'!D$114) +($M25*'fnd base rates'!D$116) +($N25*'fnd base rates'!D$117) +($O25*'fnd base rates'!D$118) +($P25*VLOOKUP($S25+12,rate_basefnd,4))) *$R25 -> 90774.2735 | W25: =(($D25*'fnd base rates'!E$107) +($E25*'fnd base rates'!E$108) +($F25*'fnd base rates'!E$109) +($G25*'fnd base rates'!E$110) +($H25*'fnd base rates'!E$111) +($I25*'fnd base rates'!E$112) +($J25*'fnd base rates'!E$113) +($K25*'fnd base rates'!E$114) +($M25*'fnd base rates'!E$116) +($N25*'fnd base rates'!E$117) +($O25*'fnd base rates'!E$118) +($P25*VLOOKUP($S25+12,rate_basefnd,5))) *$R25 -> 630403.1176 | X25: =(($D25*'fnd base rates'!F$107) +($E25*'fnd base rates'!F$108) +($F25*'fnd base rates'!F$109) +($G25*'fnd base rates'!F$110) +($H25*'fnd base rates'!F$111) +($I25*'fnd base rates'!F$112) +($J25*'fnd base rates'!F$113) +($K25*'fnd base rates'!F$114) +($M25*'fnd base rates'!F$116) +($N25*'fnd base rates'!F$117) +($O25*'fnd base rates'!F$118) +($P25*VLOOKUP($S25+12,rate_basefnd,6))) *$R25 -> 81561.03378 | Y25: =(($D25*'fnd base rates'!G$107) +($E25*'fnd base rates'!G$108) +($F25*'fnd base rates'!G$109) +($G25*'fnd base rates'!G$110) +($H25*'fnd base rates'!G$111) +($I25*'fnd base rates'!G$112) +($J25*'fnd base rates'!G$113) +($K25*'fnd base rates'!G$114) +($M25*'fnd base rates'!G$116) +($N25*'fnd base rates'!G$117) +($O25*'fnd base rates'!G$118) +($P25*VLOOKUP($S25+12,rate_basefnd,7))) *$R25 -> 26023.79432 | Z25: =(($D25*'fnd base rates'!H$107) +($E25*'fnd base rates'!H$108) +($F25*'fnd base rates'!H$109) +($G25*'fnd base rates'!H$110) +($H25*'fnd base rates'!H$111) +($I25*'fnd base rates'!H$112) +($J25*'fnd base rates'!H$113) +($K25*'fnd base rates'!H$114) +($M25*'fnd base rates'!H$116) +($N25*'fnd base rates'!H$117) +($O25*'fnd base rates'!H$118) +($P25*VLOOKUP($S25+12,rate_basefnd,8))) -> 59056.90042 | AA25: =(($D25*'fnd base rates'!I$107) +($E25*'fnd base rates'!I$108) +($F25*'fnd base rates'!I$109) +($G25*'fnd base rates'!I$110) +($H25*'fnd base rates'!I$111) +($I25*'fnd base rates'!I$112) +($J25*'fnd base rates'!I$113) +($K25*'fnd base rates'!I$114) +($M25*'fnd base rates'!I$116) +($N25*'fnd base rates'!I$117) +($O25*'fnd base rates'!I$118) +($P25*VLOOKUP($S25+12,rate_basefnd,9))) *$R25 -> 44591.4749 | AB25: =(($D25*'fnd base rates'!J$107) +($E25*'fnd base rates'!J$108) +($F25*'fnd base rates'!J$109) +($G25*'fnd base rates'!J$110) +($H25*'fnd base rates'!J$111) +($I25*'fnd base rates'!J$112) +($J25*'fnd base rates'!J$113) +($K25*'fnd base rates'!J$114) +($M25*'fnd base rates'!J$116) +($N25*'fnd base rates'!J$117) +($O25*'fnd base rates'!J$118) +($P25*VLOOKUP($S25+12,rate_basefnd,10))) *$R25 -> 89784.3137 | AC25: =(($D25*'fnd base rates'!K$107) +($E25*'fnd base rates'!K$108) +($F25*'fnd base rates'!K$109) +($G25*'fnd base rates'!K$110) +($H25*'fnd base rates'!K$111) +($I25*'fnd base rates'!K$112) +($J25*'fnd base rates'!K$113) +($K25*'fnd base rates'!K$114) +($M25*'fnd base rates'!K$116) +($N25*'fnd base rates'!K$117) +($O25*'fnd base rates'!K$118) +($P25*VLOOKUP($S25+12,rate_basefnd,11))) *$R25 -> 99889.06644 | AD25: =(($D25*'fnd base rates'!L$107) +($E25*'fnd base rates'!L$108) +($F25*'fnd base rates'!L$109) +($G25*'fnd base rates'!L$110) +($H25*'fnd base rates'!L$111) +($I25*'fnd base rates'!L$112) +($J25*'fnd base rates'!L$113) +($K25*'fnd base rates'!L$114) +($M25*'fnd base rates'!L$116) +($N25*'fnd base rates'!L$117) +($O25*'fnd base rates'!L$118) +($P25*VLOOKUP($S25+12,rate_basefnd,12))) -> 155363.1647 | AE25: =(($D25*'fnd base rates'!M$107) +($E25*'fnd base rates'!M$108) +($F25*'fnd base rates'!M$109) +($G25*'fnd base rates'!M$110) +($H25*'fnd base rates'!M$111) +($I25*'fnd base rates'!M$112) +($J25*'fnd base rates'!M$113) +($K25*'fnd base rates'!M$114) +($M25*'fnd base rates'!M$116) +($N25*'fnd base rates'!M$117) +($O25*'fnd base rates'!M$118) +($P25*VLOOKUP($S25+12,rate_basefnd,13))) -> 0 | AF25: 1328861.982 | AH25: 410035248 | AI25: 410 | AJ25: 035 | AK25: 248 | AL25: 1 | AM25: 74 | AN25: 1328861.982 | AO25: 17958 | AP25: 0 | AQ25: 17958 | AW25: 17947 | AX25: 0 | AY25: 17947 | AZ25: 11 | BA25: 17958
A26: 410 | B26: 410035262 | C26: EXCEL ACADEMY | D26: ='fnd enro'!D26 -> 0 | E26: ='fnd enro'!E26 -> 0 | F26: ='fnd enro'!F26 -> 0 | G26: ='fnd enro'!G26 -> 0 | H26: ='fnd enro'!H26 -> 0 | I26: ='fnd enro'!I26 -> 4 | J26: ='fnd enro'!J26 -> 0 | K26: ='fnd enro'!K26 -> 0.156 | L26: ='fnd enro'!L26 -> 0 | M26: ='fnd enro'!M26 -> 0 | N26: ='fnd enro'!N26 -> 0 | O26: ='fnd enro'!O26 -> 0 | P26: ='fnd enro'!P26 -> 2 | Q26: ='fnd enro'!R26 -> 4 | R26: 1.09 | S26: =VALUE('fnd enro'!Q26) -> 9 | U26: =(($D26*'fnd base rates'!C$107) +($E26*'fnd base rates'!C$108) +($F26*'fnd base rates'!C$109) +($G26*'fnd base rates'!C$110) +($H26*'fnd base rates'!C$111) +($I26*'fnd base rates'!C$112) +($J26*'fnd base rates'!C$113) +($K26*'fnd base rates'!C$114) +($M26*'fnd base rates'!C$116) +($N26*'fnd base rates'!C$117) +($O26*'fnd base rates'!C$118) +($P26*VLOOKUP($S26+12,rate_basefnd,3))) *$R26 -> 2633.381707 | V26: =(($D26*'fnd base rates'!D$107) +($E26*'fnd base rates'!D$108) +($F26*'fnd base rates'!D$109) +($G26*'fnd base rates'!D$110) +($H26*'fnd base rates'!D$111) +($I26*'fnd base rates'!D$112) +($J26*'fnd base rates'!D$113) +($K26*'fnd base rates'!D$114) +($M26*'fnd base rates'!D$116) +($N26*'fnd base rates'!D$117) +($O26*'fnd base rates'!D$118) +($P26*VLOOKUP($S26+12,rate_basefnd,4))) *$R26 -> 4356.8826 | W26: =(($D26*'fnd base rates'!E$107) +($E26*'fnd base rates'!E$108) +($F26*'fnd base rates'!E$109) +($G26*'fnd base rates'!E$110) +($H26*'fnd base rates'!E$111) +($I26*'fnd base rates'!E$112) +($J26*'fnd base rates'!E$113) +($K26*'fnd base rates'!E$114) +($M26*'fnd base rates'!E$116) +($N26*'fnd base rates'!E$117) +($O26*'fnd base rates'!E$118) +($P26*VLOOKUP($S26+12,rate_basefnd,5))) *$R26 -> 30901.41245 | X26: =(($D26*'fnd base rates'!F$107) +($E26*'fnd base rates'!F$108) +($F26*'fnd base rates'!F$109) +($G26*'fnd base rates'!F$110) +($H26*'fnd base rates'!F$111) +($I26*'fnd base rates'!F$112) +($J26*'fnd base rates'!F$113) +($K26*'fnd base rates'!F$114) +($M26*'fnd base rates'!F$116) +($N26*'fnd base rates'!F$117) +($O26*'fnd base rates'!F$118) +($P26*VLOOKUP($S26+12,rate_basefnd,6))) *$R26 -> 4057.22961 | Y26: =(($D26*'fnd base rates'!G$107) +($E26*'fnd base rates'!G$108) +($F26*'fnd base rates'!G$109) +($G26*'fnd base rates'!G$110) +($H26*'fnd base rates'!G$111) +($I26*'fnd base rates'!G$112) +($J26*'fnd base rates'!G$113) +($K26*'fnd base rates'!G$114) +($M26*'fnd base rates'!G$116) +($N26*'fnd base rates'!G$117) +($O26*'fnd base rates'!G$118) +($P26*VLOOKUP($S26+12,rate_basefnd,7))) *$R26 -> 1160.069952 | Z26: =(($D26*'fnd base rates'!H$107) +($E26*'fnd base rates'!H$108) +($F26*'fnd base rates'!H$109) +($G26*'fnd base rates'!H$110) +($H26*'fnd base rates'!H$111) +($I26*'fnd base rates'!H$112) +($J26*'fnd base rates'!H$113) +($K26*'fnd base rates'!H$114) +($M26*'fnd base rates'!H$116) +($N26*'fnd base rates'!H$117) +($O26*'fnd base rates'!H$118) +($P26*VLOOKUP($S26+12,rate_basefnd,8))) -> 3520.05732 | AA26: =(($D26*'fnd base rates'!I$107) +($E26*'fnd base rates'!I$108) +($F26*'fnd base rates'!I$109) +($G26*'fnd base rates'!I$110) +($H26*'fnd base rates'!I$111) +($I26*'fnd base rates'!I$112) +($J26*'fnd base rates'!I$113) +($K26*'fnd base rates'!I$114) +($M26*'fnd base rates'!I$116) +($N26*'fnd base rates'!I$117) +($O26*'fnd base rates'!I$118) +($P26*VLOOKUP($S26+12,rate_basefnd,9))) *$R26 -> 2284.9888 | AB26: =(($D26*'fnd base rates'!J$107) +($E26*'fnd base rates'!J$108) +($F26*'fnd base rates'!J$109) +($G26*'fnd base rates'!J$110) +($H26*'fnd base rates'!J$111) +($I26*'fnd base rates'!J$112) +($J26*'fnd base rates'!J$113) +($K26*'fnd base rates'!J$114) +($M26*'fnd base rates'!J$116) +($N26*'fnd base rates'!J$117) +($O26*'fnd base rates'!J$118) +($P26*VLOOKUP($S26+12,rate_basefnd,10))) *$R26 -> 4403.2512 | AC26: =(($D26*'fnd base rates'!K$107) +($E26*'fnd base rates'!K$108) +($F26*'fnd base rates'!K$109) +($G26*'fnd base rates'!K$110) +($H26*'fnd base rates'!K$111) +($I26*'fnd base rates'!K$112) +($J26*'fnd base rates'!K$113) +($K26*'fnd base rates'!K$114) +($M26*'fnd base rates'!K$116) +($N26*'fnd base rates'!K$117) +($O26*'fnd base rates'!K$118) +($P26*VLOOKUP($S26+12,rate_basefnd,11))) *$R26 -> 5245.85451 | AD26: =(($D26*'fnd base rates'!L$107) +($E26*'fnd base rates'!L$108) +($F26*'fnd base rates'!L$109) +($G26*'fnd base rates'!L$110) +($H26*'fnd base rates'!L$111) +($I26*'fnd base rates'!L$112) +($J26*'fnd base rates'!L$113) +($K26*'fnd base rates'!L$114) +($M26*'fnd base rates'!L$116) +($N26*'fnd base rates'!L$117) +($O26*'fnd base rates'!L$118) +($P26*VLOOKUP($S26+12,rate_basefnd,12))) -> 7401.74728 | AE26: =(($D26*'fnd base rates'!M$107) +($E26*'fnd base rates'!M$108) +($F26*'fnd base rates'!M$109) +($G26*'fnd base rates'!M$110) +($H26*'fnd base rates'!M$111) +($I26*'fnd base rates'!M$112) +($J26*'fnd base rates'!M$113) +($K26*'fnd base rates'!M$114) +($M26*'fnd base rates'!M$116) +($N26*'fnd base rates'!M$117) +($O26*'fnd base rates'!M$118) +($P26*VLOOKUP($S26+12,rate_basefnd,13))) -> 0 | AF26: 65964.87543 | AH26: 410035262 | AI26: 410 | AJ26: 035 | AK26: 262 | AL26: 1 | AM26: 4 | AN26: 65964.87543 | AO26: 16491 | AP26: 0 | AQ26: 16491 | AW26: 16485 | AX26: 0 | AY26: 16485 | AZ26: 6 | BA26: 16491
A27: 410 | B27: 410035346 | C27: EXCEL ACADEMY | D27: ='fnd enro'!D27 -> 0 | E27: ='fnd enro'!E27 -> 0 | F27: ='fnd enro'!F27 -> 0 | G27: ='fnd enro'!G27 -> 1 | H27: ='fnd enro'!H27 -> 3 | I27: ='fnd enro'!I27 -> 8 | J27: ='fnd enro'!J27 -> 0 | K27: ='fnd enro'!K27 -> 0.468 | L27: ='fnd enro'!L27 -> 0 | M27: ='fnd enro'!M27 -> 1 | N27: ='fnd enro'!N27 -> 0 | O27: ='fnd enro'!O27 -> 0 | P27: ='fnd enro'!P27 -> 6 | Q27: ='fnd enro'!R27 -> 12 | R27: 1.09 | S27: =VALUE('fnd enro'!Q27) -> 8 | U27: =(($D27*'fnd base rates'!C$107) +($E27*'fnd base rates'!C$108) +($F27*'fnd base rates'!C$109) +($G27*'fnd base rates'!C$110) +($H27*'fnd base rates'!C$111) +($I27*'fnd base rates'!C$112) +($J27*'fnd base rates'!C$113) +($K27*'fnd base rates'!C$114) +($M27*'fnd base rates'!C$116) +($N27*'fnd base rates'!C$117) +($O27*'fnd base rates'!C$118) +($P27*VLOOKUP($S27+12,rate_basefnd,3))) *$R27 -> 7986.03712 | V27: =(($D27*'fnd base rates'!D$107) +($E27*'fnd base rates'!D$108) +($F27*'fnd base rates'!D$109) +($G27*'fnd base rates'!D$110) +($H27*'fnd base rates'!D$111) +($I27*'fnd base rates'!D$112) +($J27*'fnd base rates'!D$113) +($K27*'fnd base rates'!D$114) +($M27*'fnd base rates'!D$116) +($N27*'fnd base rates'!D$117) +($O27*'fnd base rates'!D$118) +($P27*VLOOKUP($S27+12,rate_basefnd,4))) *$R27 -> 13126.8918 | W27: =(($D27*'fnd base rates'!E$107) +($E27*'fnd base rates'!E$108) +($F27*'fnd base rates'!E$109) +($G27*'fnd base rates'!E$110) +($H27*'fnd base rates'!E$111) +($I27*'fnd base rates'!E$112) +($J27*'fnd base rates'!E$113) +($K27*'fnd base rates'!E$114) +($M27*'fnd base rates'!E$116) +($N27*'fnd base rates'!E$117) +($O27*'fnd base rates'!E$118) +($P27*VLOOKUP($S27+12,rate_basefnd,5))) *$R27 -> 86546.86005 | X27: =(($D27*'fnd base rates'!F$107) +($E27*'fnd base rates'!F$108) +($F27*'fnd base rates'!F$109) +($G27*'fnd base rates'!F$110) +($H27*'fnd base rates'!F$111) +($I27*'fnd base rates'!F$112) +($J27*'fnd base rates'!F$113) +($K27*'fnd base rates'!F$114) +($M27*'fnd base rates'!F$116) +($N27*'fnd base rates'!F$117) +($O27*'fnd base rates'!F$118) +($P27*VLOOKUP($S27+12,rate_basefnd,6))) *$R27 -> 13158.49853 | Y27: =(($D27*'fnd base rates'!G$107) +($E27*'fnd base rates'!G$108) +($F27*'fnd base rates'!G$109) +($G27*'fnd base rates'!G$110) +($H27*'fnd base rates'!G$111) +($I27*'fnd base rates'!G$112) +($J27*'fnd base rates'!G$113) +($K27*'fnd base rates'!G$114) +($M27*'fnd base rates'!G$116) +($N27*'fnd base rates'!G$117) +($O27*'fnd base rates'!G$118) +($P27*VLOOKUP($S27+12,rate_basefnd,7))) *$R27 -> 3475.762657 | Z27: =(($D27*'fnd base rates'!H$107) +($E27*'fnd base rates'!H$108) +($F27*'fnd base rates'!H$109) +($G27*'fnd base rates'!H$110) +($H27*'fnd base rates'!H$111) +($I27*'fnd base rates'!H$112) +($J27*'fnd base rates'!H$113) +($K27*'fnd base rates'!H$114) +($M27*'fnd base rates'!H$116) +($N27*'fnd base rates'!H$117) +($O27*'fnd base rates'!H$118) +($P27*VLOOKUP($S27+12,rate_basefnd,8))) -> 9411.49196 | AA27: =(($D27*'fnd base rates'!I$107) +($E27*'fnd base rates'!I$108) +($F27*'fnd base rates'!I$109) +($G27*'fnd base rates'!I$110) +($H27*'fnd base rates'!I$111) +($I27*'fnd base rates'!I$112) +($J27*'fnd base rates'!I$113) +($K27*'fnd base rates'!I$114) +($M27*'fnd base rates'!I$116) +($N27*'fnd base rates'!I$117) +($O27*'fnd base rates'!I$118) +($P27*VLOOKUP($S27+12,rate_basefnd,9))) *$R27 -> 6599.9064 | AB27: =(($D27*'fnd base rates'!J$107) +($E27*'fnd base rates'!J$108) +($F27*'fnd base rates'!J$109) +($G27*'fnd base rates'!J$110) +($H27*'fnd base rates'!J$111) +($I27*'fnd base rates'!J$112) +($J27*'fnd base rates'!J$113) +($K27*'fnd base rates'!J$114) +($M27*'fnd base rates'!J$116) +($N27*'fnd base rates'!J$117) +($O27*'fnd base rates'!J$118) +($P27*VLOOKUP($S27+12,rate_basefnd,10))) *$R27 -> 11342.431 | AC27: =(($D27*'fnd base rates'!K$107) +($E27*'fnd base rates'!K$108) +($F27*'fnd base rates'!K$109) +($G27*'fnd base rates'!K$110) +($H27*'fnd base rates'!K$111) +($I27*'fnd base rates'!K$112) +($J27*'fnd base rates'!K$113) +($K27*'fnd base rates'!K$114) +($M27*'fnd base rates'!K$116) +($N27*'fnd base rates'!K$117) +($O27*'fnd base rates'!K$118) +($P27*VLOOKUP($S27+12,rate_basefnd,11))) *$R27 -> 16142.48763 | AD27: =(($D27*'fnd base rates'!L$107) +($E27*'fnd base rates'!L$108) +($F27*'fnd base rates'!L$109) +($G27*'fnd base rates'!L$110) +($H27*'fnd base rates'!L$111) +($I27*'fnd base rates'!L$112) +($J27*'fnd base rates'!L$113) +($K27*'fnd base rates'!L$114) +($M27*'fnd base rates'!L$116) +($N27*'fnd base rates'!L$117) +($O27*'fnd base rates'!L$118) +($P27*VLOOKUP($S27+12,rate_basefnd,12))) -> 22869.80184 | AE27: =(($D27*'fnd base rates'!M$107) +($E27*'fnd base rates'!M$108) +($F27*'fnd base rates'!M$109) +($G27*'fnd base rates'!M$110) +($H27*'fnd base rates'!M$111) +($I27*'fnd base rates'!M$112) +($J27*'fnd base rates'!M$113) +($K27*'fnd base rates'!M$114) +($M27*'fnd base rates'!M$116) +($N27*'fnd base rates'!M$117) +($O27*'fnd base rates'!M$118) +($P27*VLOOKUP($S27+12,rate_basefnd,13))) -> 0 | AF27: 190660.169 | AH27: 410035346 | AI27: 410 | AJ27: 035 | AK27: 346 | AL27: 1 | AM27: 12 | AN27: 190660.169 | AO27: 15888 | AP27: 0 | AQ27: 15888 | AW27: 15882 | AX27: 0 | AY27: 15882 | AZ27: 6 | BA27: 15888
A28: 410 | B28: 410057035 | C28: EXCEL ACADEMY | D28: ='fnd enro'!D28 -> 0 | E28: ='fnd enro'!E28 -> 0 | F28: ='fnd enro'!F28 -> 0 | G28: ='fnd enro'!G28 -> 0 | H28: ='fnd enro'!H28 -> 8 | I28: ='fnd enro'!I28 -> 0 | J28: ='fnd enro'!J28 -> 0 | K28: ='fnd enro'!K28 -> 0.312 | L28: ='fnd enro'!L28 -> 0 | M28: ='fnd enro'!M28 -> 0 | N28: ='fnd enro'!N28 -> 1 | O28: ='fnd enro'!O28 -> 0 | P28: ='fnd enro'!P28 -> 7 | Q28: ='fnd enro'!R28 -> 8 | R28: 1.041 | S28: =VALUE('fnd enro'!Q28) -> 11 | U28: =(($D28*'fnd base rates'!C$107) +($E28*'fnd base rates'!C$108) +($F28*'fnd base rates'!C$109) +($G28*'fnd base rates'!C$110) +($H28*'fnd base rates'!C$111) +($I28*'fnd base rates'!C$112) +($J28*'fnd base rates'!C$113) +($K28*'fnd base rates'!C$114) +($M28*'fnd base rates'!C$116) +($N28*'fnd base rates'!C$117) +($O28*'fnd base rates'!C$118) +($P28*VLOOKUP($S28+12,rate_basefnd,3))) *$R28 -> 5496.399885 | V28: =(($D28*'fnd base rates'!D$107) +($E28*'fnd base rates'!D$108) +($F28*'fnd base rates'!D$109) +($G28*'fnd base rates'!D$110) +($H28*'fnd base rates'!D$111) +($I28*'fnd base rates'!D$112) +($J28*'fnd base rates'!D$113) +($K28*'fnd base rates'!D$114) +($M28*'fnd base rates'!D$116) +($N28*'fnd base rates'!D$117) +($O28*'fnd base rates'!D$118) +($P28*VLOOKUP($S28+12,rate_basefnd,4))) *$R28 -> 10176.68067 | W28: =(($D28*'fnd base rates'!E$107) +($E28*'fnd base rates'!E$108) +($F28*'fnd base rates'!E$109) +($G28*'fnd base rates'!E$110) +($H28*'fnd base rates'!E$111) +($I28*'fnd base rates'!E$112) +($J28*'fnd base rates'!E$113) +($K28*'fnd base rates'!E$114) +($M28*'fnd base rates'!E$116) +($N28*'fnd base rates'!E$117) +($O28*'fnd base rates'!E$118) +($P28*VLOOKUP($S28+12,rate_basefnd,5))) *$R28 -> 63912.85016 | X28: =(($D28*'fnd base rates'!F$107) +($E28*'fnd base rates'!F$108) +($F28*'fnd base rates'!F$109) +($G28*'fnd base rates'!F$110) +($H28*'fnd base rates'!F$111) +($I28*'fnd base rates'!F$112) +($J28*'fnd base rates'!F$113) +($K28*'fnd base rates'!F$114) +($M28*'fnd base rates'!F$116) +($N28*'fnd base rates'!F$117) +($O28*'fnd base rates'!F$118) +($P28*VLOOKUP($S28+12,rate_basefnd,6))) *$R28 -> 8901.786708 | Y28: =(($D28*'fnd base rates'!G$107) +($E28*'fnd base rates'!G$108) +($F28*'fnd base rates'!G$109) +($G28*'fnd base rates'!G$110) +($H28*'fnd base rates'!G$111) +($I28*'fnd base rates'!G$112) +($J28*'fnd base rates'!G$113) +($K28*'fnd base rates'!G$114) +($M28*'fnd base rates'!G$116) +($N28*'fnd base rates'!G$117) +($O28*'fnd base rates'!G$118) +($P28*VLOOKUP($S28+12,rate_basefnd,7))) *$R28 -> 3094.870848 | Z28: =(($D28*'fnd base rates'!H$107) +($E28*'fnd base rates'!H$108) +($F28*'fnd base rates'!H$109) +($G28*'fnd base rates'!H$110) +($H28*'fnd base rates'!H$111) +($I28*'fnd base rates'!H$112) +($J28*'fnd base rates'!H$113) +($K28*'fnd base rates'!H$114) +($M28*'fnd base rates'!H$116) +($N28*'fnd base rates'!H$117) +($O28*'fnd base rates'!H$118) +($P28*VLOOKUP($S28+12,rate_basefnd,8))) -> 4750.80464 | AA28: =(($D28*'fnd base rates'!I$107) +($E28*'fnd base rates'!I$108) +($F28*'fnd base rates'!I$109) +($G28*'fnd base rates'!I$110) +($H28*'fnd base rates'!I$111) +($I28*'fnd base rates'!I$112) +($J28*'fnd base rates'!I$113) +($K28*'fnd base rates'!I$114) +($M28*'fnd base rates'!I$116) +($N28*'fnd base rates'!I$117) +($O28*'fnd base rates'!I$118) +($P28*VLOOKUP($S28+12,rate_basefnd,9))) *$R28 -> 4653.85296 | AB28: =(($D28*'fnd base rates'!J$107) +($E28*'fnd base rates'!J$108) +($F28*'fnd base rates'!J$109) +($G28*'fnd base rates'!J$110) +($H28*'fnd base rates'!J$111) +($I28*'fnd base rates'!J$112) +($J28*'fnd base rates'!J$113) +($K28*'fnd base rates'!J$114) +($M28*'fnd base rates'!J$116) +($N28*'fnd base rates'!J$117) +($O28*'fnd base rates'!J$118) +($P28*VLOOKUP($S28+12,rate_basefnd,10))) *$R28 -> 8994.99993 | AC28: =(($D28*'fnd base rates'!K$107) +($E28*'fnd base rates'!K$108) +($F28*'fnd base rates'!K$109) +($G28*'fnd base rates'!K$110) +($H28*'fnd base rates'!K$111) +($I28*'fnd base rates'!K$112) +($J28*'fnd base rates'!K$113) +($K28*'fnd base rates'!K$114) +($M28*'fnd base rates'!K$116) +($N28*'fnd base rates'!K$117) +($O28*'fnd base rates'!K$118) +($P28*VLOOKUP($S28+12,rate_basefnd,11))) *$R28 -> 10655.73963 | AD28: =(($D28*'fnd base rates'!L$107) +($E28*'fnd base rates'!L$108) +($F28*'fnd base rates'!L$109) +($G28*'fnd base rates'!L$110) +($H28*'fnd base rates'!L$111) +($I28*'fnd base rates'!L$112) +($J28*'fnd base rates'!L$113) +($K28*'fnd base rates'!L$114) +($M28*'fnd base rates'!L$116) +($N28*'fnd base rates'!L$117) +($O28*'fnd base rates'!L$118) +($P28*VLOOKUP($S28+12,rate_basefnd,12))) -> 19010.87456 | AE28: =(($D28*'fnd base rates'!M$107) +($E28*'fnd base rates'!M$108) +($F28*'fnd base rates'!M$109) +($G28*'fnd base rates'!M$110) +($H28*'fnd base rates'!M$111) +($I28*'fnd base rates'!M$112) +($J28*'fnd base rates'!M$113) +($K28*'fnd base rates'!M$114) +($M28*'fnd base rates'!M$116) +($N28*'fnd base rates'!M$117) +($O28*'fnd base rates'!M$118) +($P28*VLOOKUP($S28+12,rate_basefnd,13))) -> 0 | AF28: 139648.86 | AH28: 410057035 | AI28: 410 | AJ28: 057 | AK28: 035 | AL28: 1 | AM28: 8 | AN28: 139648.86 | AO28: 17456 | AP28: 0 | AQ28: 17456 | AW28: 17443 | AX28: 0 | AY28: 17443 | AZ28: 13 | BA28: 17456
A29: 410 | B29: 410057057 | C29: EXCEL ACADEMY | D29: ='fnd enro'!D29 -> 0 | E29: ='fnd enro'!E29 -> 0 | F29: ='fnd enro'!F29 -> 0 | G29: ='fnd enro'!G29 -> 46 | H29: ='fnd enro'!H29 -> 148 | I29: ='fnd enro'!I29 -> 0 | J29: ='fnd enro'!J29 -> 0 | K29: ='fnd enro'!K29 -> 7.566 | L29: ='fnd enro'!L29 -> 0 | M29: ='fnd enro'!M29 -> 10 | N29: ='fnd enro'!N29 -> 12 | O29: ='fnd enro'!O29 -> 0 | P29: ='fnd enro'!P29 -> 156 | Q29: ='fnd enro'!R29 -> 194 | R29: 1.041 | S29: =VALUE('fnd enro'!Q29) -> 12 | U29: =(($D29*'fnd base rates'!C$107) +($E29*'fnd base rates'!C$108) +($F29*'fnd base rates'!C$109) +($G29*'fnd base rates'!C$110) +($H29*'fnd base rates'!C$111) +($I29*'fnd base rates'!C$112) +($J29*'fnd base rates'!C$113) +($K29*'fnd base rates'!C$114) +($M29*'fnd base rates'!C$116) +($N29*'fnd base rates'!C$117) +($O29*'fnd base rates'!C$118) +($P29*VLOOKUP($S29+12,rate_basefnd,3))) *$R29 -> 132675.1546 | V29: =(($D29*'fnd base rates'!D$107) +($E29*'fnd base rates'!D$108) +($F29*'fnd base rates'!D$109) +($G29*'fnd base rates'!D$110) +($H29*'fnd base rates'!D$111) +($I29*'fnd base rates'!D$112) +($J29*'fnd base rates'!D$113) +($K29*'fnd base rates'!D$114) +($M29*'fnd base rates'!D$116) +($N29*'fnd base rates'!D$117) +($O29*'fnd base rates'!D$118) +($P29*VLOOKUP($S29+12,rate_basefnd,4))) *$R29 -> 244886.693 | W29: =(($D29*'fnd base rates'!E$107) +($E29*'fnd base rates'!E$108) +($F29*'fnd base rates'!E$109) +($G29*'fnd base rates'!E$110) +($H29*'fnd base rates'!E$111) +($I29*'fnd base rates'!E$112) +($J29*'fnd base rates'!E$113) +($K29*'fnd base rates'!E$114) +($M29*'fnd base rates'!E$116) +($N29*'fnd base rates'!E$117) +($O29*'fnd base rates'!E$118) +($P29*VLOOKUP($S29+12,rate_basefnd,5))) *$R29 -> 1554033.432 | X29: =(($D29*'fnd base rates'!F$107) +($E29*'fnd base rates'!F$108) +($F29*'fnd base rates'!F$109) +($G29*'fnd base rates'!F$110) +($H29*'fnd base rates'!F$111) +($I29*'fnd base rates'!F$112) +($J29*'fnd base rates'!F$113) +($K29*'fnd base rates'!F$114) +($M29*'fnd base rates'!F$116) +($N29*'fnd base rates'!F$117) +($O29*'fnd base rates'!F$118) +($P29*VLOOKUP($S29+12,rate_basefnd,6))) *$R29 -> 227896.7261 | Y29: =(($D29*'fnd base rates'!G$107) +($E29*'fnd base rates'!G$108) +($F29*'fnd base rates'!G$109) +($G29*'fnd base rates'!G$110) +($H29*'fnd base rates'!G$111) +($I29*'fnd base rates'!G$112) +($J29*'fnd base rates'!G$113) +($K29*'fnd base rates'!G$114) +($M29*'fnd base rates'!G$116) +($N29*'fnd base rates'!G$117) +($O29*'fnd base rates'!G$118) +($P29*VLOOKUP($S29+12,rate_basefnd,7))) *$R29 -> 73677.42194 | Z29: =(($D29*'fnd base rates'!H$107) +($E29*'fnd base rates'!H$108) +($F29*'fnd base rates'!H$109) +($G29*'fnd base rates'!H$110) +($H29*'fnd base rates'!H$111) +($I29*'fnd base rates'!H$112) +($J29*'fnd base rates'!H$113) +($K29*'fnd base rates'!H$114) +($M29*'fnd base rates'!H$116) +($N29*'fnd base rates'!H$117) +($O29*'fnd base rates'!H$118) +($P29*VLOOKUP($S29+12,rate_basefnd,8))) -> 114713.84 | AA29: =(($D29*'fnd base rates'!I$107) +($E29*'fnd base rates'!I$108) +($F29*'fnd base rates'!I$109) +($G29*'fnd base rates'!I$110) +($H29*'fnd base rates'!I$111) +($I29*'fnd base rates'!I$112) +($J29*'fnd base rates'!I$113) +($K29*'fnd base rates'!I$114) +($M29*'fnd base rates'!I$116) +($N29*'fnd base rates'!I$117) +($O29*'fnd base rates'!I$118) +($P29*VLOOKUP($S29+12,rate_basefnd,9))) *$R29 -> 109970.782 | AB29: =(($D29*'fnd base rates'!J$107) +($E29*'fnd base rates'!J$108) +($F29*'fnd base rates'!J$109) +($G29*'fnd base rates'!J$110) +($H29*'fnd base rates'!J$111) +($I29*'fnd base rates'!J$112) +($J29*'fnd base rates'!J$113) +($K29*'fnd base rates'!J$114) +($M29*'fnd base rates'!J$116) +($N29*'fnd base rates'!J$117) +($O29*'fnd base rates'!J$118) +($P29*VLOOKUP($S29+12,rate_basefnd,10))) *$R29 -> 210518.9941 | AC29: =(($D29*'fnd base rates'!K$107) +($E29*'fnd base rates'!K$108) +($F29*'fnd base rates'!K$109) +($G29*'fnd base rates'!K$110) +($H29*'fnd base rates'!K$111) +($I29*'fnd base rates'!K$112) +($J29*'fnd base rates'!K$113) +($K29*'fnd base rates'!K$114) +($M29*'fnd base rates'!K$116) +($N29*'fnd base rates'!K$117) +($O29*'fnd base rates'!K$118) +($P29*VLOOKUP($S29+12,rate_basefnd,11))) *$R29 -> 253297.8711 | AD29: =(($D29*'fnd base rates'!L$107) +($E29*'fnd base rates'!L$108) +($F29*'fnd base rates'!L$109) +($G29*'fnd base rates'!L$110) +($H29*'fnd base rates'!L$111) +($I29*'fnd base rates'!L$112) +($J29*'fnd base rates'!L$113) +($K29*'fnd base rates'!L$114) +($M29*'fnd base rates'!L$116) +($N29*'fnd base rates'!L$117) +($O29*'fnd base rates'!L$118) +($P29*VLOOKUP($S29+12,rate_basefnd,12))) -> 454089.1631 | AE29: =(($D29*'fnd base rates'!M$107) +($E29*'fnd base rates'!M$108) +($F29*'fnd base rates'!M$109) +($G29*'fnd base rates'!M$110) +($H29*'fnd base rates'!M$111) +($I29*'fnd base rates'!M$112) +($J29*'fnd base rates'!M$113) +($K29*'fnd base rates'!M$114) +($M29*'fnd base rates'!M$116) +($N29*'fnd base rates'!M$117) +($O29*'fnd base rates'!M$118) +($P29*VLOOKUP($S29+12,rate_basefnd,13))) -> 0 | AF29: 3375760.078 | AH29: 410057057 | AI29: 410 | AJ29: 057 | AK29: 057 | AL29: 1 | AM29: 194 | AN29: 3375760.078 | AO29: 17401 | AP29: 0 | AQ29: 17401 | AW29: 17388 | AX29: 0 | AY29: 17388 | AZ29: 13 | BA29: 17401
A30: 410 | B30: 410057093 | C30: EXCEL ACADEMY | D30: ='fnd enro'!D30 -> 0 | E30: ='fnd enro'!E30 -> 0 | F30: ='fnd enro'!F30 -> 0 | G30: ='fnd enro'!G30 -> 5 | H30: ='fnd enro'!H30 -> 3 | I30: ='fnd enro'!I30 -> 0 | J30: ='fnd enro'!J30 -> 0 | K30: ='fnd enro'!K30 -> 0.312 | L30: ='fnd enro'!L30 -> 0 | M30: ='fnd enro'!M30 -> 0 | N30: ='fnd enro'!N30 -> 1 | O30: ='fnd enro'!O30 -> 0 | P30: ='fnd enro'!P30 -> 5 | Q30: ='fnd enro'!R30 -> 8 | R30: 1.041 | S30: =VALUE('fnd enro'!Q30) -> 11 | U30: =(($D30*'fnd base rates'!C$107) +($E30*'fnd base rates'!C$108) +($F30*'fnd base rates'!C$109) +($G30*'fnd base rates'!C$110) +($H30*'fnd base rates'!C$111) +($I30*'fnd base rates'!C$112) +($J30*'fnd base rates'!C$113) +($K30*'fnd base rates'!C$114) +($M30*'fnd base rates'!C$116) +($N30*'fnd base rates'!C$117) +($O30*'fnd base rates'!C$118) +($P30*VLOOKUP($S30+12,rate_basefnd,3))) *$R30 -> 5296.756905 | V30: =(($D30*'fnd base rates'!D$107) +($E30*'fnd base rates'!D$108) +($F30*'fnd base rates'!D$109) +($G30*'fnd base rates'!D$110) +($H30*'fnd base rates'!D$111) +($I30*'fnd base rates'!D$112) +($J30*'fnd base rates'!D$113) +($K30*'fnd base rates'!D$114) +($M30*'fnd base rates'!D$116) +($N30*'fnd base rates'!D$117) +($O30*'fnd base rates'!D$118) +($P30*VLOOKUP($S30+12,rate_basefnd,4))) *$R30 -> 9230.82807 | W30: =(($D30*'fnd base rates'!E$107) +($E30*'fnd base rates'!E$108) +($F30*'fnd base rates'!E$109) +($G30*'fnd base rates'!E$110) +($H30*'fnd base rates'!E$111) +($I30*'fnd base rates'!E$112) +($J30*'fnd base rates'!E$113) +($K30*'fnd base rates'!E$114) +($M30*'fnd base rates'!E$116) +($N30*'fnd base rates'!E$117) +($O30*'fnd base rates'!E$118) +($P30*VLOOKUP($S30+12,rate_basefnd,5))) *$R30 -> 56969.01581 | X30: =(($D30*'fnd base rates'!F$107) +($E30*'fnd base rates'!F$108) +($F30*'fnd base rates'!F$109) +($G30*'fnd base rates'!F$110) +($H30*'fnd base rates'!F$111) +($I30*'fnd base rates'!F$112) +($J30*'fnd base rates'!F$113) +($K30*'fnd base rates'!F$114) +($M30*'fnd base rates'!F$116) +($N30*'fnd base rates'!F$117) +($O30*'fnd base rates'!F$118) +($P30*VLOOKUP($S30+12,rate_basefnd,6))) *$R30 -> 10272.83576 | Y30: =(($D30*'fnd base rates'!G$107) +($E30*'fnd base rates'!G$108) +($F30*'fnd base rates'!G$109) +($G30*'fnd base rates'!G$110) +($H30*'fnd base rates'!G$111) +($I30*'fnd base rates'!G$112) +($J30*'fnd base rates'!G$113) +($K30*'fnd base rates'!G$114) +($M30*'fnd base rates'!G$116) +($N30*'fnd base rates'!G$117) +($O30*'fnd base rates'!G$118) +($P30*VLOOKUP($S30+12,rate_basefnd,7))) *$R30 -> 2583.510828 | Z30: =(($D30*'fnd base rates'!H$107) +($E30*'fnd base rates'!H$108) +($F30*'fnd base rates'!H$109) +($G30*'fnd base rates'!H$110) +($H30*'fnd base rates'!H$111) +($I30*'fnd base rates'!H$112) +($J30*'fnd base rates'!H$113) +($K30*'fnd base rates'!H$114) +($M30*'fnd base rates'!H$116) +($N30*'fnd base rates'!H$117) +($O30*'fnd base rates'!H$118) +($P30*VLOOKUP($S30+12,rate_basefnd,8))) -> 4684.84464 | AA30: =(($D30*'fnd base rates'!I$107) +($E30*'fnd base rates'!I$108) +($F30*'fnd base rates'!I$109) +($G30*'fnd base rates'!I$110) +($H30*'fnd base rates'!I$111) +($I30*'fnd base rates'!I$112) +($J30*'fnd base rates'!I$113) +($K30*'fnd base rates'!I$114) +($M30*'fnd base rates'!I$116) +($N30*'fnd base rates'!I$117) +($O30*'fnd base rates'!I$118) +($P30*VLOOKUP($S30+12,rate_basefnd,9))) *$R30 -> 4050.09378 | AB30: =(($D30*'fnd base rates'!J$107) +($E30*'fnd base rates'!J$108) +($F30*'fnd base rates'!J$109) +($G30*'fnd base rates'!J$110) +($H30*'fnd base rates'!J$111) +($I30*'fnd base rates'!J$112) +($J30*'fnd base rates'!J$113) +($K30*'fnd base rates'!J$114) +($M30*'fnd base rates'!J$116) +($N30*'fnd base rates'!J$117) +($O30*'fnd base rates'!J$118) +($P30*VLOOKUP($S30+12,rate_basefnd,10))) *$R30 -> 6527.28861 | AC30: =(($D30*'fnd base rates'!K$107) +($E30*'fnd base rates'!K$108) +($F30*'fnd base rates'!K$109) +($G30*'fnd base rates'!K$110) +($H30*'fnd base rates'!K$111) +($I30*'fnd base rates'!K$112) +($J30*'fnd base rates'!K$113) +($K30*'fnd base rates'!K$114) +($M30*'fnd base rates'!K$116) +($N30*'fnd base rates'!K$117) +($O30*'fnd base rates'!K$118) +($P30*VLOOKUP($S30+12,rate_basefnd,11))) *$R30 -> 10210.03548 | AD30: =(($D30*'fnd base rates'!L$107) +($E30*'fnd base rates'!L$108) +($F30*'fnd base rates'!L$109) +($G30*'fnd base rates'!L$110) +($H30*'fnd base rates'!L$111) +($I30*'fnd base rates'!L$112) +($J30*'fnd base rates'!L$113) +($K30*'fnd base rates'!L$114) +($M30*'fnd base rates'!L$116) +($N30*'fnd base rates'!L$117) +($O30*'fnd base rates'!L$118) +($P30*VLOOKUP($S30+12,rate_basefnd,12))) -> 17113.56456 | AE30: =(($D30*'fnd base rates'!M$107) +($E30*'fnd base rates'!M$108) +($F30*'fnd base rates'!M$109) +($G30*'fnd base rates'!M$110) +($H30*'fnd base rates'!M$111) +($I30*'fnd base rates'!M$112) +($J30*'fnd base rates'!M$113) +($K30*'fnd base rates'!M$114) +($M30*'fnd base rates'!M$116) +($N30*'fnd base rates'!M$117) +($O30*'fnd base rates'!M$118) +($P30*VLOOKUP($S30+12,rate_basefnd,13))) -> 0 | AF30: 126938.7744 | AH30: 410057093 | AI30: 410 | AJ30: 057 | AK30: 093 | AL30: 1 | AM30: 8 | AN30: 126938.7744 | AO30: 15867 | AP30: 0 | AQ30: 15867 | AW30: 15858 | AX30: 0 | AY30: 15858 | AZ30: 9 | BA30: 15867
A31: 410 | B31: 410057163 | C31: EXCEL ACADEMY | D31: ='fnd enro'!D31 -> 0 | E31: ='fnd enro'!E31 -> 0 | F31: ='fnd enro'!F31 -> 0 | G31: ='fnd enro'!G31 -> 0 | H31: ='fnd enro'!H31 -> 2 | I31: ='fnd enro'!I31 -> 0 | J31: ='fnd enro'!J31 -> 0 | K31: ='fnd enro'!K31 -> 0.078 | L31: ='fnd enro'!L31 -> 0 | M31: ='fnd enro'!M31 -> 0 | N31: ='fnd enro'!N31 -> 0 | O31: ='fnd enro'!O31 -> 0 | P31: ='fnd enro'!P31 -> 2 | Q31: ='fnd enro'!R31 -> 2 | R31: 1.041 | S31: =VALUE('fnd enro'!Q31) -> 11 | U31: =(($D31*'fnd base rates'!C$107) +($E31*'fnd base rates'!C$108) +($F31*'fnd base rates'!C$109) +($G31*'fnd base rates'!C$110) +($H31*'fnd base rates'!C$111) +($I31*'fnd base rates'!C$112) +($J31*'fnd base rates'!C$113) +($K31*'fnd base rates'!C$114) +($M31*'fnd base rates'!C$116) +($N31*'fnd base rates'!C$117) +($O31*'fnd base rates'!C$118) +($P31*VLOOKUP($S31+12,rate_basefnd,3))) *$R31 -> 1369.355614 | V31: =(($D31*'fnd base rates'!D$107) +($E31*'fnd base rates'!D$108) +($F31*'fnd base rates'!D$109) +($G31*'fnd base rates'!D$110) +($H31*'fnd base rates'!D$111) +($I31*'fnd base rates'!D$112) +($J31*'fnd base rates'!D$113) +($K31*'fnd base rates'!D$114) +($M31*'fnd base rates'!D$116) +($N31*'fnd base rates'!D$117) +($O31*'fnd base rates'!D$118) +($P31*VLOOKUP($S31+12,rate_basefnd,4))) *$R31 -> 2610.43242 | W31: =(($D31*'fnd base rates'!E$107) +($E31*'fnd base rates'!E$108) +($F31*'fnd base rates'!E$109) +($G31*'fnd base rates'!E$110) +($H31*'fnd base rates'!E$111) +($I31*'fnd base rates'!E$112) +($J31*'fnd base rates'!E$113) +($K31*'fnd base rates'!E$114) +($M31*'fnd base rates'!E$116) +($N31*'fnd base rates'!E$117) +($O31*'fnd base rates'!E$118) +($P31*VLOOKUP($S31+12,rate_basefnd,5))) *$R31 -> 16768.61521 | X31: =(($D31*'fnd base rates'!F$107) +($E31*'fnd base rates'!F$108) +($F31*'fnd base rates'!F$109) +($G31*'fnd base rates'!F$110) +($H31*'fnd base rates'!F$111) +($I31*'fnd base rates'!F$112) +($J31*'fnd base rates'!F$113) +($K31*'fnd base rates'!F$114) +($M31*'fnd base rates'!F$116) +($N31*'fnd base rates'!F$117) +($O31*'fnd base rates'!F$118) +($P31*VLOOKUP($S31+12,rate_basefnd,6))) *$R31 -> 2173.477354 | Y31: =(($D31*'fnd base rates'!G$107) +($E31*'fnd base rates'!G$108) +($F31*'fnd base rates'!G$109) +($G31*'fnd base rates'!G$110) +($H31*'fnd base rates'!G$111) +($I31*'fnd base rates'!G$112) +($J31*'fnd base rates'!G$113) +($K31*'fnd base rates'!G$114) +($M31*'fnd base rates'!G$116) +($N31*'fnd base rates'!G$117) +($O31*'fnd base rates'!G$118) +($P31*VLOOKUP($S31+12,rate_basefnd,7))) *$R31 -> 814.8658394 | Z31: =(($D31*'fnd base rates'!H$107) +($E31*'fnd base rates'!H$108) +($F31*'fnd base rates'!H$109) +($G31*'fnd base rates'!H$110) +($H31*'fnd base rates'!H$111) +($I31*'fnd base rates'!H$112) +($J31*'fnd base rates'!H$113) +($K31*'fnd base rates'!H$114) +($M31*'fnd base rates'!H$116) +($N31*'fnd base rates'!H$117) +($O31*'fnd base rates'!H$118) +($P31*VLOOKUP($S31+12,rate_basefnd,8))) -> 1160.28866 | AA31: =(($D31*'fnd base rates'!I$107) +($E31*'fnd base rates'!I$108) +($F31*'fnd base rates'!I$109) +($G31*'fnd base rates'!I$110) +($H31*'fnd base rates'!I$111) +($I31*'fnd base rates'!I$112) +($J31*'fnd base rates'!I$113) +($K31*'fnd base rates'!I$114) +($M31*'fnd base rates'!I$116) +($N31*'fnd base rates'!I$117) +($O31*'fnd base rates'!I$118) +($P31*VLOOKUP($S31+12,rate_basefnd,9))) *$R31 -> 1187.92674 | AB31: =(($D31*'fnd base rates'!J$107) +($E31*'fnd base rates'!J$108) +($F31*'fnd base rates'!J$109) +($G31*'fnd base rates'!J$110) +($H31*'fnd base rates'!J$111) +($I31*'fnd base rates'!J$112) +($J31*'fnd base rates'!J$113) +($K31*'fnd base rates'!J$114) +($M31*'fnd base rates'!J$116) +($N31*'fnd base rates'!J$117) +($O31*'fnd base rates'!J$118) +($P31*VLOOKUP($S31+12,rate_basefnd,10))) *$R31 -> 2484.17994 | AC31: =(($D31*'fnd base rates'!K$107) +($E31*'fnd base rates'!K$108) +($F31*'fnd base rates'!K$109) +($G31*'fnd base rates'!K$110) +($H31*'fnd base rates'!K$111) +($I31*'fnd base rates'!K$112) +($J31*'fnd base rates'!K$113) +($K31*'fnd base rates'!K$114) +($M31*'fnd base rates'!K$116) +($N31*'fnd base rates'!K$117) +($O31*'fnd base rates'!K$118) +($P31*VLOOKUP($S31+12,rate_basefnd,11))) *$R31 -> 2574.846126 | AD31: =(($D31*'fnd base rates'!L$107) +($E31*'fnd base rates'!L$108) +($F31*'fnd base rates'!L$109) +($G31*'fnd base rates'!L$110) +($H31*'fnd base rates'!L$111) +($I31*'fnd base rates'!L$112) +($J31*'fnd base rates'!L$113) +($K31*'fnd base rates'!L$114) +($M31*'fnd base rates'!L$116) +($N31*'fnd base rates'!L$117) +($O31*'fnd base rates'!L$118) +($P31*VLOOKUP($S31+12,rate_basefnd,12))) -> 4855.63364 | AE31: =(($D31*'fnd base rates'!M$107) +($E31*'fnd base rates'!M$108) +($F31*'fnd base rates'!M$109) +($G31*'fnd base rates'!M$110) +($H31*'fnd base rates'!M$111) +($I31*'fnd base rates'!M$112) +($J31*'fnd base rates'!M$113) +($K31*'fnd base rates'!M$114) +($M31*'fnd base rates'!M$116) +($N31*'fnd base rates'!M$117) +($O31*'fnd base rates'!M$118) +($P31*VLOOKUP($S31+12,rate_basefnd,13))) -> 0 | AF31: 35999.62155 | AH31: 410057163 | AI31: 410 | AJ31: 057 | AK31: 163 | AL31: 1 | AM31: 2 | AN31: 35999.62155 | AO31: 18000 | AP31: 0 | AQ31: 18000 | AW31: 18500 | AX31: -515 | AY31: 17985 | AZ31: 15 | BA31: 18000
A32: 410 | B32: 410057248 | C32: EXCEL ACADEMY | D32: ='fnd enro'!D32 -> 0 | E32: ='fnd enro'!E32 -> 0 | F32: ='fnd enro'!F32 -> 0 | G32: ='fnd enro'!G32 -> 7 | H32: ='fnd enro'!H32 -> 10 | I32: ='fnd enro'!I32 -> 0 | J32: ='fnd enro'!J32 -> 0 | K32: ='fnd enro'!K32 -> 0.663 | L32: ='fnd enro'!L32 -> 0 | M32: ='fnd enro'!M32 -> 0 | N32: ='fnd enro'!N32 -> 0 | O32: ='fnd enro'!O32 -> 0 | P32: ='fnd enro'!P32 -> 14 | Q32: ='fnd enro'!R32 -> 17 | R32: 1.041 | S32: =VALUE('fnd enro'!Q32) -> 11 | U32: =(($D32*'fnd base rates'!C$107) +($E32*'fnd base rates'!C$108) +($F32*'fnd base rates'!C$109) +($G32*'fnd base rates'!C$110) +($H32*'fnd base rates'!C$111) +($I32*'fnd base rates'!C$112) +($J32*'fnd base rates'!C$113) +($K32*'fnd base rates'!C$114) +($M32*'fnd base rates'!C$116) +($N32*'fnd base rates'!C$117) +($O32*'fnd base rates'!C$118) +($P32*VLOOKUP($S32+12,rate_basefnd,3))) *$R32 -> 11340.05825 | V32: =(($D32*'fnd base rates'!D$107) +($E32*'fnd base rates'!D$108) +($F32*'fnd base rates'!D$109) +($G32*'fnd base rates'!D$110) +($H32*'fnd base rates'!D$111) +($I32*'fnd base rates'!D$112) +($J32*'fnd base rates'!D$113) +($K32*'fnd base rates'!D$114) +($M32*'fnd base rates'!D$116) +($N32*'fnd base rates'!D$117) +($O32*'fnd base rates'!D$118) +($P32*VLOOKUP($S32+12,rate_basefnd,4))) *$R32 -> 20769.89667 | W32: =(($D32*'fnd base rates'!E$107) +($E32*'fnd base rates'!E$108) +($F32*'fnd base rates'!E$109) +($G32*'fnd base rates'!E$110) +($H32*'fnd base rates'!E$111) +($I32*'fnd base rates'!E$112) +($J32*'fnd base rates'!E$113) +($K32*'fnd base rates'!E$114) +($M32*'fnd base rates'!E$116) +($N32*'fnd base rates'!E$117) +($O32*'fnd base rates'!E$118) +($P32*VLOOKUP($S32+12,rate_basefnd,5))) *$R32 -> 131888.515 | X32: =(($D32*'fnd base rates'!F$107) +($E32*'fnd base rates'!F$108) +($F32*'fnd base rates'!F$109) +($G32*'fnd base rates'!F$110) +($H32*'fnd base rates'!F$111) +($I32*'fnd base rates'!F$112) +($J32*'fnd base rates'!F$113) +($K32*'fnd base rates'!F$114) +($M32*'fnd base rates'!F$116) +($N32*'fnd base rates'!F$117) +($O32*'fnd base rates'!F$118) +($P32*VLOOKUP($S32+12,rate_basefnd,6))) *$R32 -> 20394.02618 | Y32: =(($D32*'fnd base rates'!G$107) +($E32*'fnd base rates'!G$108) +($F32*'fnd base rates'!G$109) +($G32*'fnd base rates'!G$110) +($H32*'fnd base rates'!G$111) +($I32*'fnd base rates'!G$112) +($J32*'fnd base rates'!G$113) +($K32*'fnd base rates'!G$114) +($M32*'fnd base rates'!G$116) +($N32*'fnd base rates'!G$117) +($O32*'fnd base rates'!G$118) +($P32*VLOOKUP($S32+12,rate_basefnd,7))) *$R32 -> 6165.659295 | Z32: =(($D32*'fnd base rates'!H$107) +($E32*'fnd base rates'!H$108) +($F32*'fnd base rates'!H$109) +($G32*'fnd base rates'!H$110) +($H32*'fnd base rates'!H$111) +($I32*'fnd base rates'!H$112) +($J32*'fnd base rates'!H$113) +($K32*'fnd base rates'!H$114) +($M32*'fnd base rates'!H$116) +($N32*'fnd base rates'!H$117) +($O32*'fnd base rates'!H$118) +($P32*VLOOKUP($S32+12,rate_basefnd,8))) -> 9763.51361 | AA32: =(($D32*'fnd base rates'!I$107) +($E32*'fnd base rates'!I$108) +($F32*'fnd base rates'!I$109) +($G32*'fnd base rates'!I$110) +($H32*'fnd base rates'!I$111) +($I32*'fnd base rates'!I$112) +($J32*'fnd base rates'!I$113) +($K32*'fnd base rates'!I$114) +($M32*'fnd base rates'!I$116) +($N32*'fnd base rates'!I$117) +($O32*'fnd base rates'!I$118) +($P32*VLOOKUP($S32+12,rate_basefnd,9))) *$R32 -> 9214.7238 | AB32: =(($D32*'fnd base rates'!J$107) +($E32*'fnd base rates'!J$108) +($F32*'fnd base rates'!J$109) +($G32*'fnd base rates'!J$110) +($H32*'fnd base rates'!J$111) +($I32*'fnd base rates'!J$112) +($J32*'fnd base rates'!J$113) +($K32*'fnd base rates'!J$114) +($M32*'fnd base rates'!J$116) +($N32*'fnd base rates'!J$117) +($O32*'fnd base rates'!J$118) +($P32*VLOOKUP($S32+12,rate_basefnd,10))) *$R32 -> 17466.44973 | AC32: =(($D32*'fnd base rates'!K$107) +($E32*'fnd base rates'!K$108) +($F32*'fnd base rates'!K$109) +($G32*'fnd base rates'!K$110) +($H32*'fnd base rates'!K$111) +($I32*'fnd base rates'!K$112) +($J32*'fnd base rates'!K$113) +($K32*'fnd base rates'!K$114) +($M32*'fnd base rates'!K$116) +($N32*'fnd base rates'!K$117) +($O32*'fnd base rates'!K$118) +($P32*VLOOKUP($S32+12,rate_basefnd,11))) *$R32 -> 21262.20627 | AD32: =(($D32*'fnd base rates'!L$107) +($E32*'fnd base rates'!L$108) +($F32*'fnd base rates'!L$109) +($G32*'fnd base rates'!L$110) +($H32*'fnd base rates'!L$111) +($I32*'fnd base rates'!L$112) +($J32*'fnd base rates'!L$113) +($K32*'fnd base rates'!L$114) +($M32*'fnd base rates'!L$116) +($N32*'fnd base rates'!L$117) +($O32*'fnd base rates'!L$118) +($P32*VLOOKUP($S32+12,rate_basefnd,12))) -> 38470.30594 | AE32: =(($D32*'fnd base rates'!M$107) +($E32*'fnd base rates'!M$108) +($F32*'fnd base rates'!M$109) +($G32*'fnd base rates'!M$110) +($H32*'fnd base rates'!M$111) +($I32*'fnd base rates'!M$112) +($J32*'fnd base rates'!M$113) +($K32*'fnd base rates'!M$114) +($M32*'fnd base rates'!M$116) +($N32*'fnd base rates'!M$117) +($O32*'fnd base rates'!M$118) +($P32*VLOOKUP($S32+12,rate_basefnd,13))) -> 0 | AF32: 286735.3548 | AH32: 410057248 | AI32: 410 | AJ32: 057 | AK32: 248 | AL32: 1 | AM32: 17 | AN32: 286735.3548 | AO32: 16867 | AP32: 0 | AQ32: 16867 | AW32: 16855 | AX32: 0 | AY32: 16855 | AZ32: 12 | BA32: 16867
A33: 410 | B33: 410057262 | C33: EXCEL ACADEMY | D33: ='fnd enro'!D33 -> 0 | E33: ='fnd enro'!E33 -> 0 | F33: ='fnd enro'!F33 -> 0 | G33: ='fnd enro'!G33 -> 0 | H33: ='fnd enro'!H33 -> 1 | I33: ='fnd enro'!I33 -> 0 | J33: ='fnd enro'!J33 -> 0 | K33: ='fnd enro'!K33 -> 0.039 | L33: ='fnd enro'!L33 -> 0 | M33: ='fnd enro'!M33 -> 0 | N33: ='fnd enro'!N33 -> 0 | O33: ='fnd enro'!O33 -> 0 | P33: ='fnd enro'!P33 -> 1 | Q33: ='fnd enro'!R33 -> 1 | R33: 1.041 | S33: =VALUE('fnd enro'!Q33) -> 9 | U33: =(($D33*'fnd base rates'!C$107) +($E33*'fnd base rates'!C$108) +($F33*'fnd base rates'!C$109) +($G33*'fnd base rates'!C$110) +($H33*'fnd base rates'!C$111) +($I33*'fnd base rates'!C$112) +($J33*'fnd base rates'!C$113) +($K33*'fnd base rates'!C$114) +($M33*'fnd base rates'!C$116) +($N33*'fnd base rates'!C$117) +($O33*'fnd base rates'!C$118) +($P33*VLOOKUP($S33+12,rate_basefnd,3))) *$R33 -> 672.6438468 | V33: =(($D33*'fnd base rates'!D$107) +($E33*'fnd base rates'!D$108) +($F33*'fnd base rates'!D$109) +($G33*'fnd base rates'!D$110) +($H33*'fnd base rates'!D$111) +($I33*'fnd base rates'!D$112) +($J33*'fnd base rates'!D$113) +($K33*'fnd base rates'!D$114) +($M33*'fnd base rates'!D$116) +($N33*'fnd base rates'!D$117) +($O33*'fnd base rates'!D$118) +($P33*VLOOKUP($S33+12,rate_basefnd,4))) *$R33 -> 1248.22146 | W33: =(($D33*'fnd base rates'!E$107) +($E33*'fnd base rates'!E$108) +($F33*'fnd base rates'!E$109) +($G33*'fnd base rates'!E$110) +($H33*'fnd base rates'!E$111) +($I33*'fnd base rates'!E$112) +($J33*'fnd base rates'!E$113) +($K33*'fnd base rates'!E$114) +($M33*'fnd base rates'!E$116) +($N33*'fnd base rates'!E$117) +($O33*'fnd base rates'!E$118) +($P33*VLOOKUP($S33+12,rate_basefnd,5))) *$R33 -> 7827.893107 | X33: =(($D33*'fnd base rates'!F$107) +($E33*'fnd base rates'!F$108) +($F33*'fnd base rates'!F$109) +($G33*'fnd base rates'!F$110) +($H33*'fnd base rates'!F$111) +($I33*'fnd base rates'!F$112) +($J33*'fnd base rates'!F$113) +($K33*'fnd base rates'!F$114) +($M33*'fnd base rates'!F$116) +($N33*'fnd base rates'!F$117) +($O33*'fnd base rates'!F$118) +($P33*VLOOKUP($S33+12,rate_basefnd,6))) *$R33 -> 1086.738677 | Y33: =(($D33*'fnd base rates'!G$107) +($E33*'fnd base rates'!G$108) +($F33*'fnd base rates'!G$109) +($G33*'fnd base rates'!G$110) +($H33*'fnd base rates'!G$111) +($I33*'fnd base rates'!G$112) +($J33*'fnd base rates'!G$113) +($K33*'fnd base rates'!G$114) +($M33*'fnd base rates'!G$116) +($N33*'fnd base rates'!G$117) +($O33*'fnd base rates'!G$118) +($P33*VLOOKUP($S33+12,rate_basefnd,7))) *$R33 -> 380.4397897 | Z33: =(($D33*'fnd base rates'!H$107) +($E33*'fnd base rates'!H$108) +($F33*'fnd base rates'!H$109) +($G33*'fnd base rates'!H$110) +($H33*'fnd base rates'!H$111) +($I33*'fnd base rates'!H$112) +($J33*'fnd base rates'!H$113) +($K33*'fnd base rates'!H$114) +($M33*'fnd base rates'!H$116) +($N33*'fnd base rates'!H$117) +($O33*'fnd base rates'!H$118) +($P33*VLOOKUP($S33+12,rate_basefnd,8))) -> 576.16433 | AA33: =(($D33*'fnd base rates'!I$107) +($E33*'fnd base rates'!I$108) +($F33*'fnd base rates'!I$109) +($G33*'fnd base rates'!I$110) +($H33*'fnd base rates'!I$111) +($I33*'fnd base rates'!I$112) +($J33*'fnd base rates'!I$113) +($K33*'fnd base rates'!I$114) +($M33*'fnd base rates'!I$116) +($N33*'fnd base rates'!I$117) +($O33*'fnd base rates'!I$118) +($P33*VLOOKUP($S33+12,rate_basefnd,9))) *$R33 -> 571.42572 | AB33: =(($D33*'fnd base rates'!J$107) +($E33*'fnd base rates'!J$108) +($F33*'fnd base rates'!J$109) +($G33*'fnd base rates'!J$110) +($H33*'fnd base rates'!J$111) +($I33*'fnd base rates'!J$112) +($J33*'fnd base rates'!J$113) +($K33*'fnd base rates'!J$114) +($M33*'fnd base rates'!J$116) +($N33*'fnd base rates'!J$117) +($O33*'fnd base rates'!J$118) +($P33*VLOOKUP($S33+12,rate_basefnd,10))) *$R33 -> 1125.01911 | AC33: =(($D33*'fnd base rates'!K$107) +($E33*'fnd base rates'!K$108) +($F33*'fnd base rates'!K$109) +($G33*'fnd base rates'!K$110) +($H33*'fnd base rates'!K$111) +($I33*'fnd base rates'!K$112) +($J33*'fnd base rates'!K$113) +($K33*'fnd base rates'!K$114) +($M33*'fnd base rates'!K$116) +($N33*'fnd base rates'!K$117) +($O33*'fnd base rates'!K$118) +($P33*VLOOKUP($S33+12,rate_basefnd,11))) *$R33 -> 1287.423063 | AD33: =(($D33*'fnd base rates'!L$107) +($E33*'fnd base rates'!L$108) +($F33*'fnd base rates'!L$109) +($G33*'fnd base rates'!L$110) +($H33*'fnd base rates'!L$111) +($I33*'fnd base rates'!L$112) +($J33*'fnd base rates'!L$113) +($K33*'fnd base rates'!L$114) +($M33*'fnd base rates'!L$116) +($N33*'fnd base rates'!L$117) +($O33*'fnd base rates'!L$118) +($P33*VLOOKUP($S33+12,rate_basefnd,12))) -> 2339.62682 | AE33: =(($D33*'fnd base rates'!M$107) +($E33*'fnd base rates'!M$108) +($F33*'fnd base rates'!M$109) +($G33*'fnd base rates'!M$110) +($H33*'fnd base rates'!M$111) +($I33*'fnd base rates'!M$112) +($J33*'fnd base rates'!M$113) +($K33*'fnd base rates'!M$114) +($M33*'fnd base rates'!M$116) +($N33*'fnd base rates'!M$117) +($O33*'fnd base rates'!M$118) +($P33*VLOOKUP($S33+12,rate_basefnd,13))) -> 0 | AF33: 17115.59592 | AH33: 410057262 | AI33: 410 | AJ33: 057 | AK33: 262 | AL33: 1 | AM33: 1 | AN33: 17115.59592 | AO33: 17116 | AP33: 0 | AQ33: 17116 | AW33: 17103 | AX33: 0 | AY33: 17103 | AZ33: 13 | BA33: 17116
A34: 412 | B34: 412035035 | C34: ACADEMY OF THE PACIFIC RIM | D34: ='fnd enro'!D34 -> 0 | E34: ='fnd enro'!E34 -> 0 | F34: ='fnd enro'!F34 -> 0 | G34: ='fnd enro'!G34 -> 31 | H34: ='fnd enro'!H34 -> 175 | I34: ='fnd enro'!I34 -> 229 | J34: ='fnd enro'!J34 -> 0 | K34: ='fnd enro'!K34 -> 16.965 | L34: ='fnd enro'!L34 -> 0 | M34: ='fnd enro'!M34 -> 6 | N34: ='fnd enro'!N34 -> 18 | O34: ='fnd enro'!O34 -> 17 | P34: ='fnd enro'!P34 -> 317 | Q34: ='fnd enro'!R34 -> 435 | R34: 1.09 | S34: =VALUE('fnd enro'!Q34) -> 11 | U34: =(($D34*'fnd base rates'!C$107) +($E34*'fnd base rates'!C$108) +($F34*'fnd base rates'!C$109) +($G34*'fnd base rates'!C$110) +($H34*'fnd base rates'!C$111) +($I34*'fnd base rates'!C$112) +($J34*'fnd base rates'!C$113) +($K34*'fnd base rates'!C$114) +($M34*'fnd base rates'!C$116) +($N34*'fnd base rates'!C$117) +($O34*'fnd base rates'!C$118) +($P34*VLOOKUP($S34+12,rate_basefnd,3))) *$R34 -> 304587.2664 | V34: =(($D34*'fnd base rates'!D$107) +($E34*'fnd base rates'!D$108) +($F34*'fnd base rates'!D$109) +($G34*'fnd base rates'!D$110) +($H34*'fnd base rates'!D$111) +($I34*'fnd base rates'!D$112) +($J34*'fnd base rates'!D$113) +($K34*'fnd base rates'!D$114) +($M34*'fnd base rates'!D$116) +($N34*'fnd base rates'!D$117) +($O34*'fnd base rates'!D$118) +($P34*VLOOKUP($S34+12,rate_basefnd,4))) *$R34 -> 544928.1908 | W34: =(($D34*'fnd base rates'!E$107) +($E34*'fnd base rates'!E$108) +($F34*'fnd base rates'!E$109) +($G34*'fnd base rates'!E$110) +($H34*'fnd base rates'!E$111) +($I34*'fnd base rates'!E$112) +($J34*'fnd base rates'!E$113) +($K34*'fnd base rates'!E$114) +($M34*'fnd base rates'!E$116) +($N34*'fnd base rates'!E$117) +($O34*'fnd base rates'!E$118) +($P34*VLOOKUP($S34+12,rate_basefnd,5))) *$R34 -> 3704286.602 | X34: =(($D34*'fnd base rates'!F$107) +($E34*'fnd base rates'!F$108) +($F34*'fnd base rates'!F$109) +($G34*'fnd base rates'!F$110) +($H34*'fnd base rates'!F$111) +($I34*'fnd base rates'!F$112) +($J34*'fnd base rates'!F$113) +($K34*'fnd base rates'!F$114) +($M34*'fnd base rates'!F$116) +($N34*'fnd base rates'!F$117) +($O34*'fnd base rates'!F$118) +($P34*VLOOKUP($S34+12,rate_basefnd,6))) *$R34 -> 484448.9345 | Y34: =(($D34*'fnd base rates'!G$107) +($E34*'fnd base rates'!G$108) +($F34*'fnd base rates'!G$109) +($G34*'fnd base rates'!G$110) +($H34*'fnd base rates'!G$111) +($I34*'fnd base rates'!G$112) +($J34*'fnd base rates'!G$113) +($K34*'fnd base rates'!G$114) +($M34*'fnd base rates'!G$116) +($N34*'fnd base rates'!G$117) +($O34*'fnd base rates'!G$118) +($P34*VLOOKUP($S34+12,rate_basefnd,7))) *$R34 -> 158832.521 | Z34: =(($D34*'fnd base rates'!H$107) +($E34*'fnd base rates'!H$108) +($F34*'fnd base rates'!H$109) +($G34*'fnd base rates'!H$110) +($H34*'fnd base rates'!H$111) +($I34*'fnd base rates'!H$112) +($J34*'fnd base rates'!H$113) +($K34*'fnd base rates'!H$114) +($M34*'fnd base rates'!H$116) +($N34*'fnd base rates'!H$117) +($O34*'fnd base rates'!H$118) +($P34*VLOOKUP($S34+12,rate_basefnd,8))) -> 327183.0736 | AA34: =(($D34*'fnd base rates'!I$107) +($E34*'fnd base rates'!I$108) +($F34*'fnd base rates'!I$109) +($G34*'fnd base rates'!I$110) +($H34*'fnd base rates'!I$111) +($I34*'fnd base rates'!I$112) +($J34*'fnd base rates'!I$113) +($K34*'fnd base rates'!I$114) +($M34*'fnd base rates'!I$116) +($N34*'fnd base rates'!I$117) +($O34*'fnd base rates'!I$118) +($P34*VLOOKUP($S34+12,rate_basefnd,9))) *$R34 -> 263256.0915 | AB34: =(($D34*'fnd base rates'!J$107) +($E34*'fnd base rates'!J$108) +($F34*'fnd base rates'!J$109) +($G34*'fnd base rates'!J$110) +($H34*'fnd base rates'!J$111) +($I34*'fnd base rates'!J$112) +($J34*'fnd base rates'!J$113) +($K34*'fnd base rates'!J$114) +($M34*'fnd base rates'!J$116) +($N34*'fnd base rates'!J$117) +($O34*'fnd base rates'!J$118) +($P34*VLOOKUP($S34+12,rate_basefnd,10))) *$R34 -> 528335.4042 | AC34: =(($D34*'fnd base rates'!K$107) +($E34*'fnd base rates'!K$108) +($F34*'fnd base rates'!K$109) +($G34*'fnd base rates'!K$110) +($H34*'fnd base rates'!K$111) +($I34*'fnd base rates'!K$112) +($J34*'fnd base rates'!K$113) +($K34*'fnd base rates'!K$114) +($M34*'fnd base rates'!K$116) +($N34*'fnd base rates'!K$117) +($O34*'fnd base rates'!K$118) +($P34*VLOOKUP($S34+12,rate_basefnd,11))) *$R34 -> 590323.2174 | AD34: =(($D34*'fnd base rates'!L$107) +($E34*'fnd base rates'!L$108) +($F34*'fnd base rates'!L$109) +($G34*'fnd base rates'!L$110) +($H34*'fnd base rates'!L$111) +($I34*'fnd base rates'!L$112) +($J34*'fnd base rates'!L$113) +($K34*'fnd base rates'!L$114) +($M34*'fnd base rates'!L$116) +($N34*'fnd base rates'!L$117) +($O34*'fnd base rates'!L$118) +($P34*VLOOKUP($S34+12,rate_basefnd,12))) -> 941764.8567 | AE34: =(($D34*'fnd base rates'!M$107) +($E34*'fnd base rates'!M$108) +($F34*'fnd base rates'!M$109) +($G34*'fnd base rates'!M$110) +($H34*'fnd base rates'!M$111) +($I34*'fnd base rates'!M$112) +($J34*'fnd base rates'!M$113) +($K34*'fnd base rates'!M$114) +($M34*'fnd base rates'!M$116) +($N34*'fnd base rates'!M$117) +($O34*'fnd base rates'!M$118) +($P34*VLOOKUP($S34+12,rate_basefnd,13))) -> 0 | AF34: 7847946.158 | AH34: 412035035 | AI34: 412 | AJ34: 035 | AK34: 035 | AL34: 1 | AM34: 435 | AN34: 7847946.158 | AO34: 18041 | AP34: 0 | AQ34: 18041 | AW34: 18030 | AX34: 0 | AY34: 18030 | AZ34: 11 | BA34: 18041
A35: 412 | B35: 412035044 | C35: ACADEMY OF THE PACIFIC RIM | D35: ='fnd enro'!D35 -> 0 | E35: ='fnd enro'!E35 -> 0 | F35: ='fnd enro'!F35 -> 0 | G35: ='fnd enro'!G35 -> 0 | H35: ='fnd enro'!H35 -> 5 | I35: ='fnd enro'!I35 -> 8 | J35: ='fnd enro'!J35 -> 0 | K35: ='fnd enro'!K35 -> 0.507 | L35: ='fnd enro'!L35 -> 0 | M35: ='fnd enro'!M35 -> 0 | N35: ='fnd enro'!N35 -> 0 | O35: ='fnd enro'!O35 -> 0 | P35: ='fnd enro'!P35 -> 3 | Q35: ='fnd enro'!R35 -> 13 | R35: 1.09 | S35: =VALUE('fnd enro'!Q35) -> 11 | U35: =(($D35*'fnd base rates'!C$107) +($E35*'fnd base rates'!C$108) +($F35*'fnd base rates'!C$109) +($G35*'fnd base rates'!C$110) +($H35*'fnd base rates'!C$111) +($I35*'fnd base rates'!C$112) +($J35*'fnd base rates'!C$113) +($K35*'fnd base rates'!C$114) +($M35*'fnd base rates'!C$116) +($N35*'fnd base rates'!C$117) +($O35*'fnd base rates'!C$118) +($P35*VLOOKUP($S35+12,rate_basefnd,3))) *$R35 -> 8274.572797 | V35: =(($D35*'fnd base rates'!D$107) +($E35*'fnd base rates'!D$108) +($F35*'fnd base rates'!D$109) +($G35*'fnd base rates'!D$110) +($H35*'fnd base rates'!D$111) +($I35*'fnd base rates'!D$112) +($J35*'fnd base rates'!D$113) +($K35*'fnd base rates'!D$114) +($M35*'fnd base rates'!D$116) +($N35*'fnd base rates'!D$117) +($O35*'fnd base rates'!D$118) +($P35*VLOOKUP($S35+12,rate_basefnd,4))) *$R35 -> 12814.6177 | W35: =(($D35*'fnd base rates'!E$107) +($E35*'fnd base rates'!E$108) +($F35*'fnd base rates'!E$109) +($G35*'fnd base rates'!E$110) +($H35*'fnd base rates'!E$111) +($I35*'fnd base rates'!E$112) +($J35*'fnd base rates'!E$113) +($K35*'fnd base rates'!E$114) +($M35*'fnd base rates'!E$116) +($N35*'fnd base rates'!E$117) +($O35*'fnd base rates'!E$118) +($P35*VLOOKUP($S35+12,rate_basefnd,5))) *$R35 -> 79023.78897 | X35: =(($D35*'fnd base rates'!F$107) +($E35*'fnd base rates'!F$108) +($F35*'fnd base rates'!F$109) +($G35*'fnd base rates'!F$110) +($H35*'fnd base rates'!F$111) +($I35*'fnd base rates'!F$112) +($J35*'fnd base rates'!F$113) +($K35*'fnd base rates'!F$114) +($M35*'fnd base rates'!F$116) +($N35*'fnd base rates'!F$117) +($O35*'fnd base rates'!F$118) +($P35*VLOOKUP($S35+12,rate_basefnd,6))) *$R35 -> 13803.91723 | Y35: =(($D35*'fnd base rates'!G$107) +($E35*'fnd base rates'!G$108) +($F35*'fnd base rates'!G$109) +($G35*'fnd base rates'!G$110) +($H35*'fnd base rates'!G$111) +($I35*'fnd base rates'!G$112) +($J35*'fnd base rates'!G$113) +($K35*'fnd base rates'!G$114) +($M35*'fnd base rates'!G$116) +($N35*'fnd base rates'!G$117) +($O35*'fnd base rates'!G$118) +($P35*VLOOKUP($S35+12,rate_basefnd,7))) *$R35 -> 3159.102495 | Z35: =(($D35*'fnd base rates'!H$107) +($E35*'fnd base rates'!H$108) +($F35*'fnd base rates'!H$109) +($G35*'fnd base rates'!H$110) +($H35*'fnd base rates'!H$111) +($I35*'fnd base rates'!H$112) +($J35*'fnd base rates'!H$113) +($K35*'fnd base rates'!H$114) +($M35*'fnd base rates'!H$116) +($N35*'fnd base rates'!H$117) +($O35*'fnd base rates'!H$118) +($P35*VLOOKUP($S35+12,rate_basefnd,8))) -> 9758.87629 | AA35: =(($D35*'fnd base rates'!I$107) +($E35*'fnd base rates'!I$108) +($F35*'fnd base rates'!I$109) +($G35*'fnd base rates'!I$110) +($H35*'fnd base rates'!I$111) +($I35*'fnd base rates'!I$112) +($J35*'fnd base rates'!I$113) +($K35*'fnd base rates'!I$114) +($M35*'fnd base rates'!I$116) +($N35*'fnd base rates'!I$117) +($O35*'fnd base rates'!I$118) +($P35*VLOOKUP($S35+12,rate_basefnd,9))) *$R35 -> 6599.4595 | AB35: =(($D35*'fnd base rates'!J$107) +($E35*'fnd base rates'!J$108) +($F35*'fnd base rates'!J$109) +($G35*'fnd base rates'!J$110) +($H35*'fnd base rates'!J$111) +($I35*'fnd base rates'!J$112) +($J35*'fnd base rates'!J$113) +($K35*'fnd base rates'!J$114) +($M35*'fnd base rates'!J$116) +($N35*'fnd base rates'!J$117) +($O35*'fnd base rates'!J$118) +($P35*VLOOKUP($S35+12,rate_basefnd,10))) *$R35 -> 9696.7381 | AC35: =(($D35*'fnd base rates'!K$107) +($E35*'fnd base rates'!K$108) +($F35*'fnd base rates'!K$109) +($G35*'fnd base rates'!K$110) +($H35*'fnd base rates'!K$111) +($I35*'fnd base rates'!K$112) +($J35*'fnd base rates'!K$113) +($K35*'fnd base rates'!K$114) +($M35*'fnd base rates'!K$116) +($N35*'fnd base rates'!K$117) +($O35*'fnd base rates'!K$118) +($P35*VLOOKUP($S35+12,rate_basefnd,11))) *$R35 -> 17231.82016 | AD35: =(($D35*'fnd base rates'!L$107) +($E35*'fnd base rates'!L$108) +($F35*'fnd base rates'!L$109) +($G35*'fnd base rates'!L$110) +($H35*'fnd base rates'!L$111) +($I35*'fnd base rates'!L$112) +($J35*'fnd base rates'!L$113) +($K35*'fnd base rates'!L$114) +($M35*'fnd base rates'!L$116) +($N35*'fnd base rates'!L$117) +($O35*'fnd base rates'!L$118) +($P35*VLOOKUP($S35+12,rate_basefnd,12))) -> 22904.95866 | AE35: =(($D35*'fnd base rates'!M$107) +($E35*'fnd base rates'!M$108) +($F35*'fnd base rates'!M$109) +($G35*'fnd base rates'!M$110) +($H35*'fnd base rates'!M$111) +($I35*'fnd base rates'!M$112) +($J35*'fnd base rates'!M$113) +($K35*'fnd base rates'!M$114) +($M35*'fnd base rates'!M$116) +($N35*'fnd base rates'!M$117) +($O35*'fnd base rates'!M$118) +($P35*VLOOKUP($S35+12,rate_basefnd,13))) -> 0 | AF35: 183267.8519 | AH35: 412035044 | AI35: 412 | AJ35: 035 | AK35: 044 | AL35: 1 | AM35: 13 | AN35: 183267.8519 | AO35: 14098 | AP35: 0 | AQ35: 14098 | AW35: 14094 | AX35: 0 | AY35: 14094 | AZ35: 4 | BA35: 14098
A36: 412 | B36: 412035189 | C36: ACADEMY OF THE PACIFIC RIM | D36: ='fnd enro'!D36 -> 0 | E36: ='fnd enro'!E36 -> 0 | F36: ='fnd enro'!F36 -> 0 | G36: ='fnd enro'!G36 -> 1 | H36: ='fnd enro'!H36 -> 1 | I36: ='fnd enro'!I36 -> 0 | J36: ='fnd enro'!J36 -> 0 | K36: ='fnd enro'!K36 -> 0.078 | L36: ='fnd enro'!L36 -> 0 | M36: ='fnd enro'!M36 -> 0 | N36: ='fnd enro'!N36 -> 1 | O36: ='fnd enro'!O36 -> 0 | P36: ='fnd enro'!P36 -> 2 | Q36: ='fnd enro'!R36 -> 2 | R36: 1.09 | S36: =VALUE('fnd enro'!Q36) -> 3 | U36: =(($D36*'fnd base rates'!C$107) +($E36*'fnd base rates'!C$108) +($F36*'fnd base rates'!C$109) +($G36*'fnd base rates'!C$110) +($H36*'fnd base rates'!C$111) +($I36*'fnd base rates'!C$112) +($J36*'fnd base rates'!C$113) +($K36*'fnd base rates'!C$114) +($M36*'fnd base rates'!C$116) +($N36*'fnd base rates'!C$117) +($O36*'fnd base rates'!C$118) +($P36*VLOOKUP($S36+12,rate_basefnd,3))) *$R36 -> 1479.460553 | V36: =(($D36*'fnd base rates'!D$107) +($E36*'fnd base rates'!D$108) +($F36*'fnd base rates'!D$109) +($G36*'fnd base rates'!D$110) +($H36*'fnd base rates'!D$111) +($I36*'fnd base rates'!D$112) +($J36*'fnd base rates'!D$113) +($K36*'fnd base rates'!D$114) +($M36*'fnd base rates'!D$116) +($N36*'fnd base rates'!D$117) +($O36*'fnd base rates'!D$118) +($P36*VLOOKUP($S36+12,rate_basefnd,4))) *$R36 -> 2578.0135 | W36: =(($D36*'fnd base rates'!E$107) +($E36*'fnd base rates'!E$108) +($F36*'fnd base rates'!E$109) +($G36*'fnd base rates'!E$110) +($H36*'fnd base rates'!E$111) +($I36*'fnd base rates'!E$112) +($J36*'fnd base rates'!E$113) +($K36*'fnd base rates'!E$114) +($M36*'fnd base rates'!E$116) +($N36*'fnd base rates'!E$117) +($O36*'fnd base rates'!E$118) +($P36*VLOOKUP($S36+12,rate_basefnd,5))) *$R36 -> 15920.10383 | X36: =(($D36*'fnd base rates'!F$107) +($E36*'fnd base rates'!F$108) +($F36*'fnd base rates'!F$109) +($G36*'fnd base rates'!F$110) +($H36*'fnd base rates'!F$111) +($I36*'fnd base rates'!F$112) +($J36*'fnd base rates'!F$113) +($K36*'fnd base rates'!F$114) +($M36*'fnd base rates'!F$116) +($N36*'fnd base rates'!F$117) +($O36*'fnd base rates'!F$118) +($P36*VLOOKUP($S36+12,rate_basefnd,6))) *$R36 -> 2780.562205 | Y36: =(($D36*'fnd base rates'!G$107) +($E36*'fnd base rates'!G$108) +($F36*'fnd base rates'!G$109) +($G36*'fnd base rates'!G$110) +($H36*'fnd base rates'!G$111) +($I36*'fnd base rates'!G$112) +($J36*'fnd base rates'!G$113) +($K36*'fnd base rates'!G$114) +($M36*'fnd base rates'!G$116) +($N36*'fnd base rates'!G$117) +($O36*'fnd base rates'!G$118) +($P36*VLOOKUP($S36+12,rate_basefnd,7))) *$R36 -> 725.5063762 | Z36: =(($D36*'fnd base rates'!H$107) +($E36*'fnd base rates'!H$108) +($F36*'fnd base rates'!H$109) +($G36*'fnd base rates'!H$110) +($H36*'fnd base rates'!H$111) +($I36*'fnd base rates'!H$112) +($J36*'fnd base rates'!H$113) +($K36*'fnd base rates'!H$114) +($M36*'fnd base rates'!H$116) +($N36*'fnd base rates'!H$117) +($O36*'fnd base rates'!H$118) +($P36*VLOOKUP($S36+12,rate_basefnd,8))) -> 1278.07866 | AA36: =(($D36*'fnd base rates'!I$107) +($E36*'fnd base rates'!I$108) +($F36*'fnd base rates'!I$109) +($G36*'fnd base rates'!I$110) +($H36*'fnd base rates'!I$111) +($I36*'fnd base rates'!I$112) +($J36*'fnd base rates'!I$113) +($K36*'fnd base rates'!I$114) +($M36*'fnd base rates'!I$116) +($N36*'fnd base rates'!I$117) +($O36*'fnd base rates'!I$118) +($P36*VLOOKUP($S36+12,rate_basefnd,9))) *$R36 -> 1141.5461 | AB36: =(($D36*'fnd base rates'!J$107) +($E36*'fnd base rates'!J$108) +($F36*'fnd base rates'!J$109) +($G36*'fnd base rates'!J$110) +($H36*'fnd base rates'!J$111) +($I36*'fnd base rates'!J$112) +($J36*'fnd base rates'!J$113) +($K36*'fnd base rates'!J$114) +($M36*'fnd base rates'!J$116) +($N36*'fnd base rates'!J$117) +($O36*'fnd base rates'!J$118) +($P36*VLOOKUP($S36+12,rate_basefnd,10))) *$R36 -> 1756.2189 | AC36: =(($D36*'fnd base rates'!K$107) +($E36*'fnd base rates'!K$108) +($F36*'fnd base rates'!K$109) +($G36*'fnd base rates'!K$110) +($H36*'fnd base rates'!K$111) +($I36*'fnd base rates'!K$112) +($J36*'fnd base rates'!K$113) +($K36*'fnd base rates'!K$114) +($M36*'fnd base rates'!K$116) +($N36*'fnd base rates'!K$117) +($O36*'fnd base rates'!K$118) +($P36*VLOOKUP($S36+12,rate_basefnd,11))) *$R36 -> 2975.836555 | AD36: =(($D36*'fnd base rates'!L$107) +($E36*'fnd base rates'!L$108) +($F36*'fnd base rates'!L$109) +($G36*'fnd base rates'!L$110) +($H36*'fnd base rates'!L$111) +($I36*'fnd base rates'!L$112) +($J36*'fnd base rates'!L$113) +($K36*'fnd base rates'!L$114) +($M36*'fnd base rates'!L$116) +($N36*'fnd base rates'!L$117) +($O36*'fnd base rates'!L$118) +($P36*VLOOKUP($S36+12,rate_basefnd,12))) -> 4537.81364 | AE36: =(($D36*'fnd base rates'!M$107) +($E36*'fnd base rates'!M$108) +($F36*'fnd base rates'!M$109) +($G36*'fnd base rates'!M$110) +($H36*'fnd base rates'!M$111) +($I36*'fnd base rates'!M$112) +($J36*'fnd base rates'!M$113) +($K36*'fnd base rates'!M$114) +($M36*'fnd base rates'!M$116) +($N36*'fnd base rates'!M$117) +($O36*'fnd base rates'!M$118) +($P36*VLOOKUP($S36+12,rate_basefnd,13))) -> 0 | AF36: 35173.14032 | AH36: 412035189 | AI36: 412 | AJ36: 035 | AK36: 189 | AL36: 1 | AM36: 2 | AN36: 35173.14032 | AO36: 17587 | AP36: 0 | AQ36: 17587 | AW36: 17574 | AX36: 0 | AY36: 17574 | AZ36: 13 | BA36: 17587
A37: 412 | B37: 412035218 | C37: ACADEMY OF THE PACIFIC RIM | D37: ='fnd enro'!D37 -> 0 | E37: ='fnd enro'!E37 -> 0 | F37: ='fnd enro'!F37 -> 0 | G37: ='fnd enro'!G37 -> 1 | H37: ='fnd enro'!H37 -> 0 | I37: ='fnd enro'!I37 -> 0 | J37: ='fnd enro'!J37 -> 0 | K37: ='fnd enro'!K37 -> 0.039 | L37: ='fnd enro'!L37 -> 0 | M37: ='fnd enro'!M37 -> 0 | N37: ='fnd enro'!N37 -> 0 | O37: ='fnd enro'!O37 -> 0 | P37: ='fnd enro'!P37 -> 0 | Q37: ='fnd enro'!R37 -> 1 | R37: 1.09 | S37: =VALUE('fnd enro'!Q37) -> 6 | U37: =(($D37*'fnd base rates'!C$107) +($E37*'fnd base rates'!C$108) +($F37*'fnd base rates'!C$109) +($G37*'fnd base rates'!C$110) +($H37*'fnd base rates'!C$111) +($I37*'fnd base rates'!C$112) +($J37*'fnd base rates'!C$113) +($K37*'fnd base rates'!C$114) +($M37*'fnd base rates'!C$116) +($N37*'fnd base rates'!C$117) +($O37*'fnd base rates'!C$118) +($P37*VLOOKUP($S37+12,rate_basefnd,3))) *$R37 -> 612.3855767 | V37: =(($D37*'fnd base rates'!D$107) +($E37*'fnd base rates'!D$108) +($F37*'fnd base rates'!D$109) +($G37*'fnd base rates'!D$110) +($H37*'fnd base rates'!D$111) +($I37*'fnd base rates'!D$112) +($J37*'fnd base rates'!D$113) +($K37*'fnd base rates'!D$114) +($M37*'fnd base rates'!D$116) +($N37*'fnd base rates'!D$117) +($O37*'fnd base rates'!D$118) +($P37*VLOOKUP($S37+12,rate_basefnd,4))) *$R37 -> 871.4659 | W37: =(($D37*'fnd base rates'!E$107) +($E37*'fnd base rates'!E$108) +($F37*'fnd base rates'!E$109) +($G37*'fnd base rates'!E$110) +($H37*'fnd base rates'!E$111) +($I37*'fnd base rates'!E$112) +($J37*'fnd base rates'!E$113) +($K37*'fnd base rates'!E$114) +($M37*'fnd base rates'!E$116) +($N37*'fnd base rates'!E$117) +($O37*'fnd base rates'!E$118) +($P37*VLOOKUP($S37+12,rate_basefnd,5))) *$R37 -> 4424.397113 | X37: =(($D37*'fnd base rates'!F$107) +($E37*'fnd base rates'!F$108) +($F37*'fnd base rates'!F$109) +($G37*'fnd base rates'!F$110) +($H37*'fnd base rates'!F$111) +($I37*'fnd base rates'!F$112) +($J37*'fnd base rates'!F$113) +($K37*'fnd base rates'!F$114) +($M37*'fnd base rates'!F$116) +($N37*'fnd base rates'!F$117) +($O37*'fnd base rates'!F$118) +($P37*VLOOKUP($S37+12,rate_basefnd,6))) *$R37 -> 1425.008503 | Y37: =(($D37*'fnd base rates'!G$107) +($E37*'fnd base rates'!G$108) +($F37*'fnd base rates'!G$109) +($G37*'fnd base rates'!G$110) +($H37*'fnd base rates'!G$111) +($I37*'fnd base rates'!G$112) +($J37*'fnd base rates'!G$113) +($K37*'fnd base rates'!G$114) +($M37*'fnd base rates'!G$116) +($N37*'fnd base rates'!G$117) +($O37*'fnd base rates'!G$118) +($P37*VLOOKUP($S37+12,rate_basefnd,7))) *$R37 -> 178.8102381 | Z37: =(($D37*'fnd base rates'!H$107) +($E37*'fnd base rates'!H$108) +($F37*'fnd base rates'!H$109) +($G37*'fnd base rates'!H$110) +($H37*'fnd base rates'!H$111) +($I37*'fnd base rates'!H$112) +($J37*'fnd base rates'!H$113) +($K37*'fnd base rates'!H$114) +($M37*'fnd base rates'!H$116) +($N37*'fnd base rates'!H$117) +($O37*'fnd base rates'!H$118) +($P37*VLOOKUP($S37+12,rate_basefnd,8))) -> 547.16433 | AA37: =(($D37*'fnd base rates'!I$107) +($E37*'fnd base rates'!I$108) +($F37*'fnd base rates'!I$109) +($G37*'fnd base rates'!I$110) +($H37*'fnd base rates'!I$111) +($I37*'fnd base rates'!I$112) +($J37*'fnd base rates'!I$113) +($K37*'fnd base rates'!I$114) +($M37*'fnd base rates'!I$116) +($N37*'fnd base rates'!I$117) +($O37*'fnd base rates'!I$118) +($P37*VLOOKUP($S37+12,rate_basefnd,9))) *$R37 -> 378.0338 | AB37: =(($D37*'fnd base rates'!J$107) +($E37*'fnd base rates'!J$108) +($F37*'fnd base rates'!J$109) +($G37*'fnd base rates'!J$110) +($H37*'fnd base rates'!J$111) +($I37*'fnd base rates'!J$112) +($J37*'fnd base rates'!J$113) +($K37*'fnd base rates'!J$114) +($M37*'fnd base rates'!J$116) +($N37*'fnd base rates'!J$117) +($O37*'fnd base rates'!J$118) +($P37*VLOOKUP($S37+12,rate_basefnd,10))) *$R37 -> 173.4953 | AC37: =(($D37*'fnd base rates'!K$107) +($E37*'fnd base rates'!K$108) +($F37*'fnd base rates'!K$109) +($G37*'fnd base rates'!K$110) +($H37*'fnd base rates'!K$111) +($I37*'fnd base rates'!K$112) +($J37*'fnd base rates'!K$113) +($K37*'fnd base rates'!K$114) +($M37*'fnd base rates'!K$116) +($N37*'fnd base rates'!K$117) +($O37*'fnd base rates'!K$118) +($P37*VLOOKUP($S37+12,rate_basefnd,11))) *$R37 -> 1254.685528 | AD37: =(($D37*'fnd base rates'!L$107) +($E37*'fnd base rates'!L$108) +($F37*'fnd base rates'!L$109) +($G37*'fnd base rates'!L$110) +($H37*'fnd base rates'!L$111) +($I37*'fnd base rates'!L$112) +($J37*'fnd base rates'!L$113) +($K37*'fnd base rates'!L$114) +($M37*'fnd base rates'!L$116) +($N37*'fnd base rates'!L$117) +($O37*'fnd base rates'!L$118) +($P37*VLOOKUP($S37+12,rate_basefnd,12))) -> 1609.31682 | AE37: =(($D37*'fnd base rates'!M$107) +($E37*'fnd base rates'!M$108) +($F37*'fnd base rates'!M$109) +($G37*'fnd base rates'!M$110) +($H37*'fnd base rates'!M$111) +($I37*'fnd base rates'!M$112) +($J37*'fnd base rates'!M$113) +($K37*'fnd base rates'!M$114) +($M37*'fnd base rates'!M$116) +($N37*'fnd base rates'!M$117) +($O37*'fnd base rates'!M$118) +($P37*VLOOKUP($S37+12,rate_basefnd,13))) -> 0 | AF37: 11474.76311 | AH37: 412035218 | AI37: 412 | AJ37: 035 | AK37: 218 | AL37: 1 | AM37: 1 | AN37: 11474.76311 | AO37: 11475 | AP37: 0 | AQ37: 11475 | AW37: 11475 | AX37: 0 | AY37: 11475 | AZ37: 0 | BA37: 11475
A38: 412 | B38: 412035220 | C38: ACADEMY OF THE PACIFIC RIM | D38: ='fnd enro'!D38 -> 0 | E38: ='fnd enro'!E38 -> 0 | F38: ='fnd enro'!F38 -> 0 | G38: ='fnd enro'!G38 -> 0 | H38: ='fnd enro'!H38 -> 1 | I38: ='fnd enro'!I38 -> 2 | J38: ='fnd enro'!J38 -> 0 | K38: ='fnd enro'!K38 -> 0.117 | L38: ='fnd enro'!L38 -> 0 | M38: ='fnd enro'!M38 -> 0 | N38: ='fnd enro'!N38 -> 0 | O38: ='fnd enro'!O38 -> 0 | P38: ='fnd enro'!P38 -> 2 | Q38: ='fnd enro'!R38 -> 3 | R38: 1.09 | S38: =VALUE('fnd enro'!Q38) -> 8 | U38: =(($D38*'fnd base rates'!C$107) +($E38*'fnd base rates'!C$108) +($F38*'fnd base rates'!C$109) +($G38*'fnd base rates'!C$110) +($H38*'fnd base rates'!C$111) +($I38*'fnd base rates'!C$112) +($J38*'fnd base rates'!C$113) +($K38*'fnd base rates'!C$114) +($M38*'fnd base rates'!C$116) +($N38*'fnd base rates'!C$117) +($O38*'fnd base rates'!C$118) +($P38*VLOOKUP($S38+12,rate_basefnd,3))) *$R38 -> 2010.51033 | V38: =(($D38*'fnd base rates'!D$107) +($E38*'fnd base rates'!D$108) +($F38*'fnd base rates'!D$109) +($G38*'fnd base rates'!D$110) +($H38*'fnd base rates'!D$111) +($I38*'fnd base rates'!D$112) +($J38*'fnd base rates'!D$113) +($K38*'fnd base rates'!D$114) +($M38*'fnd base rates'!D$116) +($N38*'fnd base rates'!D$117) +($O38*'fnd base rates'!D$118) +($P38*VLOOKUP($S38+12,rate_basefnd,4))) *$R38 -> 3435.7127 | W38: =(($D38*'fnd base rates'!E$107) +($E38*'fnd base rates'!E$108) +($F38*'fnd base rates'!E$109) +($G38*'fnd base rates'!E$110) +($H38*'fnd base rates'!E$111) +($I38*'fnd base rates'!E$112) +($J38*'fnd base rates'!E$113) +($K38*'fnd base rates'!E$114) +($M38*'fnd base rates'!E$116) +($N38*'fnd base rates'!E$117) +($O38*'fnd base rates'!E$118) +($P38*VLOOKUP($S38+12,rate_basefnd,5))) *$R38 -> 23161.92204 | X38: =(($D38*'fnd base rates'!F$107) +($E38*'fnd base rates'!F$108) +($F38*'fnd base rates'!F$109) +($G38*'fnd base rates'!F$110) +($H38*'fnd base rates'!F$111) +($I38*'fnd base rates'!F$112) +($J38*'fnd base rates'!F$113) +($K38*'fnd base rates'!F$114) +($M38*'fnd base rates'!F$116) +($N38*'fnd base rates'!F$117) +($O38*'fnd base rates'!F$118) +($P38*VLOOKUP($S38+12,rate_basefnd,6))) *$R38 -> 3166.506408 | Y38: =(($D38*'fnd base rates'!G$107) +($E38*'fnd base rates'!G$108) +($F38*'fnd base rates'!G$109) +($G38*'fnd base rates'!G$110) +($H38*'fnd base rates'!G$111) +($I38*'fnd base rates'!G$112) +($J38*'fnd base rates'!G$113) +($K38*'fnd base rates'!G$114) +($M38*'fnd base rates'!G$116) +($N38*'fnd base rates'!G$117) +($O38*'fnd base rates'!G$118) +($P38*VLOOKUP($S38+12,rate_basefnd,7))) *$R38 -> 954.8381143 | Z38: =(($D38*'fnd base rates'!H$107) +($E38*'fnd base rates'!H$108) +($F38*'fnd base rates'!H$109) +($G38*'fnd base rates'!H$110) +($H38*'fnd base rates'!H$111) +($I38*'fnd base rates'!H$112) +($J38*'fnd base rates'!H$113) +($K38*'fnd base rates'!H$114) +($M38*'fnd base rates'!H$116) +($N38*'fnd base rates'!H$117) +($O38*'fnd base rates'!H$118) +($P38*VLOOKUP($S38+12,rate_basefnd,8))) -> 2332.91299 | AA38: =(($D38*'fnd base rates'!I$107) +($E38*'fnd base rates'!I$108) +($F38*'fnd base rates'!I$109) +($G38*'fnd base rates'!I$110) +($H38*'fnd base rates'!I$111) +($I38*'fnd base rates'!I$112) +($J38*'fnd base rates'!I$113) +($K38*'fnd base rates'!I$114) +($M38*'fnd base rates'!I$116) +($N38*'fnd base rates'!I$117) +($O38*'fnd base rates'!I$118) +($P38*VLOOKUP($S38+12,rate_basefnd,9))) *$R38 -> 1721.1754 | AB38: =(($D38*'fnd base rates'!J$107) +($E38*'fnd base rates'!J$108) +($F38*'fnd base rates'!J$109) +($G38*'fnd base rates'!J$110) +($H38*'fnd base rates'!J$111) +($I38*'fnd base rates'!J$112) +($J38*'fnd base rates'!J$113) +($K38*'fnd base rates'!J$114) +($M38*'fnd base rates'!J$116) +($N38*'fnd base rates'!J$117) +($O38*'fnd base rates'!J$118) +($P38*VLOOKUP($S38+12,rate_basefnd,10))) *$R38 -> 3277.5101 | AC38: =(($D38*'fnd base rates'!K$107) +($E38*'fnd base rates'!K$108) +($F38*'fnd base rates'!K$109) +($G38*'fnd base rates'!K$110) +($H38*'fnd base rates'!K$111) +($I38*'fnd base rates'!K$112) +($J38*'fnd base rates'!K$113) +($K38*'fnd base rates'!K$114) +($M38*'fnd base rates'!K$116) +($N38*'fnd base rates'!K$117) +($O38*'fnd base rates'!K$118) +($P38*VLOOKUP($S38+12,rate_basefnd,11))) *$R38 -> 3970.949483 | AD38: =(($D38*'fnd base rates'!L$107) +($E38*'fnd base rates'!L$108) +($F38*'fnd base rates'!L$109) +($G38*'fnd base rates'!L$110) +($H38*'fnd base rates'!L$111) +($I38*'fnd base rates'!L$112) +($J38*'fnd base rates'!L$113) +($K38*'fnd base rates'!L$114) +($M38*'fnd base rates'!L$116) +($N38*'fnd base rates'!L$117) +($O38*'fnd base rates'!L$118) +($P38*VLOOKUP($S38+12,rate_basefnd,12))) -> 5967.06046 | AE38: =(($D38*'fnd base rates'!M$107) +($E38*'fnd base rates'!M$108) +($F38*'fnd base rates'!M$109) +($G38*'fnd base rates'!M$110) +($H38*'fnd base rates'!M$111) +($I38*'fnd base rates'!M$112) +($J38*'fnd base rates'!M$113) +($K38*'fnd base rates'!M$114) +($M38*'fnd base rates'!M$116) +($N38*'fnd base rates'!M$117) +($O38*'fnd base rates'!M$118) +($P38*VLOOKUP($S38+12,rate_basefnd,13))) -> 0 | AF38: 49999.09802 | AH38: 412035220 | AI38: 412 | AJ38: 035 | AK38: 220 | AL38: 1 | AM38: 3 | AN38: 49999.09802 | AO38: 16666 | AP38: 0 | AQ38: 16666 | AW38: 16658 | AX38: 0 | AY38: 16658 | AZ38: 8 | BA38: 16666
A39: 412 | B39: 412035243 | C39: ACADEMY OF THE PACIFIC RIM | D39: ='fnd enro'!D39 -> 0 | E39: ='fnd enro'!E39 -> 0 | F39: ='fnd enro'!F39 -> 0 | G39: ='fnd enro'!G39 -> 1 | H39: ='fnd enro'!H39 -> 1 | I39: ='fnd enro'!I39 -> 0 | J39: ='fnd enro'!J39 -> 0 | K39: ='fnd enro'!K39 -> 0.078 | L39: ='fnd enro'!L39 -> 0 | M39: ='fnd enro'!M39 -> 0 | N39: ='fnd enro'!N39 -> 0 | O39: ='fnd enro'!O39 -> 0 | P39: ='fnd enro'!P39 -> 0 | Q39: ='fnd enro'!R39 -> 2 | R39: 1.09 | S39: =VALUE('fnd enro'!Q39) -> 10 | U39: =(($D39*'fnd base rates'!C$107) +($E39*'fnd base rates'!C$108) +($F39*'fnd base rates'!C$109) +($G39*'fnd base rates'!C$110) +($H39*'fnd base rates'!C$111) +($I39*'fnd base rates'!C$112) +($J39*'fnd base rates'!C$113) +($K39*'fnd base rates'!C$114) +($M39*'fnd base rates'!C$116) +($N39*'fnd base rates'!C$117) +($O39*'fnd base rates'!C$118) +($P39*VLOOKUP($S39+12,rate_basefnd,3))) *$R39 -> 1224.771153 | V39: =(($D39*'fnd base rates'!D$107) +($E39*'fnd base rates'!D$108) +($F39*'fnd base rates'!D$109) +($G39*'fnd base rates'!D$110) +($H39*'fnd base rates'!D$111) +($I39*'fnd base rates'!D$112) +($J39*'fnd base rates'!D$113) +($K39*'fnd base rates'!D$114) +($M39*'fnd base rates'!D$116) +($N39*'fnd base rates'!D$117) +($O39*'fnd base rates'!D$118) +($P39*VLOOKUP($S39+12,rate_basefnd,4))) *$R39 -> 1742.9318 | W39: =(($D39*'fnd base rates'!E$107) +($E39*'fnd base rates'!E$108) +($F39*'fnd base rates'!E$109) +($G39*'fnd base rates'!E$110) +($H39*'fnd base rates'!E$111) +($I39*'fnd base rates'!E$112) +($J39*'fnd base rates'!E$113) +($K39*'fnd base rates'!E$114) +($M39*'fnd base rates'!E$116) +($N39*'fnd base rates'!E$117) +($O39*'fnd base rates'!E$118) +($P39*VLOOKUP($S39+12,rate_basefnd,5))) *$R39 -> 8369.314126 | X39: =(($D39*'fnd base rates'!F$107) +($E39*'fnd base rates'!F$108) +($F39*'fnd base rates'!F$109) +($G39*'fnd base rates'!F$110) +($H39*'fnd base rates'!F$111) +($I39*'fnd base rates'!F$112) +($J39*'fnd base rates'!F$113) +($K39*'fnd base rates'!F$114) +($M39*'fnd base rates'!F$116) +($N39*'fnd base rates'!F$117) +($O39*'fnd base rates'!F$118) +($P39*VLOOKUP($S39+12,rate_basefnd,6))) *$R39 -> 2562.900105 | Y39: =(($D39*'fnd base rates'!G$107) +($E39*'fnd base rates'!G$108) +($F39*'fnd base rates'!G$109) +($G39*'fnd base rates'!G$110) +($H39*'fnd base rates'!G$111) +($I39*'fnd base rates'!G$112) +($J39*'fnd base rates'!G$113) +($K39*'fnd base rates'!G$114) +($M39*'fnd base rates'!G$116) +($N39*'fnd base rates'!G$117) +($O39*'fnd base rates'!G$118) +($P39*VLOOKUP($S39+12,rate_basefnd,7))) *$R39 -> 370.8966762 | Z39: =(($D39*'fnd base rates'!H$107) +($E39*'fnd base rates'!H$108) +($F39*'fnd base rates'!H$109) +($G39*'fnd base rates'!H$110) +($H39*'fnd base rates'!H$111) +($I39*'fnd base rates'!H$112) +($J39*'fnd base rates'!H$113) +($K39*'fnd base rates'!H$114) +($M39*'fnd base rates'!H$116) +($N39*'fnd base rates'!H$117) +($O39*'fnd base rates'!H$118) +($P39*VLOOKUP($S39+12,rate_basefnd,8))) -> 1094.32866 | AA39: =(($D39*'fnd base rates'!I$107) +($E39*'fnd base rates'!I$108) +($F39*'fnd base rates'!I$109) +($G39*'fnd base rates'!I$110) +($H39*'fnd base rates'!I$111) +($I39*'fnd base rates'!I$112) +($J39*'fnd base rates'!I$113) +($K39*'fnd base rates'!I$114) +($M39*'fnd base rates'!I$116) +($N39*'fnd base rates'!I$117) +($O39*'fnd base rates'!I$118) +($P39*VLOOKUP($S39+12,rate_basefnd,9))) *$R39 -> 804.202 | AB39: =(($D39*'fnd base rates'!J$107) +($E39*'fnd base rates'!J$108) +($F39*'fnd base rates'!J$109) +($G39*'fnd base rates'!J$110) +($H39*'fnd base rates'!J$111) +($I39*'fnd base rates'!J$112) +($J39*'fnd base rates'!J$113) +($K39*'fnd base rates'!J$114) +($M39*'fnd base rates'!J$116) +($N39*'fnd base rates'!J$117) +($O39*'fnd base rates'!J$118) +($P39*VLOOKUP($S39+12,rate_basefnd,10))) *$R39 -> 456.9062 | AC39: =(($D39*'fnd base rates'!K$107) +($E39*'fnd base rates'!K$108) +($F39*'fnd base rates'!K$109) +($G39*'fnd base rates'!K$110) +($H39*'fnd base rates'!K$111) +($I39*'fnd base rates'!K$112) +($J39*'fnd base rates'!K$113) +($K39*'fnd base rates'!K$114) +($M39*'fnd base rates'!K$116) +($N39*'fnd base rates'!K$117) +($O39*'fnd base rates'!K$118) +($P39*VLOOKUP($S39+12,rate_basefnd,11))) *$R39 -> 2602.707755 | AD39: =(($D39*'fnd base rates'!L$107) +($E39*'fnd base rates'!L$108) +($F39*'fnd base rates'!L$109) +($G39*'fnd base rates'!L$110) +($H39*'fnd base rates'!L$111) +($I39*'fnd base rates'!L$112) +($J39*'fnd base rates'!L$113) +($K39*'fnd base rates'!L$114) +($M39*'fnd base rates'!L$116) +($N39*'fnd base rates'!L$117) +($O39*'fnd base rates'!L$118) +($P39*VLOOKUP($S39+12,rate_basefnd,12))) -> 3305.40364 | AE39: =(($D39*'fnd base rates'!M$107) +($E39*'fnd base rates'!M$108) +($F39*'fnd base rates'!M$109) +($G39*'fnd base rates'!M$110) +($H39*'fnd base rates'!M$111) +($I39*'fnd base rates'!M$112) +($J39*'fnd base rates'!M$113) +($K39*'fnd base rates'!M$114) +($M39*'fnd base rates'!M$116) +($N39*'fnd base rates'!M$117) +($O39*'fnd base rates'!M$118) +($P39*VLOOKUP($S39+12,rate_basefnd,13))) -> 0 | AF39: 22534.36212 | AH39: 412035243 | AI39: 412 | AJ39: 035 | AK39: 243 | AL39: 1 | AM39: 2 | AN39: 22534.36212 | AO39: 11267 | AP39: 0 | AQ39: 11267 | AW39: 11267 | AX39: 0 | AY39: 11267 | AZ39: 0 | BA39: 11267
A40: 412 | B40: 412035244 | C40: ACADEMY OF THE PACIFIC RIM | D40: ='fnd enro'!D40 -> 0 | E40: ='fnd enro'!E40 -> 0 | F40: ='fnd enro'!F40 -> 0 | G40: ='fnd enro'!G40 -> 1 | H40: ='fnd enro'!H40 -> 3 | I40: ='fnd enro'!I40 -> 1 | J40: ='fnd enro'!J40 -> 0 | K40: ='fnd enro'!K40 -> 0.195 | L40: ='fnd enro'!L40 -> 0 | M40: ='fnd enro'!M40 -> 0 | N40: ='fnd enro'!N40 -> 0 | O40: ='fnd enro'!O40 -> 0 | P40: ='fnd enro'!P40 -> 3 | Q40: ='fnd enro'!R40 -> 5 | R40: 1.09 | S40: =VALUE('fnd enro'!Q40) -> 10 | U40: =(($D40*'fnd base rates'!C$107) +($E40*'fnd base rates'!C$108) +($F40*'fnd base rates'!C$109) +($G40*'fnd base rates'!C$110) +($H40*'fnd base rates'!C$111) +($I40*'fnd base rates'!C$112) +($J40*'fnd base rates'!C$113) +($K40*'fnd base rates'!C$114) +($M40*'fnd base rates'!C$116) +($N40*'fnd base rates'!C$117) +($O40*'fnd base rates'!C$118) +($P40*VLOOKUP($S40+12,rate_basefnd,3))) *$R40 -> 3353.415684 | V40: =(($D40*'fnd base rates'!D$107) +($E40*'fnd base rates'!D$108) +($F40*'fnd base rates'!D$109) +($G40*'fnd base rates'!D$110) +($H40*'fnd base rates'!D$111) +($I40*'fnd base rates'!D$112) +($J40*'fnd base rates'!D$113) +($K40*'fnd base rates'!D$114) +($M40*'fnd base rates'!D$116) +($N40*'fnd base rates'!D$117) +($O40*'fnd base rates'!D$118) +($P40*VLOOKUP($S40+12,rate_basefnd,4))) *$R40 -> 5738.414 | W40: =(($D40*'fnd base rates'!E$107) +($E40*'fnd base rates'!E$108) +($F40*'fnd base rates'!E$109) +($G40*'fnd base rates'!E$110) +($H40*'fnd base rates'!E$111) +($I40*'fnd base rates'!E$112) +($J40*'fnd base rates'!E$113) +($K40*'fnd base rates'!E$114) +($M40*'fnd base rates'!E$116) +($N40*'fnd base rates'!E$117) +($O40*'fnd base rates'!E$118) +($P40*VLOOKUP($S40+12,rate_basefnd,5))) *$R40 -> 35340.82976 | X40: =(($D40*'fnd base rates'!F$107) +($E40*'fnd base rates'!F$108) +($F40*'fnd base rates'!F$109) +($G40*'fnd base rates'!F$110) +($H40*'fnd base rates'!F$111) +($I40*'fnd base rates'!F$112) +($J40*'fnd base rates'!F$113) +($K40*'fnd base rates'!F$114) +($M40*'fnd base rates'!F$116) +($N40*'fnd base rates'!F$117) +($O40*'fnd base rates'!F$118) +($P40*VLOOKUP($S40+12,rate_basefnd,6))) *$R40 -> 5852.990713 | Y40: =(($D40*'fnd base rates'!G$107) +($E40*'fnd base rates'!G$108) +($F40*'fnd base rates'!G$109) +($G40*'fnd base rates'!G$110) +($H40*'fnd base rates'!G$111) +($I40*'fnd base rates'!G$112) +($J40*'fnd base rates'!G$113) +($K40*'fnd base rates'!G$114) +($M40*'fnd base rates'!G$116) +($N40*'fnd base rates'!G$117) +($O40*'fnd base rates'!G$118) +($P40*VLOOKUP($S40+12,rate_basefnd,7))) *$R40 -> 1596.022091 | Z40: =(($D40*'fnd base rates'!H$107) +($E40*'fnd base rates'!H$108) +($F40*'fnd base rates'!H$109) +($G40*'fnd base rates'!H$110) +($H40*'fnd base rates'!H$111) +($I40*'fnd base rates'!H$112) +($J40*'fnd base rates'!H$113) +($K40*'fnd base rates'!H$114) +($M40*'fnd base rates'!H$116) +($N40*'fnd base rates'!H$117) +($O40*'fnd base rates'!H$118) +($P40*VLOOKUP($S40+12,rate_basefnd,8))) -> 3146.15165 | AA40: =(($D40*'fnd base rates'!I$107) +($E40*'fnd base rates'!I$108) +($F40*'fnd base rates'!I$109) +($G40*'fnd base rates'!I$110) +($H40*'fnd base rates'!I$111) +($I40*'fnd base rates'!I$112) +($J40*'fnd base rates'!I$113) +($K40*'fnd base rates'!I$114) +($M40*'fnd base rates'!I$116) +($N40*'fnd base rates'!I$117) +($O40*'fnd base rates'!I$118) +($P40*VLOOKUP($S40+12,rate_basefnd,9))) *$R40 -> 2687.6348 | AB40: =(($D40*'fnd base rates'!J$107) +($E40*'fnd base rates'!J$108) +($F40*'fnd base rates'!J$109) +($G40*'fnd base rates'!J$110) +($H40*'fnd base rates'!J$111) +($I40*'fnd base rates'!J$112) +($J40*'fnd base rates'!J$113) +($K40*'fnd base rates'!J$114) +($M40*'fnd base rates'!J$116) +($N40*'fnd base rates'!J$117) +($O40*'fnd base rates'!J$118) +($P40*VLOOKUP($S40+12,rate_basefnd,10))) *$R40 -> 4514.0497 | AC40: =(($D40*'fnd base rates'!K$107) +($E40*'fnd base rates'!K$108) +($F40*'fnd base rates'!K$109) +($G40*'fnd base rates'!K$110) +($H40*'fnd base rates'!K$111) +($I40*'fnd base rates'!K$112) +($J40*'fnd base rates'!K$113) +($K40*'fnd base rates'!K$114) +($M40*'fnd base rates'!K$116) +($N40*'fnd base rates'!K$117) +($O40*'fnd base rates'!K$118) +($P40*VLOOKUP($S40+12,rate_basefnd,11))) *$R40 -> 6610.215838 | AD40: =(($D40*'fnd base rates'!L$107) +($E40*'fnd base rates'!L$108) +($F40*'fnd base rates'!L$109) +($G40*'fnd base rates'!L$110) +($H40*'fnd base rates'!L$111) +($I40*'fnd base rates'!L$112) +($J40*'fnd base rates'!L$113) +($K40*'fnd base rates'!L$114) +($M40*'fnd base rates'!L$116) +($N40*'fnd base rates'!L$117) +($O40*'fnd base rates'!L$118) +($P40*VLOOKUP($S40+12,rate_basefnd,12))) -> 10267.0541 | AE40: =(($D40*'fnd base rates'!M$107) +($E40*'fnd base rates'!M$108) +($F40*'fnd base rates'!M$109) +($G40*'fnd base rates'!M$110) +($H40*'fnd base rates'!M$111) +($I40*'fnd base rates'!M$112) +($J40*'fnd base rates'!M$113) +($K40*'fnd base rates'!M$114) +($M40*'fnd base rates'!M$116) +($N40*'fnd base rates'!M$117) +($O40*'fnd base rates'!M$118) +($P40*VLOOKUP($S40+12,rate_basefnd,13))) -> 0 | AF40: 79106.77834 | AH40: 412035244 | AI40: 412 | AJ40: 035 | AK40: 244 | AL40: 1 | AM40: 5 | AN40: 79106.77834 | AO40: 15821 | AP40: 0 | AQ40: 15821 | AW40: 15813 | AX40: 0 | AY40: 15813 | AZ40: 8 | BA40: 15821
A41: 412 | B41: 412035285 | C41: ACADEMY OF THE PACIFIC RIM | D41: ='fnd enro'!D41 -> 0 | E41: ='fnd enro'!E41 -> 0 | F41: ='fnd enro'!F41 -> 0 | G41: ='fnd enro'!G41 -> 0 | H41: ='fnd enro'!H41 -> 1 | I41: ='fnd enro'!I41 -> 2 | J41: ='fnd enro'!J41 -> 0 | K41: ='fnd enro'!K41 -> 0.117 | L41: ='fnd enro'!L41 -> 0 | M41: ='fnd enro'!M41 -> 0 | N41: ='fnd enro'!N41 -> 0 | O41: ='fnd enro'!O41 -> 0 | P41: ='fnd enro'!P41 -> 1 | Q41: ='fnd enro'!R41 -> 3 | R41: 1.09 | S41: =VALUE('fnd enro'!Q41) -> 9 | U41: =(($D41*'fnd base rates'!C$107) +($E41*'fnd base rates'!C$108) +($F41*'fnd base rates'!C$109) +($G41*'fnd base rates'!C$110) +($H41*'fnd base rates'!C$111) +($I41*'fnd base rates'!C$112) +($J41*'fnd base rates'!C$113) +($K41*'fnd base rates'!C$114) +($M41*'fnd base rates'!C$116) +($N41*'fnd base rates'!C$117) +($O41*'fnd base rates'!C$118) +($P41*VLOOKUP($S41+12,rate_basefnd,3))) *$R41 -> 1929.07643 | V41: =(($D41*'fnd base rates'!D$107) +($E41*'fnd base rates'!D$108) +($F41*'fnd base rates'!D$109) +($G41*'fnd base rates'!D$110) +($H41*'fnd base rates'!D$111) +($I41*'fnd base rates'!D$112) +($J41*'fnd base rates'!D$113) +($K41*'fnd base rates'!D$114) +($M41*'fnd base rates'!D$116) +($N41*'fnd base rates'!D$117) +($O41*'fnd base rates'!D$118) +($P41*VLOOKUP($S41+12,rate_basefnd,4))) *$R41 -> 3049.9072 | W41: =(($D41*'fnd base rates'!E$107) +($E41*'fnd base rates'!E$108) +($F41*'fnd base rates'!E$109) +($G41*'fnd base rates'!E$110) +($H41*'fnd base rates'!E$111) +($I41*'fnd base rates'!E$112) +($J41*'fnd base rates'!E$113) +($K41*'fnd base rates'!E$114) +($M41*'fnd base rates'!E$116) +($N41*'fnd base rates'!E$117) +($O41*'fnd base rates'!E$118) +($P41*VLOOKUP($S41+12,rate_basefnd,5))) *$R41 -> 19395.62324 | X41: =(($D41*'fnd base rates'!F$107) +($E41*'fnd base rates'!F$108) +($F41*'fnd base rates'!F$109) +($G41*'fnd base rates'!F$110) +($H41*'fnd base rates'!F$111) +($I41*'fnd base rates'!F$112) +($J41*'fnd base rates'!F$113) +($K41*'fnd base rates'!F$114) +($M41*'fnd base rates'!F$116) +($N41*'fnd base rates'!F$117) +($O41*'fnd base rates'!F$118) +($P41*VLOOKUP($S41+12,rate_basefnd,6))) *$R41 -> 3166.506408 | Y41: =(($D41*'fnd base rates'!G$107) +($E41*'fnd base rates'!G$108) +($F41*'fnd base rates'!G$109) +($G41*'fnd base rates'!G$110) +($H41*'fnd base rates'!G$111) +($I41*'fnd base rates'!G$112) +($J41*'fnd base rates'!G$113) +($K41*'fnd base rates'!G$114) +($M41*'fnd base rates'!G$116) +($N41*'fnd base rates'!G$117) +($O41*'fnd base rates'!G$118) +($P41*VLOOKUP($S41+12,rate_basefnd,7))) *$R41 -> 772.1214143 | Z41: =(($D41*'fnd base rates'!H$107) +($E41*'fnd base rates'!H$108) +($F41*'fnd base rates'!H$109) +($G41*'fnd base rates'!H$110) +($H41*'fnd base rates'!H$111) +($I41*'fnd base rates'!H$112) +($J41*'fnd base rates'!H$113) +($K41*'fnd base rates'!H$114) +($M41*'fnd base rates'!H$116) +($N41*'fnd base rates'!H$117) +($O41*'fnd base rates'!H$118) +($P41*VLOOKUP($S41+12,rate_basefnd,8))) -> 2307.19299 | AA41: =(($D41*'fnd base rates'!I$107) +($E41*'fnd base rates'!I$108) +($F41*'fnd base rates'!I$109) +($G41*'fnd base rates'!I$110) +($H41*'fnd base rates'!I$111) +($I41*'fnd base rates'!I$112) +($J41*'fnd base rates'!I$113) +($K41*'fnd base rates'!I$114) +($M41*'fnd base rates'!I$116) +($N41*'fnd base rates'!I$117) +($O41*'fnd base rates'!I$118) +($P41*VLOOKUP($S41+12,rate_basefnd,9))) *$R41 -> 1568.6626 | AB41: =(($D41*'fnd base rates'!J$107) +($E41*'fnd base rates'!J$108) +($F41*'fnd base rates'!J$109) +($G41*'fnd base rates'!J$110) +($H41*'fnd base rates'!J$111) +($I41*'fnd base rates'!J$112) +($J41*'fnd base rates'!J$113) +($K41*'fnd base rates'!J$114) +($M41*'fnd base rates'!J$116) +($N41*'fnd base rates'!J$117) +($O41*'fnd base rates'!J$118) +($P41*VLOOKUP($S41+12,rate_basefnd,10))) *$R41 -> 2485.0365 | AC41: =(($D41*'fnd base rates'!K$107) +($E41*'fnd base rates'!K$108) +($F41*'fnd base rates'!K$109) +($G41*'fnd base rates'!K$110) +($H41*'fnd base rates'!K$111) +($I41*'fnd base rates'!K$112) +($J41*'fnd base rates'!K$113) +($K41*'fnd base rates'!K$114) +($M41*'fnd base rates'!K$116) +($N41*'fnd base rates'!K$117) +($O41*'fnd base rates'!K$118) +($P41*VLOOKUP($S41+12,rate_basefnd,11))) *$R41 -> 3970.949483 | AD41: =(($D41*'fnd base rates'!L$107) +($E41*'fnd base rates'!L$108) +($F41*'fnd base rates'!L$109) +($G41*'fnd base rates'!L$110) +($H41*'fnd base rates'!L$111) +($I41*'fnd base rates'!L$112) +($J41*'fnd base rates'!L$113) +($K41*'fnd base rates'!L$114) +($M41*'fnd base rates'!L$116) +($N41*'fnd base rates'!L$117) +($O41*'fnd base rates'!L$118) +($P41*VLOOKUP($S41+12,rate_basefnd,12))) -> 5396.96046 | AE41: =(($D41*'fnd base rates'!M$107) +($E41*'fnd base rates'!M$108) +($F41*'fnd base rates'!M$109) +($G41*'fnd base rates'!M$110) +($H41*'fnd base rates'!M$111) +($I41*'fnd base rates'!M$112) +($J41*'fnd base rates'!M$113) +($K41*'fnd base rates'!M$114) +($M41*'fnd base rates'!M$116) +($N41*'fnd base rates'!M$117) +($O41*'fnd base rates'!M$118) +($P41*VLOOKUP($S41+12,rate_basefnd,13))) -> 0 | AF41: 44042.03672 | AH41: 412035285 | AI41: 412 | AJ41: 035 | AK41: 285 | AL41: 1 | AM41: 3 | AN41: 44042.03672 | AO41: 14681 | AP41: 0 | AQ41: 14681 | AW41: 14676 | AX41: 0 | AY41: 14676 | AZ41: 5 | BA41: 14681
